Workbook

Sheet Cover
B3: Attachment 9.05
B4: Long run marginal cost model
B6: 2025-30 Regulatory Proposal
B8: 31 January 2024

Sheet Table Of Contents
A1: Table Of Contents
A3: Table Of Contents | B3: Description
A4: Control and Output Summary
A5: Output Comparator
A6: Outputs ->
A7: Import LRMC
A8: Export LRMC
A9: Calculations ->
A10: Import AIC
A11: Export AIC
A12: Capex Summary
A13: Export Summary
A14: Import Summary
A15: Ergon Input
A16: Raw Inputs ->
A17: Import Forecast
A18: Export Forecast
A19: Import Expenditure Forecast
A20: Export Expenditure Forecast
A21: Asset Specification
A22: RIN Summary - Import LRMC

Sheet Control and Output Summary
B1: Control and Outputs
B3: Parameters and Assumptions | C3: Costs ($) is based on 2024 - 2025 | D3: 2023-06-27T11:15:33.990
B5: Parameter Name | C5: Import | D5: Export
B6: Real Vanilla WACC | C6: 0.0375 | D6: 0.0375
B7: Percentage repex saved per percentage demand reduction | C7: 1.12 | D7: N/A | E7: v
B8: Opex Proportion of Capex | C8: 0.0096 | D8: 0.01
B9: Growth Related Repex Percentage | C9: 0 | D9: N/A
B10: Growth Related Connections Cost Percentage | C10: 0.05 | D10: N/A
B12: Display Option
B14: Pricing Zone | C14: West
B17: LRMC
B19: Import | F19: Export
B21: Demand at Voltage Level | C21: $/kW p.a | D21: $/kVA p.a. | F21: Demand at Voltage Level | G21: $/kW p.a | H21: $/kVA p.a.
B22: LV | C22: ='Import LRMC'!E19 -> 270.5907813 | D22: ='Import LRMC'!F19 -> 243.5317031 | F22: LV | G22: ='Export LRMC'!E19 -> 53.59899627 | H22: ='Export LRMC'!F19 -> 48.23909665
B23: HV | C23: ='Import LRMC'!E20 -> 209.9343437 | D23: ='Import LRMC'!F20 -> 188.9409093 | F23: HV | G23: ='Export LRMC'!E20 -> 5.898684036 | H23: ='Export LRMC'!F20 -> 5.308815633
B24: ST | C24: ='Import LRMC'!E21 -> 55.42568066 | D24: ='Import LRMC'!F21 -> 49.88311259 | F24: ST | G24: ='Export LRMC'!E21 -> 0 | H24: ='Export LRMC'!F21 -> 0
B27: Mt Isa | F27: Mt Isa
B28: =IF($C$14="East","LV","") ->  | C28: =IF($C$14="East",(SUM('Import AIC'!$C$32:$F$33))/(SUM('Import AIC'!$E$7:$E$8))*1000,"") ->  | D28: =IF($C$14="East", $C$28 *AVERAGEIFS('Asset Specification'!$F$8:$F$43,'Asset Specification'!$B$8:$B$43, "*V*",'Asset Specification'!$C$8:$C$43,$C$14,'Asset Specification'!$D$8:$D$43,"Import"), "") ->  | F28: =IF($C$14="East","LV","") ->  | G28: =IF($C$14="East",(SUM('Export AIC'!C$32:F$33))/(SUM('Export AIC'!D$7:D$8))*1000,"") ->  | H28: =IF($C$14="East", $G$28 *AVERAGEIFS('Asset Specification'!$F$8:$F$43,'Asset Specification'!$B$8:$B$43, "*V*",'Asset Specification'!$C$8:$C$43,$C$14,'Asset Specification'!$D$8:$D$43,"Export"), "") -> 
B29: =IF($C$14="East","HV","") ->  | C29: =IF($C$14="East",(SUM('Import AIC'!$C$34:$F$35))/(SUM('Import AIC'!$E$9:$E$10))*1000,"") ->  | D29: =IF($C$14="East", $C$29 *AVERAGEIFS('Asset Specification'!$F$8:$F$43,'Asset Specification'!$B$8:$B$43, "*V*",'Asset Specification'!$C$8:$C$43,$C$14,'Asset Specification'!$D$8:$D$43,"Import"), "") ->  | F29: =IF($C$14="East","HV","") ->  | G29: =IF($C$14="East",(SUM('Export AIC'!C$34:F$35))/(SUM('Export AIC'!D$9:D$10))*1000,"") ->  | H29: =IF($C$14="East", $G$29 *AVERAGEIFS('Asset Specification'!$F$8:$F$43,'Asset Specification'!$B$8:$B$43, "*V*",'Asset Specification'!$C$8:$C$43,$C$14,'Asset Specification'!$D$8:$D$43,"Export"), "") -> 

Sheet Output Comparator
B1: LRMC Estimates (LV, HV & ST) By Pricing Zone and Network
B23: West | C23: Datetime: | D23: 2023-11-29T09:11:45.340
B25: Import
B27: Demand at Voltage Level | C27: $/kW p.a | D27: $/kVA p.a. | F27: Parameter Name
B28: LV | C28: 270.5907813 | D28: 243.5317031 | F28: Real Vanilla WACC | G28: 0.0375
B29: HV | C29: 209.9343437 | D29: 188.9409093 | E29: v | F29: Percentage repex saved per percentage demand reudction | G29: 1.12
B30: ST | C30: 55.42568066 | D30: 49.88311259 | F30: Opex Proportion of Capex | G30: 0.0096
F31: Growth Related Repex Percentage | G31: 0
F32: Growth Related Connections Cost Percentage | G32: 0.05
B35: Export
B37: Demand at Voltage Level | C37: $/kW p.a | D37: $/kVA p.a. | F37: Parameter Name
B38: LV | C38: 53.59899627 | D38: 48.23909665 | F38: Real Vanilla WACC | G38: 0.0375
B39: HV | C39: 5.898684036 | D39: 5.308815633 | F39: Opex Proportion of Capex | G39: 0.01
B40: ST | C40: 0 | D40: 0
B43: East | C43: Datetime: | D43: 2023-11-29T09:13:50.010
B45: Import
B47: Demand at Voltage Level | F47: Parameter Name
B48: LV | C48: 262.4364218 | D48: 236.1927796 | F48: Real Vanilla WACC | G48: 0.0375
B49: HV | C49: 173.7573609 | D49: 156.3816248 | E49: v | F49: Percentage repex saved per percentage demand reudction | G49: 1.12
B50: ST | C50: 46.86422816 | D50: 42.17780535 | F50: Opex Proportion of Capex | G50: 0.0096
F51: Growth Related Repex Percentage | G51: 0
F52: Growth Related Connections Cost Percentage | G52: 0.05
B53: Mt Isa
B54: LV | C54: 176.3185 | D54: 158.68665
B55: HV | C55: 87.63943909 | D55: 78.87549518
B57: Export
B59: Demand at Voltage Level | F59: Parameter Name
B60: LV | C60: 54.89197514 | D60: 49.40277763 | F60: Real Vanilla WACC | G60: 0.0375
B61: HV | C61: 6.040979123 | D61: 5.436881211 | F61: Opex Proportion of Capex | G61: 0.01
B62: ST | C62: 0 | D62: 0
B65: Mt Isa
B66: LV | C66: 54.89197514 | D66: 49.40277763
B67: HV | C67: 6.040979123 | D67: 5.436881211
E74: v
B87: Ergon | C87: Datetime: | D87: 2023-11-29T09:16:22.790
B89: Import
B91: Demand at Voltage Level | C91: $/kW p.a | D91: $/kVA p.a. | F91: Parameter Name
B92: LV | C92: 271.3807177 | D92: 244.2426459 | F92: Real Vanilla WACC | G92: 0.0375
B93: HV | C93: 186.0758944 | D93: 167.4683049 | E93: v | F93: Percentage repex saved per percentage demand reudction | G93: 1.12
B94: ST | C94: 49.83235628 | D94: 44.84912065 | F94: Opex Proportion of Capex | G94: 0.0096
F95: Growth Related Repex Percentage | G95: 0
F96: Growth Related Connections Cost Percentage | G96: 0.05
B99: Export
B101: Demand at Voltage Level | C101: $/kW p.a | D101: $/kVA p.a. | F101: Parameter Name
B102: LV | C102: 54.66778569 | D102: 49.20100712 | F102: Real Vanilla WACC | G102: 0.0375
B103: HV | C103: 6.016306595 | D103: 5.414675935 | F103: Opex Proportion of Capex | G103: 0.01
B104: ST | C104: 0 | D104: 0

Sheet Outputs ->

Sheet Import LRMC
B1: Import LRMC
B3: Pricing Zone: | C3: ='Control and Output Summary'!$C$14 -> West
B5: Network Level Break Down
B7: Demand at Voltage Level | C7: Incremental Demand NPV (MW) | D7: Total Allocated NPV Cost ($m) | E7: $/kW p.a | F7: $/kVA p.a.
B8: LV Line | C8: =SUMIFS('Import AIC'!$E$7:$E$12,'Import AIC'!$B$7:$B$12,$B8&"*",'Import AIC'!$C$7:$C$12,$C$3) -> 24.14488555 | D8: =SUMIFS('Import AIC'!$I$32:$I$37,'Import AIC'!$B$32:$B$37,$B8&"*") -> 7.887873807 | E8: =$D8*1000/$C8 -> 326.6892192 | F8: =$E8*IF('Control and Output Summary'!$C$14<>"Ergon",AVERAGEIFS('Asset Specification'!$F$8:$F$43,'Asset Specification'!$B$8:$B$43, $B8&"*",'Asset Specification'!$C$8:$C$43,$C$3, 'Asset Specification'!$D$8:$D$43,"Import" ),AVERAGEIFS('Ergon Input'!$F$84:$F$95,'Ergon Input'!$B$84:$B$95, $B8&"*", 'Ergon Input'!$D$84:$D$95,"Import" )) -> 294.0202972
B9: LV Bus | C9: =SUMIFS('Import AIC'!$E$7:$E$12,'Import AIC'!$B$7:$B$12,$B9&"*",'Import AIC'!$C$7:$C$12,$C$3) -> 25.56517294 | D9: =SUMIFS('Import AIC'!$I$32:$I$37,'Import AIC'!$B$32:$B$37,$B9&"*") -> 5.563209755 | E9: 217.6089233 | F9: =$E9*IF('Control and Output Summary'!$C$14<>"Ergon",AVERAGEIFS('Asset Specification'!$F$8:$F$43,'Asset Specification'!$B$8:$B$43, $B9&"*",'Asset Specification'!$C$8:$C$43,$C$3, 'Asset Specification'!$D$8:$D$43,"Import" ),AVERAGEIFS('Ergon Input'!$F$84:$F$95,'Ergon Input'!$B$84:$B$95, $B9&"*", 'Ergon Input'!$D$84:$D$95,"Import" )) -> 195.8480309
B10: HV Line | C10: =SUMIFS('Import AIC'!$E$7:$E$12,'Import AIC'!$B$7:$B$12,$B10&"*",'Import AIC'!$C$7:$C$12,$C$3) -> 7.276854352 | D10: =SUMIFS('Import AIC'!$I$32:$I$37,'Import AIC'!$B$32:$B$37,$B10&"*") -> 1.559947895 | E10: 214.3711856 | F10: =$E10*IF('Control and Output Summary'!$C$14<>"Ergon",AVERAGEIFS('Asset Specification'!$F$8:$F$43,'Asset Specification'!$B$8:$B$43, $B10&"*",'Asset Specification'!$C$8:$C$43,$C$3, 'Asset Specification'!$D$8:$D$43,"Import" ),AVERAGEIFS('Ergon Input'!$F$84:$F$95,'Ergon Input'!$B$84:$B$95, $B10&"*", 'Ergon Input'!$D$84:$D$95,"Import" )) -> 192.9340671
B11: HV Bus | C11: =SUMIFS('Import AIC'!$E$7:$E$12,'Import AIC'!$B$7:$B$12,$B11&"*",'Import AIC'!$C$7:$C$12,$C$3) -> 7.564098603 | D11: =SUMIFS('Import AIC'!$I$32:$I$37,'Import AIC'!$B$32:$B$37,$B11&"*") -> 1.555677823 | E11: 205.6659894 | F11: =$E11*IF('Control and Output Summary'!$C$14<>"Ergon",AVERAGEIFS('Asset Specification'!$F$8:$F$43,'Asset Specification'!$B$8:$B$43, $B11&"*",'Asset Specification'!$C$8:$C$43,$C$3, 'Asset Specification'!$D$8:$D$43,"Import" ),AVERAGEIFS('Ergon Input'!$F$84:$F$95,'Ergon Input'!$B$84:$B$95, $B11&"*", 'Ergon Input'!$D$84:$D$95,"Import" )) -> 185.0993904
B12: ST 33/66 kV | C12: =SUMIFS('Import AIC'!$E$7:$E$12,'Import AIC'!$B$7:$B$12,$B12&"*",'Import AIC'!$C$7:$C$12,$C$3) -> 15.2632924 | D12: =SUMIFS('Import AIC'!$I$32:$I$37,'Import AIC'!$B$32:$B$37,$B12&"*") -> 0.8760227269 | E12: 57.39408666 | F12: =$E12*IF('Control and Output Summary'!$C$14<>"Ergon",AVERAGEIFS('Asset Specification'!$F$8:$F$43,'Asset Specification'!$B$8:$B$43, $B12&"*",'Asset Specification'!$C$8:$C$43,$C$3, 'Asset Specification'!$D$8:$D$43,"Import" ),AVERAGEIFS('Ergon Input'!$F$84:$F$95,'Ergon Input'!$B$84:$B$95, $B12&"*", 'Ergon Input'!$D$84:$D$95,"Import" )) -> 51.654678
B13: ST 110/132 kV | C13: =SUMIFS('Import AIC'!$E$7:$E$12,'Import AIC'!$B$7:$B$12,$B13&"*",'Import AIC'!$C$7:$C$12,$C$3) -> 15.2632924 | D13: =SUMIFS('Import AIC'!$I$32:$I$37,'Import AIC'!$B$32:$B$37,$B13&"*") -> 0.815934014 | E13: 53.45727465 | F13: =$E13*IF('Control and Output Summary'!$C$14<>"Ergon",AVERAGEIFS('Asset Specification'!$F$8:$F$43,'Asset Specification'!$B$8:$B$43, $B13&"*",'Asset Specification'!$C$8:$C$43,$C$3, 'Asset Specification'!$D$8:$D$43,"Import" ),AVERAGEIFS('Ergon Input'!$F$84:$F$95,'Ergon Input'!$B$84:$B$95, $B13&"*", 'Ergon Input'!$D$84:$D$95,"Import" )) -> 48.11154719
B16: Aggregated Estimate
B18: Demand at Voltage Level | C18: Incremental Demand NPV (MW) | D18: Total Allocated NPV Cost ($m) | E18: $/kW p.a | F18: $/kVA p.a.
B19: LV | C19: =SUMIFS('Import AIC'!$E$7:$E$12,'Import AIC'!$B$7:$B$12,$B19&"*",'Import AIC'!$C$7:$C$12,$C$3) -> 49.71005849 | D19: =SUMIFS('Import AIC'!$I$32:$I$37,'Import AIC'!$B$32:$B$37,$B19&"*") -> 13.45108356 | E19: =$D19*1000/$C19 -> 270.5907813 | F19: =$E19*IF('Control and Output Summary'!$C$14<>"Ergon",AVERAGEIFS('Asset Specification'!$F$8:$F$43,'Asset Specification'!$B$8:$B$43, $B19&"*",'Asset Specification'!$C$8:$C$43,$C$3, 'Asset Specification'!$D$8:$D$43,"Import" ),AVERAGEIFS('Ergon Input'!$F$84:$F$95,'Ergon Input'!$B$84:$B$95, $B19&"*", 'Ergon Input'!$D$84:$D$95,"Import" )) -> 243.5317031
B20: HV | C20: =SUMIFS('Import AIC'!$E$7:$E$12,'Import AIC'!$B$7:$B$12,$B20&"*",'Import AIC'!$C$7:$C$12,$C$3) -> 14.84095296 | D20: =SUMIFS('Import AIC'!$I$32:$I$37,'Import AIC'!$B$32:$B$37,$B20&"*") -> 3.115625718 | E20: =$D20*1000/$C20 -> 209.9343437 | F20: =$E20*IF('Control and Output Summary'!$C$14<>"Ergon",AVERAGEIFS('Asset Specification'!$F$8:$F$43,'Asset Specification'!$B$8:$B$43, $B20&"*",'Asset Specification'!$C$8:$C$43,$C$3, 'Asset Specification'!$D$8:$D$43,"Import" ),AVERAGEIFS('Ergon Input'!$F$84:$F$95,'Ergon Input'!$B$84:$B$95, $B20&"*", 'Ergon Input'!$D$84:$D$95,"Import" )) -> 188.9409093
B21: ST | C21: =SUMIFS('Import AIC'!$E$7:$E$12,'Import AIC'!$B$7:$B$12,$B21&"*",'Import AIC'!$C$7:$C$12,$C$3) -> 30.5265848 | D21: =SUMIFS('Import AIC'!$I$32:$I$37,'Import AIC'!$B$32:$B$37,$B21&"*") -> 1.691956741 | E21: =$D21*1000/$C21 -> 55.42568066 | F21: =$E21*IF('Control and Output Summary'!$C$14<>"Ergon",AVERAGEIFS('Asset Specification'!$F$8:$F$43,'Asset Specification'!$B$8:$B$43, $B21&"*",'Asset Specification'!$C$8:$C$43,$C$3, 'Asset Specification'!$D$8:$D$43,"Import" ),AVERAGEIFS('Ergon Input'!$F$84:$F$95,'Ergon Input'!$B$84:$B$95, $B21&"*", 'Ergon Input'!$D$84:$D$95,"Import" )) -> 49.88311259

Sheet Export LRMC
B1: Export LRMC
B3: Pricing Zone: | C3: ='Control and Output Summary'!$C$14 -> West
B5: Network Level Break Down
B7: Demand at Voltage Level | C7: Incremental Demand NPV (MW) | D7: Total Allocated NPV Cost ($m) | E7: $/kW p.a | F7: $/kVA p.a.
B8: LV Line | C8: =SUMIFS('Export AIC'!$D$7:$D$12,'Export AIC'!$B$7:$B$12,$B8&"*",'Export AIC'!$C$7:$C$12,$C$3) -> 77.88029162 | D8: =SUMIFS('Export AIC'!$I$32:$I$37,'Export AIC'!$B$32:$B$37,$B8&"*") -> 6.031762574 | E8: =IFERROR($D8*1000/$C8,0) -> 77.44915239 | F8: =$E8*IF('Control and Output Summary'!$C$14<>"Ergon",AVERAGEIFS('Asset Specification'!$F$8:$F$43,'Asset Specification'!$B$8:$B$43, $B8&"*",'Asset Specification'!$C$8:$C$43,$C$3, 'Asset Specification'!$D$8:$D$43,"Export" ),AVERAGEIFS('Ergon Input'!$F$84:$F$95,'Ergon Input'!$B$84:$B$95, $B8&"*", 'Ergon Input'!$D$84:$D$95,"Export" )) -> 69.70423715
B9: LV Bus | C9: =SUMIFS('Export AIC'!$D$7:$D$12,'Export AIC'!$B$7:$B$12,$B9&"*",'Export AIC'!$C$7:$C$12,$C$3) -> 77.88029162 | D9: =SUMIFS('Export AIC'!$I$32:$I$37,'Export AIC'!$B$32:$B$37,$B9&"*") -> 2.316848347 | E9: 29.74884015 | F9: =$E9*IF('Control and Output Summary'!$C$14<>"Ergon",AVERAGEIFS('Asset Specification'!$F$8:$F$43,'Asset Specification'!$B$8:$B$43, $B9&"*",'Asset Specification'!$C$8:$C$43,$C$3, 'Asset Specification'!$D$8:$D$43,"Export" ),AVERAGEIFS('Ergon Input'!$F$84:$F$95,'Ergon Input'!$B$84:$B$95, $B9&"*", 'Ergon Input'!$D$84:$D$95,"Export" )) -> 26.77395614
B10: HV Line | C10: =SUMIFS('Export AIC'!$D$7:$D$12,'Export AIC'!$B$7:$B$12,$B10&"*",'Export AIC'!$C$7:$C$12,$C$3) -> 4.098962717 | D10: =SUMIFS('Export AIC'!$I$32:$I$37,'Export AIC'!$B$32:$B$37,$B10&"*") -> 0.02417848594 | E10: 5.898684036 | F10: =$E10*IF('Control and Output Summary'!$C$14<>"Ergon",AVERAGEIFS('Asset Specification'!$F$8:$F$43,'Asset Specification'!$B$8:$B$43, $B10&"*",'Asset Specification'!$C$8:$C$43,$C$3, 'Asset Specification'!$D$8:$D$43,"Export" ),AVERAGEIFS('Ergon Input'!$F$84:$F$95,'Ergon Input'!$B$84:$B$95, $B10&"*", 'Ergon Input'!$D$84:$D$95,"Export" )) -> 5.308815633
B11: HV Bus | C11: =SUMIFS('Export AIC'!$D$7:$D$12,'Export AIC'!$B$7:$B$12,$B11&"*",'Export AIC'!$C$7:$C$12,$C$3) -> 4.098962717 | D11: =SUMIFS('Export AIC'!$I$32:$I$37,'Export AIC'!$B$32:$B$37,$B11&"*") -> 0.02417848594 | E11: 5.898684036 | F11: =$E11*IF('Control and Output Summary'!$C$14<>"Ergon",AVERAGEIFS('Asset Specification'!$F$8:$F$43,'Asset Specification'!$B$8:$B$43, $B11&"*",'Asset Specification'!$C$8:$C$43,$C$3, 'Asset Specification'!$D$8:$D$43,"Export" ),AVERAGEIFS('Ergon Input'!$F$84:$F$95,'Ergon Input'!$B$84:$B$95, $B11&"*", 'Ergon Input'!$D$84:$D$95,"Export" )) -> 5.308815633
B12: ST 33/66 kV | C12: =SUMIFS('Export AIC'!$D$7:$D$12,'Export AIC'!$B$7:$B$12,$B12&"*",'Export AIC'!$C$7:$C$12,$C$3) -> 0 | D12: =SUMIFS('Export AIC'!$I$32:$I$37,'Export AIC'!$B$32:$B$37,$B12&"*") -> 0 | E12: 0 | F12: =$E12*IF('Control and Output Summary'!$C$14<>"Ergon",AVERAGEIFS('Asset Specification'!$F$8:$F$43,'Asset Specification'!$B$8:$B$43, $B12&"*",'Asset Specification'!$C$8:$C$43,$C$3, 'Asset Specification'!$D$8:$D$43,"Export" ),AVERAGEIFS('Ergon Input'!$F$84:$F$95,'Ergon Input'!$B$84:$B$95, $B12&"*", 'Ergon Input'!$D$84:$D$95,"Export" )) -> 0
B13: ST 110/132 kV | C13: =SUMIFS('Export AIC'!$D$7:$D$12,'Export AIC'!$B$7:$B$12,$B13&"*",'Export AIC'!$C$7:$C$12,$C$3) -> 0 | D13: =SUMIFS('Export AIC'!$I$32:$I$37,'Export AIC'!$B$32:$B$37,$B13&"*") -> 0 | E13: 0 | F13: =$E13*IF('Control and Output Summary'!$C$14<>"Ergon",AVERAGEIFS('Asset Specification'!$F$8:$F$43,'Asset Specification'!$B$8:$B$43, $B13&"*",'Asset Specification'!$C$8:$C$43,$C$3, 'Asset Specification'!$D$8:$D$43,"Export" ),AVERAGEIFS('Ergon Input'!$F$84:$F$95,'Ergon Input'!$B$84:$B$95, $B13&"*", 'Ergon Input'!$D$84:$D$95,"Export" )) -> 0
B16: Aggregated Estimate
B18: Demand at Voltage Level | C18: Incremental Demand NPV (MW) | D18: Total Allocated NPV Cost ($m) | E18: $/kW p.a | F18: $/kVA p.a.
B19: LV | C19: =SUMIFS('Export AIC'!$D$7:$D$12,'Export AIC'!$B$7:$B$12,$B19&"*",'Export AIC'!$C$7:$C$12,$C$3) -> 155.7605832 | D19: =SUMIFS('Export AIC'!$I$32:$I$37,'Export AIC'!$B$32:$B$37,$B19&"*") -> 8.348610921 | E19: =IFERROR($D19*1000/$C19,0) -> 53.59899627 | F19: =$E19*IF('Control and Output Summary'!$C$14<>"Ergon",AVERAGEIFS('Asset Specification'!$F$8:$F$43,'Asset Specification'!$B$8:$B$43, $B19&"*",'Asset Specification'!$C$8:$C$43,$C$3, 'Asset Specification'!$D$8:$D$43,"Export" ),AVERAGEIFS('Ergon Input'!$F$84:$F$95,'Ergon Input'!$B$84:$B$95, $B19&"*", 'Ergon Input'!$D$84:$D$95,"Export" )) -> 48.23909665
B20: HV | C20: =SUMIFS('Export AIC'!$D$7:$D$12,'Export AIC'!$B$7:$B$12,$B20&"*",'Export AIC'!$C$7:$C$12,$C$3) -> 8.197925434 | D20: =SUMIFS('Export AIC'!$I$32:$I$37,'Export AIC'!$B$32:$B$37,$B20&"*") -> 0.04835697189 | E20: =IFERROR($D20*1000/$C20,0) -> 5.898684036 | F20: =$E20*IF('Control and Output Summary'!$C$14<>"Ergon",AVERAGEIFS('Asset Specification'!$F$8:$F$43,'Asset Specification'!$B$8:$B$43, $B20&"*",'Asset Specification'!$C$8:$C$43,$C$3, 'Asset Specification'!$D$8:$D$43,"Export" ),AVERAGEIFS('Ergon Input'!$F$84:$F$95,'Ergon Input'!$B$84:$B$95, $B20&"*", 'Ergon Input'!$D$84:$D$95,"Export" )) -> 5.308815633
B21: ST | C21: =SUMIFS('Export AIC'!$D$7:$D$12,'Export AIC'!$B$7:$B$12,$B21&"*",'Export AIC'!$C$7:$C$12,$C$3) -> 0 | D21: =SUMIFS('Export AIC'!$I$32:$I$37,'Export AIC'!$B$32:$B$37,$B21&"*") -> 0 | E21: =IFERROR($D21*1000/$C21,0) -> 0 | F21: =$E21*IF('Control and Output Summary'!$C$14<>"Ergon",AVERAGEIFS('Asset Specification'!$F$8:$F$43,'Asset Specification'!$B$8:$B$43, $B21&"*",'Asset Specification'!$C$8:$C$43,$C$3, 'Asset Specification'!$D$8:$D$43,"Export" ),AVERAGEIFS('Ergon Input'!$F$84:$F$95,'Ergon Input'!$B$84:$B$95, $B21&"*", 'Ergon Input'!$D$84:$D$95,"Export" )) -> 0

Sheet Calculations ->

Sheet Import AIC
B1: Import Growing AIC
B3: Incremental Demand (MW)
B6: Voltage Level | C6: Pricing Zone | D6: NPV | E6: NPV (DLF Adjusted) | F6: ='Import Expenditure Forecast'!G$7 -> 2024 | G6: ='Import Expenditure Forecast'!H$7 -> 2025 | H6: ='Import Expenditure Forecast'!I$7 -> 2026 | I6: ='Import Expenditure Forecast'!J$7 -> 2027 | J6: ='Import Expenditure Forecast'!K$7 -> 2028 | K6: ='Import Expenditure Forecast'!L$7 -> 2029 | L6: ='Import Expenditure Forecast'!M$7 -> 2030 | M6: ='Import Expenditure Forecast'!N$7 -> 2031 | N6: ='Import Expenditure Forecast'!O$7 -> 2032 | O6: ='Import Expenditure Forecast'!P$7 -> 2033
B7: LV Line | C7: ='Control and Output Summary'!$C$14 -> West | D7: =NPV('Control and Output Summary'!$C$6,$F7:$O7) -> 29.55333991 | E7: =$D7/IF('Control and Output Summary'!$C$14<>"Ergon",INDEX('Asset Specification'!$E$8:$E$43,MATCH(1,($B7='Asset Specification'!$B$8:$B$43)*($C7='Asset Specification'!$C$8:$C$43) * ("Import" = 'Asset Specification'!$D$8:$D$43 ),0)),INDEX('Ergon Input'!$E$84:$E$95,MATCH(1,($B7='Ergon Input'!$B$84:$B$95) * ("Import" ='Ergon Input'!$D$84:$D$95 ),0))) -> 24.14488555 | F7: ='Import Summary'!E19 -> 22.11566742 | G7: ='Import Summary'!F19 -> 4.181071281 | H7: ='Import Summary'!G19 -> 2.750704202 | I7: ='Import Summary'!H19 -> 0.1100284147 | J7: ='Import Summary'!I19 -> 0.4401126914 | K7: ='Import Summary'!J19 -> -0.0825217209 | L7: ='Import Summary'!K19 -> 0.4401137571 | M7: ='Import Summary'!L19 -> 0.6051551495 | N7: ='Import Summary'!M19 -> 0.7151823263 | O7: ='Import Summary'!N19 -> 0.2750709219
B8: LV Bus | C8: ='Control and Output Summary'!$C$14 -> West | D8: =NPV('Control and Output Summary'!$C$6,$F8:$O8) -> 29.55333991 | E8: =$D8/IF('Control and Output Summary'!$C$14<>"Ergon",INDEX('Asset Specification'!$E$8:$E$43,MATCH(1,($B8='Asset Specification'!$B$8:$B$43)*($C8='Asset Specification'!$C$8:$C$43) * ("Import" = 'Asset Specification'!$D$8:$D$43 ),0)),INDEX('Ergon Input'!$E$84:$E$95,MATCH(1,($B8='Ergon Input'!$B$84:$B$95) * ("Import" ='Ergon Input'!$D$84:$D$95 ),0))) -> 25.56517294 | F8: ='Import Summary'!E20 -> 22.11566742 | G8: ='Import Summary'!F20 -> 4.181071281 | H8: ='Import Summary'!G20 -> 2.750704202 | I8: ='Import Summary'!H20 -> 0.1100284147 | J8: ='Import Summary'!I20 -> 0.4401126914 | K8: ='Import Summary'!J20 -> -0.0825217209 | L8: ='Import Summary'!K20 -> 0.4401137571 | M8: ='Import Summary'!L20 -> 0.6051551495 | N8: ='Import Summary'!M20 -> 0.7151823263 | O8: ='Import Summary'!N20 -> 0.2750709219
B9: HV Line | C9: ='Control and Output Summary'!$C$14 -> West | D9: =NPV('Control and Output Summary'!$C$6,$F9:$O9) -> 8.048200913 | E9: =$D9/IF('Control and Output Summary'!$C$14<>"Ergon",INDEX('Asset Specification'!$E$8:$E$43,MATCH(1,($B9='Asset Specification'!$B$8:$B$43)*($C9='Asset Specification'!$C$8:$C$43) * ("Import" = 'Asset Specification'!$D$8:$D$43 ),0)),INDEX('Ergon Input'!$E$84:$E$95,MATCH(1,($B9='Ergon Input'!$B$84:$B$95) * ("Import" ='Ergon Input'!$D$84:$D$95 ),0))) -> 7.276854352 | F9: ='Import Summary'!E21 -> 6.0227147 | G9: ='Import Summary'!F21 -> 1.138622633 | H9: ='Import Summary'!G21 -> 0.7490936774 | I9: ='Import Summary'!H21 -> 0.02996381425 | J9: ='Import Summary'!I21 -> 0.1198549936 | K9: ='Import Summary'!J21 -> -0.02247297231 | L9: ='Import Summary'!K21 -> 0.1198552838 | M9: ='Import Summary'!L21 -> 0.1648006703 | N9: ='Import Summary'!M21 -> 0.1947641474 | O9: ='Import Summary'!N21 -> 0.07490950436
B10: HV Bus | C10: ='Control and Output Summary'!$C$14 -> West | D10: =NPV('Control and Output Summary'!$C$6,$F10:$O10) -> 8.048200913 | E10: =$D10/IF('Control and Output Summary'!$C$14<>"Ergon",INDEX('Asset Specification'!$E$8:$E$43,MATCH(1,($B10='Asset Specification'!$B$8:$B$43)*($C10='Asset Specification'!$C$8:$C$43) * ("Import" = 'Asset Specification'!$D$8:$D$43 ),0)),INDEX('Ergon Input'!$E$84:$E$95,MATCH(1,($B10='Ergon Input'!$B$84:$B$95) * ("Import" ='Ergon Input'!$D$84:$D$95 ),0))) -> 7.564098603 | F10: ='Import Summary'!E22 -> 6.0227147 | G10: ='Import Summary'!F22 -> 1.138622633 | H10: ='Import Summary'!G22 -> 0.7490936774 | I10: ='Import Summary'!H22 -> 0.02996381425 | J10: ='Import Summary'!I22 -> 0.1198549936 | K10: ='Import Summary'!J22 -> -0.02247297231 | L10: ='Import Summary'!K22 -> 0.1198552838 | M10: ='Import Summary'!L22 -> 0.1648006703 | N10: ='Import Summary'!M22 -> 0.1947641474 | O10: ='Import Summary'!N22 -> 0.07490950436
B11: ST 33/66 kv | C11: ='Control and Output Summary'!$C$14 -> West | D11: =NPV('Control and Output Summary'!$C$6,$F11:$O11) -> 16.11803678 | E11: =$D11/IF('Control and Output Summary'!$C$14<>"Ergon",INDEX('Asset Specification'!$E$8:$E$43,MATCH(1,($B11='Asset Specification'!$B$8:$B$43)*($C11='Asset Specification'!$C$8:$C$43) * ("Import" = 'Asset Specification'!$D$8:$D$43 ),0)),INDEX('Ergon Input'!$E$84:$E$95,MATCH(1,($B11='Ergon Input'!$B$84:$B$95) * ("Import" ='Ergon Input'!$D$84:$D$95 ),0))) -> 15.2632924 | F11: ='Import Summary'!E23 -> 12.06161949 | G11: ='Import Summary'!F23 -> 2.28030608 | H11: ='Import Summary'!G23 -> 1.500201047 | I11: ='Import Summary'!H23 -> 0.06000817638 | J11: ='Import Summary'!I23 -> 0.240032178 | K11: ='Import Summary'!J23 -> -0.04500635583 | L11: ='Import Summary'!K23 -> 0.2400327592 | M11: ='Import Summary'!L23 -> 0.3300443531 | N11: ='Import Summary'!M23 -> 0.3900518544 | O11: ='Import Summary'!N23 -> 0.1500203784
B12: ST 110/132 kv | C12: ='Control and Output Summary'!$C$14 -> West | D12: =NPV('Control and Output Summary'!$C$6,$F12:$O12) -> 16.11803678 | E12: =$D12/IF('Control and Output Summary'!$C$14<>"Ergon",INDEX('Asset Specification'!$E$8:$E$43,MATCH(1,($B12='Asset Specification'!$B$8:$B$43)*($C12='Asset Specification'!$C$8:$C$43) * ("Import" = 'Asset Specification'!$D$8:$D$43 ),0)),INDEX('Ergon Input'!$E$84:$E$95,MATCH(1,($B12='Ergon Input'!$B$84:$B$95) * ("Import" ='Ergon Input'!$D$84:$D$95 ),0))) -> 15.2632924 | F12: ='Import Summary'!E24 -> 12.06161949 | G12: ='Import Summary'!F24 -> 2.28030608 | H12: ='Import Summary'!G24 -> 1.500201047 | I12: ='Import Summary'!H24 -> 0.06000817638 | J12: ='Import Summary'!I24 -> 0.240032178 | K12: ='Import Summary'!J24 -> -0.04500635583 | L12: ='Import Summary'!K24 -> 0.2400327592 | M12: ='Import Summary'!L24 -> 0.3300443531 | N12: ='Import Summary'!M24 -> 0.3900518544 | O12: ='Import Summary'!N24 -> 0.1500203784
B15: Incremental Costs ($m)
B18: Voltage Level | C18: Pricing Zone | D18: NPV | E18: =F$6 -> 2024 | F18: 2025 | G18: 2026 | H18: 2027 | I18: 2028 | J18: 2029 | K18: 2030 | L18: 2031 | M18: 2032 | N18: 2033
B19: LV Line | C19: ='Control and Output Summary'!$C$14 -> West | D19: =NPV('Control and Output Summary'!$C$6,$E19:$N19) -> 2.63373126 | E19: ='Capex Summary'!E85 -> 0.1040016032 | F19: ='Capex Summary'!F85 -> 0.1523958396 | G19: ='Capex Summary'!G85 -> 0.2025536403 | H19: ='Capex Summary'!H85 -> 0.2540090142 | I19: ='Capex Summary'!I85 -> 0.3069133138 | J19: ='Capex Summary'!J85 -> 0.3613151014 | K19: ='Capex Summary'!K85 -> 0.4153833512 | L19: ='Capex Summary'!L85 -> 0.469451601 | M19: ='Capex Summary'!M85 -> 0.5235198507 | N19: ='Capex Summary'!N85 -> 0.5775881005
B20: LV Bus | C20: ='Control and Output Summary'!$C$14 -> West | D20: =NPV('Control and Output Summary'!$C$6,$E20:$N20) -> 0.1609481257 | E20: ='Capex Summary'!E86 -> 0.01959725983 | F20: ='Capex Summary'!F86 -> 0.01959725983 | G20: ='Capex Summary'!G86 -> 0.01959725983 | H20: ='Capex Summary'!H86 -> 0.01959725983 | I20: ='Capex Summary'!I86 -> 0.01959725983 | J20: ='Capex Summary'!J86 -> 0.01959725983 | K20: ='Capex Summary'!K86 -> 0.01959725983 | L20: ='Capex Summary'!L86 -> 0.01959725983 | M20: ='Capex Summary'!M86 -> 0.01959725983 | N20: ='Capex Summary'!N86 -> 0.01959725983
B21: HV Line | C21: ='Control and Output Summary'!$C$14 -> West | D21: =NPV('Control and Output Summary'!$C$6,$E21:$N21) -> 0.4960822621 | E21: ='Capex Summary'!E87 -> 0.01040016032 | F21: ='Capex Summary'!F87 -> 0.01523958396 | G21: ='Capex Summary'!G87 -> 0.02401224092 | H21: ='Capex Summary'!H87 -> 0.02846873932 | I21: ='Capex Summary'!I87 -> 0.04239206786 | J21: ='Capex Summary'!J87 -> 0.06284122279 | K21: ='Capex Summary'!K87 -> 0.08971647547 | L21: ='Capex Summary'!L87 -> 0.1072066263 | M21: ='Capex Summary'!M87 -> 0.1261516838 | N21: ='Capex Summary'!N87 -> 0.1450967412
B22: HV Bus | C22: ='Control and Output Summary'!$C$14 -> West | D22: =NPV('Control and Output Summary'!$C$6,$E22:$N22) -> 9.571101287 | E22: ='Capex Summary'!E88 -> 0.09335315968 | F22: ='Capex Summary'!F88 -> 0.271605769 | G22: ='Capex Summary'!G88 -> 0.5402279691 | H22: ='Capex Summary'!H88 -> 0.7878199709 | I22: ='Capex Summary'!I88 -> 1.060132673 | J22: ='Capex Summary'!J88 -> 1.352892506 | K22: ='Capex Summary'!K88 -> 1.667056875 | L22: ='Capex Summary'!L88 -> 1.950805316 | M22: ='Capex Summary'!M88 -> 2.239258147 | N22: ='Capex Summary'!N88 -> 2.527710978
B23: ST 33/66 kv | C23: ='Control and Output Summary'!$C$14 -> West | D23: =NPV('Control and Output Summary'!$C$6,$E23:$N23) -> 0.31421391 | E23: ='Capex Summary'!E89 -> 0.03852052234 | F23: ='Capex Summary'!F89 -> 0.03822434839 | G23: ='Capex Summary'!G89 -> 0.03822434839 | H23: ='Capex Summary'!H89 -> 0.03822434839 | I23: ='Capex Summary'!I89 -> 0.03822434839 | J23: ='Capex Summary'!J89 -> 0.03822434839 | K23: ='Capex Summary'!K89 -> 0.03822434839 | L23: ='Capex Summary'!L89 -> 0.03822434839 | M23: ='Capex Summary'!M89 -> 0.03822434839 | N23: ='Capex Summary'!N89 -> 0.03822434839
B24: ST 110/132 kv | C24: ='Control and Output Summary'!$C$14 -> West | D24: =NPV('Control and Output Summary'!$C$6,$E24:$N24) -> 5.082589176 | E24: ='Capex Summary'!E90 -> 0.03590592144 | F24: ='Capex Summary'!F90 -> 0.03632591956 | G24: ='Capex Summary'!G90 -> 0.04800539076 | H24: ='Capex Summary'!H90 -> 0.1241955448 | I24: ='Capex Summary'!I90 -> 0.1822293846 | J24: ='Capex Summary'!J90 -> 0.1968141538 | K24: ='Capex Summary'!K90 -> 1.202444446 | L24: ='Capex Summary'!L90 -> 1.387403195 | M24: ='Capex Summary'!M90 -> 1.689816898 | N24: ='Capex Summary'!N90 -> 1.9922306
B27: AIC To Each Part of The Network
B29: Cost Break Down ($m)
B31: Demand at each Voltage Level | C31: LV Line | D31: LV Bus | E31: HV Line | F31: HV Bus | G31: ST 33/66 kV | H31: ST 110/132 kV | I31: Total Network Cost ($m)
B32: LV Line | C32: =INDEX($E$7:$E$12, MATCH(1, ($B32 = $B$7:$B$12)*('Control and Output Summary'!$C$14 = $C$7:$C$12),0 )) /SUMPRODUCT(SUMIFS($E$7:$E$12,$C$7:$C$12,'Control and Output Summary'!$C$14,$B$7:$B$12,$C$31:C$31)) *SUM( IF( C$31 = $B32:$B$37, 1, 0)) * INDEX($D$19:$D$24, MATCH(1, (C$31 = $B$19:$B$24 )*('Control and Output Summary'!$C$14 = $C$19:$C$24),0)) -> 2.63373126 | D32: =INDEX($E$7:$E$12, MATCH(1, ($B32 = $B$7:$B$12)*('Control and Output Summary'!$C$14 = $C$7:$C$12),0 )) /SUMPRODUCT(SUMIFS($E$7:$E$12,$C$7:$C$12,'Control and Output Summary'!$C$14,$B$7:$B$12,$C$31:D$31)) *SUM( IF( D$31 = $B32:$B$37, 1, 0)) * INDEX($D$19:$D$24, MATCH(1, (D$31 = $B$19:$B$24 )*('Control and Output Summary'!$C$14 = $C$19:$C$24),0)) -> 0.0781748039 | E32: =INDEX($E$7:$E$12, MATCH(1, ($B32 = $B$7:$B$12)*('Control and Output Summary'!$C$14 = $C$7:$C$12),0 )) /SUMPRODUCT(SUMIFS($E$7:$E$12,$C$7:$C$12,'Control and Output Summary'!$C$14,$B$7:$B$12,$C$31:E$31)) *SUM( IF( E$31 = $B32:$B$37, 1, 0)) * INDEX($D$19:$D$24, MATCH(1, (E$31 = $B$19:$B$24 )*('Control and Output Summary'!$C$14 = $C$19:$C$24),0)) -> 0.2101859681 | F32: =INDEX($E$7:$E$12, MATCH(1, ($B32 = $B$7:$B$12)*('Control and Output Summary'!$C$14 = $C$7:$C$12),0 )) /SUMPRODUCT(SUMIFS($E$7:$E$12,$C$7:$C$12,'Control and Output Summary'!$C$14,$B$7:$B$12,$C$31:F$31)) *SUM( IF( F$31 = $B32:$B$37, 1, 0)) * INDEX($D$19:$D$24, MATCH(1, (F$31 = $B$19:$B$24 )*('Control and Output Summary'!$C$14 = $C$19:$C$24),0)) -> 3.580008121 | G32: =INDEX($E$7:$E$12, MATCH(1, ($B32 = $B$7:$B$12)*('Control and Output Summary'!$C$14 = $C$7:$C$12),0 )) /SUMPRODUCT(SUMIFS($E$7:$E$12,$C$7:$C$12,'Control and Output Summary'!$C$14,$B$7:$B$12,$C$31:G$31)) *SUM( IF( G$31 = $B32:$B$37, 1, 0)) * INDEX($D$19:$D$24, MATCH(1, (G$31 = $B$19:$B$24 )*('Control and Output Summary'!$C$14 = $C$19:$C$24),0)) -> 0.09505387544 | H32: =INDEX($E$7:$E$12, MATCH(1, ($B32 = $B$7:$B$12)*('Control and Output Summary'!$C$14 = $C$7:$C$12),0 )) /SUMPRODUCT(SUMIFS($E$7:$E$12,$C$7:$C$12,'Control and Output Summary'!$C$14,$B$7:$B$12,$C$31:H$31)) *SUM( IF( H$31 = $B32:$B$37, 1, 0)) * INDEX($D$19:$D$24, MATCH(1, (H$31 = $B$19:$B$24 )*('Control and Output Summary'!$C$14 = $C$19:$C$24),0)) -> 1.290719778 | I32: =SUM($C32:$H32) -> 7.887873807
B33: LV Bus | C33: =INDEX($E$7:$E$12, MATCH(1, ($B33 = $B$7:$B$12)*('Control and Output Summary'!$C$14 = $C$7:$C$12),0 )) /SUMPRODUCT(SUMIFS($E$7:$E$12,$C$7:$C$12,'Control and Output Summary'!$C$14,$B$7:$B$12,$C$31:C$31)) *SUM( IF( C$31 = $B33:$B$37, 1, 0)) * INDEX($D$19:$D$24, MATCH(1, (C$31 = $B$19:$B$24 )*('Control and Output Summary'!$C$14 = $C$19:$C$24),0)) -> 0 | D33: =INDEX($E$7:$E$12, MATCH(1, ($B33 = $B$7:$B$12)*('Control and Output Summary'!$C$14 = $C$7:$C$12),0 )) /SUMPRODUCT(SUMIFS($E$7:$E$12,$C$7:$C$12,'Control and Output Summary'!$C$14,$B$7:$B$12,$C$31:D$31)) *SUM( IF( D$31 = $B33:$B$37, 1, 0)) * INDEX($D$19:$D$24, MATCH(1, (D$31 = $B$19:$B$24 )*('Control and Output Summary'!$C$14 = $C$19:$C$24),0)) -> 0.08277332178 | E33: =INDEX($E$7:$E$12, MATCH(1, ($B33 = $B$7:$B$12)*('Control and Output Summary'!$C$14 = $C$7:$C$12),0 )) /SUMPRODUCT(SUMIFS($E$7:$E$12,$C$7:$C$12,'Control and Output Summary'!$C$14,$B$7:$B$12,$C$31:E$31)) *SUM( IF( E$31 = $B33:$B$37, 1, 0)) * INDEX($D$19:$D$24, MATCH(1, (E$31 = $B$19:$B$24 )*('Control and Output Summary'!$C$14 = $C$19:$C$24),0)) -> 0.2225498485 | F33: =INDEX($E$7:$E$12, MATCH(1, ($B33 = $B$7:$B$12)*('Control and Output Summary'!$C$14 = $C$7:$C$12),0 )) /SUMPRODUCT(SUMIFS($E$7:$E$12,$C$7:$C$12,'Control and Output Summary'!$C$14,$B$7:$B$12,$C$31:F$31)) *SUM( IF( F$31 = $B33:$B$37, 1, 0)) * INDEX($D$19:$D$24, MATCH(1, (F$31 = $B$19:$B$24 )*('Control and Output Summary'!$C$14 = $C$19:$C$24),0)) -> 3.790596834 | G33: =INDEX($E$7:$E$12, MATCH(1, ($B33 = $B$7:$B$12)*('Control and Output Summary'!$C$14 = $C$7:$C$12),0 )) /SUMPRODUCT(SUMIFS($E$7:$E$12,$C$7:$C$12,'Control and Output Summary'!$C$14,$B$7:$B$12,$C$31:G$31)) *SUM( IF( G$31 = $B33:$B$37, 1, 0)) * INDEX($D$19:$D$24, MATCH(1, (G$31 = $B$19:$B$24 )*('Control and Output Summary'!$C$14 = $C$19:$C$24),0)) -> 0.1006452799 | H33: =INDEX($E$7:$E$12, MATCH(1, ($B33 = $B$7:$B$12)*('Control and Output Summary'!$C$14 = $C$7:$C$12),0 )) /SUMPRODUCT(SUMIFS($E$7:$E$12,$C$7:$C$12,'Control and Output Summary'!$C$14,$B$7:$B$12,$C$31:H$31)) *SUM( IF( H$31 = $B33:$B$37, 1, 0)) * INDEX($D$19:$D$24, MATCH(1, (H$31 = $B$19:$B$24 )*('Control and Output Summary'!$C$14 = $C$19:$C$24),0)) -> 1.366644471 | I33: 5.563209755
B34: HV Line | C34: =INDEX($E$7:$E$12, MATCH(1, ($B34 = $B$7:$B$12)*('Control and Output Summary'!$C$14 = $C$7:$C$12),0 )) /SUMPRODUCT(SUMIFS($E$7:$E$12,$C$7:$C$12,'Control and Output Summary'!$C$14,$B$7:$B$12,$C$31:C$31)) *SUM( IF( C$31 = $B34:$B$37, 1, 0)) * INDEX($D$19:$D$24, MATCH(1, (C$31 = $B$19:$B$24 )*('Control and Output Summary'!$C$14 = $C$19:$C$24),0)) -> 0 | D34: =INDEX($E$7:$E$12, MATCH(1, ($B34 = $B$7:$B$12)*('Control and Output Summary'!$C$14 = $C$7:$C$12),0 )) /SUMPRODUCT(SUMIFS($E$7:$E$12,$C$7:$C$12,'Control and Output Summary'!$C$14,$B$7:$B$12,$C$31:D$31)) *SUM( IF( D$31 = $B34:$B$37, 1, 0)) * INDEX($D$19:$D$24, MATCH(1, (D$31 = $B$19:$B$24 )*('Control and Output Summary'!$C$14 = $C$19:$C$24),0)) -> 0 | E34: =INDEX($E$7:$E$12, MATCH(1, ($B34 = $B$7:$B$12)*('Control and Output Summary'!$C$14 = $C$7:$C$12),0 )) /SUMPRODUCT(SUMIFS($E$7:$E$12,$C$7:$C$12,'Control and Output Summary'!$C$14,$B$7:$B$12,$C$31:E$31)) *SUM( IF( E$31 = $B34:$B$37, 1, 0)) * INDEX($D$19:$D$24, MATCH(1, (E$31 = $B$19:$B$24 )*('Control and Output Summary'!$C$14 = $C$19:$C$24),0)) -> 0.06334644549 | F34: =INDEX($E$7:$E$12, MATCH(1, ($B34 = $B$7:$B$12)*('Control and Output Summary'!$C$14 = $C$7:$C$12),0 )) /SUMPRODUCT(SUMIFS($E$7:$E$12,$C$7:$C$12,'Control and Output Summary'!$C$14,$B$7:$B$12,$C$31:F$31)) *SUM( IF( F$31 = $B34:$B$37, 1, 0)) * INDEX($D$19:$D$24, MATCH(1, (F$31 = $B$19:$B$24 )*('Control and Output Summary'!$C$14 = $C$19:$C$24),0)) -> 1.07895304 | G34: =INDEX($E$7:$E$12, MATCH(1, ($B34 = $B$7:$B$12)*('Control and Output Summary'!$C$14 = $C$7:$C$12),0 )) /SUMPRODUCT(SUMIFS($E$7:$E$12,$C$7:$C$12,'Control and Output Summary'!$C$14,$B$7:$B$12,$C$31:G$31)) *SUM( IF( G$31 = $B34:$B$37, 1, 0)) * INDEX($D$19:$D$24, MATCH(1, (G$31 = $B$19:$B$24 )*('Control and Output Summary'!$C$14 = $C$19:$C$24),0)) -> 0.02864760761 | H34: =INDEX($E$7:$E$12, MATCH(1, ($B34 = $B$7:$B$12)*('Control and Output Summary'!$C$14 = $C$7:$C$12),0 )) /SUMPRODUCT(SUMIFS($E$7:$E$12,$C$7:$C$12,'Control and Output Summary'!$C$14,$B$7:$B$12,$C$31:H$31)) *SUM( IF( H$31 = $B34:$B$37, 1, 0)) * INDEX($D$19:$D$24, MATCH(1, (H$31 = $B$19:$B$24 )*('Control and Output Summary'!$C$14 = $C$19:$C$24),0)) -> 0.3890008017 | I34: 1.559947895
B35: HV Bus | C35: =INDEX($E$7:$E$12, MATCH(1, ($B35 = $B$7:$B$12)*('Control and Output Summary'!$C$14 = $C$7:$C$12),0 )) /SUMPRODUCT(SUMIFS($E$7:$E$12,$C$7:$C$12,'Control and Output Summary'!$C$14,$B$7:$B$12,$C$31:C$31)) *SUM( IF( C$31 = $B35:$B$37, 1, 0)) * INDEX($D$19:$D$24, MATCH(1, (C$31 = $B$19:$B$24 )*('Control and Output Summary'!$C$14 = $C$19:$C$24),0)) -> 0 | D35: =INDEX($E$7:$E$12, MATCH(1, ($B35 = $B$7:$B$12)*('Control and Output Summary'!$C$14 = $C$7:$C$12),0 )) /SUMPRODUCT(SUMIFS($E$7:$E$12,$C$7:$C$12,'Control and Output Summary'!$C$14,$B$7:$B$12,$C$31:D$31)) *SUM( IF( D$31 = $B35:$B$37, 1, 0)) * INDEX($D$19:$D$24, MATCH(1, (D$31 = $B$19:$B$24 )*('Control and Output Summary'!$C$14 = $C$19:$C$24),0)) -> 0 | E35: =INDEX($E$7:$E$12, MATCH(1, ($B35 = $B$7:$B$12)*('Control and Output Summary'!$C$14 = $C$7:$C$12),0 )) /SUMPRODUCT(SUMIFS($E$7:$E$12,$C$7:$C$12,'Control and Output Summary'!$C$14,$B$7:$B$12,$C$31:E$31)) *SUM( IF( E$31 = $B35:$B$37, 1, 0)) * INDEX($D$19:$D$24, MATCH(1, (E$31 = $B$19:$B$24 )*('Control and Output Summary'!$C$14 = $C$19:$C$24),0)) -> 0 | F35: =INDEX($E$7:$E$12, MATCH(1, ($B35 = $B$7:$B$12)*('Control and Output Summary'!$C$14 = $C$7:$C$12),0 )) /SUMPRODUCT(SUMIFS($E$7:$E$12,$C$7:$C$12,'Control and Output Summary'!$C$14,$B$7:$B$12,$C$31:F$31)) *SUM( IF( F$31 = $B35:$B$37, 1, 0)) * INDEX($D$19:$D$24, MATCH(1, (F$31 = $B$19:$B$24 )*('Control and Output Summary'!$C$14 = $C$19:$C$24),0)) -> 1.121543292 | G35: =INDEX($E$7:$E$12, MATCH(1, ($B35 = $B$7:$B$12)*('Control and Output Summary'!$C$14 = $C$7:$C$12),0 )) /SUMPRODUCT(SUMIFS($E$7:$E$12,$C$7:$C$12,'Control and Output Summary'!$C$14,$B$7:$B$12,$C$31:G$31)) *SUM( IF( G$31 = $B35:$B$37, 1, 0)) * INDEX($D$19:$D$24, MATCH(1, (G$31 = $B$19:$B$24 )*('Control and Output Summary'!$C$14 = $C$19:$C$24),0)) -> 0.02977843423 | H35: =INDEX($E$7:$E$12, MATCH(1, ($B35 = $B$7:$B$12)*('Control and Output Summary'!$C$14 = $C$7:$C$12),0 )) /SUMPRODUCT(SUMIFS($E$7:$E$12,$C$7:$C$12,'Control and Output Summary'!$C$14,$B$7:$B$12,$C$31:H$31)) *SUM( IF( H$31 = $B35:$B$37, 1, 0)) * INDEX($D$19:$D$24, MATCH(1, (H$31 = $B$19:$B$24 )*('Control and Output Summary'!$C$14 = $C$19:$C$24),0)) -> 0.4043560965 | I35: 1.555677823
B36: ST 33/66 kv | C36: =INDEX($E$7:$E$12, MATCH(1, ($B36 = $B$7:$B$12)*('Control and Output Summary'!$C$14 = $C$7:$C$12),0 )) /SUMPRODUCT(SUMIFS($E$7:$E$12,$C$7:$C$12,'Control and Output Summary'!$C$14,$B$7:$B$12,$C$31:C$31)) *SUM( IF( C$31 = $B36:$B$37, 1, 0)) * INDEX($D$19:$D$24, MATCH(1, (C$31 = $B$19:$B$24 )*('Control and Output Summary'!$C$14 = $C$19:$C$24),0)) -> 0 | D36: =INDEX($E$7:$E$12, MATCH(1, ($B36 = $B$7:$B$12)*('Control and Output Summary'!$C$14 = $C$7:$C$12),0 )) /SUMPRODUCT(SUMIFS($E$7:$E$12,$C$7:$C$12,'Control and Output Summary'!$C$14,$B$7:$B$12,$C$31:D$31)) *SUM( IF( D$31 = $B36:$B$37, 1, 0)) * INDEX($D$19:$D$24, MATCH(1, (D$31 = $B$19:$B$24 )*('Control and Output Summary'!$C$14 = $C$19:$C$24),0)) -> 0 | E36: =INDEX($E$7:$E$12, MATCH(1, ($B36 = $B$7:$B$12)*('Control and Output Summary'!$C$14 = $C$7:$C$12),0 )) /SUMPRODUCT(SUMIFS($E$7:$E$12,$C$7:$C$12,'Control and Output Summary'!$C$14,$B$7:$B$12,$C$31:E$31)) *SUM( IF( E$31 = $B36:$B$37, 1, 0)) * INDEX($D$19:$D$24, MATCH(1, (E$31 = $B$19:$B$24 )*('Control and Output Summary'!$C$14 = $C$19:$C$24),0)) -> 0 | F36: =INDEX($E$7:$E$12, MATCH(1, ($B36 = $B$7:$B$12)*('Control and Output Summary'!$C$14 = $C$7:$C$12),0 )) /SUMPRODUCT(SUMIFS($E$7:$E$12,$C$7:$C$12,'Control and Output Summary'!$C$14,$B$7:$B$12,$C$31:F$31)) *SUM( IF( F$31 = $B36:$B$37, 1, 0)) * INDEX($D$19:$D$24, MATCH(1, (F$31 = $B$19:$B$24 )*('Control and Output Summary'!$C$14 = $C$19:$C$24),0)) -> 0 | G36: =INDEX($E$7:$E$12, MATCH(1, ($B36 = $B$7:$B$12)*('Control and Output Summary'!$C$14 = $C$7:$C$12),0 )) /SUMPRODUCT(SUMIFS($E$7:$E$12,$C$7:$C$12,'Control and Output Summary'!$C$14,$B$7:$B$12,$C$31:G$31)) *SUM( IF( G$31 = $B36:$B$37, 1, 0)) * INDEX($D$19:$D$24, MATCH(1, (G$31 = $B$19:$B$24 )*('Control and Output Summary'!$C$14 = $C$19:$C$24),0)) -> 0.06008871285 | H36: =INDEX($E$7:$E$12, MATCH(1, ($B36 = $B$7:$B$12)*('Control and Output Summary'!$C$14 = $C$7:$C$12),0 )) /SUMPRODUCT(SUMIFS($E$7:$E$12,$C$7:$C$12,'Control and Output Summary'!$C$14,$B$7:$B$12,$C$31:H$31)) *SUM( IF( H$31 = $B36:$B$37, 1, 0)) * INDEX($D$19:$D$24, MATCH(1, (H$31 = $B$19:$B$24 )*('Control and Output Summary'!$C$14 = $C$19:$C$24),0)) -> 0.815934014 | I36: 0.8760227269
B37: ST 110/132 kv | C37: =INDEX($E$7:$E$12, MATCH(1, ($B37 = $B$7:$B$12)*('Control and Output Summary'!$C$14 = $C$7:$C$12),0 )) /SUMPRODUCT(SUMIFS($E$7:$E$12,$C$7:$C$12,'Control and Output Summary'!$C$14,$B$7:$B$12,$C$31:C$31)) *SUM( IF( C$31 = $B37:$B$37, 1, 0)) * INDEX($D$19:$D$24, MATCH(1, (C$31 = $B$19:$B$24 )*('Control and Output Summary'!$C$14 = $C$19:$C$24),0)) -> 0 | D37: =INDEX($E$7:$E$12, MATCH(1, ($B37 = $B$7:$B$12)*('Control and Output Summary'!$C$14 = $C$7:$C$12),0 )) /SUMPRODUCT(SUMIFS($E$7:$E$12,$C$7:$C$12,'Control and Output Summary'!$C$14,$B$7:$B$12,$C$31:D$31)) *SUM( IF( D$31 = $B37:$B$37, 1, 0)) * INDEX($D$19:$D$24, MATCH(1, (D$31 = $B$19:$B$24 )*('Control and Output Summary'!$C$14 = $C$19:$C$24),0)) -> 0 | E37: =INDEX($E$7:$E$12, MATCH(1, ($B37 = $B$7:$B$12)*('Control and Output Summary'!$C$14 = $C$7:$C$12),0 )) /SUMPRODUCT(SUMIFS($E$7:$E$12,$C$7:$C$12,'Control and Output Summary'!$C$14,$B$7:$B$12,$C$31:E$31)) *SUM( IF( E$31 = $B37:$B$37, 1, 0)) * INDEX($D$19:$D$24, MATCH(1, (E$31 = $B$19:$B$24 )*('Control and Output Summary'!$C$14 = $C$19:$C$24),0)) -> 0 | F37: =INDEX($E$7:$E$12, MATCH(1, ($B37 = $B$7:$B$12)*('Control and Output Summary'!$C$14 = $C$7:$C$12),0 )) /SUMPRODUCT(SUMIFS($E$7:$E$12,$C$7:$C$12,'Control and Output Summary'!$C$14,$B$7:$B$12,$C$31:F$31)) *SUM( IF( F$31 = $B37:$B$37, 1, 0)) * INDEX($D$19:$D$24, MATCH(1, (F$31 = $B$19:$B$24 )*('Control and Output Summary'!$C$14 = $C$19:$C$24),0)) -> 0 | G37: =INDEX($E$7:$E$12, MATCH(1, ($B37 = $B$7:$B$12)*('Control and Output Summary'!$C$14 = $C$7:$C$12),0 )) /SUMPRODUCT(SUMIFS($E$7:$E$12,$C$7:$C$12,'Control and Output Summary'!$C$14,$B$7:$B$12,$C$31:G$31)) *SUM( IF( G$31 = $B37:$B$37, 1, 0)) * INDEX($D$19:$D$24, MATCH(1, (G$31 = $B$19:$B$24 )*('Control and Output Summary'!$C$14 = $C$19:$C$24),0)) -> 0 | H37: =INDEX($E$7:$E$12, MATCH(1, ($B37 = $B$7:$B$12)*('Control and Output Summary'!$C$14 = $C$7:$C$12),0 )) /SUMPRODUCT(SUMIFS($E$7:$E$12,$C$7:$C$12,'Control and Output Summary'!$C$14,$B$7:$B$12,$C$31:H$31)) *SUM( IF( H$31 = $B37:$B$37, 1, 0)) * INDEX($D$19:$D$24, MATCH(1, (H$31 = $B$19:$B$24 )*('Control and Output Summary'!$C$14 = $C$19:$C$24),0)) -> 0.815934014 | I37: 0.815934014
B39: LRMC Component Break Down ($/kW)
B41: Demand at each Voltage Level | C41: LV Line | D41: LV Bus | E41: HV Line | F41: HV Bus | G41: ST 33/66 kV | H41: ST 110/132 kV | I41: Total LRMC | J41: $/kVA p.a.
B42: LV Line | C42: =IFERROR( C32* 1000/ INDEX($E$7:$E$12, MATCH(1, ($B42 = $B$7:$B$12)*('Control and Output Summary'!$C$14 = $C$7:$C$12),0 )), 0) -> 109.0802959 | D42: =IFERROR( D32* 1000/ INDEX($E$7:$E$12, MATCH(1, ($B42 = $B$7:$B$12)*('Control and Output Summary'!$C$14 = $C$7:$C$12),0 )), 0) -> 3.237737604 | E42: =IFERROR( E32* 1000/ INDEX($E$7:$E$12, MATCH(1, ($B42 = $B$7:$B$12)*('Control and Output Summary'!$C$14 = $C$7:$C$12),0 )), 0) -> 8.705196288 | F42: =IFERROR( F32* 1000/ INDEX($E$7:$E$12, MATCH(1, ($B42 = $B$7:$B$12)*('Control and Output Summary'!$C$14 = $C$7:$C$12),0 )), 0) -> 148.2719027 | G42: =IFERROR( G32* 1000/ INDEX($E$7:$E$12, MATCH(1, ($B42 = $B$7:$B$12)*('Control and Output Summary'!$C$14 = $C$7:$C$12),0 )), 0) -> 3.936812011 | H42: =IFERROR( H32* 1000/ INDEX($E$7:$E$12, MATCH(1, ($B42 = $B$7:$B$12)*('Control and Output Summary'!$C$14 = $C$7:$C$12),0 )), 0) -> 53.45727465 | I42: =SUM($C42:$H42) -> 326.6892192 | J42: =$I42 *IF('Control and Output Summary'!$C$14<>"Ergon", INDEX('Asset Specification'!$F$8:$F$43, MATCH(1, ($B42 = 'Asset Specification'!$B$8:$B$43)*('Control and Output Summary'!$C$14 ='Asset Specification'!$C$8:$C$43 ) *("Import" = 'Asset Specification'!$D$8:$D$43 ),0 )),INDEX('Ergon Input'!$F$84:$F$95, MATCH(1, ($B42 = 'Ergon Input'!$B$84:$B$95) *("Import" = 'Ergon Input'!$D$84:$D$95 ),0 ))) -> 294.0202972
B43: LV Bus | C43: =IFERROR( C33* 1000/ INDEX($E$7:$E$12, MATCH(1, ($B43 = $B$7:$B$12)*('Control and Output Summary'!$C$14 = $C$7:$C$12),0 )), 0) -> 0 | D43: =IFERROR( D33* 1000/ INDEX($E$7:$E$12, MATCH(1, ($B43 = $B$7:$B$12)*('Control and Output Summary'!$C$14 = $C$7:$C$12),0 )), 0) -> 3.237737604 | E43: =IFERROR( E33* 1000/ INDEX($E$7:$E$12, MATCH(1, ($B43 = $B$7:$B$12)*('Control and Output Summary'!$C$14 = $C$7:$C$12),0 )), 0) -> 8.705196288 | F43: =IFERROR( F33* 1000/ INDEX($E$7:$E$12, MATCH(1, ($B43 = $B$7:$B$12)*('Control and Output Summary'!$C$14 = $C$7:$C$12),0 )), 0) -> 148.2719027 | G43: =IFERROR( G33* 1000/ INDEX($E$7:$E$12, MATCH(1, ($B43 = $B$7:$B$12)*('Control and Output Summary'!$C$14 = $C$7:$C$12),0 )), 0) -> 3.936812011 | H43: =IFERROR( H33* 1000/ INDEX($E$7:$E$12, MATCH(1, ($B43 = $B$7:$B$12)*('Control and Output Summary'!$C$14 = $C$7:$C$12),0 )), 0) -> 53.45727465 | I43: =SUM($C43:$H43) -> 217.6089233 | J43: =$I43 *IF('Control and Output Summary'!$C$14<>"Ergon", INDEX('Asset Specification'!$F$8:$F$43, MATCH(1, ($B43 = 'Asset Specification'!$B$8:$B$43)*('Control and Output Summary'!$C$14 ='Asset Specification'!$C$8:$C$43 ) *("Import" = 'Asset Specification'!$D$8:$D$43 ),0 )),INDEX('Ergon Input'!$F$84:$F$95, MATCH(1, ($B43 = 'Ergon Input'!$B$84:$B$95) *("Import" = 'Ergon Input'!$D$84:$D$95 ),0 ))) -> 195.8480309
B44: HV Line | C44: =IFERROR( C34* 1000/ INDEX($E$7:$E$12, MATCH(1, ($B44 = $B$7:$B$12)*('Control and Output Summary'!$C$14 = $C$7:$C$12),0 )), 0) -> 0 | D44: =IFERROR( D34* 1000/ INDEX($E$7:$E$12, MATCH(1, ($B44 = $B$7:$B$12)*('Control and Output Summary'!$C$14 = $C$7:$C$12),0 )), 0) -> 0 | E44: =IFERROR( E34* 1000/ INDEX($E$7:$E$12, MATCH(1, ($B44 = $B$7:$B$12)*('Control and Output Summary'!$C$14 = $C$7:$C$12),0 )), 0) -> 8.705196288 | F44: =IFERROR( F34* 1000/ INDEX($E$7:$E$12, MATCH(1, ($B44 = $B$7:$B$12)*('Control and Output Summary'!$C$14 = $C$7:$C$12),0 )), 0) -> 148.2719027 | G44: =IFERROR( G34* 1000/ INDEX($E$7:$E$12, MATCH(1, ($B44 = $B$7:$B$12)*('Control and Output Summary'!$C$14 = $C$7:$C$12),0 )), 0) -> 3.936812011 | H44: =IFERROR( H34* 1000/ INDEX($E$7:$E$12, MATCH(1, ($B44 = $B$7:$B$12)*('Control and Output Summary'!$C$14 = $C$7:$C$12),0 )), 0) -> 53.45727465 | I44: 214.3711856 | J44: =$I44 *IF('Control and Output Summary'!$C$14<>"Ergon", INDEX('Asset Specification'!$F$8:$F$43, MATCH(1, ($B44 = 'Asset Specification'!$B$8:$B$43)*('Control and Output Summary'!$C$14 ='Asset Specification'!$C$8:$C$43 ) *("Import" = 'Asset Specification'!$D$8:$D$43 ),0 )),INDEX('Ergon Input'!$F$84:$F$95, MATCH(1, ($B44 = 'Ergon Input'!$B$84:$B$95) *("Import" = 'Ergon Input'!$D$84:$D$95 ),0 ))) -> 192.9340671
B45: HV Bus | C45: =IFERROR( C35* 1000/ INDEX($E$7:$E$12, MATCH(1, ($B45 = $B$7:$B$12)*('Control and Output Summary'!$C$14 = $C$7:$C$12),0 )), 0) -> 0 | D45: =IFERROR( D35* 1000/ INDEX($E$7:$E$12, MATCH(1, ($B45 = $B$7:$B$12)*('Control and Output Summary'!$C$14 = $C$7:$C$12),0 )), 0) -> 0 | E45: =IFERROR( E35* 1000/ INDEX($E$7:$E$12, MATCH(1, ($B45 = $B$7:$B$12)*('Control and Output Summary'!$C$14 = $C$7:$C$12),0 )), 0) -> 0 | F45: =IFERROR( F35* 1000/ INDEX($E$7:$E$12, MATCH(1, ($B45 = $B$7:$B$12)*('Control and Output Summary'!$C$14 = $C$7:$C$12),0 )), 0) -> 148.2719027 | G45: =IFERROR( G35* 1000/ INDEX($E$7:$E$12, MATCH(1, ($B45 = $B$7:$B$12)*('Control and Output Summary'!$C$14 = $C$7:$C$12),0 )), 0) -> 3.936812011 | H45: =IFERROR( H35* 1000/ INDEX($E$7:$E$12, MATCH(1, ($B45 = $B$7:$B$12)*('Control and Output Summary'!$C$14 = $C$7:$C$12),0 )), 0) -> 53.45727465 | I45: 205.6659894 | J45: =$I45 *IF('Control and Output Summary'!$C$14<>"Ergon", INDEX('Asset Specification'!$F$8:$F$43, MATCH(1, ($B45 = 'Asset Specification'!$B$8:$B$43)*('Control and Output Summary'!$C$14 ='Asset Specification'!$C$8:$C$43 ) *("Import" = 'Asset Specification'!$D$8:$D$43 ),0 )),INDEX('Ergon Input'!$F$84:$F$95, MATCH(1, ($B45 = 'Ergon Input'!$B$84:$B$95) *("Import" = 'Ergon Input'!$D$84:$D$95 ),0 ))) -> 185.0993904
B46: ST 33/66 kv | C46: =IFERROR( C36* 1000/ INDEX($E$7:$E$12, MATCH(1, ($B46 = $B$7:$B$12)*('Control and Output Summary'!$C$14 = $C$7:$C$12),0 )), 0) -> 0 | D46: =IFERROR( D36* 1000/ INDEX($E$7:$E$12, MATCH(1, ($B46 = $B$7:$B$12)*('Control and Output Summary'!$C$14 = $C$7:$C$12),0 )), 0) -> 0 | E46: =IFERROR( E36* 1000/ INDEX($E$7:$E$12, MATCH(1, ($B46 = $B$7:$B$12)*('Control and Output Summary'!$C$14 = $C$7:$C$12),0 )), 0) -> 0 | F46: =IFERROR( F36* 1000/ INDEX($E$7:$E$12, MATCH(1, ($B46 = $B$7:$B$12)*('Control and Output Summary'!$C$14 = $C$7:$C$12),0 )), 0) -> 0 | G46: =IFERROR( G36* 1000/ INDEX($E$7:$E$12, MATCH(1, ($B46 = $B$7:$B$12)*('Control and Output Summary'!$C$14 = $C$7:$C$12),0 )), 0) -> 3.936812011 | H46: =IFERROR( H36* 1000/ INDEX($E$7:$E$12, MATCH(1, ($B46 = $B$7:$B$12)*('Control and Output Summary'!$C$14 = $C$7:$C$12),0 )), 0) -> 53.45727465 | I46: 57.39408666 | J46: =$I46 *IF('Control and Output Summary'!$C$14<>"Ergon", INDEX('Asset Specification'!$F$8:$F$43, MATCH(1, ($B46 = 'Asset Specification'!$B$8:$B$43)*('Control and Output Summary'!$C$14 ='Asset Specification'!$C$8:$C$43 ) *("Import" = 'Asset Specification'!$D$8:$D$43 ),0 )),INDEX('Ergon Input'!$F$84:$F$95, MATCH(1, ($B46 = 'Ergon Input'!$B$84:$B$95) *("Import" = 'Ergon Input'!$D$84:$D$95 ),0 ))) -> 51.654678
B47: ST 110/132 kv | C47: =IFERROR( C37* 1000/ INDEX($E$7:$E$12, MATCH(1, ($B47 = $B$7:$B$12)*('Control and Output Summary'!$C$14 = $C$7:$C$12),0 )), 0) -> 0 | D47: =IFERROR( D37* 1000/ INDEX($E$7:$E$12, MATCH(1, ($B47 = $B$7:$B$12)*('Control and Output Summary'!$C$14 = $C$7:$C$12),0 )), 0) -> 0 | E47: =IFERROR( E37* 1000/ INDEX($E$7:$E$12, MATCH(1, ($B47 = $B$7:$B$12)*('Control and Output Summary'!$C$14 = $C$7:$C$12),0 )), 0) -> 0 | F47: =IFERROR( F37* 1000/ INDEX($E$7:$E$12, MATCH(1, ($B47 = $B$7:$B$12)*('Control and Output Summary'!$C$14 = $C$7:$C$12),0 )), 0) -> 0 | G47: =IFERROR( G37* 1000/ INDEX($E$7:$E$12, MATCH(1, ($B47 = $B$7:$B$12)*('Control and Output Summary'!$C$14 = $C$7:$C$12),0 )), 0) -> 0 | H47: =IFERROR( H37* 1000/ INDEX($E$7:$E$12, MATCH(1, ($B47 = $B$7:$B$12)*('Control and Output Summary'!$C$14 = $C$7:$C$12),0 )), 0) -> 53.45727465 | I47: 53.45727465 | J47: =$I47 *IF('Control and Output Summary'!$C$14<>"Ergon", INDEX('Asset Specification'!$F$8:$F$43, MATCH(1, ($B47 = 'Asset Specification'!$B$8:$B$43)*('Control and Output Summary'!$C$14 ='Asset Specification'!$C$8:$C$43 ) *("Import" = 'Asset Specification'!$D$8:$D$43 ),0 )),INDEX('Ergon Input'!$F$84:$F$95, MATCH(1, ($B47 = 'Ergon Input'!$B$84:$B$95) *("Import" = 'Ergon Input'!$D$84:$D$95 ),0 ))) -> 48.11154719

Sheet Export AIC
B1: Export AIC
B3: Incremental Capacity (MW)
B6: Voltage Level | C6: Pricing Zone | D6: NPV | E6: ='Import Expenditure Forecast'!G$7 -> 2024 | F6: ='Import Expenditure Forecast'!H$7 -> 2025 | G6: ='Import Expenditure Forecast'!I$7 -> 2026 | H6: ='Import Expenditure Forecast'!J$7 -> 2027 | I6: ='Import Expenditure Forecast'!K$7 -> 2028 | J6: ='Import Expenditure Forecast'!L$7 -> 2029 | K6: ='Import Expenditure Forecast'!M$7 -> 2030 | L6: ='Import Expenditure Forecast'!N$7 -> 2031 | M6: ='Import Expenditure Forecast'!O$7 -> 2032 | N6: ='Import Expenditure Forecast'!P$7 -> 2033
B7: LV Line | C7: ='Control and Output Summary'!$C$14 -> West | D7: =NPV('Control and Output Summary'!$C$6,$E7:$N7) -> 77.88029162 | E7: ='Export Summary'!E19 -> 8.630985995 | F7: ='Export Summary'!F19 -> 11.23812681 | G7: ='Export Summary'!G19 -> 10.56711549 | H7: ='Export Summary'!H19 -> 10.32324471 | I7: ='Export Summary'!I19 -> 10.58200814 | J7: ='Export Summary'!J19 -> 10.27707443 | K7: ='Export Summary'!K19 -> 9.281395209 | L7: ='Export Summary'!L19 -> 7.498194893 | M7: ='Export Summary'!M19 -> 7.532298035 | N7: ='Export Summary'!N19 -> 8.004781819
B8: LV Bus | C8: ='Control and Output Summary'!$C$14 -> West | D8: =NPV('Control and Output Summary'!$C$6,$E8:$N8) -> 77.88029162 | E8: ='Export Summary'!E20 -> 8.630985995 | F8: ='Export Summary'!F20 -> 11.23812681 | G8: ='Export Summary'!G20 -> 10.56711549 | H8: ='Export Summary'!H20 -> 10.32324471 | I8: ='Export Summary'!I20 -> 10.58200814 | J8: ='Export Summary'!J20 -> 10.27707443 | K8: ='Export Summary'!K20 -> 9.281395209 | L8: ='Export Summary'!L20 -> 7.498194893 | M8: ='Export Summary'!M20 -> 7.532298035 | N8: ='Export Summary'!N20 -> 8.004781819
B9: HV Line | C9: ='Control and Output Summary'!$C$14 -> West | D9: =NPV('Control and Output Summary'!$C$6,$E9:$N9) -> 4.098962717 | E9: ='Export Summary'!E21 -> 0.4542624208 | F9: ='Export Summary'!F21 -> 0.5914803585 | G9: ='Export Summary'!G21 -> 0.5561639732 | H9: ='Export Summary'!H21 -> 0.5433286689 | I9: ='Export Summary'!I21 -> 0.556947797 | J9: ='Export Summary'!J21 -> 0.5408986541 | K9: ='Export Summary'!K21 -> 0.4884944847 | L9: ='Export Summary'!L21 -> 0.3946418365 | M9: ='Export Summary'!M21 -> 0.3964367387 | N9: ='Export Summary'!N21 -> 0.4213043063
B10: HV Bus | C10: ='Control and Output Summary'!$C$14 -> West | D10: =NPV('Control and Output Summary'!$C$6,$E10:$N10) -> 4.098962717 | E10: ='Export Summary'!E22 -> 0.4542624208 | F10: ='Export Summary'!F22 -> 0.5914803585 | G10: ='Export Summary'!G22 -> 0.5561639732 | H10: ='Export Summary'!H22 -> 0.5433286689 | I10: ='Export Summary'!I22 -> 0.556947797 | J10: ='Export Summary'!J22 -> 0.5408986541 | K10: ='Export Summary'!K22 -> 0.4884944847 | L10: ='Export Summary'!L22 -> 0.3946418365 | M10: ='Export Summary'!M22 -> 0.3964367387 | N10: ='Export Summary'!N22 -> 0.4213043063
B11: ST 33/66 kv | C11: ='Control and Output Summary'!$C$14 -> West | D11: =NPV('Control and Output Summary'!$C$6,$E11:$N11) -> 0 | E11: ='Export Summary'!E23 -> 0 | F11: ='Export Summary'!F23 -> 0 | G11: ='Export Summary'!G23 -> 0 | H11: ='Export Summary'!H23 -> 0 | I11: ='Export Summary'!I23 -> 0 | J11: ='Export Summary'!J23 -> 0 | K11: ='Export Summary'!K23 -> 0 | L11: ='Export Summary'!L23 -> 0 | M11: ='Export Summary'!M23 -> 0 | N11: ='Export Summary'!N23 -> 0
B12: ST 110/132 kv | C12: ='Control and Output Summary'!$C$14 -> West | D12: =NPV('Control and Output Summary'!$C$6,$E12:$N12) -> 0 | E12: ='Export Summary'!E24 -> 0 | F12: ='Export Summary'!F24 -> 0 | G12: ='Export Summary'!G24 -> 0 | H12: ='Export Summary'!H24 -> 0 | I12: ='Export Summary'!I24 -> 0 | J12: ='Export Summary'!J24 -> 0 | K12: ='Export Summary'!K24 -> 0 | L12: ='Export Summary'!L24 -> 0 | M12: ='Export Summary'!M24 -> 0 | N12: ='Export Summary'!N24 -> 0
B15: Incremental Costs ($m)
B18: Voltage Level | C18: Pricing Zone | D18: NPV | E18: =E$6 -> 2024 | F18: 2025 | G18: 2026 | H18: 2027 | I18: 2028 | J18: 2029 | K18: 2030 | L18: 2031 | M18: 2032 | N18: 2033
B19: LV Line | C19: ='Control and Output Summary'!$C$14 -> West | D19: =NPV('Control and Output Summary'!$C$6,$E19:$N19) -> 3.714914227 | E19: ='Capex Summary'!E212 -> 0.1571300922 | F19: ='Capex Summary'!F212 -> 0.2274671383 | G19: ='Capex Summary'!G212 -> 0.2978041844 | H19: ='Capex Summary'!H212 -> 0.3681412305 | I19: ='Capex Summary'!I212 -> 0.4384782766 | J19: ='Capex Summary'!J212 -> 0.5088153227 | K19: ='Capex Summary'!K212 -> 0.5791523688 | L19: ='Capex Summary'!L212 -> 0.6494894149 | M19: ='Capex Summary'!M212 -> 0.719826461 | N19: ='Capex Summary'!N212 -> 0.7901635071
B20: LV Bus | C20: ='Control and Output Summary'!$C$14 -> West | D20: =NPV('Control and Output Summary'!$C$6,$E20:$N20) -> 3.714914227 | E20: ='Capex Summary'!E213 -> 0.1571300922 | F20: ='Capex Summary'!F213 -> 0.2274671383 | G20: ='Capex Summary'!G213 -> 0.2978041844 | H20: ='Capex Summary'!H213 -> 0.3681412305 | I20: ='Capex Summary'!I213 -> 0.4384782766 | J20: ='Capex Summary'!J213 -> 0.5088153227 | K20: ='Capex Summary'!K213 -> 0.5791523688 | L20: ='Capex Summary'!L213 -> 0.6494894149 | M20: ='Capex Summary'!M213 -> 0.719826461 | N20: ='Capex Summary'!N213 -> 0.7901635071
B21: HV Line | C21: ='Control and Output Summary'!$C$14 -> West | D21: =NPV('Control and Output Summary'!$C$6,$E21:$N21) -> 0 | E21: ='Capex Summary'!E214 -> 0 | F21: ='Capex Summary'!F214 -> 0 | G21: ='Capex Summary'!G214 -> 0 | H21: ='Capex Summary'!H214 -> 0 | I21: ='Capex Summary'!I214 -> 0 | J21: ='Capex Summary'!J214 -> 0 | K21: ='Capex Summary'!K214 -> 0 | L21: ='Capex Summary'!L214 -> 0 | M21: ='Capex Summary'!M214 -> 0 | N21: ='Capex Summary'!N214 -> 0
B22: HV Bus | C22: ='Control and Output Summary'!$C$14 -> West | D22: =NPV('Control and Output Summary'!$C$6,$E22:$N22) -> 0.9671394378 | E22: ='Capex Summary'!E215 -> 0 | F22: ='Capex Summary'!F215 -> 0 | G22: ='Capex Summary'!G215 -> 0.03945267904 | H22: ='Capex Summary'!H215 -> 0.07258663701 | I22: ='Capex Summary'!I215 -> 0.106698452 | J22: ='Capex Summary'!J215 -> 0.1418143642 | K22: ='Capex Summary'!K215 -> 0.1779650001 | L22: ='Capex Summary'!L215 -> 0.2120089151 | M22: ='Capex Summary'!M215 -> 0.2464066768 | N22: ='Capex Summary'!N215 -> 0.2808044384
B23: ST 33/66 kv | C23: ='Control and Output Summary'!$C$14 -> West | D23: =NPV('Control and Output Summary'!$C$6,$E23:$N23) -> 0 | E23: ='Capex Summary'!E216 -> 0 | F23: ='Capex Summary'!F216 -> 0 | G23: ='Capex Summary'!G216 -> 0 | H23: ='Capex Summary'!H216 -> 0 | I23: ='Capex Summary'!I216 -> 0 | J23: ='Capex Summary'!J216 -> 0 | K23: ='Capex Summary'!K216 -> 0 | L23: ='Capex Summary'!L216 -> 0 | M23: ='Capex Summary'!M216 -> 0 | N23: ='Capex Summary'!N216 -> 0
B24: ST 110/132 kv | C24: ='Control and Output Summary'!$C$14 -> West | D24: =NPV('Control and Output Summary'!$C$6,$E24:$N24) -> 0 | E24: ='Capex Summary'!E217 -> 0 | F24: ='Capex Summary'!F217 -> 0 | G24: ='Capex Summary'!G217 -> 0 | H24: ='Capex Summary'!H217 -> 0 | I24: ='Capex Summary'!I217 -> 0 | J24: ='Capex Summary'!J217 -> 0 | K24: ='Capex Summary'!K217 -> 0 | L24: ='Capex Summary'!L217 -> 0 | M24: ='Capex Summary'!M217 -> 0 | N24: ='Capex Summary'!N217 -> 0
B27: AIC To Each Part of The Network
B29: Cost Break Down ($m)
B31: Demand at each Voltage Level | C31: LV Line | D31: LV Bus | E31: HV Line | F31: HV Bus | G31: ST 33/66 kV | H31: ST 110/132 kV | I31: Total Network Cost ($m)
B32: LV Line | C32: =INDEX($D$7:$D$12, MATCH(1, ($B32 = $B$7:$B$12)*('Control and Output Summary'!$C$14 = $C$7:$C$12),0 )) /SUMPRODUCT(SUMIFS($D$7:$D$12,$C$7:$C$12,'Control and Output Summary'!$C$14,$B$7:$B$12,$C$31:C$31)) *SUM( IF( C$31 = $B32:$B$37, 1, 0)) * INDEX($D$19:$D$24, MATCH(1, (C$31 = $B$19:$B$24 )*('Control and Output Summary'!$C$14 = $C$19:$C$24),0)) -> 3.714914227 | D32: =INDEX($D$7:$D$12, MATCH(1, ($B32 = $B$7:$B$12)*('Control and Output Summary'!$C$14 = $C$7:$C$12),0 )) /SUMPRODUCT(SUMIFS($D$7:$D$12,$C$7:$C$12,'Control and Output Summary'!$C$14,$B$7:$B$12,$C$31:D$31)) *SUM( IF( D$31 = $B32:$B$37, 1, 0)) * INDEX($D$19:$D$24, MATCH(1, (D$31 = $B$19:$B$24 )*('Control and Output Summary'!$C$14 = $C$19:$C$24),0)) -> 1.857457114 | E32: =INDEX($D$7:$D$12, MATCH(1, ($B32 = $B$7:$B$12)*('Control and Output Summary'!$C$14 = $C$7:$C$12),0 )) /SUMPRODUCT(SUMIFS($D$7:$D$12,$C$7:$C$12,'Control and Output Summary'!$C$14,$B$7:$B$12,$C$31:E$31)) *SUM( IF( E$31 = $B32:$B$37, 1, 0)) * INDEX($D$19:$D$24, MATCH(1, (E$31 = $B$19:$B$24 )*('Control and Output Summary'!$C$14 = $C$19:$C$24),0)) -> 0 | F32: =INDEX($D$7:$D$12, MATCH(1, ($B32 = $B$7:$B$12)*('Control and Output Summary'!$C$14 = $C$7:$C$12),0 )) /SUMPRODUCT(SUMIFS($D$7:$D$12,$C$7:$C$12,'Control and Output Summary'!$C$14,$B$7:$B$12,$C$31:F$31)) *SUM( IF( F$31 = $B32:$B$37, 1, 0)) * INDEX($D$19:$D$24, MATCH(1, (F$31 = $B$19:$B$24 )*('Control and Output Summary'!$C$14 = $C$19:$C$24),0)) -> 0.4593912329 | G32: =INDEX($D$7:$D$12, MATCH(1, ($B32 = $B$7:$B$12)*('Control and Output Summary'!$C$14 = $C$7:$C$12),0 )) /SUMPRODUCT(SUMIFS($D$7:$D$12,$C$7:$C$12,'Control and Output Summary'!$C$14,$B$7:$B$12,$C$31:G$31)) *SUM( IF( G$31 = $B32:$B$37, 1, 0)) * INDEX($D$19:$D$24, MATCH(1, (G$31 = $B$19:$B$24 )*('Control and Output Summary'!$C$14 = $C$19:$C$24),0)) -> 0 | H32: =INDEX($D$7:$D$12, MATCH(1, ($B32 = $B$7:$B$12)*('Control and Output Summary'!$C$14 = $C$7:$C$12),0 )) /SUMPRODUCT(SUMIFS($D$7:$D$12,$C$7:$C$12,'Control and Output Summary'!$C$14,$B$7:$B$12,$C$31:H$31)) *SUM( IF( H$31 = $B32:$B$37, 1, 0)) * INDEX($D$19:$D$24, MATCH(1, (H$31 = $B$19:$B$24 )*('Control and Output Summary'!$C$14 = $C$19:$C$24),0)) -> 0 | I32: =SUM($C32:$H32) -> 6.031762574
B33: LV Bus | C33: =INDEX($D$7:$D$12, MATCH(1, ($B33 = $B$7:$B$12)*('Control and Output Summary'!$C$14 = $C$7:$C$12),0 )) /SUMPRODUCT(SUMIFS($D$7:$D$12,$C$7:$C$12,'Control and Output Summary'!$C$14,$B$7:$B$12,$C$31:C$31)) *SUM( IF( C$31 = $B33:$B$37, 1, 0)) * INDEX($D$19:$D$24, MATCH(1, (C$31 = $B$19:$B$24 )*('Control and Output Summary'!$C$14 = $C$19:$C$24),0)) -> 0 | D33: =INDEX($D$7:$D$12, MATCH(1, ($B33 = $B$7:$B$12)*('Control and Output Summary'!$C$14 = $C$7:$C$12),0 )) /SUMPRODUCT(SUMIFS($D$7:$D$12,$C$7:$C$12,'Control and Output Summary'!$C$14,$B$7:$B$12,$C$31:D$31)) *SUM( IF( D$31 = $B33:$B$37, 1, 0)) * INDEX($D$19:$D$24, MATCH(1, (D$31 = $B$19:$B$24 )*('Control and Output Summary'!$C$14 = $C$19:$C$24),0)) -> 1.857457114 | E33: =INDEX($D$7:$D$12, MATCH(1, ($B33 = $B$7:$B$12)*('Control and Output Summary'!$C$14 = $C$7:$C$12),0 )) /SUMPRODUCT(SUMIFS($D$7:$D$12,$C$7:$C$12,'Control and Output Summary'!$C$14,$B$7:$B$12,$C$31:E$31)) *SUM( IF( E$31 = $B33:$B$37, 1, 0)) * INDEX($D$19:$D$24, MATCH(1, (E$31 = $B$19:$B$24 )*('Control and Output Summary'!$C$14 = $C$19:$C$24),0)) -> 0 | F33: =INDEX($D$7:$D$12, MATCH(1, ($B33 = $B$7:$B$12)*('Control and Output Summary'!$C$14 = $C$7:$C$12),0 )) /SUMPRODUCT(SUMIFS($D$7:$D$12,$C$7:$C$12,'Control and Output Summary'!$C$14,$B$7:$B$12,$C$31:F$31)) *SUM( IF( F$31 = $B33:$B$37, 1, 0)) * INDEX($D$19:$D$24, MATCH(1, (F$31 = $B$19:$B$24 )*('Control and Output Summary'!$C$14 = $C$19:$C$24),0)) -> 0.4593912329 | G33: =INDEX($D$7:$D$12, MATCH(1, ($B33 = $B$7:$B$12)*('Control and Output Summary'!$C$14 = $C$7:$C$12),0 )) /SUMPRODUCT(SUMIFS($D$7:$D$12,$C$7:$C$12,'Control and Output Summary'!$C$14,$B$7:$B$12,$C$31:G$31)) *SUM( IF( G$31 = $B33:$B$37, 1, 0)) * INDEX($D$19:$D$24, MATCH(1, (G$31 = $B$19:$B$24 )*('Control and Output Summary'!$C$14 = $C$19:$C$24),0)) -> 0 | H33: =INDEX($D$7:$D$12, MATCH(1, ($B33 = $B$7:$B$12)*('Control and Output Summary'!$C$14 = $C$7:$C$12),0 )) /SUMPRODUCT(SUMIFS($D$7:$D$12,$C$7:$C$12,'Control and Output Summary'!$C$14,$B$7:$B$12,$C$31:H$31)) *SUM( IF( H$31 = $B33:$B$37, 1, 0)) * INDEX($D$19:$D$24, MATCH(1, (H$31 = $B$19:$B$24 )*('Control and Output Summary'!$C$14 = $C$19:$C$24),0)) -> 0 | I33: 2.316848347
B34: HV Line | C34: =INDEX($D$7:$D$12, MATCH(1, ($B34 = $B$7:$B$12)*('Control and Output Summary'!$C$14 = $C$7:$C$12),0 )) /SUMPRODUCT(SUMIFS($D$7:$D$12,$C$7:$C$12,'Control and Output Summary'!$C$14,$B$7:$B$12,$C$31:C$31)) *SUM( IF( C$31 = $B34:$B$37, 1, 0)) * INDEX($D$19:$D$24, MATCH(1, (C$31 = $B$19:$B$24 )*('Control and Output Summary'!$C$14 = $C$19:$C$24),0)) -> 0 | D34: =INDEX($D$7:$D$12, MATCH(1, ($B34 = $B$7:$B$12)*('Control and Output Summary'!$C$14 = $C$7:$C$12),0 )) /SUMPRODUCT(SUMIFS($D$7:$D$12,$C$7:$C$12,'Control and Output Summary'!$C$14,$B$7:$B$12,$C$31:D$31)) *SUM( IF( D$31 = $B34:$B$37, 1, 0)) * INDEX($D$19:$D$24, MATCH(1, (D$31 = $B$19:$B$24 )*('Control and Output Summary'!$C$14 = $C$19:$C$24),0)) -> 0 | E34: =INDEX($D$7:$D$12, MATCH(1, ($B34 = $B$7:$B$12)*('Control and Output Summary'!$C$14 = $C$7:$C$12),0 )) /SUMPRODUCT(SUMIFS($D$7:$D$12,$C$7:$C$12,'Control and Output Summary'!$C$14,$B$7:$B$12,$C$31:E$31)) *SUM( IF( E$31 = $B34:$B$37, 1, 0)) * INDEX($D$19:$D$24, MATCH(1, (E$31 = $B$19:$B$24 )*('Control and Output Summary'!$C$14 = $C$19:$C$24),0)) -> 0 | F34: =INDEX($D$7:$D$12, MATCH(1, ($B34 = $B$7:$B$12)*('Control and Output Summary'!$C$14 = $C$7:$C$12),0 )) /SUMPRODUCT(SUMIFS($D$7:$D$12,$C$7:$C$12,'Control and Output Summary'!$C$14,$B$7:$B$12,$C$31:F$31)) *SUM( IF( F$31 = $B34:$B$37, 1, 0)) * INDEX($D$19:$D$24, MATCH(1, (F$31 = $B$19:$B$24 )*('Control and Output Summary'!$C$14 = $C$19:$C$24),0)) -> 0.02417848594 | G34: =INDEX($D$7:$D$12, MATCH(1, ($B34 = $B$7:$B$12)*('Control and Output Summary'!$C$14 = $C$7:$C$12),0 )) /SUMPRODUCT(SUMIFS($D$7:$D$12,$C$7:$C$12,'Control and Output Summary'!$C$14,$B$7:$B$12,$C$31:G$31)) *SUM( IF( G$31 = $B34:$B$37, 1, 0)) * INDEX($D$19:$D$24, MATCH(1, (G$31 = $B$19:$B$24 )*('Control and Output Summary'!$C$14 = $C$19:$C$24),0)) -> 0 | H34: =INDEX($D$7:$D$12, MATCH(1, ($B34 = $B$7:$B$12)*('Control and Output Summary'!$C$14 = $C$7:$C$12),0 )) /SUMPRODUCT(SUMIFS($D$7:$D$12,$C$7:$C$12,'Control and Output Summary'!$C$14,$B$7:$B$12,$C$31:H$31)) *SUM( IF( H$31 = $B34:$B$37, 1, 0)) * INDEX($D$19:$D$24, MATCH(1, (H$31 = $B$19:$B$24 )*('Control and Output Summary'!$C$14 = $C$19:$C$24),0)) -> 0 | I34: 0.02417848594
B35: HV Bus | C35: =INDEX($D$7:$D$12, MATCH(1, ($B35 = $B$7:$B$12)*('Control and Output Summary'!$C$14 = $C$7:$C$12),0 )) /SUMPRODUCT(SUMIFS($D$7:$D$12,$C$7:$C$12,'Control and Output Summary'!$C$14,$B$7:$B$12,$C$31:C$31)) *SUM( IF( C$31 = $B35:$B$37, 1, 0)) * INDEX($D$19:$D$24, MATCH(1, (C$31 = $B$19:$B$24 )*('Control and Output Summary'!$C$14 = $C$19:$C$24),0)) -> 0 | D35: =INDEX($D$7:$D$12, MATCH(1, ($B35 = $B$7:$B$12)*('Control and Output Summary'!$C$14 = $C$7:$C$12),0 )) /SUMPRODUCT(SUMIFS($D$7:$D$12,$C$7:$C$12,'Control and Output Summary'!$C$14,$B$7:$B$12,$C$31:D$31)) *SUM( IF( D$31 = $B35:$B$37, 1, 0)) * INDEX($D$19:$D$24, MATCH(1, (D$31 = $B$19:$B$24 )*('Control and Output Summary'!$C$14 = $C$19:$C$24),0)) -> 0 | E35: =INDEX($D$7:$D$12, MATCH(1, ($B35 = $B$7:$B$12)*('Control and Output Summary'!$C$14 = $C$7:$C$12),0 )) /SUMPRODUCT(SUMIFS($D$7:$D$12,$C$7:$C$12,'Control and Output Summary'!$C$14,$B$7:$B$12,$C$31:E$31)) *SUM( IF( E$31 = $B35:$B$37, 1, 0)) * INDEX($D$19:$D$24, MATCH(1, (E$31 = $B$19:$B$24 )*('Control and Output Summary'!$C$14 = $C$19:$C$24),0)) -> 0 | F35: =INDEX($D$7:$D$12, MATCH(1, ($B35 = $B$7:$B$12)*('Control and Output Summary'!$C$14 = $C$7:$C$12),0 )) /SUMPRODUCT(SUMIFS($D$7:$D$12,$C$7:$C$12,'Control and Output Summary'!$C$14,$B$7:$B$12,$C$31:F$31)) *SUM( IF( F$31 = $B35:$B$37, 1, 0)) * INDEX($D$19:$D$24, MATCH(1, (F$31 = $B$19:$B$24 )*('Control and Output Summary'!$C$14 = $C$19:$C$24),0)) -> 0.02417848594 | G35: =INDEX($D$7:$D$12, MATCH(1, ($B35 = $B$7:$B$12)*('Control and Output Summary'!$C$14 = $C$7:$C$12),0 )) /SUMPRODUCT(SUMIFS($D$7:$D$12,$C$7:$C$12,'Control and Output Summary'!$C$14,$B$7:$B$12,$C$31:G$31)) *SUM( IF( G$31 = $B35:$B$37, 1, 0)) * INDEX($D$19:$D$24, MATCH(1, (G$31 = $B$19:$B$24 )*('Control and Output Summary'!$C$14 = $C$19:$C$24),0)) -> 0 | H35: =INDEX($D$7:$D$12, MATCH(1, ($B35 = $B$7:$B$12)*('Control and Output Summary'!$C$14 = $C$7:$C$12),0 )) /SUMPRODUCT(SUMIFS($D$7:$D$12,$C$7:$C$12,'Control and Output Summary'!$C$14,$B$7:$B$12,$C$31:H$31)) *SUM( IF( H$31 = $B35:$B$37, 1, 0)) * INDEX($D$19:$D$24, MATCH(1, (H$31 = $B$19:$B$24 )*('Control and Output Summary'!$C$14 = $C$19:$C$24),0)) -> 0 | I35: 0.02417848594
B36: ST 33/66 kv | C36: =INDEX($D$7:$D$12, MATCH(1, ($B36 = $B$7:$B$12)*('Control and Output Summary'!$C$14 = $C$7:$C$12),0 )) /SUMPRODUCT(SUMIFS($D$7:$D$12,$C$7:$C$12,'Control and Output Summary'!$C$14,$B$7:$B$12,$C$31:C$31)) *SUM( IF( C$31 = $B36:$B$37, 1, 0)) * INDEX($D$19:$D$24, MATCH(1, (C$31 = $B$19:$B$24 )*('Control and Output Summary'!$C$14 = $C$19:$C$24),0)) -> 0 | D36: =INDEX($D$7:$D$12, MATCH(1, ($B36 = $B$7:$B$12)*('Control and Output Summary'!$C$14 = $C$7:$C$12),0 )) /SUMPRODUCT(SUMIFS($D$7:$D$12,$C$7:$C$12,'Control and Output Summary'!$C$14,$B$7:$B$12,$C$31:D$31)) *SUM( IF( D$31 = $B36:$B$37, 1, 0)) * INDEX($D$19:$D$24, MATCH(1, (D$31 = $B$19:$B$24 )*('Control and Output Summary'!$C$14 = $C$19:$C$24),0)) -> 0 | E36: =INDEX($D$7:$D$12, MATCH(1, ($B36 = $B$7:$B$12)*('Control and Output Summary'!$C$14 = $C$7:$C$12),0 )) /SUMPRODUCT(SUMIFS($D$7:$D$12,$C$7:$C$12,'Control and Output Summary'!$C$14,$B$7:$B$12,$C$31:E$31)) *SUM( IF( E$31 = $B36:$B$37, 1, 0)) * INDEX($D$19:$D$24, MATCH(1, (E$31 = $B$19:$B$24 )*('Control and Output Summary'!$C$14 = $C$19:$C$24),0)) -> 0 | F36: =INDEX($D$7:$D$12, MATCH(1, ($B36 = $B$7:$B$12)*('Control and Output Summary'!$C$14 = $C$7:$C$12),0 )) /SUMPRODUCT(SUMIFS($D$7:$D$12,$C$7:$C$12,'Control and Output Summary'!$C$14,$B$7:$B$12,$C$31:F$31)) *SUM( IF( F$31 = $B36:$B$37, 1, 0)) * INDEX($D$19:$D$24, MATCH(1, (F$31 = $B$19:$B$24 )*('Control and Output Summary'!$C$14 = $C$19:$C$24),0)) -> 0 | G36: =INDEX($D$7:$D$12, MATCH(1, ($B36 = $B$7:$B$12)*('Control and Output Summary'!$C$14 = $C$7:$C$12),0 )) /SUMPRODUCT(SUMIFS($D$7:$D$12,$C$7:$C$12,'Control and Output Summary'!$C$14,$B$7:$B$12,$C$31:G$31)) *SUM( IF( G$31 = $B36:$B$37, 1, 0)) * INDEX($D$19:$D$24, MATCH(1, (G$31 = $B$19:$B$24 )*('Control and Output Summary'!$C$14 = $C$19:$C$24),0)) -> 0 | H36: =INDEX($D$7:$D$12, MATCH(1, ($B36 = $B$7:$B$12)*('Control and Output Summary'!$C$14 = $C$7:$C$12),0 )) /SUMPRODUCT(SUMIFS($D$7:$D$12,$C$7:$C$12,'Control and Output Summary'!$C$14,$B$7:$B$12,$C$31:H$31)) *SUM( IF( H$31 = $B36:$B$37, 1, 0)) * INDEX($D$19:$D$24, MATCH(1, (H$31 = $B$19:$B$24 )*('Control and Output Summary'!$C$14 = $C$19:$C$24),0)) -> 0 | I36: 0
B37: ST 110/132 kv | C37: =INDEX($D$7:$D$12, MATCH(1, ($B37 = $B$7:$B$12)*('Control and Output Summary'!$C$14 = $C$7:$C$12),0 )) /SUMPRODUCT(SUMIFS($D$7:$D$12,$C$7:$C$12,'Control and Output Summary'!$C$14,$B$7:$B$12,$C$31:C$31)) *SUM( IF( C$31 = $B37:$B$37, 1, 0)) * INDEX($D$19:$D$24, MATCH(1, (C$31 = $B$19:$B$24 )*('Control and Output Summary'!$C$14 = $C$19:$C$24),0)) -> 0 | D37: =INDEX($D$7:$D$12, MATCH(1, ($B37 = $B$7:$B$12)*('Control and Output Summary'!$C$14 = $C$7:$C$12),0 )) /SUMPRODUCT(SUMIFS($D$7:$D$12,$C$7:$C$12,'Control and Output Summary'!$C$14,$B$7:$B$12,$C$31:D$31)) *SUM( IF( D$31 = $B37:$B$37, 1, 0)) * INDEX($D$19:$D$24, MATCH(1, (D$31 = $B$19:$B$24 )*('Control and Output Summary'!$C$14 = $C$19:$C$24),0)) -> 0 | E37: =INDEX($D$7:$D$12, MATCH(1, ($B37 = $B$7:$B$12)*('Control and Output Summary'!$C$14 = $C$7:$C$12),0 )) /SUMPRODUCT(SUMIFS($D$7:$D$12,$C$7:$C$12,'Control and Output Summary'!$C$14,$B$7:$B$12,$C$31:E$31)) *SUM( IF( E$31 = $B37:$B$37, 1, 0)) * INDEX($D$19:$D$24, MATCH(1, (E$31 = $B$19:$B$24 )*('Control and Output Summary'!$C$14 = $C$19:$C$24),0)) -> 0 | F37: =INDEX($D$7:$D$12, MATCH(1, ($B37 = $B$7:$B$12)*('Control and Output Summary'!$C$14 = $C$7:$C$12),0 )) /SUMPRODUCT(SUMIFS($D$7:$D$12,$C$7:$C$12,'Control and Output Summary'!$C$14,$B$7:$B$12,$C$31:F$31)) *SUM( IF( F$31 = $B37:$B$37, 1, 0)) * INDEX($D$19:$D$24, MATCH(1, (F$31 = $B$19:$B$24 )*('Control and Output Summary'!$C$14 = $C$19:$C$24),0)) -> 0 | G37: =INDEX($D$7:$D$12, MATCH(1, ($B37 = $B$7:$B$12)*('Control and Output Summary'!$C$14 = $C$7:$C$12),0 )) /SUMPRODUCT(SUMIFS($D$7:$D$12,$C$7:$C$12,'Control and Output Summary'!$C$14,$B$7:$B$12,$C$31:G$31)) *SUM( IF( G$31 = $B37:$B$37, 1, 0)) * INDEX($D$19:$D$24, MATCH(1, (G$31 = $B$19:$B$24 )*('Control and Output Summary'!$C$14 = $C$19:$C$24),0)) -> 0 | H37: =INDEX($D$7:$D$12, MATCH(1, ($B37 = $B$7:$B$12)*('Control and Output Summary'!$C$14 = $C$7:$C$12),0 )) /SUMPRODUCT(SUMIFS($D$7:$D$12,$C$7:$C$12,'Control and Output Summary'!$C$14,$B$7:$B$12,$C$31:H$31)) *SUM( IF( H$31 = $B37:$B$37, 1, 0)) * INDEX($D$19:$D$24, MATCH(1, (H$31 = $B$19:$B$24 )*('Control and Output Summary'!$C$14 = $C$19:$C$24),0)) -> 0 | I37: 0
B39: LRMC Component Break Down ($/kW)
B41: Demand at each Voltage Level | C41: LV Line | D41: LV Bus | E41: HV Line | F41: HV Bus | G41: ST 33/66 kV | H41: ST 110/132 kV | I41: Total LRMC | J41: $/kVA p.a.
B42: LV Line | C42: =IFERROR(C32* 1000/ INDEX($D$7:$D$12, MATCH(1, ($B42 = $B$7:$B$12)*('Control and Output Summary'!$C$14 = $C$7:$C$12),0 )),0) -> 47.70031224 | D42: =IFERROR(D32* 1000/ INDEX($D$7:$D$12, MATCH(1, ($B42 = $B$7:$B$12)*('Control and Output Summary'!$C$14 = $C$7:$C$12),0 )),0) -> 23.85015612 | E42: =IFERROR(E32* 1000/ INDEX($D$7:$D$12, MATCH(1, ($B42 = $B$7:$B$12)*('Control and Output Summary'!$C$14 = $C$7:$C$12),0 )),0) -> 0 | F42: =IFERROR(F32* 1000/ INDEX($D$7:$D$12, MATCH(1, ($B42 = $B$7:$B$12)*('Control and Output Summary'!$C$14 = $C$7:$C$12),0 )),0) -> 5.898684036 | G42: =IFERROR(G32* 1000/ INDEX($D$7:$D$12, MATCH(1, ($B42 = $B$7:$B$12)*('Control and Output Summary'!$C$14 = $C$7:$C$12),0 )),0) -> 0 | H42: =IFERROR(H32* 1000/ INDEX($D$7:$D$12, MATCH(1, ($B42 = $B$7:$B$12)*('Control and Output Summary'!$C$14 = $C$7:$C$12),0 )),0) -> 0 | I42: =SUM($C42:$H42) -> 77.44915239 | J42: =$I42 * IF('Control and Output Summary'!$C$14<>"Ergon",INDEX('Asset Specification'!$F$8:$F$43, MATCH(1, ($B42 = 'Asset Specification'!$B$8:$B$43)*('Control and Output Summary'!$C$14 ='Asset Specification'!$C$8:$C$43 ) *("Export" = 'Asset Specification'!$D$8:$D$43 ),0 )),INDEX('Ergon Input'!$F$84:$F$95, MATCH(1, ($B42 ='Ergon Input'!$B$84:$B$95) *("Export" = 'Ergon Input'!$D$84:$D$95 ),0 ))) -> 69.70423715
B43: LV Bus | C43: =IFERROR(C33* 1000/ INDEX($D$7:$D$12, MATCH(1, ($B43 = $B$7:$B$12)*('Control and Output Summary'!$C$14 = $C$7:$C$12),0 )),0) -> 0 | D43: =IFERROR(D33* 1000/ INDEX($D$7:$D$12, MATCH(1, ($B43 = $B$7:$B$12)*('Control and Output Summary'!$C$14 = $C$7:$C$12),0 )),0) -> 23.85015612 | E43: =IFERROR(E33* 1000/ INDEX($D$7:$D$12, MATCH(1, ($B43 = $B$7:$B$12)*('Control and Output Summary'!$C$14 = $C$7:$C$12),0 )),0) -> 0 | F43: =IFERROR(F33* 1000/ INDEX($D$7:$D$12, MATCH(1, ($B43 = $B$7:$B$12)*('Control and Output Summary'!$C$14 = $C$7:$C$12),0 )),0) -> 5.898684036 | G43: =IFERROR(G33* 1000/ INDEX($D$7:$D$12, MATCH(1, ($B43 = $B$7:$B$12)*('Control and Output Summary'!$C$14 = $C$7:$C$12),0 )),0) -> 0 | H43: =IFERROR(H33* 1000/ INDEX($D$7:$D$12, MATCH(1, ($B43 = $B$7:$B$12)*('Control and Output Summary'!$C$14 = $C$7:$C$12),0 )),0) -> 0 | I43: =SUM($C43:$H43) -> 29.74884015 | J43: =$I43 * IF('Control and Output Summary'!$C$14<>"Ergon",INDEX('Asset Specification'!$F$8:$F$43, MATCH(1, ($B43 = 'Asset Specification'!$B$8:$B$43)*('Control and Output Summary'!$C$14 ='Asset Specification'!$C$8:$C$43 ) *("Export" = 'Asset Specification'!$D$8:$D$43 ),0 )),INDEX('Ergon Input'!$F$84:$F$95, MATCH(1, ($B43 ='Ergon Input'!$B$84:$B$95) *("Export" = 'Ergon Input'!$D$84:$D$95 ),0 ))) -> 26.77395614
B44: HV Line | C44: =IFERROR(C34* 1000/ INDEX($D$7:$D$12, MATCH(1, ($B44 = $B$7:$B$12)*('Control and Output Summary'!$C$14 = $C$7:$C$12),0 )),0) -> 0 | D44: =IFERROR(D34* 1000/ INDEX($D$7:$D$12, MATCH(1, ($B44 = $B$7:$B$12)*('Control and Output Summary'!$C$14 = $C$7:$C$12),0 )),0) -> 0 | E44: =IFERROR(E34* 1000/ INDEX($D$7:$D$12, MATCH(1, ($B44 = $B$7:$B$12)*('Control and Output Summary'!$C$14 = $C$7:$C$12),0 )),0) -> 0 | F44: =IFERROR(F34* 1000/ INDEX($D$7:$D$12, MATCH(1, ($B44 = $B$7:$B$12)*('Control and Output Summary'!$C$14 = $C$7:$C$12),0 )),0) -> 5.898684036 | G44: =IFERROR(G34* 1000/ INDEX($D$7:$D$12, MATCH(1, ($B44 = $B$7:$B$12)*('Control and Output Summary'!$C$14 = $C$7:$C$12),0 )),0) -> 0 | H44: =IFERROR(H34* 1000/ INDEX($D$7:$D$12, MATCH(1, ($B44 = $B$7:$B$12)*('Control and Output Summary'!$C$14 = $C$7:$C$12),0 )),0) -> 0 | I44: 5.898684036 | J44: =$I44 * IF('Control and Output Summary'!$C$14<>"Ergon",INDEX('Asset Specification'!$F$8:$F$43, MATCH(1, ($B44 = 'Asset Specification'!$B$8:$B$43)*('Control and Output Summary'!$C$14 ='Asset Specification'!$C$8:$C$43 ) *("Export" = 'Asset Specification'!$D$8:$D$43 ),0 )),INDEX('Ergon Input'!$F$84:$F$95, MATCH(1, ($B44 ='Ergon Input'!$B$84:$B$95) *("Export" = 'Ergon Input'!$D$84:$D$95 ),0 ))) -> 5.308815633
B45: HV Bus | C45: =IFERROR(C35* 1000/ INDEX($D$7:$D$12, MATCH(1, ($B45 = $B$7:$B$12)*('Control and Output Summary'!$C$14 = $C$7:$C$12),0 )),0) -> 0 | D45: =IFERROR(D35* 1000/ INDEX($D$7:$D$12, MATCH(1, ($B45 = $B$7:$B$12)*('Control and Output Summary'!$C$14 = $C$7:$C$12),0 )),0) -> 0 | E45: =IFERROR(E35* 1000/ INDEX($D$7:$D$12, MATCH(1, ($B45 = $B$7:$B$12)*('Control and Output Summary'!$C$14 = $C$7:$C$12),0 )),0) -> 0 | F45: =IFERROR(F35* 1000/ INDEX($D$7:$D$12, MATCH(1, ($B45 = $B$7:$B$12)*('Control and Output Summary'!$C$14 = $C$7:$C$12),0 )),0) -> 5.898684036 | G45: =IFERROR(G35* 1000/ INDEX($D$7:$D$12, MATCH(1, ($B45 = $B$7:$B$12)*('Control and Output Summary'!$C$14 = $C$7:$C$12),0 )),0) -> 0 | H45: =IFERROR(H35* 1000/ INDEX($D$7:$D$12, MATCH(1, ($B45 = $B$7:$B$12)*('Control and Output Summary'!$C$14 = $C$7:$C$12),0 )),0) -> 0 | I45: 5.898684036 | J45: =$I45 * IF('Control and Output Summary'!$C$14<>"Ergon",INDEX('Asset Specification'!$F$8:$F$43, MATCH(1, ($B45 = 'Asset Specification'!$B$8:$B$43)*('Control and Output Summary'!$C$14 ='Asset Specification'!$C$8:$C$43 ) *("Export" = 'Asset Specification'!$D$8:$D$43 ),0 )),INDEX('Ergon Input'!$F$84:$F$95, MATCH(1, ($B45 ='Ergon Input'!$B$84:$B$95) *("Export" = 'Ergon Input'!$D$84:$D$95 ),0 ))) -> 5.308815633
B46: ST 33/66 kv | C46: =IFERROR(C36* 1000/ INDEX($D$7:$D$12, MATCH(1, ($B46 = $B$7:$B$12)*('Control and Output Summary'!$C$14 = $C$7:$C$12),0 )),0) -> 0 | D46: =IFERROR(D36* 1000/ INDEX($D$7:$D$12, MATCH(1, ($B46 = $B$7:$B$12)*('Control and Output Summary'!$C$14 = $C$7:$C$12),0 )),0) -> 0 | E46: =IFERROR(E36* 1000/ INDEX($D$7:$D$12, MATCH(1, ($B46 = $B$7:$B$12)*('Control and Output Summary'!$C$14 = $C$7:$C$12),0 )),0) -> 0 | F46: =IFERROR(F36* 1000/ INDEX($D$7:$D$12, MATCH(1, ($B46 = $B$7:$B$12)*('Control and Output Summary'!$C$14 = $C$7:$C$12),0 )),0) -> 0 | G46: =IFERROR(G36* 1000/ INDEX($D$7:$D$12, MATCH(1, ($B46 = $B$7:$B$12)*('Control and Output Summary'!$C$14 = $C$7:$C$12),0 )),0) -> 0 | H46: =IFERROR(H36* 1000/ INDEX($D$7:$D$12, MATCH(1, ($B46 = $B$7:$B$12)*('Control and Output Summary'!$C$14 = $C$7:$C$12),0 )),0) -> 0 | I46: 0 | J46: =$I46 * IF('Control and Output Summary'!$C$14<>"Ergon",INDEX('Asset Specification'!$F$8:$F$43, MATCH(1, ($B46 = 'Asset Specification'!$B$8:$B$43)*('Control and Output Summary'!$C$14 ='Asset Specification'!$C$8:$C$43 ) *("Export" = 'Asset Specification'!$D$8:$D$43 ),0 )),INDEX('Ergon Input'!$F$84:$F$95, MATCH(1, ($B46 ='Ergon Input'!$B$84:$B$95) *("Export" = 'Ergon Input'!$D$84:$D$95 ),0 ))) -> 0
B47: ST 110/132 kv | C47: =IFERROR(C37* 1000/ INDEX($D$7:$D$12, MATCH(1, ($B47 = $B$7:$B$12)*('Control and Output Summary'!$C$14 = $C$7:$C$12),0 )),0) -> 0 | D47: =IFERROR(D37* 1000/ INDEX($D$7:$D$12, MATCH(1, ($B47 = $B$7:$B$12)*('Control and Output Summary'!$C$14 = $C$7:$C$12),0 )),0) -> 0 | E47: =IFERROR(E37* 1000/ INDEX($D$7:$D$12, MATCH(1, ($B47 = $B$7:$B$12)*('Control and Output Summary'!$C$14 = $C$7:$C$12),0 )),0) -> 0 | F47: =IFERROR(F37* 1000/ INDEX($D$7:$D$12, MATCH(1, ($B47 = $B$7:$B$12)*('Control and Output Summary'!$C$14 = $C$7:$C$12),0 )),0) -> 0 | G47: =IFERROR(G37* 1000/ INDEX($D$7:$D$12, MATCH(1, ($B47 = $B$7:$B$12)*('Control and Output Summary'!$C$14 = $C$7:$C$12),0 )),0) -> 0 | H47: =IFERROR(H37* 1000/ INDEX($D$7:$D$12, MATCH(1, ($B47 = $B$7:$B$12)*('Control and Output Summary'!$C$14 = $C$7:$C$12),0 )),0) -> 0 | I47: 0 | J47: =$I47 * IF('Control and Output Summary'!$C$14<>"Ergon",INDEX('Asset Specification'!$F$8:$F$43, MATCH(1, ($B47 = 'Asset Specification'!$B$8:$B$43)*('Control and Output Summary'!$C$14 ='Asset Specification'!$C$8:$C$43 ) *("Export" = 'Asset Specification'!$D$8:$D$43 ),0 )),INDEX('Ergon Input'!$F$84:$F$95, MATCH(1, ($B47 ='Ergon Input'!$B$84:$B$95) *("Export" = 'Ergon Input'!$D$84:$D$95 ),0 ))) -> 0

Sheet Capex Summary
B1: Import Expenditure Summary
B3: Growing
B5: Augmentation
B7: Voltage Level | C7: Pricing Zone | D7: ='Import Expenditure Forecast'!F$7 -> 2023 | E7: ='Import Expenditure Forecast'!G$7 -> 2024 | F7: ='Import Expenditure Forecast'!H$7 -> 2025 | G7: ='Import Expenditure Forecast'!I$7 -> 2026 | H7: ='Import Expenditure Forecast'!J$7 -> 2027 | I7: ='Import Expenditure Forecast'!K$7 -> 2028 | J7: ='Import Expenditure Forecast'!L$7 -> 2029 | K7: ='Import Expenditure Forecast'!M$7 -> 2030 | L7: ='Import Expenditure Forecast'!N$7 -> 2031 | M7: ='Import Expenditure Forecast'!O$7 -> 2032 | N7: ='Import Expenditure Forecast'!P$7 -> 2033
B8: LV Line | C8: ='Control and Output Summary'!$C$14 -> West | D8: =IF('Control and Output Summary'!$C$14<>"Ergon",SUMIFS(INDEX('Import Expenditure Forecast'!$F$8:$P$79,,MATCH(D$7,'Import Expenditure Forecast'!$F$7:$P$7,0)),'Import Expenditure Forecast'!$C$8:$C$79,$B8,'Import Expenditure Forecast'!$E$8:$E$79,$C8,'Import Expenditure Forecast'!$B$8:$B$79,$B$3,'Import Expenditure Forecast'!$D$8:$D$79,$B$5),SUMIFS(INDEX('Ergon Input'!$F$40:$P$63,,MATCH(D$7,'Ergon Input'!$F$39:$P$39,0)),'Ergon Input'!$C$40:$C$63,$B8,'Ergon Input'!$B$40:$B$63,$B$3,'Ergon Input'!$D$40:$D$63,$B$5)) -> 0 | E8: =IF('Control and Output Summary'!$C$14<>"Ergon",SUMIFS(INDEX('Import Expenditure Forecast'!$F$8:$P$79,,MATCH(E$7,'Import Expenditure Forecast'!$F$7:$P$7,0)),'Import Expenditure Forecast'!$C$8:$C$79,$B8,'Import Expenditure Forecast'!$E$8:$E$79,$C8,'Import Expenditure Forecast'!$B$8:$B$79,$B$3,'Import Expenditure Forecast'!$D$8:$D$79,$B$5),SUMIFS(INDEX('Ergon Input'!$F$40:$P$63,,MATCH(E$7,'Ergon Input'!$F$39:$P$39,0)),'Ergon Input'!$C$40:$C$63,$B8,'Ergon Input'!$B$40:$B$63,$B$3,'Ergon Input'!$D$40:$D$63,$B$5)) -> 0 | F8: =IF('Control and Output Summary'!$C$14<>"Ergon",SUMIFS(INDEX('Import Expenditure Forecast'!$F$8:$P$79,,MATCH(F$7,'Import Expenditure Forecast'!$F$7:$P$7,0)),'Import Expenditure Forecast'!$C$8:$C$79,$B8,'Import Expenditure Forecast'!$E$8:$E$79,$C8,'Import Expenditure Forecast'!$B$8:$B$79,$B$3,'Import Expenditure Forecast'!$D$8:$D$79,$B$5),SUMIFS(INDEX('Ergon Input'!$F$40:$P$63,,MATCH(F$7,'Ergon Input'!$F$39:$P$39,0)),'Ergon Input'!$C$40:$C$63,$B8,'Ergon Input'!$B$40:$B$63,$B$3,'Ergon Input'!$D$40:$D$63,$B$5)) -> 0 | G8: =IF('Control and Output Summary'!$C$14<>"Ergon",SUMIFS(INDEX('Import Expenditure Forecast'!$F$8:$P$79,,MATCH(G$7,'Import Expenditure Forecast'!$F$7:$P$7,0)),'Import Expenditure Forecast'!$C$8:$C$79,$B8,'Import Expenditure Forecast'!$E$8:$E$79,$C8,'Import Expenditure Forecast'!$B$8:$B$79,$B$3,'Import Expenditure Forecast'!$D$8:$D$79,$B$5),SUMIFS(INDEX('Ergon Input'!$F$40:$P$63,,MATCH(G$7,'Ergon Input'!$F$39:$P$39,0)),'Ergon Input'!$C$40:$C$63,$B8,'Ergon Input'!$B$40:$B$63,$B$3,'Ergon Input'!$D$40:$D$63,$B$5)) -> 0 | H8: =IF('Control and Output Summary'!$C$14<>"Ergon",SUMIFS(INDEX('Import Expenditure Forecast'!$F$8:$P$79,,MATCH(H$7,'Import Expenditure Forecast'!$F$7:$P$7,0)),'Import Expenditure Forecast'!$C$8:$C$79,$B8,'Import Expenditure Forecast'!$E$8:$E$79,$C8,'Import Expenditure Forecast'!$B$8:$B$79,$B$3,'Import Expenditure Forecast'!$D$8:$D$79,$B$5),SUMIFS(INDEX('Ergon Input'!$F$40:$P$63,,MATCH(H$7,'Ergon Input'!$F$39:$P$39,0)),'Ergon Input'!$C$40:$C$63,$B8,'Ergon Input'!$B$40:$B$63,$B$3,'Ergon Input'!$D$40:$D$63,$B$5)) -> 0 | I8: =IF('Control and Output Summary'!$C$14<>"Ergon",SUMIFS(INDEX('Import Expenditure Forecast'!$F$8:$P$79,,MATCH(I$7,'Import Expenditure Forecast'!$F$7:$P$7,0)),'Import Expenditure Forecast'!$C$8:$C$79,$B8,'Import Expenditure Forecast'!$E$8:$E$79,$C8,'Import Expenditure Forecast'!$B$8:$B$79,$B$3,'Import Expenditure Forecast'!$D$8:$D$79,$B$5),SUMIFS(INDEX('Ergon Input'!$F$40:$P$63,,MATCH(I$7,'Ergon Input'!$F$39:$P$39,0)),'Ergon Input'!$C$40:$C$63,$B8,'Ergon Input'!$B$40:$B$63,$B$3,'Ergon Input'!$D$40:$D$63,$B$5)) -> 0 | J8: =IF('Control and Output Summary'!$C$14<>"Ergon",SUMIFS(INDEX('Import Expenditure Forecast'!$F$8:$P$79,,MATCH(J$7,'Import Expenditure Forecast'!$F$7:$P$7,0)),'Import Expenditure Forecast'!$C$8:$C$79,$B8,'Import Expenditure Forecast'!$E$8:$E$79,$C8,'Import Expenditure Forecast'!$B$8:$B$79,$B$3,'Import Expenditure Forecast'!$D$8:$D$79,$B$5),SUMIFS(INDEX('Ergon Input'!$F$40:$P$63,,MATCH(J$7,'Ergon Input'!$F$39:$P$39,0)),'Ergon Input'!$C$40:$C$63,$B8,'Ergon Input'!$B$40:$B$63,$B$3,'Ergon Input'!$D$40:$D$63,$B$5)) -> 0 | K8: =IF('Control and Output Summary'!$C$14<>"Ergon",SUMIFS(INDEX('Import Expenditure Forecast'!$F$8:$P$79,,MATCH(K$7,'Import Expenditure Forecast'!$F$7:$P$7,0)),'Import Expenditure Forecast'!$C$8:$C$79,$B8,'Import Expenditure Forecast'!$E$8:$E$79,$C8,'Import Expenditure Forecast'!$B$8:$B$79,$B$3,'Import Expenditure Forecast'!$D$8:$D$79,$B$5),SUMIFS(INDEX('Ergon Input'!$F$40:$P$63,,MATCH(K$7,'Ergon Input'!$F$39:$P$39,0)),'Ergon Input'!$C$40:$C$63,$B8,'Ergon Input'!$B$40:$B$63,$B$3,'Ergon Input'!$D$40:$D$63,$B$5)) -> 0 | L8: =IF('Control and Output Summary'!$C$14<>"Ergon",SUMIFS(INDEX('Import Expenditure Forecast'!$F$8:$P$79,,MATCH(L$7,'Import Expenditure Forecast'!$F$7:$P$7,0)),'Import Expenditure Forecast'!$C$8:$C$79,$B8,'Import Expenditure Forecast'!$E$8:$E$79,$C8,'Import Expenditure Forecast'!$B$8:$B$79,$B$3,'Import Expenditure Forecast'!$D$8:$D$79,$B$5),SUMIFS(INDEX('Ergon Input'!$F$40:$P$63,,MATCH(L$7,'Ergon Input'!$F$39:$P$39,0)),'Ergon Input'!$C$40:$C$63,$B8,'Ergon Input'!$B$40:$B$63,$B$3,'Ergon Input'!$D$40:$D$63,$B$5)) -> 0 | M8: =IF('Control and Output Summary'!$C$14<>"Ergon",SUMIFS(INDEX('Import Expenditure Forecast'!$F$8:$P$79,,MATCH(M$7,'Import Expenditure Forecast'!$F$7:$P$7,0)),'Import Expenditure Forecast'!$C$8:$C$79,$B8,'Import Expenditure Forecast'!$E$8:$E$79,$C8,'Import Expenditure Forecast'!$B$8:$B$79,$B$3,'Import Expenditure Forecast'!$D$8:$D$79,$B$5),SUMIFS(INDEX('Ergon Input'!$F$40:$P$63,,MATCH(M$7,'Ergon Input'!$F$39:$P$39,0)),'Ergon Input'!$C$40:$C$63,$B8,'Ergon Input'!$B$40:$B$63,$B$3,'Ergon Input'!$D$40:$D$63,$B$5)) -> 0 | N8: =IF('Control and Output Summary'!$C$14<>"Ergon",SUMIFS(INDEX('Import Expenditure Forecast'!$F$8:$P$79,,MATCH(N$7,'Import Expenditure Forecast'!$F$7:$P$7,0)),'Import Expenditure Forecast'!$C$8:$C$79,$B8,'Import Expenditure Forecast'!$E$8:$E$79,$C8,'Import Expenditure Forecast'!$B$8:$B$79,$B$3,'Import Expenditure Forecast'!$D$8:$D$79,$B$5),SUMIFS(INDEX('Ergon Input'!$F$40:$P$63,,MATCH(N$7,'Ergon Input'!$F$39:$P$39,0)),'Ergon Input'!$C$40:$C$63,$B8,'Ergon Input'!$B$40:$B$63,$B$3,'Ergon Input'!$D$40:$D$63,$B$5)) -> 0
B9: LV Bus | C9: ='Control and Output Summary'!$C$14 -> West | D9: =IF('Control and Output Summary'!$C$14<>"Ergon",SUMIFS(INDEX('Import Expenditure Forecast'!$F$8:$P$79,,MATCH(D$7,'Import Expenditure Forecast'!$F$7:$P$7,0)),'Import Expenditure Forecast'!$C$8:$C$79,$B9,'Import Expenditure Forecast'!$E$8:$E$79,$C9,'Import Expenditure Forecast'!$B$8:$B$79,$B$3,'Import Expenditure Forecast'!$D$8:$D$79,$B$5),SUMIFS(INDEX('Ergon Input'!$F$40:$P$63,,MATCH(D$7,'Ergon Input'!$F$39:$P$39,0)),'Ergon Input'!$C$40:$C$63,$B9,'Ergon Input'!$B$40:$B$63,$B$3,'Ergon Input'!$D$40:$D$63,$B$5)) -> 0.45849595 | E9: =IF('Control and Output Summary'!$C$14<>"Ergon",SUMIFS(INDEX('Import Expenditure Forecast'!$F$8:$P$79,,MATCH(E$7,'Import Expenditure Forecast'!$F$7:$P$7,0)),'Import Expenditure Forecast'!$C$8:$C$79,$B9,'Import Expenditure Forecast'!$E$8:$E$79,$C9,'Import Expenditure Forecast'!$B$8:$B$79,$B$3,'Import Expenditure Forecast'!$D$8:$D$79,$B$5),SUMIFS(INDEX('Ergon Input'!$F$40:$P$63,,MATCH(E$7,'Ergon Input'!$F$39:$P$39,0)),'Ergon Input'!$C$40:$C$63,$B9,'Ergon Input'!$B$40:$B$63,$B$3,'Ergon Input'!$D$40:$D$63,$B$5)) -> 0 | F9: =IF('Control and Output Summary'!$C$14<>"Ergon",SUMIFS(INDEX('Import Expenditure Forecast'!$F$8:$P$79,,MATCH(F$7,'Import Expenditure Forecast'!$F$7:$P$7,0)),'Import Expenditure Forecast'!$C$8:$C$79,$B9,'Import Expenditure Forecast'!$E$8:$E$79,$C9,'Import Expenditure Forecast'!$B$8:$B$79,$B$3,'Import Expenditure Forecast'!$D$8:$D$79,$B$5),SUMIFS(INDEX('Ergon Input'!$F$40:$P$63,,MATCH(F$7,'Ergon Input'!$F$39:$P$39,0)),'Ergon Input'!$C$40:$C$63,$B9,'Ergon Input'!$B$40:$B$63,$B$3,'Ergon Input'!$D$40:$D$63,$B$5)) -> 0 | G9: =IF('Control and Output Summary'!$C$14<>"Ergon",SUMIFS(INDEX('Import Expenditure Forecast'!$F$8:$P$79,,MATCH(G$7,'Import Expenditure Forecast'!$F$7:$P$7,0)),'Import Expenditure Forecast'!$C$8:$C$79,$B9,'Import Expenditure Forecast'!$E$8:$E$79,$C9,'Import Expenditure Forecast'!$B$8:$B$79,$B$3,'Import Expenditure Forecast'!$D$8:$D$79,$B$5),SUMIFS(INDEX('Ergon Input'!$F$40:$P$63,,MATCH(G$7,'Ergon Input'!$F$39:$P$39,0)),'Ergon Input'!$C$40:$C$63,$B9,'Ergon Input'!$B$40:$B$63,$B$3,'Ergon Input'!$D$40:$D$63,$B$5)) -> 0 | H9: =IF('Control and Output Summary'!$C$14<>"Ergon",SUMIFS(INDEX('Import Expenditure Forecast'!$F$8:$P$79,,MATCH(H$7,'Import Expenditure Forecast'!$F$7:$P$7,0)),'Import Expenditure Forecast'!$C$8:$C$79,$B9,'Import Expenditure Forecast'!$E$8:$E$79,$C9,'Import Expenditure Forecast'!$B$8:$B$79,$B$3,'Import Expenditure Forecast'!$D$8:$D$79,$B$5),SUMIFS(INDEX('Ergon Input'!$F$40:$P$63,,MATCH(H$7,'Ergon Input'!$F$39:$P$39,0)),'Ergon Input'!$C$40:$C$63,$B9,'Ergon Input'!$B$40:$B$63,$B$3,'Ergon Input'!$D$40:$D$63,$B$5)) -> 0 | I9: =IF('Control and Output Summary'!$C$14<>"Ergon",SUMIFS(INDEX('Import Expenditure Forecast'!$F$8:$P$79,,MATCH(I$7,'Import Expenditure Forecast'!$F$7:$P$7,0)),'Import Expenditure Forecast'!$C$8:$C$79,$B9,'Import Expenditure Forecast'!$E$8:$E$79,$C9,'Import Expenditure Forecast'!$B$8:$B$79,$B$3,'Import Expenditure Forecast'!$D$8:$D$79,$B$5),SUMIFS(INDEX('Ergon Input'!$F$40:$P$63,,MATCH(I$7,'Ergon Input'!$F$39:$P$39,0)),'Ergon Input'!$C$40:$C$63,$B9,'Ergon Input'!$B$40:$B$63,$B$3,'Ergon Input'!$D$40:$D$63,$B$5)) -> 0 | J9: =IF('Control and Output Summary'!$C$14<>"Ergon",SUMIFS(INDEX('Import Expenditure Forecast'!$F$8:$P$79,,MATCH(J$7,'Import Expenditure Forecast'!$F$7:$P$7,0)),'Import Expenditure Forecast'!$C$8:$C$79,$B9,'Import Expenditure Forecast'!$E$8:$E$79,$C9,'Import Expenditure Forecast'!$B$8:$B$79,$B$3,'Import Expenditure Forecast'!$D$8:$D$79,$B$5),SUMIFS(INDEX('Ergon Input'!$F$40:$P$63,,MATCH(J$7,'Ergon Input'!$F$39:$P$39,0)),'Ergon Input'!$C$40:$C$63,$B9,'Ergon Input'!$B$40:$B$63,$B$3,'Ergon Input'!$D$40:$D$63,$B$5)) -> 0 | K9: =IF('Control and Output Summary'!$C$14<>"Ergon",SUMIFS(INDEX('Import Expenditure Forecast'!$F$8:$P$79,,MATCH(K$7,'Import Expenditure Forecast'!$F$7:$P$7,0)),'Import Expenditure Forecast'!$C$8:$C$79,$B9,'Import Expenditure Forecast'!$E$8:$E$79,$C9,'Import Expenditure Forecast'!$B$8:$B$79,$B$3,'Import Expenditure Forecast'!$D$8:$D$79,$B$5),SUMIFS(INDEX('Ergon Input'!$F$40:$P$63,,MATCH(K$7,'Ergon Input'!$F$39:$P$39,0)),'Ergon Input'!$C$40:$C$63,$B9,'Ergon Input'!$B$40:$B$63,$B$3,'Ergon Input'!$D$40:$D$63,$B$5)) -> 0 | L9: =IF('Control and Output Summary'!$C$14<>"Ergon",SUMIFS(INDEX('Import Expenditure Forecast'!$F$8:$P$79,,MATCH(L$7,'Import Expenditure Forecast'!$F$7:$P$7,0)),'Import Expenditure Forecast'!$C$8:$C$79,$B9,'Import Expenditure Forecast'!$E$8:$E$79,$C9,'Import Expenditure Forecast'!$B$8:$B$79,$B$3,'Import Expenditure Forecast'!$D$8:$D$79,$B$5),SUMIFS(INDEX('Ergon Input'!$F$40:$P$63,,MATCH(L$7,'Ergon Input'!$F$39:$P$39,0)),'Ergon Input'!$C$40:$C$63,$B9,'Ergon Input'!$B$40:$B$63,$B$3,'Ergon Input'!$D$40:$D$63,$B$5)) -> 0 | M9: =IF('Control and Output Summary'!$C$14<>"Ergon",SUMIFS(INDEX('Import Expenditure Forecast'!$F$8:$P$79,,MATCH(M$7,'Import Expenditure Forecast'!$F$7:$P$7,0)),'Import Expenditure Forecast'!$C$8:$C$79,$B9,'Import Expenditure Forecast'!$E$8:$E$79,$C9,'Import Expenditure Forecast'!$B$8:$B$79,$B$3,'Import Expenditure Forecast'!$D$8:$D$79,$B$5),SUMIFS(INDEX('Ergon Input'!$F$40:$P$63,,MATCH(M$7,'Ergon Input'!$F$39:$P$39,0)),'Ergon Input'!$C$40:$C$63,$B9,'Ergon Input'!$B$40:$B$63,$B$3,'Ergon Input'!$D$40:$D$63,$B$5)) -> 0 | N9: =IF('Control and Output Summary'!$C$14<>"Ergon",SUMIFS(INDEX('Import Expenditure Forecast'!$F$8:$P$79,,MATCH(N$7,'Import Expenditure Forecast'!$F$7:$P$7,0)),'Import Expenditure Forecast'!$C$8:$C$79,$B9,'Import Expenditure Forecast'!$E$8:$E$79,$C9,'Import Expenditure Forecast'!$B$8:$B$79,$B$3,'Import Expenditure Forecast'!$D$8:$D$79,$B$5),SUMIFS(INDEX('Ergon Input'!$F$40:$P$63,,MATCH(N$7,'Ergon Input'!$F$39:$P$39,0)),'Ergon Input'!$C$40:$C$63,$B9,'Ergon Input'!$B$40:$B$63,$B$3,'Ergon Input'!$D$40:$D$63,$B$5)) -> 0
B10: HV Line | C10: ='Control and Output Summary'!$C$14 -> West | D10: =IF('Control and Output Summary'!$C$14<>"Ergon",SUMIFS(INDEX('Import Expenditure Forecast'!$F$8:$P$79,,MATCH(D$7,'Import Expenditure Forecast'!$F$7:$P$7,0)),'Import Expenditure Forecast'!$C$8:$C$79,$B10,'Import Expenditure Forecast'!$E$8:$E$79,$C10,'Import Expenditure Forecast'!$B$8:$B$79,$B$3,'Import Expenditure Forecast'!$D$8:$D$79,$B$5),SUMIFS(INDEX('Ergon Input'!$F$40:$P$63,,MATCH(D$7,'Ergon Input'!$F$39:$P$39,0)),'Ergon Input'!$C$40:$C$63,$B10,'Ergon Input'!$B$40:$B$63,$B$3,'Ergon Input'!$D$40:$D$63,$B$5)) -> 0 | E10: =IF('Control and Output Summary'!$C$14<>"Ergon",SUMIFS(INDEX('Import Expenditure Forecast'!$F$8:$P$79,,MATCH(E$7,'Import Expenditure Forecast'!$F$7:$P$7,0)),'Import Expenditure Forecast'!$C$8:$C$79,$B10,'Import Expenditure Forecast'!$E$8:$E$79,$C10,'Import Expenditure Forecast'!$B$8:$B$79,$B$3,'Import Expenditure Forecast'!$D$8:$D$79,$B$5),SUMIFS(INDEX('Ergon Input'!$F$40:$P$63,,MATCH(E$7,'Ergon Input'!$F$39:$P$39,0)),'Ergon Input'!$C$40:$C$63,$B10,'Ergon Input'!$B$40:$B$63,$B$3,'Ergon Input'!$D$40:$D$63,$B$5)) -> 0 | F10: =IF('Control and Output Summary'!$C$14<>"Ergon",SUMIFS(INDEX('Import Expenditure Forecast'!$F$8:$P$79,,MATCH(F$7,'Import Expenditure Forecast'!$F$7:$P$7,0)),'Import Expenditure Forecast'!$C$8:$C$79,$B10,'Import Expenditure Forecast'!$E$8:$E$79,$C10,'Import Expenditure Forecast'!$B$8:$B$79,$B$3,'Import Expenditure Forecast'!$D$8:$D$79,$B$5),SUMIFS(INDEX('Ergon Input'!$F$40:$P$63,,MATCH(F$7,'Ergon Input'!$F$39:$P$39,0)),'Ergon Input'!$C$40:$C$63,$B10,'Ergon Input'!$B$40:$B$63,$B$3,'Ergon Input'!$D$40:$D$63,$B$5)) -> 0 | G10: =IF('Control and Output Summary'!$C$14<>"Ergon",SUMIFS(INDEX('Import Expenditure Forecast'!$F$8:$P$79,,MATCH(G$7,'Import Expenditure Forecast'!$F$7:$P$7,0)),'Import Expenditure Forecast'!$C$8:$C$79,$B10,'Import Expenditure Forecast'!$E$8:$E$79,$C10,'Import Expenditure Forecast'!$B$8:$B$79,$B$3,'Import Expenditure Forecast'!$D$8:$D$79,$B$5),SUMIFS(INDEX('Ergon Input'!$F$40:$P$63,,MATCH(G$7,'Ergon Input'!$F$39:$P$39,0)),'Ergon Input'!$C$40:$C$63,$B10,'Ergon Input'!$B$40:$B$63,$B$3,'Ergon Input'!$D$40:$D$63,$B$5)) -> 0.07177489429 | H10: =IF('Control and Output Summary'!$C$14<>"Ergon",SUMIFS(INDEX('Import Expenditure Forecast'!$F$8:$P$79,,MATCH(H$7,'Import Expenditure Forecast'!$F$7:$P$7,0)),'Import Expenditure Forecast'!$C$8:$C$79,$B10,'Import Expenditure Forecast'!$E$8:$E$79,$C10,'Import Expenditure Forecast'!$B$8:$B$79,$B$3,'Import Expenditure Forecast'!$D$8:$D$79,$B$5),SUMIFS(INDEX('Ergon Input'!$F$40:$P$63,,MATCH(H$7,'Ergon Input'!$F$39:$P$39,0)),'Ergon Input'!$C$40:$C$63,$B10,'Ergon Input'!$B$40:$B$63,$B$3,'Ergon Input'!$D$40:$D$63,$B$5)) -> 0 | I10: =IF('Control and Output Summary'!$C$14<>"Ergon",SUMIFS(INDEX('Import Expenditure Forecast'!$F$8:$P$79,,MATCH(I$7,'Import Expenditure Forecast'!$F$7:$P$7,0)),'Import Expenditure Forecast'!$C$8:$C$79,$B10,'Import Expenditure Forecast'!$E$8:$E$79,$C10,'Import Expenditure Forecast'!$B$8:$B$79,$B$3,'Import Expenditure Forecast'!$D$8:$D$79,$B$5),SUMIFS(INDEX('Ergon Input'!$F$40:$P$63,,MATCH(I$7,'Ergon Input'!$F$39:$P$39,0)),'Ergon Input'!$C$40:$C$63,$B10,'Ergon Input'!$B$40:$B$63,$B$3,'Ergon Input'!$D$40:$D$63,$B$5)) -> 0.1649309791 | J10: =IF('Control and Output Summary'!$C$14<>"Ergon",SUMIFS(INDEX('Import Expenditure Forecast'!$F$8:$P$79,,MATCH(J$7,'Import Expenditure Forecast'!$F$7:$P$7,0)),'Import Expenditure Forecast'!$C$8:$C$79,$B10,'Import Expenditure Forecast'!$E$8:$E$79,$C10,'Import Expenditure Forecast'!$B$8:$B$79,$B$3,'Import Expenditure Forecast'!$D$8:$D$79,$B$5),SUMIFS(INDEX('Ergon Input'!$F$40:$P$63,,MATCH(J$7,'Ergon Input'!$F$39:$P$39,0)),'Ergon Input'!$C$40:$C$63,$B10,'Ergon Input'!$B$40:$B$63,$B$3,'Ergon Input'!$D$40:$D$63,$B$5)) -> 0.3169950968 | K10: =IF('Control and Output Summary'!$C$14<>"Ergon",SUMIFS(INDEX('Import Expenditure Forecast'!$F$8:$P$79,,MATCH(K$7,'Import Expenditure Forecast'!$F$7:$P$7,0)),'Import Expenditure Forecast'!$C$8:$C$79,$B10,'Import Expenditure Forecast'!$E$8:$E$79,$C10,'Import Expenditure Forecast'!$B$8:$B$79,$B$3,'Import Expenditure Forecast'!$D$8:$D$79,$B$5),SUMIFS(INDEX('Ergon Input'!$F$40:$P$63,,MATCH(K$7,'Ergon Input'!$F$39:$P$39,0)),'Ergon Input'!$C$40:$C$63,$B10,'Ergon Input'!$B$40:$B$63,$B$3,'Ergon Input'!$D$40:$D$63,$B$5)) -> 0.4682921913 | L10: =IF('Control and Output Summary'!$C$14<>"Ergon",SUMIFS(INDEX('Import Expenditure Forecast'!$F$8:$P$79,,MATCH(L$7,'Import Expenditure Forecast'!$F$7:$P$7,0)),'Import Expenditure Forecast'!$C$8:$C$79,$B10,'Import Expenditure Forecast'!$E$8:$E$79,$C10,'Import Expenditure Forecast'!$B$8:$B$79,$B$3,'Import Expenditure Forecast'!$D$8:$D$79,$B$5),SUMIFS(INDEX('Ergon Input'!$F$40:$P$63,,MATCH(L$7,'Ergon Input'!$F$39:$P$39,0)),'Ergon Input'!$C$40:$C$63,$B10,'Ergon Input'!$B$40:$B$63,$B$3,'Ergon Input'!$D$40:$D$63,$B$5)) -> 0.3167394224 | M10: =IF('Control and Output Summary'!$C$14<>"Ergon",SUMIFS(INDEX('Import Expenditure Forecast'!$F$8:$P$79,,MATCH(M$7,'Import Expenditure Forecast'!$F$7:$P$7,0)),'Import Expenditure Forecast'!$C$8:$C$79,$B10,'Import Expenditure Forecast'!$E$8:$E$79,$C10,'Import Expenditure Forecast'!$B$8:$B$79,$B$3,'Import Expenditure Forecast'!$D$8:$D$79,$B$5),SUMIFS(INDEX('Ergon Input'!$F$40:$P$63,,MATCH(M$7,'Ergon Input'!$F$39:$P$39,0)),'Ergon Input'!$C$40:$C$63,$B10,'Ergon Input'!$B$40:$B$63,$B$3,'Ergon Input'!$D$40:$D$63,$B$5)) -> 0.3167394224 | N10: =IF('Control and Output Summary'!$C$14<>"Ergon",SUMIFS(INDEX('Import Expenditure Forecast'!$F$8:$P$79,,MATCH(N$7,'Import Expenditure Forecast'!$F$7:$P$7,0)),'Import Expenditure Forecast'!$C$8:$C$79,$B10,'Import Expenditure Forecast'!$E$8:$E$79,$C10,'Import Expenditure Forecast'!$B$8:$B$79,$B$3,'Import Expenditure Forecast'!$D$8:$D$79,$B$5),SUMIFS(INDEX('Ergon Input'!$F$40:$P$63,,MATCH(N$7,'Ergon Input'!$F$39:$P$39,0)),'Ergon Input'!$C$40:$C$63,$B10,'Ergon Input'!$B$40:$B$63,$B$3,'Ergon Input'!$D$40:$D$63,$B$5)) -> 0.3167394224
B11: HV Bus | C11: ='Control and Output Summary'!$C$14 -> West | D11: =IF('Control and Output Summary'!$C$14<>"Ergon",SUMIFS(INDEX('Import Expenditure Forecast'!$F$8:$P$79,,MATCH(D$7,'Import Expenditure Forecast'!$F$7:$P$7,0)),'Import Expenditure Forecast'!$C$8:$C$79,$B11,'Import Expenditure Forecast'!$E$8:$E$79,$C11,'Import Expenditure Forecast'!$B$8:$B$79,$B$3,'Import Expenditure Forecast'!$D$8:$D$79,$B$5),SUMIFS(INDEX('Ergon Input'!$F$40:$P$63,,MATCH(D$7,'Ergon Input'!$F$39:$P$39,0)),'Ergon Input'!$C$40:$C$63,$B11,'Ergon Input'!$B$40:$B$63,$B$3,'Ergon Input'!$D$40:$D$63,$B$5)) -> 0.8027118328 | E11: =IF('Control and Output Summary'!$C$14<>"Ergon",SUMIFS(INDEX('Import Expenditure Forecast'!$F$8:$P$79,,MATCH(E$7,'Import Expenditure Forecast'!$F$7:$P$7,0)),'Import Expenditure Forecast'!$C$8:$C$79,$B11,'Import Expenditure Forecast'!$E$8:$E$79,$C11,'Import Expenditure Forecast'!$B$8:$B$79,$B$3,'Import Expenditure Forecast'!$D$8:$D$79,$B$5),SUMIFS(INDEX('Ergon Input'!$F$40:$P$63,,MATCH(E$7,'Ergon Input'!$F$39:$P$39,0)),'Ergon Input'!$C$40:$C$63,$B11,'Ergon Input'!$B$40:$B$63,$B$3,'Ergon Input'!$D$40:$D$63,$B$5)) -> 1.128017636 | F11: =IF('Control and Output Summary'!$C$14<>"Ergon",SUMIFS(INDEX('Import Expenditure Forecast'!$F$8:$P$79,,MATCH(F$7,'Import Expenditure Forecast'!$F$7:$P$7,0)),'Import Expenditure Forecast'!$C$8:$C$79,$B11,'Import Expenditure Forecast'!$E$8:$E$79,$C11,'Import Expenditure Forecast'!$B$8:$B$79,$B$3,'Import Expenditure Forecast'!$D$8:$D$79,$B$5),SUMIFS(INDEX('Ergon Input'!$F$40:$P$63,,MATCH(F$7,'Ergon Input'!$F$39:$P$39,0)),'Ergon Input'!$C$40:$C$63,$B11,'Ergon Input'!$B$40:$B$63,$B$3,'Ergon Input'!$D$40:$D$63,$B$5)) -> 3.612391552 | G11: =IF('Control and Output Summary'!$C$14<>"Ergon",SUMIFS(INDEX('Import Expenditure Forecast'!$F$8:$P$79,,MATCH(G$7,'Import Expenditure Forecast'!$F$7:$P$7,0)),'Import Expenditure Forecast'!$C$8:$C$79,$B11,'Import Expenditure Forecast'!$E$8:$E$79,$C11,'Import Expenditure Forecast'!$B$8:$B$79,$B$3,'Import Expenditure Forecast'!$D$8:$D$79,$B$5),SUMIFS(INDEX('Ergon Input'!$F$40:$P$63,,MATCH(G$7,'Ergon Input'!$F$39:$P$39,0)),'Ergon Input'!$C$40:$C$63,$B11,'Ergon Input'!$B$40:$B$63,$B$3,'Ergon Input'!$D$40:$D$63,$B$5)) -> 5.794549378 | H11: =IF('Control and Output Summary'!$C$14<>"Ergon",SUMIFS(INDEX('Import Expenditure Forecast'!$F$8:$P$79,,MATCH(H$7,'Import Expenditure Forecast'!$F$7:$P$7,0)),'Import Expenditure Forecast'!$C$8:$C$79,$B11,'Import Expenditure Forecast'!$E$8:$E$79,$C11,'Import Expenditure Forecast'!$B$8:$B$79,$B$3,'Import Expenditure Forecast'!$D$8:$D$79,$B$5),SUMIFS(INDEX('Ergon Input'!$F$40:$P$63,,MATCH(H$7,'Ergon Input'!$F$39:$P$39,0)),'Ergon Input'!$C$40:$C$63,$B11,'Ergon Input'!$B$40:$B$63,$B$3,'Ergon Input'!$D$40:$D$63,$B$5)) -> 5.792992649 | I11: =IF('Control and Output Summary'!$C$14<>"Ergon",SUMIFS(INDEX('Import Expenditure Forecast'!$F$8:$P$79,,MATCH(I$7,'Import Expenditure Forecast'!$F$7:$P$7,0)),'Import Expenditure Forecast'!$C$8:$C$79,$B11,'Import Expenditure Forecast'!$E$8:$E$79,$C11,'Import Expenditure Forecast'!$B$8:$B$79,$B$3,'Import Expenditure Forecast'!$D$8:$D$79,$B$5),SUMIFS(INDEX('Ergon Input'!$F$40:$P$63,,MATCH(I$7,'Ergon Input'!$F$39:$P$39,0)),'Ergon Input'!$C$40:$C$63,$B11,'Ergon Input'!$B$40:$B$63,$B$3,'Ergon Input'!$D$40:$D$63,$B$5)) -> 6.264994551 | J11: =IF('Control and Output Summary'!$C$14<>"Ergon",SUMIFS(INDEX('Import Expenditure Forecast'!$F$8:$P$79,,MATCH(J$7,'Import Expenditure Forecast'!$F$7:$P$7,0)),'Import Expenditure Forecast'!$C$8:$C$79,$B11,'Import Expenditure Forecast'!$E$8:$E$79,$C11,'Import Expenditure Forecast'!$B$8:$B$79,$B$3,'Import Expenditure Forecast'!$D$8:$D$79,$B$5),SUMIFS(INDEX('Ergon Input'!$F$40:$P$63,,MATCH(J$7,'Ergon Input'!$F$39:$P$39,0)),'Ergon Input'!$C$40:$C$63,$B11,'Ergon Input'!$B$40:$B$63,$B$3,'Ergon Input'!$D$40:$D$63,$B$5)) -> 6.742204299 | K11: =IF('Control and Output Summary'!$C$14<>"Ergon",SUMIFS(INDEX('Import Expenditure Forecast'!$F$8:$P$79,,MATCH(K$7,'Import Expenditure Forecast'!$F$7:$P$7,0)),'Import Expenditure Forecast'!$C$8:$C$79,$B11,'Import Expenditure Forecast'!$E$8:$E$79,$C11,'Import Expenditure Forecast'!$B$8:$B$79,$B$3,'Import Expenditure Forecast'!$D$8:$D$79,$B$5),SUMIFS(INDEX('Ergon Input'!$F$40:$P$63,,MATCH(K$7,'Ergon Input'!$F$39:$P$39,0)),'Ergon Input'!$C$40:$C$63,$B11,'Ergon Input'!$B$40:$B$63,$B$3,'Ergon Input'!$D$40:$D$63,$B$5)) -> 7.238660423 | L11: =IF('Control and Output Summary'!$C$14<>"Ergon",SUMIFS(INDEX('Import Expenditure Forecast'!$F$8:$P$79,,MATCH(L$7,'Import Expenditure Forecast'!$F$7:$P$7,0)),'Import Expenditure Forecast'!$C$8:$C$79,$B11,'Import Expenditure Forecast'!$E$8:$E$79,$C11,'Import Expenditure Forecast'!$B$8:$B$79,$B$3,'Import Expenditure Forecast'!$D$8:$D$79,$B$5),SUMIFS(INDEX('Ergon Input'!$F$40:$P$63,,MATCH(L$7,'Ergon Input'!$F$39:$P$39,0)),'Ergon Input'!$C$40:$C$63,$B11,'Ergon Input'!$B$40:$B$63,$B$3,'Ergon Input'!$D$40:$D$63,$B$5)) -> 6.748619758 | M11: =IF('Control and Output Summary'!$C$14<>"Ergon",SUMIFS(INDEX('Import Expenditure Forecast'!$F$8:$P$79,,MATCH(M$7,'Import Expenditure Forecast'!$F$7:$P$7,0)),'Import Expenditure Forecast'!$C$8:$C$79,$B11,'Import Expenditure Forecast'!$E$8:$E$79,$C11,'Import Expenditure Forecast'!$B$8:$B$79,$B$3,'Import Expenditure Forecast'!$D$8:$D$79,$B$5),SUMIFS(INDEX('Ergon Input'!$F$40:$P$63,,MATCH(M$7,'Ergon Input'!$F$39:$P$39,0)),'Ergon Input'!$C$40:$C$63,$B11,'Ergon Input'!$B$40:$B$63,$B$3,'Ergon Input'!$D$40:$D$63,$B$5)) -> 6.748619758 | N11: =IF('Control and Output Summary'!$C$14<>"Ergon",SUMIFS(INDEX('Import Expenditure Forecast'!$F$8:$P$79,,MATCH(N$7,'Import Expenditure Forecast'!$F$7:$P$7,0)),'Import Expenditure Forecast'!$C$8:$C$79,$B11,'Import Expenditure Forecast'!$E$8:$E$79,$C11,'Import Expenditure Forecast'!$B$8:$B$79,$B$3,'Import Expenditure Forecast'!$D$8:$D$79,$B$5),SUMIFS(INDEX('Ergon Input'!$F$40:$P$63,,MATCH(N$7,'Ergon Input'!$F$39:$P$39,0)),'Ergon Input'!$C$40:$C$63,$B11,'Ergon Input'!$B$40:$B$63,$B$3,'Ergon Input'!$D$40:$D$63,$B$5)) -> 6.748619758
B12: ST 33/66 kv | C12: ='Control and Output Summary'!$C$14 -> West | D12: =IF('Control and Output Summary'!$C$14<>"Ergon",SUMIFS(INDEX('Import Expenditure Forecast'!$F$8:$P$79,,MATCH(D$7,'Import Expenditure Forecast'!$F$7:$P$7,0)),'Import Expenditure Forecast'!$C$8:$C$79,$B12,'Import Expenditure Forecast'!$E$8:$E$79,$C12,'Import Expenditure Forecast'!$B$8:$B$79,$B$3,'Import Expenditure Forecast'!$D$8:$D$79,$B$5),SUMIFS(INDEX('Ergon Input'!$F$40:$P$63,,MATCH(D$7,'Ergon Input'!$F$39:$P$39,0)),'Ergon Input'!$C$40:$C$63,$B12,'Ergon Input'!$B$40:$B$63,$B$3,'Ergon Input'!$D$40:$D$63,$B$5)) -> 0.863442396 | E12: =IF('Control and Output Summary'!$C$14<>"Ergon",SUMIFS(INDEX('Import Expenditure Forecast'!$F$8:$P$79,,MATCH(E$7,'Import Expenditure Forecast'!$F$7:$P$7,0)),'Import Expenditure Forecast'!$C$8:$C$79,$B12,'Import Expenditure Forecast'!$E$8:$E$79,$C12,'Import Expenditure Forecast'!$B$8:$B$79,$B$3,'Import Expenditure Forecast'!$D$8:$D$79,$B$5),SUMIFS(INDEX('Ergon Input'!$F$40:$P$63,,MATCH(E$7,'Ergon Input'!$F$39:$P$39,0)),'Ergon Input'!$C$40:$C$63,$B12,'Ergon Input'!$B$40:$B$63,$B$3,'Ergon Input'!$D$40:$D$63,$B$5)) -> 0.03085145331 | F12: =IF('Control and Output Summary'!$C$14<>"Ergon",SUMIFS(INDEX('Import Expenditure Forecast'!$F$8:$P$79,,MATCH(F$7,'Import Expenditure Forecast'!$F$7:$P$7,0)),'Import Expenditure Forecast'!$C$8:$C$79,$B12,'Import Expenditure Forecast'!$E$8:$E$79,$C12,'Import Expenditure Forecast'!$B$8:$B$79,$B$3,'Import Expenditure Forecast'!$D$8:$D$79,$B$5),SUMIFS(INDEX('Ergon Input'!$F$40:$P$63,,MATCH(F$7,'Ergon Input'!$F$39:$P$39,0)),'Ergon Input'!$C$40:$C$63,$B12,'Ergon Input'!$B$40:$B$63,$B$3,'Ergon Input'!$D$40:$D$63,$B$5)) -> 0 | G12: =IF('Control and Output Summary'!$C$14<>"Ergon",SUMIFS(INDEX('Import Expenditure Forecast'!$F$8:$P$79,,MATCH(G$7,'Import Expenditure Forecast'!$F$7:$P$7,0)),'Import Expenditure Forecast'!$C$8:$C$79,$B12,'Import Expenditure Forecast'!$E$8:$E$79,$C12,'Import Expenditure Forecast'!$B$8:$B$79,$B$3,'Import Expenditure Forecast'!$D$8:$D$79,$B$5),SUMIFS(INDEX('Ergon Input'!$F$40:$P$63,,MATCH(G$7,'Ergon Input'!$F$39:$P$39,0)),'Ergon Input'!$C$40:$C$63,$B12,'Ergon Input'!$B$40:$B$63,$B$3,'Ergon Input'!$D$40:$D$63,$B$5)) -> 0 | H12: =IF('Control and Output Summary'!$C$14<>"Ergon",SUMIFS(INDEX('Import Expenditure Forecast'!$F$8:$P$79,,MATCH(H$7,'Import Expenditure Forecast'!$F$7:$P$7,0)),'Import Expenditure Forecast'!$C$8:$C$79,$B12,'Import Expenditure Forecast'!$E$8:$E$79,$C12,'Import Expenditure Forecast'!$B$8:$B$79,$B$3,'Import Expenditure Forecast'!$D$8:$D$79,$B$5),SUMIFS(INDEX('Ergon Input'!$F$40:$P$63,,MATCH(H$7,'Ergon Input'!$F$39:$P$39,0)),'Ergon Input'!$C$40:$C$63,$B12,'Ergon Input'!$B$40:$B$63,$B$3,'Ergon Input'!$D$40:$D$63,$B$5)) -> 0 | I12: =IF('Control and Output Summary'!$C$14<>"Ergon",SUMIFS(INDEX('Import Expenditure Forecast'!$F$8:$P$79,,MATCH(I$7,'Import Expenditure Forecast'!$F$7:$P$7,0)),'Import Expenditure Forecast'!$C$8:$C$79,$B12,'Import Expenditure Forecast'!$E$8:$E$79,$C12,'Import Expenditure Forecast'!$B$8:$B$79,$B$3,'Import Expenditure Forecast'!$D$8:$D$79,$B$5),SUMIFS(INDEX('Ergon Input'!$F$40:$P$63,,MATCH(I$7,'Ergon Input'!$F$39:$P$39,0)),'Ergon Input'!$C$40:$C$63,$B12,'Ergon Input'!$B$40:$B$63,$B$3,'Ergon Input'!$D$40:$D$63,$B$5)) -> 0 | J12: =IF('Control and Output Summary'!$C$14<>"Ergon",SUMIFS(INDEX('Import Expenditure Forecast'!$F$8:$P$79,,MATCH(J$7,'Import Expenditure Forecast'!$F$7:$P$7,0)),'Import Expenditure Forecast'!$C$8:$C$79,$B12,'Import Expenditure Forecast'!$E$8:$E$79,$C12,'Import Expenditure Forecast'!$B$8:$B$79,$B$3,'Import Expenditure Forecast'!$D$8:$D$79,$B$5),SUMIFS(INDEX('Ergon Input'!$F$40:$P$63,,MATCH(J$7,'Ergon Input'!$F$39:$P$39,0)),'Ergon Input'!$C$40:$C$63,$B12,'Ergon Input'!$B$40:$B$63,$B$3,'Ergon Input'!$D$40:$D$63,$B$5)) -> 0 | K12: =IF('Control and Output Summary'!$C$14<>"Ergon",SUMIFS(INDEX('Import Expenditure Forecast'!$F$8:$P$79,,MATCH(K$7,'Import Expenditure Forecast'!$F$7:$P$7,0)),'Import Expenditure Forecast'!$C$8:$C$79,$B12,'Import Expenditure Forecast'!$E$8:$E$79,$C12,'Import Expenditure Forecast'!$B$8:$B$79,$B$3,'Import Expenditure Forecast'!$D$8:$D$79,$B$5),SUMIFS(INDEX('Ergon Input'!$F$40:$P$63,,MATCH(K$7,'Ergon Input'!$F$39:$P$39,0)),'Ergon Input'!$C$40:$C$63,$B12,'Ergon Input'!$B$40:$B$63,$B$3,'Ergon Input'!$D$40:$D$63,$B$5)) -> 0 | L12: =IF('Control and Output Summary'!$C$14<>"Ergon",SUMIFS(INDEX('Import Expenditure Forecast'!$F$8:$P$79,,MATCH(L$7,'Import Expenditure Forecast'!$F$7:$P$7,0)),'Import Expenditure Forecast'!$C$8:$C$79,$B12,'Import Expenditure Forecast'!$E$8:$E$79,$C12,'Import Expenditure Forecast'!$B$8:$B$79,$B$3,'Import Expenditure Forecast'!$D$8:$D$79,$B$5),SUMIFS(INDEX('Ergon Input'!$F$40:$P$63,,MATCH(L$7,'Ergon Input'!$F$39:$P$39,0)),'Ergon Input'!$C$40:$C$63,$B12,'Ergon Input'!$B$40:$B$63,$B$3,'Ergon Input'!$D$40:$D$63,$B$5)) -> 0 | M12: =IF('Control and Output Summary'!$C$14<>"Ergon",SUMIFS(INDEX('Import Expenditure Forecast'!$F$8:$P$79,,MATCH(M$7,'Import Expenditure Forecast'!$F$7:$P$7,0)),'Import Expenditure Forecast'!$C$8:$C$79,$B12,'Import Expenditure Forecast'!$E$8:$E$79,$C12,'Import Expenditure Forecast'!$B$8:$B$79,$B$3,'Import Expenditure Forecast'!$D$8:$D$79,$B$5),SUMIFS(INDEX('Ergon Input'!$F$40:$P$63,,MATCH(M$7,'Ergon Input'!$F$39:$P$39,0)),'Ergon Input'!$C$40:$C$63,$B12,'Ergon Input'!$B$40:$B$63,$B$3,'Ergon Input'!$D$40:$D$63,$B$5)) -> 0 | N12: =IF('Control and Output Summary'!$C$14<>"Ergon",SUMIFS(INDEX('Import Expenditure Forecast'!$F$8:$P$79,,MATCH(N$7,'Import Expenditure Forecast'!$F$7:$P$7,0)),'Import Expenditure Forecast'!$C$8:$C$79,$B12,'Import Expenditure Forecast'!$E$8:$E$79,$C12,'Import Expenditure Forecast'!$B$8:$B$79,$B$3,'Import Expenditure Forecast'!$D$8:$D$79,$B$5),SUMIFS(INDEX('Ergon Input'!$F$40:$P$63,,MATCH(N$7,'Ergon Input'!$F$39:$P$39,0)),'Ergon Input'!$C$40:$C$63,$B12,'Ergon Input'!$B$40:$B$63,$B$3,'Ergon Input'!$D$40:$D$63,$B$5)) -> 0
B13: ST 110/132 kv | C13: ='Control and Output Summary'!$C$14 -> West | D13: =IF('Control and Output Summary'!$C$14<>"Ergon",SUMIFS(INDEX('Import Expenditure Forecast'!$F$8:$P$79,,MATCH(D$7,'Import Expenditure Forecast'!$F$7:$P$7,0)),'Import Expenditure Forecast'!$C$8:$C$79,$B13,'Import Expenditure Forecast'!$E$8:$E$79,$C13,'Import Expenditure Forecast'!$B$8:$B$79,$B$3,'Import Expenditure Forecast'!$D$8:$D$79,$B$5),SUMIFS(INDEX('Ergon Input'!$F$40:$P$63,,MATCH(D$7,'Ergon Input'!$F$39:$P$39,0)),'Ergon Input'!$C$40:$C$63,$B13,'Ergon Input'!$B$40:$B$63,$B$3,'Ergon Input'!$D$40:$D$63,$B$5)) -> 0.8353258909 | E13: =IF('Control and Output Summary'!$C$14<>"Ergon",SUMIFS(INDEX('Import Expenditure Forecast'!$F$8:$P$79,,MATCH(E$7,'Import Expenditure Forecast'!$F$7:$P$7,0)),'Import Expenditure Forecast'!$C$8:$C$79,$B13,'Import Expenditure Forecast'!$E$8:$E$79,$C13,'Import Expenditure Forecast'!$B$8:$B$79,$B$3,'Import Expenditure Forecast'!$D$8:$D$79,$B$5),SUMIFS(INDEX('Ergon Input'!$F$40:$P$63,,MATCH(E$7,'Ergon Input'!$F$39:$P$39,0)),'Ergon Input'!$C$40:$C$63,$B13,'Ergon Input'!$B$40:$B$63,$B$3,'Ergon Input'!$D$40:$D$63,$B$5)) -> 0.003859399571 | F13: =IF('Control and Output Summary'!$C$14<>"Ergon",SUMIFS(INDEX('Import Expenditure Forecast'!$F$8:$P$79,,MATCH(F$7,'Import Expenditure Forecast'!$F$7:$P$7,0)),'Import Expenditure Forecast'!$C$8:$C$79,$B13,'Import Expenditure Forecast'!$E$8:$E$79,$C13,'Import Expenditure Forecast'!$B$8:$B$79,$B$3,'Import Expenditure Forecast'!$D$8:$D$79,$B$5),SUMIFS(INDEX('Ergon Input'!$F$40:$P$63,,MATCH(F$7,'Ergon Input'!$F$39:$P$39,0)),'Ergon Input'!$C$40:$C$63,$B13,'Ergon Input'!$B$40:$B$63,$B$3,'Ergon Input'!$D$40:$D$63,$B$5)) -> 0.008731879681 | G13: =IF('Control and Output Summary'!$C$14<>"Ergon",SUMIFS(INDEX('Import Expenditure Forecast'!$F$8:$P$79,,MATCH(G$7,'Import Expenditure Forecast'!$F$7:$P$7,0)),'Import Expenditure Forecast'!$C$8:$C$79,$B13,'Import Expenditure Forecast'!$E$8:$E$79,$C13,'Import Expenditure Forecast'!$B$8:$B$79,$B$3,'Import Expenditure Forecast'!$D$8:$D$79,$B$5),SUMIFS(INDEX('Ergon Input'!$F$40:$P$63,,MATCH(G$7,'Ergon Input'!$F$39:$P$39,0)),'Ergon Input'!$C$40:$C$63,$B13,'Ergon Input'!$B$40:$B$63,$B$3,'Ergon Input'!$D$40:$D$63,$B$5)) -> 0.2247370469 | H13: =IF('Control and Output Summary'!$C$14<>"Ergon",SUMIFS(INDEX('Import Expenditure Forecast'!$F$8:$P$79,,MATCH(H$7,'Import Expenditure Forecast'!$F$7:$P$7,0)),'Import Expenditure Forecast'!$C$8:$C$79,$B13,'Import Expenditure Forecast'!$E$8:$E$79,$C13,'Import Expenditure Forecast'!$B$8:$B$79,$B$3,'Import Expenditure Forecast'!$D$8:$D$79,$B$5),SUMIFS(INDEX('Ergon Input'!$F$40:$P$63,,MATCH(H$7,'Ergon Input'!$F$39:$P$39,0)),'Ergon Input'!$C$40:$C$63,$B13,'Ergon Input'!$B$40:$B$63,$B$3,'Ergon Input'!$D$40:$D$63,$B$5)) -> 1.496826489 | I13: =IF('Control and Output Summary'!$C$14<>"Ergon",SUMIFS(INDEX('Import Expenditure Forecast'!$F$8:$P$79,,MATCH(I$7,'Import Expenditure Forecast'!$F$7:$P$7,0)),'Import Expenditure Forecast'!$C$8:$C$79,$B13,'Import Expenditure Forecast'!$E$8:$E$79,$C13,'Import Expenditure Forecast'!$B$8:$B$79,$B$3,'Import Expenditure Forecast'!$D$8:$D$79,$B$5),SUMIFS(INDEX('Ergon Input'!$F$40:$P$63,,MATCH(I$7,'Ergon Input'!$F$39:$P$39,0)),'Ergon Input'!$C$40:$C$63,$B13,'Ergon Input'!$B$40:$B$63,$B$3,'Ergon Input'!$D$40:$D$63,$B$5)) -> 1.383261863 | J13: =IF('Control and Output Summary'!$C$14<>"Ergon",SUMIFS(INDEX('Import Expenditure Forecast'!$F$8:$P$79,,MATCH(J$7,'Import Expenditure Forecast'!$F$7:$P$7,0)),'Import Expenditure Forecast'!$C$8:$C$79,$B13,'Import Expenditure Forecast'!$E$8:$E$79,$C13,'Import Expenditure Forecast'!$B$8:$B$79,$B$3,'Import Expenditure Forecast'!$D$8:$D$79,$B$5),SUMIFS(INDEX('Ergon Input'!$F$40:$P$63,,MATCH(J$7,'Ergon Input'!$F$39:$P$39,0)),'Ergon Input'!$C$40:$C$63,$B13,'Ergon Input'!$B$40:$B$63,$B$3,'Ergon Input'!$D$40:$D$63,$B$5)) -> 0.532341538 | K13: =IF('Control and Output Summary'!$C$14<>"Ergon",SUMIFS(INDEX('Import Expenditure Forecast'!$F$8:$P$79,,MATCH(K$7,'Import Expenditure Forecast'!$F$7:$P$7,0)),'Import Expenditure Forecast'!$C$8:$C$79,$B13,'Import Expenditure Forecast'!$E$8:$E$79,$C13,'Import Expenditure Forecast'!$B$8:$B$79,$B$3,'Import Expenditure Forecast'!$D$8:$D$79,$B$5),SUMIFS(INDEX('Ergon Input'!$F$40:$P$63,,MATCH(K$7,'Ergon Input'!$F$39:$P$39,0)),'Ergon Input'!$C$40:$C$63,$B13,'Ergon Input'!$B$40:$B$63,$B$3,'Ergon Input'!$D$40:$D$63,$B$5)) -> 19.31013823 | L13: =IF('Control and Output Summary'!$C$14<>"Ergon",SUMIFS(INDEX('Import Expenditure Forecast'!$F$8:$P$79,,MATCH(L$7,'Import Expenditure Forecast'!$F$7:$P$7,0)),'Import Expenditure Forecast'!$C$8:$C$79,$B13,'Import Expenditure Forecast'!$E$8:$E$79,$C13,'Import Expenditure Forecast'!$B$8:$B$79,$B$3,'Import Expenditure Forecast'!$D$8:$D$79,$B$5),SUMIFS(INDEX('Ergon Input'!$F$40:$P$63,,MATCH(L$7,'Ergon Input'!$F$39:$P$39,0)),'Ergon Input'!$C$40:$C$63,$B13,'Ergon Input'!$B$40:$B$63,$B$3,'Ergon Input'!$D$40:$D$63,$B$5)) -> 7.075247212 | M13: =IF('Control and Output Summary'!$C$14<>"Ergon",SUMIFS(INDEX('Import Expenditure Forecast'!$F$8:$P$79,,MATCH(M$7,'Import Expenditure Forecast'!$F$7:$P$7,0)),'Import Expenditure Forecast'!$C$8:$C$79,$B13,'Import Expenditure Forecast'!$E$8:$E$79,$C13,'Import Expenditure Forecast'!$B$8:$B$79,$B$3,'Import Expenditure Forecast'!$D$8:$D$79,$B$5),SUMIFS(INDEX('Ergon Input'!$F$40:$P$63,,MATCH(M$7,'Ergon Input'!$F$39:$P$39,0)),'Ergon Input'!$C$40:$C$63,$B13,'Ergon Input'!$B$40:$B$63,$B$3,'Ergon Input'!$D$40:$D$63,$B$5)) -> 7.075247212 | N13: =IF('Control and Output Summary'!$C$14<>"Ergon",SUMIFS(INDEX('Import Expenditure Forecast'!$F$8:$P$79,,MATCH(N$7,'Import Expenditure Forecast'!$F$7:$P$7,0)),'Import Expenditure Forecast'!$C$8:$C$79,$B13,'Import Expenditure Forecast'!$E$8:$E$79,$C13,'Import Expenditure Forecast'!$B$8:$B$79,$B$3,'Import Expenditure Forecast'!$D$8:$D$79,$B$5),SUMIFS(INDEX('Ergon Input'!$F$40:$P$63,,MATCH(N$7,'Ergon Input'!$F$39:$P$39,0)),'Ergon Input'!$C$40:$C$63,$B13,'Ergon Input'!$B$40:$B$63,$B$3,'Ergon Input'!$D$40:$D$63,$B$5)) -> 7.075247212
B16: Replacement
B18: Voltage Level | C18: Pricing Zone | D18: =D$7 -> 2023 | E18: =E$7 -> 2024 | F18: 2025 | G18: 2026 | H18: 2027 | I18: 2028 | J18: 2029 | K18: 2030 | L18: 2031 | M18: 2032 | N18: 2033
B19: LV Line | C19: ='Control and Output Summary'!$C$14 -> West | D19: =IF('Control and Output Summary'!$C$14<>"Ergon",SUMIFS(INDEX('Import Expenditure Forecast'!$F$8:$P$79,,MATCH(D$18,'Import Expenditure Forecast'!$F$7:$P$7,0)),'Import Expenditure Forecast'!$C$8:$C$79,$B19,'Import Expenditure Forecast'!$E$8:$E$79,$C19,'Import Expenditure Forecast'!$B$8:$B$79,$B$3,'Import Expenditure Forecast'!$D$8:$D$79,$B$16),SUMIFS(INDEX('Ergon Input'!$F$40:$P$63,,MATCH(D$18,'Ergon Input'!$F$39:$P$39,0)),'Ergon Input'!$C$40:$C$63,$B19,'Ergon Input'!$B$40:$B$63,$B$3,'Ergon Input'!$D$40:$D$63,$B$16)) -> 0 | E19: =IF('Control and Output Summary'!$C$14<>"Ergon",SUMIFS(INDEX('Import Expenditure Forecast'!$F$8:$P$79,,MATCH(E$18,'Import Expenditure Forecast'!$F$7:$P$7,0)),'Import Expenditure Forecast'!$C$8:$C$79,$B19,'Import Expenditure Forecast'!$E$8:$E$79,$C19,'Import Expenditure Forecast'!$B$8:$B$79,$B$3,'Import Expenditure Forecast'!$D$8:$D$79,$B$16),SUMIFS(INDEX('Ergon Input'!$F$40:$P$63,,MATCH(E$18,'Ergon Input'!$F$39:$P$39,0)),'Ergon Input'!$C$40:$C$63,$B19,'Ergon Input'!$B$40:$B$63,$B$3,'Ergon Input'!$D$40:$D$63,$B$16)) -> 0 | F19: =IF('Control and Output Summary'!$C$14<>"Ergon",SUMIFS(INDEX('Import Expenditure Forecast'!$F$8:$P$79,,MATCH(F$18,'Import Expenditure Forecast'!$F$7:$P$7,0)),'Import Expenditure Forecast'!$C$8:$C$79,$B19,'Import Expenditure Forecast'!$E$8:$E$79,$C19,'Import Expenditure Forecast'!$B$8:$B$79,$B$3,'Import Expenditure Forecast'!$D$8:$D$79,$B$16),SUMIFS(INDEX('Ergon Input'!$F$40:$P$63,,MATCH(F$18,'Ergon Input'!$F$39:$P$39,0)),'Ergon Input'!$C$40:$C$63,$B19,'Ergon Input'!$B$40:$B$63,$B$3,'Ergon Input'!$D$40:$D$63,$B$16)) -> 0 | G19: =IF('Control and Output Summary'!$C$14<>"Ergon",SUMIFS(INDEX('Import Expenditure Forecast'!$F$8:$P$79,,MATCH(G$18,'Import Expenditure Forecast'!$F$7:$P$7,0)),'Import Expenditure Forecast'!$C$8:$C$79,$B19,'Import Expenditure Forecast'!$E$8:$E$79,$C19,'Import Expenditure Forecast'!$B$8:$B$79,$B$3,'Import Expenditure Forecast'!$D$8:$D$79,$B$16),SUMIFS(INDEX('Ergon Input'!$F$40:$P$63,,MATCH(G$18,'Ergon Input'!$F$39:$P$39,0)),'Ergon Input'!$C$40:$C$63,$B19,'Ergon Input'!$B$40:$B$63,$B$3,'Ergon Input'!$D$40:$D$63,$B$16)) -> 0 | H19: =IF('Control and Output Summary'!$C$14<>"Ergon",SUMIFS(INDEX('Import Expenditure Forecast'!$F$8:$P$79,,MATCH(H$18,'Import Expenditure Forecast'!$F$7:$P$7,0)),'Import Expenditure Forecast'!$C$8:$C$79,$B19,'Import Expenditure Forecast'!$E$8:$E$79,$C19,'Import Expenditure Forecast'!$B$8:$B$79,$B$3,'Import Expenditure Forecast'!$D$8:$D$79,$B$16),SUMIFS(INDEX('Ergon Input'!$F$40:$P$63,,MATCH(H$18,'Ergon Input'!$F$39:$P$39,0)),'Ergon Input'!$C$40:$C$63,$B19,'Ergon Input'!$B$40:$B$63,$B$3,'Ergon Input'!$D$40:$D$63,$B$16)) -> 0 | I19: =IF('Control and Output Summary'!$C$14<>"Ergon",SUMIFS(INDEX('Import Expenditure Forecast'!$F$8:$P$79,,MATCH(I$18,'Import Expenditure Forecast'!$F$7:$P$7,0)),'Import Expenditure Forecast'!$C$8:$C$79,$B19,'Import Expenditure Forecast'!$E$8:$E$79,$C19,'Import Expenditure Forecast'!$B$8:$B$79,$B$3,'Import Expenditure Forecast'!$D$8:$D$79,$B$16),SUMIFS(INDEX('Ergon Input'!$F$40:$P$63,,MATCH(I$18,'Ergon Input'!$F$39:$P$39,0)),'Ergon Input'!$C$40:$C$63,$B19,'Ergon Input'!$B$40:$B$63,$B$3,'Ergon Input'!$D$40:$D$63,$B$16)) -> 0 | J19: =IF('Control and Output Summary'!$C$14<>"Ergon",SUMIFS(INDEX('Import Expenditure Forecast'!$F$8:$P$79,,MATCH(J$18,'Import Expenditure Forecast'!$F$7:$P$7,0)),'Import Expenditure Forecast'!$C$8:$C$79,$B19,'Import Expenditure Forecast'!$E$8:$E$79,$C19,'Import Expenditure Forecast'!$B$8:$B$79,$B$3,'Import Expenditure Forecast'!$D$8:$D$79,$B$16),SUMIFS(INDEX('Ergon Input'!$F$40:$P$63,,MATCH(J$18,'Ergon Input'!$F$39:$P$39,0)),'Ergon Input'!$C$40:$C$63,$B19,'Ergon Input'!$B$40:$B$63,$B$3,'Ergon Input'!$D$40:$D$63,$B$16)) -> 0 | K19: =IF('Control and Output Summary'!$C$14<>"Ergon",SUMIFS(INDEX('Import Expenditure Forecast'!$F$8:$P$79,,MATCH(K$18,'Import Expenditure Forecast'!$F$7:$P$7,0)),'Import Expenditure Forecast'!$C$8:$C$79,$B19,'Import Expenditure Forecast'!$E$8:$E$79,$C19,'Import Expenditure Forecast'!$B$8:$B$79,$B$3,'Import Expenditure Forecast'!$D$8:$D$79,$B$16),SUMIFS(INDEX('Ergon Input'!$F$40:$P$63,,MATCH(K$18,'Ergon Input'!$F$39:$P$39,0)),'Ergon Input'!$C$40:$C$63,$B19,'Ergon Input'!$B$40:$B$63,$B$3,'Ergon Input'!$D$40:$D$63,$B$16)) -> 0 | L19: =IF('Control and Output Summary'!$C$14<>"Ergon",SUMIFS(INDEX('Import Expenditure Forecast'!$F$8:$P$79,,MATCH(L$18,'Import Expenditure Forecast'!$F$7:$P$7,0)),'Import Expenditure Forecast'!$C$8:$C$79,$B19,'Import Expenditure Forecast'!$E$8:$E$79,$C19,'Import Expenditure Forecast'!$B$8:$B$79,$B$3,'Import Expenditure Forecast'!$D$8:$D$79,$B$16),SUMIFS(INDEX('Ergon Input'!$F$40:$P$63,,MATCH(L$18,'Ergon Input'!$F$39:$P$39,0)),'Ergon Input'!$C$40:$C$63,$B19,'Ergon Input'!$B$40:$B$63,$B$3,'Ergon Input'!$D$40:$D$63,$B$16)) -> 0 | M19: =IF('Control and Output Summary'!$C$14<>"Ergon",SUMIFS(INDEX('Import Expenditure Forecast'!$F$8:$P$79,,MATCH(M$18,'Import Expenditure Forecast'!$F$7:$P$7,0)),'Import Expenditure Forecast'!$C$8:$C$79,$B19,'Import Expenditure Forecast'!$E$8:$E$79,$C19,'Import Expenditure Forecast'!$B$8:$B$79,$B$3,'Import Expenditure Forecast'!$D$8:$D$79,$B$16),SUMIFS(INDEX('Ergon Input'!$F$40:$P$63,,MATCH(M$18,'Ergon Input'!$F$39:$P$39,0)),'Ergon Input'!$C$40:$C$63,$B19,'Ergon Input'!$B$40:$B$63,$B$3,'Ergon Input'!$D$40:$D$63,$B$16)) -> 0 | N19: =IF('Control and Output Summary'!$C$14<>"Ergon",SUMIFS(INDEX('Import Expenditure Forecast'!$F$8:$P$79,,MATCH(N$18,'Import Expenditure Forecast'!$F$7:$P$7,0)),'Import Expenditure Forecast'!$C$8:$C$79,$B19,'Import Expenditure Forecast'!$E$8:$E$79,$C19,'Import Expenditure Forecast'!$B$8:$B$79,$B$3,'Import Expenditure Forecast'!$D$8:$D$79,$B$16),SUMIFS(INDEX('Ergon Input'!$F$40:$P$63,,MATCH(N$18,'Ergon Input'!$F$39:$P$39,0)),'Ergon Input'!$C$40:$C$63,$B19,'Ergon Input'!$B$40:$B$63,$B$3,'Ergon Input'!$D$40:$D$63,$B$16)) -> 0
B20: LV Bus | C20: ='Control and Output Summary'!$C$14 -> West | D20: =IF('Control and Output Summary'!$C$14<>"Ergon",SUMIFS(INDEX('Import Expenditure Forecast'!$F$8:$P$79,,MATCH(D$18,'Import Expenditure Forecast'!$F$7:$P$7,0)),'Import Expenditure Forecast'!$C$8:$C$79,$B20,'Import Expenditure Forecast'!$E$8:$E$79,$C20,'Import Expenditure Forecast'!$B$8:$B$79,$B$3,'Import Expenditure Forecast'!$D$8:$D$79,$B$16),SUMIFS(INDEX('Ergon Input'!$F$40:$P$63,,MATCH(D$18,'Ergon Input'!$F$39:$P$39,0)),'Ergon Input'!$C$40:$C$63,$B20,'Ergon Input'!$B$40:$B$63,$B$3,'Ergon Input'!$D$40:$D$63,$B$16)) -> 0 | E20: =IF('Control and Output Summary'!$C$14<>"Ergon",SUMIFS(INDEX('Import Expenditure Forecast'!$F$8:$P$79,,MATCH(E$18,'Import Expenditure Forecast'!$F$7:$P$7,0)),'Import Expenditure Forecast'!$C$8:$C$79,$B20,'Import Expenditure Forecast'!$E$8:$E$79,$C20,'Import Expenditure Forecast'!$B$8:$B$79,$B$3,'Import Expenditure Forecast'!$D$8:$D$79,$B$16),SUMIFS(INDEX('Ergon Input'!$F$40:$P$63,,MATCH(E$18,'Ergon Input'!$F$39:$P$39,0)),'Ergon Input'!$C$40:$C$63,$B20,'Ergon Input'!$B$40:$B$63,$B$3,'Ergon Input'!$D$40:$D$63,$B$16)) -> 0 | F20: =IF('Control and Output Summary'!$C$14<>"Ergon",SUMIFS(INDEX('Import Expenditure Forecast'!$F$8:$P$79,,MATCH(F$18,'Import Expenditure Forecast'!$F$7:$P$7,0)),'Import Expenditure Forecast'!$C$8:$C$79,$B20,'Import Expenditure Forecast'!$E$8:$E$79,$C20,'Import Expenditure Forecast'!$B$8:$B$79,$B$3,'Import Expenditure Forecast'!$D$8:$D$79,$B$16),SUMIFS(INDEX('Ergon Input'!$F$40:$P$63,,MATCH(F$18,'Ergon Input'!$F$39:$P$39,0)),'Ergon Input'!$C$40:$C$63,$B20,'Ergon Input'!$B$40:$B$63,$B$3,'Ergon Input'!$D$40:$D$63,$B$16)) -> 0 | G20: =IF('Control and Output Summary'!$C$14<>"Ergon",SUMIFS(INDEX('Import Expenditure Forecast'!$F$8:$P$79,,MATCH(G$18,'Import Expenditure Forecast'!$F$7:$P$7,0)),'Import Expenditure Forecast'!$C$8:$C$79,$B20,'Import Expenditure Forecast'!$E$8:$E$79,$C20,'Import Expenditure Forecast'!$B$8:$B$79,$B$3,'Import Expenditure Forecast'!$D$8:$D$79,$B$16),SUMIFS(INDEX('Ergon Input'!$F$40:$P$63,,MATCH(G$18,'Ergon Input'!$F$39:$P$39,0)),'Ergon Input'!$C$40:$C$63,$B20,'Ergon Input'!$B$40:$B$63,$B$3,'Ergon Input'!$D$40:$D$63,$B$16)) -> 0 | H20: =IF('Control and Output Summary'!$C$14<>"Ergon",SUMIFS(INDEX('Import Expenditure Forecast'!$F$8:$P$79,,MATCH(H$18,'Import Expenditure Forecast'!$F$7:$P$7,0)),'Import Expenditure Forecast'!$C$8:$C$79,$B20,'Import Expenditure Forecast'!$E$8:$E$79,$C20,'Import Expenditure Forecast'!$B$8:$B$79,$B$3,'Import Expenditure Forecast'!$D$8:$D$79,$B$16),SUMIFS(INDEX('Ergon Input'!$F$40:$P$63,,MATCH(H$18,'Ergon Input'!$F$39:$P$39,0)),'Ergon Input'!$C$40:$C$63,$B20,'Ergon Input'!$B$40:$B$63,$B$3,'Ergon Input'!$D$40:$D$63,$B$16)) -> 0 | I20: =IF('Control and Output Summary'!$C$14<>"Ergon",SUMIFS(INDEX('Import Expenditure Forecast'!$F$8:$P$79,,MATCH(I$18,'Import Expenditure Forecast'!$F$7:$P$7,0)),'Import Expenditure Forecast'!$C$8:$C$79,$B20,'Import Expenditure Forecast'!$E$8:$E$79,$C20,'Import Expenditure Forecast'!$B$8:$B$79,$B$3,'Import Expenditure Forecast'!$D$8:$D$79,$B$16),SUMIFS(INDEX('Ergon Input'!$F$40:$P$63,,MATCH(I$18,'Ergon Input'!$F$39:$P$39,0)),'Ergon Input'!$C$40:$C$63,$B20,'Ergon Input'!$B$40:$B$63,$B$3,'Ergon Input'!$D$40:$D$63,$B$16)) -> 0 | J20: =IF('Control and Output Summary'!$C$14<>"Ergon",SUMIFS(INDEX('Import Expenditure Forecast'!$F$8:$P$79,,MATCH(J$18,'Import Expenditure Forecast'!$F$7:$P$7,0)),'Import Expenditure Forecast'!$C$8:$C$79,$B20,'Import Expenditure Forecast'!$E$8:$E$79,$C20,'Import Expenditure Forecast'!$B$8:$B$79,$B$3,'Import Expenditure Forecast'!$D$8:$D$79,$B$16),SUMIFS(INDEX('Ergon Input'!$F$40:$P$63,,MATCH(J$18,'Ergon Input'!$F$39:$P$39,0)),'Ergon Input'!$C$40:$C$63,$B20,'Ergon Input'!$B$40:$B$63,$B$3,'Ergon Input'!$D$40:$D$63,$B$16)) -> 0 | K20: =IF('Control and Output Summary'!$C$14<>"Ergon",SUMIFS(INDEX('Import Expenditure Forecast'!$F$8:$P$79,,MATCH(K$18,'Import Expenditure Forecast'!$F$7:$P$7,0)),'Import Expenditure Forecast'!$C$8:$C$79,$B20,'Import Expenditure Forecast'!$E$8:$E$79,$C20,'Import Expenditure Forecast'!$B$8:$B$79,$B$3,'Import Expenditure Forecast'!$D$8:$D$79,$B$16),SUMIFS(INDEX('Ergon Input'!$F$40:$P$63,,MATCH(K$18,'Ergon Input'!$F$39:$P$39,0)),'Ergon Input'!$C$40:$C$63,$B20,'Ergon Input'!$B$40:$B$63,$B$3,'Ergon Input'!$D$40:$D$63,$B$16)) -> 0 | L20: =IF('Control and Output Summary'!$C$14<>"Ergon",SUMIFS(INDEX('Import Expenditure Forecast'!$F$8:$P$79,,MATCH(L$18,'Import Expenditure Forecast'!$F$7:$P$7,0)),'Import Expenditure Forecast'!$C$8:$C$79,$B20,'Import Expenditure Forecast'!$E$8:$E$79,$C20,'Import Expenditure Forecast'!$B$8:$B$79,$B$3,'Import Expenditure Forecast'!$D$8:$D$79,$B$16),SUMIFS(INDEX('Ergon Input'!$F$40:$P$63,,MATCH(L$18,'Ergon Input'!$F$39:$P$39,0)),'Ergon Input'!$C$40:$C$63,$B20,'Ergon Input'!$B$40:$B$63,$B$3,'Ergon Input'!$D$40:$D$63,$B$16)) -> 0 | M20: =IF('Control and Output Summary'!$C$14<>"Ergon",SUMIFS(INDEX('Import Expenditure Forecast'!$F$8:$P$79,,MATCH(M$18,'Import Expenditure Forecast'!$F$7:$P$7,0)),'Import Expenditure Forecast'!$C$8:$C$79,$B20,'Import Expenditure Forecast'!$E$8:$E$79,$C20,'Import Expenditure Forecast'!$B$8:$B$79,$B$3,'Import Expenditure Forecast'!$D$8:$D$79,$B$16),SUMIFS(INDEX('Ergon Input'!$F$40:$P$63,,MATCH(M$18,'Ergon Input'!$F$39:$P$39,0)),'Ergon Input'!$C$40:$C$63,$B20,'Ergon Input'!$B$40:$B$63,$B$3,'Ergon Input'!$D$40:$D$63,$B$16)) -> 0 | N20: =IF('Control and Output Summary'!$C$14<>"Ergon",SUMIFS(INDEX('Import Expenditure Forecast'!$F$8:$P$79,,MATCH(N$18,'Import Expenditure Forecast'!$F$7:$P$7,0)),'Import Expenditure Forecast'!$C$8:$C$79,$B20,'Import Expenditure Forecast'!$E$8:$E$79,$C20,'Import Expenditure Forecast'!$B$8:$B$79,$B$3,'Import Expenditure Forecast'!$D$8:$D$79,$B$16),SUMIFS(INDEX('Ergon Input'!$F$40:$P$63,,MATCH(N$18,'Ergon Input'!$F$39:$P$39,0)),'Ergon Input'!$C$40:$C$63,$B20,'Ergon Input'!$B$40:$B$63,$B$3,'Ergon Input'!$D$40:$D$63,$B$16)) -> 0
B21: HV Line | C21: ='Control and Output Summary'!$C$14 -> West | D21: =IF('Control and Output Summary'!$C$14<>"Ergon",SUMIFS(INDEX('Import Expenditure Forecast'!$F$8:$P$79,,MATCH(D$18,'Import Expenditure Forecast'!$F$7:$P$7,0)),'Import Expenditure Forecast'!$C$8:$C$79,$B21,'Import Expenditure Forecast'!$E$8:$E$79,$C21,'Import Expenditure Forecast'!$B$8:$B$79,$B$3,'Import Expenditure Forecast'!$D$8:$D$79,$B$16),SUMIFS(INDEX('Ergon Input'!$F$40:$P$63,,MATCH(D$18,'Ergon Input'!$F$39:$P$39,0)),'Ergon Input'!$C$40:$C$63,$B21,'Ergon Input'!$B$40:$B$63,$B$3,'Ergon Input'!$D$40:$D$63,$B$16)) -> 0 | E21: =IF('Control and Output Summary'!$C$14<>"Ergon",SUMIFS(INDEX('Import Expenditure Forecast'!$F$8:$P$79,,MATCH(E$18,'Import Expenditure Forecast'!$F$7:$P$7,0)),'Import Expenditure Forecast'!$C$8:$C$79,$B21,'Import Expenditure Forecast'!$E$8:$E$79,$C21,'Import Expenditure Forecast'!$B$8:$B$79,$B$3,'Import Expenditure Forecast'!$D$8:$D$79,$B$16),SUMIFS(INDEX('Ergon Input'!$F$40:$P$63,,MATCH(E$18,'Ergon Input'!$F$39:$P$39,0)),'Ergon Input'!$C$40:$C$63,$B21,'Ergon Input'!$B$40:$B$63,$B$3,'Ergon Input'!$D$40:$D$63,$B$16)) -> 0 | F21: =IF('Control and Output Summary'!$C$14<>"Ergon",SUMIFS(INDEX('Import Expenditure Forecast'!$F$8:$P$79,,MATCH(F$18,'Import Expenditure Forecast'!$F$7:$P$7,0)),'Import Expenditure Forecast'!$C$8:$C$79,$B21,'Import Expenditure Forecast'!$E$8:$E$79,$C21,'Import Expenditure Forecast'!$B$8:$B$79,$B$3,'Import Expenditure Forecast'!$D$8:$D$79,$B$16),SUMIFS(INDEX('Ergon Input'!$F$40:$P$63,,MATCH(F$18,'Ergon Input'!$F$39:$P$39,0)),'Ergon Input'!$C$40:$C$63,$B21,'Ergon Input'!$B$40:$B$63,$B$3,'Ergon Input'!$D$40:$D$63,$B$16)) -> 0 | G21: =IF('Control and Output Summary'!$C$14<>"Ergon",SUMIFS(INDEX('Import Expenditure Forecast'!$F$8:$P$79,,MATCH(G$18,'Import Expenditure Forecast'!$F$7:$P$7,0)),'Import Expenditure Forecast'!$C$8:$C$79,$B21,'Import Expenditure Forecast'!$E$8:$E$79,$C21,'Import Expenditure Forecast'!$B$8:$B$79,$B$3,'Import Expenditure Forecast'!$D$8:$D$79,$B$16),SUMIFS(INDEX('Ergon Input'!$F$40:$P$63,,MATCH(G$18,'Ergon Input'!$F$39:$P$39,0)),'Ergon Input'!$C$40:$C$63,$B21,'Ergon Input'!$B$40:$B$63,$B$3,'Ergon Input'!$D$40:$D$63,$B$16)) -> 0 | H21: =IF('Control and Output Summary'!$C$14<>"Ergon",SUMIFS(INDEX('Import Expenditure Forecast'!$F$8:$P$79,,MATCH(H$18,'Import Expenditure Forecast'!$F$7:$P$7,0)),'Import Expenditure Forecast'!$C$8:$C$79,$B21,'Import Expenditure Forecast'!$E$8:$E$79,$C21,'Import Expenditure Forecast'!$B$8:$B$79,$B$3,'Import Expenditure Forecast'!$D$8:$D$79,$B$16),SUMIFS(INDEX('Ergon Input'!$F$40:$P$63,,MATCH(H$18,'Ergon Input'!$F$39:$P$39,0)),'Ergon Input'!$C$40:$C$63,$B21,'Ergon Input'!$B$40:$B$63,$B$3,'Ergon Input'!$D$40:$D$63,$B$16)) -> 0 | I21: =IF('Control and Output Summary'!$C$14<>"Ergon",SUMIFS(INDEX('Import Expenditure Forecast'!$F$8:$P$79,,MATCH(I$18,'Import Expenditure Forecast'!$F$7:$P$7,0)),'Import Expenditure Forecast'!$C$8:$C$79,$B21,'Import Expenditure Forecast'!$E$8:$E$79,$C21,'Import Expenditure Forecast'!$B$8:$B$79,$B$3,'Import Expenditure Forecast'!$D$8:$D$79,$B$16),SUMIFS(INDEX('Ergon Input'!$F$40:$P$63,,MATCH(I$18,'Ergon Input'!$F$39:$P$39,0)),'Ergon Input'!$C$40:$C$63,$B21,'Ergon Input'!$B$40:$B$63,$B$3,'Ergon Input'!$D$40:$D$63,$B$16)) -> 0 | J21: =IF('Control and Output Summary'!$C$14<>"Ergon",SUMIFS(INDEX('Import Expenditure Forecast'!$F$8:$P$79,,MATCH(J$18,'Import Expenditure Forecast'!$F$7:$P$7,0)),'Import Expenditure Forecast'!$C$8:$C$79,$B21,'Import Expenditure Forecast'!$E$8:$E$79,$C21,'Import Expenditure Forecast'!$B$8:$B$79,$B$3,'Import Expenditure Forecast'!$D$8:$D$79,$B$16),SUMIFS(INDEX('Ergon Input'!$F$40:$P$63,,MATCH(J$18,'Ergon Input'!$F$39:$P$39,0)),'Ergon Input'!$C$40:$C$63,$B21,'Ergon Input'!$B$40:$B$63,$B$3,'Ergon Input'!$D$40:$D$63,$B$16)) -> 0 | K21: =IF('Control and Output Summary'!$C$14<>"Ergon",SUMIFS(INDEX('Import Expenditure Forecast'!$F$8:$P$79,,MATCH(K$18,'Import Expenditure Forecast'!$F$7:$P$7,0)),'Import Expenditure Forecast'!$C$8:$C$79,$B21,'Import Expenditure Forecast'!$E$8:$E$79,$C21,'Import Expenditure Forecast'!$B$8:$B$79,$B$3,'Import Expenditure Forecast'!$D$8:$D$79,$B$16),SUMIFS(INDEX('Ergon Input'!$F$40:$P$63,,MATCH(K$18,'Ergon Input'!$F$39:$P$39,0)),'Ergon Input'!$C$40:$C$63,$B21,'Ergon Input'!$B$40:$B$63,$B$3,'Ergon Input'!$D$40:$D$63,$B$16)) -> 0 | L21: =IF('Control and Output Summary'!$C$14<>"Ergon",SUMIFS(INDEX('Import Expenditure Forecast'!$F$8:$P$79,,MATCH(L$18,'Import Expenditure Forecast'!$F$7:$P$7,0)),'Import Expenditure Forecast'!$C$8:$C$79,$B21,'Import Expenditure Forecast'!$E$8:$E$79,$C21,'Import Expenditure Forecast'!$B$8:$B$79,$B$3,'Import Expenditure Forecast'!$D$8:$D$79,$B$16),SUMIFS(INDEX('Ergon Input'!$F$40:$P$63,,MATCH(L$18,'Ergon Input'!$F$39:$P$39,0)),'Ergon Input'!$C$40:$C$63,$B21,'Ergon Input'!$B$40:$B$63,$B$3,'Ergon Input'!$D$40:$D$63,$B$16)) -> 0 | M21: =IF('Control and Output Summary'!$C$14<>"Ergon",SUMIFS(INDEX('Import Expenditure Forecast'!$F$8:$P$79,,MATCH(M$18,'Import Expenditure Forecast'!$F$7:$P$7,0)),'Import Expenditure Forecast'!$C$8:$C$79,$B21,'Import Expenditure Forecast'!$E$8:$E$79,$C21,'Import Expenditure Forecast'!$B$8:$B$79,$B$3,'Import Expenditure Forecast'!$D$8:$D$79,$B$16),SUMIFS(INDEX('Ergon Input'!$F$40:$P$63,,MATCH(M$18,'Ergon Input'!$F$39:$P$39,0)),'Ergon Input'!$C$40:$C$63,$B21,'Ergon Input'!$B$40:$B$63,$B$3,'Ergon Input'!$D$40:$D$63,$B$16)) -> 0 | N21: =IF('Control and Output Summary'!$C$14<>"Ergon",SUMIFS(INDEX('Import Expenditure Forecast'!$F$8:$P$79,,MATCH(N$18,'Import Expenditure Forecast'!$F$7:$P$7,0)),'Import Expenditure Forecast'!$C$8:$C$79,$B21,'Import Expenditure Forecast'!$E$8:$E$79,$C21,'Import Expenditure Forecast'!$B$8:$B$79,$B$3,'Import Expenditure Forecast'!$D$8:$D$79,$B$16),SUMIFS(INDEX('Ergon Input'!$F$40:$P$63,,MATCH(N$18,'Ergon Input'!$F$39:$P$39,0)),'Ergon Input'!$C$40:$C$63,$B21,'Ergon Input'!$B$40:$B$63,$B$3,'Ergon Input'!$D$40:$D$63,$B$16)) -> 0
B22: HV Bus | C22: ='Control and Output Summary'!$C$14 -> West | D22: =IF('Control and Output Summary'!$C$14<>"Ergon",SUMIFS(INDEX('Import Expenditure Forecast'!$F$8:$P$79,,MATCH(D$18,'Import Expenditure Forecast'!$F$7:$P$7,0)),'Import Expenditure Forecast'!$C$8:$C$79,$B22,'Import Expenditure Forecast'!$E$8:$E$79,$C22,'Import Expenditure Forecast'!$B$8:$B$79,$B$3,'Import Expenditure Forecast'!$D$8:$D$79,$B$16),SUMIFS(INDEX('Ergon Input'!$F$40:$P$63,,MATCH(D$18,'Ergon Input'!$F$39:$P$39,0)),'Ergon Input'!$C$40:$C$63,$B22,'Ergon Input'!$B$40:$B$63,$B$3,'Ergon Input'!$D$40:$D$63,$B$16)) -> 3.64921596 | E22: =IF('Control and Output Summary'!$C$14<>"Ergon",SUMIFS(INDEX('Import Expenditure Forecast'!$F$8:$P$79,,MATCH(E$18,'Import Expenditure Forecast'!$F$7:$P$7,0)),'Import Expenditure Forecast'!$C$8:$C$79,$B22,'Import Expenditure Forecast'!$E$8:$E$79,$C22,'Import Expenditure Forecast'!$B$8:$B$79,$B$3,'Import Expenditure Forecast'!$D$8:$D$79,$B$16),SUMIFS(INDEX('Ergon Input'!$F$40:$P$63,,MATCH(E$18,'Ergon Input'!$F$39:$P$39,0)),'Ergon Input'!$C$40:$C$63,$B22,'Ergon Input'!$B$40:$B$63,$B$3,'Ergon Input'!$D$40:$D$63,$B$16)) -> 4.01341798 | F22: =IF('Control and Output Summary'!$C$14<>"Ergon",SUMIFS(INDEX('Import Expenditure Forecast'!$F$8:$P$79,,MATCH(F$18,'Import Expenditure Forecast'!$F$7:$P$7,0)),'Import Expenditure Forecast'!$C$8:$C$79,$B22,'Import Expenditure Forecast'!$E$8:$E$79,$C22,'Import Expenditure Forecast'!$B$8:$B$79,$B$3,'Import Expenditure Forecast'!$D$8:$D$79,$B$16),SUMIFS(INDEX('Ergon Input'!$F$40:$P$63,,MATCH(F$18,'Ergon Input'!$F$39:$P$39,0)),'Ergon Input'!$C$40:$C$63,$B22,'Ergon Input'!$B$40:$B$63,$B$3,'Ergon Input'!$D$40:$D$63,$B$16)) -> 2.31165928 | G22: =IF('Control and Output Summary'!$C$14<>"Ergon",SUMIFS(INDEX('Import Expenditure Forecast'!$F$8:$P$79,,MATCH(G$18,'Import Expenditure Forecast'!$F$7:$P$7,0)),'Import Expenditure Forecast'!$C$8:$C$79,$B22,'Import Expenditure Forecast'!$E$8:$E$79,$C22,'Import Expenditure Forecast'!$B$8:$B$79,$B$3,'Import Expenditure Forecast'!$D$8:$D$79,$B$16),SUMIFS(INDEX('Ergon Input'!$F$40:$P$63,,MATCH(G$18,'Ergon Input'!$F$39:$P$39,0)),'Ergon Input'!$C$40:$C$63,$B22,'Ergon Input'!$B$40:$B$63,$B$3,'Ergon Input'!$D$40:$D$63,$B$16)) -> 8.84902134 | H22: =IF('Control and Output Summary'!$C$14<>"Ergon",SUMIFS(INDEX('Import Expenditure Forecast'!$F$8:$P$79,,MATCH(H$18,'Import Expenditure Forecast'!$F$7:$P$7,0)),'Import Expenditure Forecast'!$C$8:$C$79,$B22,'Import Expenditure Forecast'!$E$8:$E$79,$C22,'Import Expenditure Forecast'!$B$8:$B$79,$B$3,'Import Expenditure Forecast'!$D$8:$D$79,$B$16),SUMIFS(INDEX('Ergon Input'!$F$40:$P$63,,MATCH(H$18,'Ergon Input'!$F$39:$P$39,0)),'Ergon Input'!$C$40:$C$63,$B22,'Ergon Input'!$B$40:$B$63,$B$3,'Ergon Input'!$D$40:$D$63,$B$16)) -> 3.39331136 | I22: =IF('Control and Output Summary'!$C$14<>"Ergon",SUMIFS(INDEX('Import Expenditure Forecast'!$F$8:$P$79,,MATCH(I$18,'Import Expenditure Forecast'!$F$7:$P$7,0)),'Import Expenditure Forecast'!$C$8:$C$79,$B22,'Import Expenditure Forecast'!$E$8:$E$79,$C22,'Import Expenditure Forecast'!$B$8:$B$79,$B$3,'Import Expenditure Forecast'!$D$8:$D$79,$B$16),SUMIFS(INDEX('Ergon Input'!$F$40:$P$63,,MATCH(I$18,'Ergon Input'!$F$39:$P$39,0)),'Ergon Input'!$C$40:$C$63,$B22,'Ergon Input'!$B$40:$B$63,$B$3,'Ergon Input'!$D$40:$D$63,$B$16)) -> 1.78734478 | J22: =IF('Control and Output Summary'!$C$14<>"Ergon",SUMIFS(INDEX('Import Expenditure Forecast'!$F$8:$P$79,,MATCH(J$18,'Import Expenditure Forecast'!$F$7:$P$7,0)),'Import Expenditure Forecast'!$C$8:$C$79,$B22,'Import Expenditure Forecast'!$E$8:$E$79,$C22,'Import Expenditure Forecast'!$B$8:$B$79,$B$3,'Import Expenditure Forecast'!$D$8:$D$79,$B$16),SUMIFS(INDEX('Ergon Input'!$F$40:$P$63,,MATCH(J$18,'Ergon Input'!$F$39:$P$39,0)),'Ergon Input'!$C$40:$C$63,$B22,'Ergon Input'!$B$40:$B$63,$B$3,'Ergon Input'!$D$40:$D$63,$B$16)) -> 0.02275654 | K22: =IF('Control and Output Summary'!$C$14<>"Ergon",SUMIFS(INDEX('Import Expenditure Forecast'!$F$8:$P$79,,MATCH(K$18,'Import Expenditure Forecast'!$F$7:$P$7,0)),'Import Expenditure Forecast'!$C$8:$C$79,$B22,'Import Expenditure Forecast'!$E$8:$E$79,$C22,'Import Expenditure Forecast'!$B$8:$B$79,$B$3,'Import Expenditure Forecast'!$D$8:$D$79,$B$16),SUMIFS(INDEX('Ergon Input'!$F$40:$P$63,,MATCH(K$18,'Ergon Input'!$F$39:$P$39,0)),'Ergon Input'!$C$40:$C$63,$B22,'Ergon Input'!$B$40:$B$63,$B$3,'Ergon Input'!$D$40:$D$63,$B$16)) -> 0.02275654 | L22: =IF('Control and Output Summary'!$C$14<>"Ergon",SUMIFS(INDEX('Import Expenditure Forecast'!$F$8:$P$79,,MATCH(L$18,'Import Expenditure Forecast'!$F$7:$P$7,0)),'Import Expenditure Forecast'!$C$8:$C$79,$B22,'Import Expenditure Forecast'!$E$8:$E$79,$C22,'Import Expenditure Forecast'!$B$8:$B$79,$B$3,'Import Expenditure Forecast'!$D$8:$D$79,$B$16),SUMIFS(INDEX('Ergon Input'!$F$40:$P$63,,MATCH(L$18,'Ergon Input'!$F$39:$P$39,0)),'Ergon Input'!$C$40:$C$63,$B22,'Ergon Input'!$B$40:$B$63,$B$3,'Ergon Input'!$D$40:$D$63,$B$16)) -> 0.61095262 | M22: =IF('Control and Output Summary'!$C$14<>"Ergon",SUMIFS(INDEX('Import Expenditure Forecast'!$F$8:$P$79,,MATCH(M$18,'Import Expenditure Forecast'!$F$7:$P$7,0)),'Import Expenditure Forecast'!$C$8:$C$79,$B22,'Import Expenditure Forecast'!$E$8:$E$79,$C22,'Import Expenditure Forecast'!$B$8:$B$79,$B$3,'Import Expenditure Forecast'!$D$8:$D$79,$B$16),SUMIFS(INDEX('Ergon Input'!$F$40:$P$63,,MATCH(M$18,'Ergon Input'!$F$39:$P$39,0)),'Ergon Input'!$C$40:$C$63,$B22,'Ergon Input'!$B$40:$B$63,$B$3,'Ergon Input'!$D$40:$D$63,$B$16)) -> 0.61095262 | N22: =IF('Control and Output Summary'!$C$14<>"Ergon",SUMIFS(INDEX('Import Expenditure Forecast'!$F$8:$P$79,,MATCH(N$18,'Import Expenditure Forecast'!$F$7:$P$7,0)),'Import Expenditure Forecast'!$C$8:$C$79,$B22,'Import Expenditure Forecast'!$E$8:$E$79,$C22,'Import Expenditure Forecast'!$B$8:$B$79,$B$3,'Import Expenditure Forecast'!$D$8:$D$79,$B$16),SUMIFS(INDEX('Ergon Input'!$F$40:$P$63,,MATCH(N$18,'Ergon Input'!$F$39:$P$39,0)),'Ergon Input'!$C$40:$C$63,$B22,'Ergon Input'!$B$40:$B$63,$B$3,'Ergon Input'!$D$40:$D$63,$B$16)) -> 0.61095262
B23: ST 33/66 kv | C23: ='Control and Output Summary'!$C$14 -> West | D23: =IF('Control and Output Summary'!$C$14<>"Ergon",SUMIFS(INDEX('Import Expenditure Forecast'!$F$8:$P$79,,MATCH(D$18,'Import Expenditure Forecast'!$F$7:$P$7,0)),'Import Expenditure Forecast'!$C$8:$C$79,$B23,'Import Expenditure Forecast'!$E$8:$E$79,$C23,'Import Expenditure Forecast'!$B$8:$B$79,$B$3,'Import Expenditure Forecast'!$D$8:$D$79,$B$16),SUMIFS(INDEX('Ergon Input'!$F$40:$P$63,,MATCH(D$18,'Ergon Input'!$F$39:$P$39,0)),'Ergon Input'!$C$40:$C$63,$B23,'Ergon Input'!$B$40:$B$63,$B$3,'Ergon Input'!$D$40:$D$63,$B$16)) -> 0 | E23: =IF('Control and Output Summary'!$C$14<>"Ergon",SUMIFS(INDEX('Import Expenditure Forecast'!$F$8:$P$79,,MATCH(E$18,'Import Expenditure Forecast'!$F$7:$P$7,0)),'Import Expenditure Forecast'!$C$8:$C$79,$B23,'Import Expenditure Forecast'!$E$8:$E$79,$C23,'Import Expenditure Forecast'!$B$8:$B$79,$B$3,'Import Expenditure Forecast'!$D$8:$D$79,$B$16),SUMIFS(INDEX('Ergon Input'!$F$40:$P$63,,MATCH(E$18,'Ergon Input'!$F$39:$P$39,0)),'Ergon Input'!$C$40:$C$63,$B23,'Ergon Input'!$B$40:$B$63,$B$3,'Ergon Input'!$D$40:$D$63,$B$16)) -> 0 | F23: =IF('Control and Output Summary'!$C$14<>"Ergon",SUMIFS(INDEX('Import Expenditure Forecast'!$F$8:$P$79,,MATCH(F$18,'Import Expenditure Forecast'!$F$7:$P$7,0)),'Import Expenditure Forecast'!$C$8:$C$79,$B23,'Import Expenditure Forecast'!$E$8:$E$79,$C23,'Import Expenditure Forecast'!$B$8:$B$79,$B$3,'Import Expenditure Forecast'!$D$8:$D$79,$B$16),SUMIFS(INDEX('Ergon Input'!$F$40:$P$63,,MATCH(F$18,'Ergon Input'!$F$39:$P$39,0)),'Ergon Input'!$C$40:$C$63,$B23,'Ergon Input'!$B$40:$B$63,$B$3,'Ergon Input'!$D$40:$D$63,$B$16)) -> 0 | G23: =IF('Control and Output Summary'!$C$14<>"Ergon",SUMIFS(INDEX('Import Expenditure Forecast'!$F$8:$P$79,,MATCH(G$18,'Import Expenditure Forecast'!$F$7:$P$7,0)),'Import Expenditure Forecast'!$C$8:$C$79,$B23,'Import Expenditure Forecast'!$E$8:$E$79,$C23,'Import Expenditure Forecast'!$B$8:$B$79,$B$3,'Import Expenditure Forecast'!$D$8:$D$79,$B$16),SUMIFS(INDEX('Ergon Input'!$F$40:$P$63,,MATCH(G$18,'Ergon Input'!$F$39:$P$39,0)),'Ergon Input'!$C$40:$C$63,$B23,'Ergon Input'!$B$40:$B$63,$B$3,'Ergon Input'!$D$40:$D$63,$B$16)) -> 0 | H23: =IF('Control and Output Summary'!$C$14<>"Ergon",SUMIFS(INDEX('Import Expenditure Forecast'!$F$8:$P$79,,MATCH(H$18,'Import Expenditure Forecast'!$F$7:$P$7,0)),'Import Expenditure Forecast'!$C$8:$C$79,$B23,'Import Expenditure Forecast'!$E$8:$E$79,$C23,'Import Expenditure Forecast'!$B$8:$B$79,$B$3,'Import Expenditure Forecast'!$D$8:$D$79,$B$16),SUMIFS(INDEX('Ergon Input'!$F$40:$P$63,,MATCH(H$18,'Ergon Input'!$F$39:$P$39,0)),'Ergon Input'!$C$40:$C$63,$B23,'Ergon Input'!$B$40:$B$63,$B$3,'Ergon Input'!$D$40:$D$63,$B$16)) -> 0 | I23: =IF('Control and Output Summary'!$C$14<>"Ergon",SUMIFS(INDEX('Import Expenditure Forecast'!$F$8:$P$79,,MATCH(I$18,'Import Expenditure Forecast'!$F$7:$P$7,0)),'Import Expenditure Forecast'!$C$8:$C$79,$B23,'Import Expenditure Forecast'!$E$8:$E$79,$C23,'Import Expenditure Forecast'!$B$8:$B$79,$B$3,'Import Expenditure Forecast'!$D$8:$D$79,$B$16),SUMIFS(INDEX('Ergon Input'!$F$40:$P$63,,MATCH(I$18,'Ergon Input'!$F$39:$P$39,0)),'Ergon Input'!$C$40:$C$63,$B23,'Ergon Input'!$B$40:$B$63,$B$3,'Ergon Input'!$D$40:$D$63,$B$16)) -> 0 | J23: =IF('Control and Output Summary'!$C$14<>"Ergon",SUMIFS(INDEX('Import Expenditure Forecast'!$F$8:$P$79,,MATCH(J$18,'Import Expenditure Forecast'!$F$7:$P$7,0)),'Import Expenditure Forecast'!$C$8:$C$79,$B23,'Import Expenditure Forecast'!$E$8:$E$79,$C23,'Import Expenditure Forecast'!$B$8:$B$79,$B$3,'Import Expenditure Forecast'!$D$8:$D$79,$B$16),SUMIFS(INDEX('Ergon Input'!$F$40:$P$63,,MATCH(J$18,'Ergon Input'!$F$39:$P$39,0)),'Ergon Input'!$C$40:$C$63,$B23,'Ergon Input'!$B$40:$B$63,$B$3,'Ergon Input'!$D$40:$D$63,$B$16)) -> 0 | K23: =IF('Control and Output Summary'!$C$14<>"Ergon",SUMIFS(INDEX('Import Expenditure Forecast'!$F$8:$P$79,,MATCH(K$18,'Import Expenditure Forecast'!$F$7:$P$7,0)),'Import Expenditure Forecast'!$C$8:$C$79,$B23,'Import Expenditure Forecast'!$E$8:$E$79,$C23,'Import Expenditure Forecast'!$B$8:$B$79,$B$3,'Import Expenditure Forecast'!$D$8:$D$79,$B$16),SUMIFS(INDEX('Ergon Input'!$F$40:$P$63,,MATCH(K$18,'Ergon Input'!$F$39:$P$39,0)),'Ergon Input'!$C$40:$C$63,$B23,'Ergon Input'!$B$40:$B$63,$B$3,'Ergon Input'!$D$40:$D$63,$B$16)) -> 0 | L23: =IF('Control and Output Summary'!$C$14<>"Ergon",SUMIFS(INDEX('Import Expenditure Forecast'!$F$8:$P$79,,MATCH(L$18,'Import Expenditure Forecast'!$F$7:$P$7,0)),'Import Expenditure Forecast'!$C$8:$C$79,$B23,'Import Expenditure Forecast'!$E$8:$E$79,$C23,'Import Expenditure Forecast'!$B$8:$B$79,$B$3,'Import Expenditure Forecast'!$D$8:$D$79,$B$16),SUMIFS(INDEX('Ergon Input'!$F$40:$P$63,,MATCH(L$18,'Ergon Input'!$F$39:$P$39,0)),'Ergon Input'!$C$40:$C$63,$B23,'Ergon Input'!$B$40:$B$63,$B$3,'Ergon Input'!$D$40:$D$63,$B$16)) -> 0 | M23: =IF('Control and Output Summary'!$C$14<>"Ergon",SUMIFS(INDEX('Import Expenditure Forecast'!$F$8:$P$79,,MATCH(M$18,'Import Expenditure Forecast'!$F$7:$P$7,0)),'Import Expenditure Forecast'!$C$8:$C$79,$B23,'Import Expenditure Forecast'!$E$8:$E$79,$C23,'Import Expenditure Forecast'!$B$8:$B$79,$B$3,'Import Expenditure Forecast'!$D$8:$D$79,$B$16),SUMIFS(INDEX('Ergon Input'!$F$40:$P$63,,MATCH(M$18,'Ergon Input'!$F$39:$P$39,0)),'Ergon Input'!$C$40:$C$63,$B23,'Ergon Input'!$B$40:$B$63,$B$3,'Ergon Input'!$D$40:$D$63,$B$16)) -> 0 | N23: =IF('Control and Output Summary'!$C$14<>"Ergon",SUMIFS(INDEX('Import Expenditure Forecast'!$F$8:$P$79,,MATCH(N$18,'Import Expenditure Forecast'!$F$7:$P$7,0)),'Import Expenditure Forecast'!$C$8:$C$79,$B23,'Import Expenditure Forecast'!$E$8:$E$79,$C23,'Import Expenditure Forecast'!$B$8:$B$79,$B$3,'Import Expenditure Forecast'!$D$8:$D$79,$B$16),SUMIFS(INDEX('Ergon Input'!$F$40:$P$63,,MATCH(N$18,'Ergon Input'!$F$39:$P$39,0)),'Ergon Input'!$C$40:$C$63,$B23,'Ergon Input'!$B$40:$B$63,$B$3,'Ergon Input'!$D$40:$D$63,$B$16)) -> 0
B24: ST 110/132 kv | C24: ='Control and Output Summary'!$C$14 -> West | D24: =IF('Control and Output Summary'!$C$14<>"Ergon",SUMIFS(INDEX('Import Expenditure Forecast'!$F$8:$P$79,,MATCH(D$18,'Import Expenditure Forecast'!$F$7:$P$7,0)),'Import Expenditure Forecast'!$C$8:$C$79,$B24,'Import Expenditure Forecast'!$E$8:$E$79,$C24,'Import Expenditure Forecast'!$B$8:$B$79,$B$3,'Import Expenditure Forecast'!$D$8:$D$79,$B$16),SUMIFS(INDEX('Ergon Input'!$F$40:$P$63,,MATCH(D$18,'Ergon Input'!$F$39:$P$39,0)),'Ergon Input'!$C$40:$C$63,$B24,'Ergon Input'!$B$40:$B$63,$B$3,'Ergon Input'!$D$40:$D$63,$B$16)) -> 0 | E24: =IF('Control and Output Summary'!$C$14<>"Ergon",SUMIFS(INDEX('Import Expenditure Forecast'!$F$8:$P$79,,MATCH(E$18,'Import Expenditure Forecast'!$F$7:$P$7,0)),'Import Expenditure Forecast'!$C$8:$C$79,$B24,'Import Expenditure Forecast'!$E$8:$E$79,$C24,'Import Expenditure Forecast'!$B$8:$B$79,$B$3,'Import Expenditure Forecast'!$D$8:$D$79,$B$16),SUMIFS(INDEX('Ergon Input'!$F$40:$P$63,,MATCH(E$18,'Ergon Input'!$F$39:$P$39,0)),'Ergon Input'!$C$40:$C$63,$B24,'Ergon Input'!$B$40:$B$63,$B$3,'Ergon Input'!$D$40:$D$63,$B$16)) -> 0 | F24: =IF('Control and Output Summary'!$C$14<>"Ergon",SUMIFS(INDEX('Import Expenditure Forecast'!$F$8:$P$79,,MATCH(F$18,'Import Expenditure Forecast'!$F$7:$P$7,0)),'Import Expenditure Forecast'!$C$8:$C$79,$B24,'Import Expenditure Forecast'!$E$8:$E$79,$C24,'Import Expenditure Forecast'!$B$8:$B$79,$B$3,'Import Expenditure Forecast'!$D$8:$D$79,$B$16),SUMIFS(INDEX('Ergon Input'!$F$40:$P$63,,MATCH(F$18,'Ergon Input'!$F$39:$P$39,0)),'Ergon Input'!$C$40:$C$63,$B24,'Ergon Input'!$B$40:$B$63,$B$3,'Ergon Input'!$D$40:$D$63,$B$16)) -> 0 | G24: =IF('Control and Output Summary'!$C$14<>"Ergon",SUMIFS(INDEX('Import Expenditure Forecast'!$F$8:$P$79,,MATCH(G$18,'Import Expenditure Forecast'!$F$7:$P$7,0)),'Import Expenditure Forecast'!$C$8:$C$79,$B24,'Import Expenditure Forecast'!$E$8:$E$79,$C24,'Import Expenditure Forecast'!$B$8:$B$79,$B$3,'Import Expenditure Forecast'!$D$8:$D$79,$B$16),SUMIFS(INDEX('Ergon Input'!$F$40:$P$63,,MATCH(G$18,'Ergon Input'!$F$39:$P$39,0)),'Ergon Input'!$C$40:$C$63,$B24,'Ergon Input'!$B$40:$B$63,$B$3,'Ergon Input'!$D$40:$D$63,$B$16)) -> 0 | H24: =IF('Control and Output Summary'!$C$14<>"Ergon",SUMIFS(INDEX('Import Expenditure Forecast'!$F$8:$P$79,,MATCH(H$18,'Import Expenditure Forecast'!$F$7:$P$7,0)),'Import Expenditure Forecast'!$C$8:$C$79,$B24,'Import Expenditure Forecast'!$E$8:$E$79,$C24,'Import Expenditure Forecast'!$B$8:$B$79,$B$3,'Import Expenditure Forecast'!$D$8:$D$79,$B$16),SUMIFS(INDEX('Ergon Input'!$F$40:$P$63,,MATCH(H$18,'Ergon Input'!$F$39:$P$39,0)),'Ergon Input'!$C$40:$C$63,$B24,'Ergon Input'!$B$40:$B$63,$B$3,'Ergon Input'!$D$40:$D$63,$B$16)) -> 0 | I24: =IF('Control and Output Summary'!$C$14<>"Ergon",SUMIFS(INDEX('Import Expenditure Forecast'!$F$8:$P$79,,MATCH(I$18,'Import Expenditure Forecast'!$F$7:$P$7,0)),'Import Expenditure Forecast'!$C$8:$C$79,$B24,'Import Expenditure Forecast'!$E$8:$E$79,$C24,'Import Expenditure Forecast'!$B$8:$B$79,$B$3,'Import Expenditure Forecast'!$D$8:$D$79,$B$16),SUMIFS(INDEX('Ergon Input'!$F$40:$P$63,,MATCH(I$18,'Ergon Input'!$F$39:$P$39,0)),'Ergon Input'!$C$40:$C$63,$B24,'Ergon Input'!$B$40:$B$63,$B$3,'Ergon Input'!$D$40:$D$63,$B$16)) -> 0 | J24: =IF('Control and Output Summary'!$C$14<>"Ergon",SUMIFS(INDEX('Import Expenditure Forecast'!$F$8:$P$79,,MATCH(J$18,'Import Expenditure Forecast'!$F$7:$P$7,0)),'Import Expenditure Forecast'!$C$8:$C$79,$B24,'Import Expenditure Forecast'!$E$8:$E$79,$C24,'Import Expenditure Forecast'!$B$8:$B$79,$B$3,'Import Expenditure Forecast'!$D$8:$D$79,$B$16),SUMIFS(INDEX('Ergon Input'!$F$40:$P$63,,MATCH(J$18,'Ergon Input'!$F$39:$P$39,0)),'Ergon Input'!$C$40:$C$63,$B24,'Ergon Input'!$B$40:$B$63,$B$3,'Ergon Input'!$D$40:$D$63,$B$16)) -> 0 | K24: =IF('Control and Output Summary'!$C$14<>"Ergon",SUMIFS(INDEX('Import Expenditure Forecast'!$F$8:$P$79,,MATCH(K$18,'Import Expenditure Forecast'!$F$7:$P$7,0)),'Import Expenditure Forecast'!$C$8:$C$79,$B24,'Import Expenditure Forecast'!$E$8:$E$79,$C24,'Import Expenditure Forecast'!$B$8:$B$79,$B$3,'Import Expenditure Forecast'!$D$8:$D$79,$B$16),SUMIFS(INDEX('Ergon Input'!$F$40:$P$63,,MATCH(K$18,'Ergon Input'!$F$39:$P$39,0)),'Ergon Input'!$C$40:$C$63,$B24,'Ergon Input'!$B$40:$B$63,$B$3,'Ergon Input'!$D$40:$D$63,$B$16)) -> 0 | L24: =IF('Control and Output Summary'!$C$14<>"Ergon",SUMIFS(INDEX('Import Expenditure Forecast'!$F$8:$P$79,,MATCH(L$18,'Import Expenditure Forecast'!$F$7:$P$7,0)),'Import Expenditure Forecast'!$C$8:$C$79,$B24,'Import Expenditure Forecast'!$E$8:$E$79,$C24,'Import Expenditure Forecast'!$B$8:$B$79,$B$3,'Import Expenditure Forecast'!$D$8:$D$79,$B$16),SUMIFS(INDEX('Ergon Input'!$F$40:$P$63,,MATCH(L$18,'Ergon Input'!$F$39:$P$39,0)),'Ergon Input'!$C$40:$C$63,$B24,'Ergon Input'!$B$40:$B$63,$B$3,'Ergon Input'!$D$40:$D$63,$B$16)) -> 0 | M24: =IF('Control and Output Summary'!$C$14<>"Ergon",SUMIFS(INDEX('Import Expenditure Forecast'!$F$8:$P$79,,MATCH(M$18,'Import Expenditure Forecast'!$F$7:$P$7,0)),'Import Expenditure Forecast'!$C$8:$C$79,$B24,'Import Expenditure Forecast'!$E$8:$E$79,$C24,'Import Expenditure Forecast'!$B$8:$B$79,$B$3,'Import Expenditure Forecast'!$D$8:$D$79,$B$16),SUMIFS(INDEX('Ergon Input'!$F$40:$P$63,,MATCH(M$18,'Ergon Input'!$F$39:$P$39,0)),'Ergon Input'!$C$40:$C$63,$B24,'Ergon Input'!$B$40:$B$63,$B$3,'Ergon Input'!$D$40:$D$63,$B$16)) -> 0 | N24: =IF('Control and Output Summary'!$C$14<>"Ergon",SUMIFS(INDEX('Import Expenditure Forecast'!$F$8:$P$79,,MATCH(N$18,'Import Expenditure Forecast'!$F$7:$P$7,0)),'Import Expenditure Forecast'!$C$8:$C$79,$B24,'Import Expenditure Forecast'!$E$8:$E$79,$C24,'Import Expenditure Forecast'!$B$8:$B$79,$B$3,'Import Expenditure Forecast'!$D$8:$D$79,$B$16),SUMIFS(INDEX('Ergon Input'!$F$40:$P$63,,MATCH(N$18,'Ergon Input'!$F$39:$P$39,0)),'Ergon Input'!$C$40:$C$63,$B24,'Ergon Input'!$B$40:$B$63,$B$3,'Ergon Input'!$D$40:$D$63,$B$16)) -> 0
B27: Connections
B29: Voltage Level | C29: Pricing Zone | D29: =D$18 -> 2023 | E29: 2024 | F29: 2025 | G29: 2026 | H29: 2027 | I29: 2028 | J29: 2029 | K29: 2030 | L29: 2031 | M29: 2032 | N29: 2033
B30: LV Line | C30: ='Control and Output Summary'!$C$14 -> West | D30: =IF('Control and Output Summary'!$C$14<>"Ergon",SUMIFS(INDEX('Import Expenditure Forecast'!$F$8:$P$79,,MATCH(D$29,'Import Expenditure Forecast'!$F$7:$P$7,0)),'Import Expenditure Forecast'!$C$8:$C$79,$B30,'Import Expenditure Forecast'!$E$8:$E$79,$C30,'Import Expenditure Forecast'!$B$8:$B$79,$B$3,'Import Expenditure Forecast'!$D$8:$D$79,$B$27),SUMIFS(INDEX('Ergon Input'!$F$40:$P$63,,MATCH(D$29,'Ergon Input'!$F$39:$P$39,0)),'Ergon Input'!$C$40:$C$63,$B30,'Ergon Input'!$B$40:$B$63,$B$3,'Ergon Input'!$D$40:$D$63,$B$27)) -> 21.34021396 | E30: =IF('Control and Output Summary'!$C$14<>"Ergon",SUMIFS(INDEX('Import Expenditure Forecast'!$F$8:$P$79,,MATCH(E$29,'Import Expenditure Forecast'!$F$7:$P$7,0)),'Import Expenditure Forecast'!$C$8:$C$79,$B30,'Import Expenditure Forecast'!$E$8:$E$79,$C30,'Import Expenditure Forecast'!$B$8:$B$79,$B$3,'Import Expenditure Forecast'!$D$8:$D$79,$B$27),SUMIFS(INDEX('Ergon Input'!$F$40:$P$63,,MATCH(E$29,'Ergon Input'!$F$39:$P$39,0)),'Ergon Input'!$C$40:$C$63,$B30,'Ergon Input'!$B$40:$B$63,$B$3,'Ergon Input'!$D$40:$D$63,$B$27)) -> 22.31261947 | F30: =IF('Control and Output Summary'!$C$14<>"Ergon",SUMIFS(INDEX('Import Expenditure Forecast'!$F$8:$P$79,,MATCH(F$29,'Import Expenditure Forecast'!$F$7:$P$7,0)),'Import Expenditure Forecast'!$C$8:$C$79,$B30,'Import Expenditure Forecast'!$E$8:$E$79,$C30,'Import Expenditure Forecast'!$B$8:$B$79,$B$3,'Import Expenditure Forecast'!$D$8:$D$79,$B$27),SUMIFS(INDEX('Ergon Input'!$F$40:$P$63,,MATCH(F$29,'Ergon Input'!$F$39:$P$39,0)),'Ergon Input'!$C$40:$C$63,$B30,'Ergon Input'!$B$40:$B$63,$B$3,'Ergon Input'!$D$40:$D$63,$B$27)) -> 22.58367556 | G30: =IF('Control and Output Summary'!$C$14<>"Ergon",SUMIFS(INDEX('Import Expenditure Forecast'!$F$8:$P$79,,MATCH(G$29,'Import Expenditure Forecast'!$F$7:$P$7,0)),'Import Expenditure Forecast'!$C$8:$C$79,$B30,'Import Expenditure Forecast'!$E$8:$E$79,$C30,'Import Expenditure Forecast'!$B$8:$B$79,$B$3,'Import Expenditure Forecast'!$D$8:$D$79,$B$27),SUMIFS(INDEX('Ergon Input'!$F$40:$P$63,,MATCH(G$29,'Ergon Input'!$F$39:$P$39,0)),'Ergon Input'!$C$40:$C$63,$B30,'Ergon Input'!$B$40:$B$63,$B$3,'Ergon Input'!$D$40:$D$63,$B$27)) -> 23.30724493 | H30: =IF('Control and Output Summary'!$C$14<>"Ergon",SUMIFS(INDEX('Import Expenditure Forecast'!$F$8:$P$79,,MATCH(H$29,'Import Expenditure Forecast'!$F$7:$P$7,0)),'Import Expenditure Forecast'!$C$8:$C$79,$B30,'Import Expenditure Forecast'!$E$8:$E$79,$C30,'Import Expenditure Forecast'!$B$8:$B$79,$B$3,'Import Expenditure Forecast'!$D$8:$D$79,$B$27),SUMIFS(INDEX('Ergon Input'!$F$40:$P$63,,MATCH(H$29,'Ergon Input'!$F$39:$P$39,0)),'Ergon Input'!$C$40:$C$63,$B30,'Ergon Input'!$B$40:$B$63,$B$3,'Ergon Input'!$D$40:$D$63,$B$27)) -> 23.93575398 | I30: =IF('Control and Output Summary'!$C$14<>"Ergon",SUMIFS(INDEX('Import Expenditure Forecast'!$F$8:$P$79,,MATCH(I$29,'Import Expenditure Forecast'!$F$7:$P$7,0)),'Import Expenditure Forecast'!$C$8:$C$79,$B30,'Import Expenditure Forecast'!$E$8:$E$79,$C30,'Import Expenditure Forecast'!$B$8:$B$79,$B$3,'Import Expenditure Forecast'!$D$8:$D$79,$B$27),SUMIFS(INDEX('Ergon Input'!$F$40:$P$63,,MATCH(I$29,'Ergon Input'!$F$39:$P$39,0)),'Ergon Input'!$C$40:$C$63,$B30,'Ergon Input'!$B$40:$B$63,$B$3,'Ergon Input'!$D$40:$D$63,$B$27)) -> 24.60465985 | J30: =IF('Control and Output Summary'!$C$14<>"Ergon",SUMIFS(INDEX('Import Expenditure Forecast'!$F$8:$P$79,,MATCH(J$29,'Import Expenditure Forecast'!$F$7:$P$7,0)),'Import Expenditure Forecast'!$C$8:$C$79,$B30,'Import Expenditure Forecast'!$E$8:$E$79,$C30,'Import Expenditure Forecast'!$B$8:$B$79,$B$3,'Import Expenditure Forecast'!$D$8:$D$79,$B$27),SUMIFS(INDEX('Ergon Input'!$F$40:$P$63,,MATCH(J$29,'Ergon Input'!$F$39:$P$39,0)),'Ergon Input'!$C$40:$C$63,$B30,'Ergon Input'!$B$40:$B$63,$B$3,'Ergon Input'!$D$40:$D$63,$B$27)) -> 25.2995304 | K30: =IF('Control and Output Summary'!$C$14<>"Ergon",SUMIFS(INDEX('Import Expenditure Forecast'!$F$8:$P$79,,MATCH(K$29,'Import Expenditure Forecast'!$F$7:$P$7,0)),'Import Expenditure Forecast'!$C$8:$C$79,$B30,'Import Expenditure Forecast'!$E$8:$E$79,$C30,'Import Expenditure Forecast'!$B$8:$B$79,$B$3,'Import Expenditure Forecast'!$D$8:$D$79,$B$27),SUMIFS(INDEX('Ergon Input'!$F$40:$P$63,,MATCH(K$29,'Ergon Input'!$F$39:$P$39,0)),'Ergon Input'!$C$40:$C$63,$B30,'Ergon Input'!$B$40:$B$63,$B$3,'Ergon Input'!$D$40:$D$63,$B$27)) -> 25.2995304 | L30: =IF('Control and Output Summary'!$C$14<>"Ergon",SUMIFS(INDEX('Import Expenditure Forecast'!$F$8:$P$79,,MATCH(L$29,'Import Expenditure Forecast'!$F$7:$P$7,0)),'Import Expenditure Forecast'!$C$8:$C$79,$B30,'Import Expenditure Forecast'!$E$8:$E$79,$C30,'Import Expenditure Forecast'!$B$8:$B$79,$B$3,'Import Expenditure Forecast'!$D$8:$D$79,$B$27),SUMIFS(INDEX('Ergon Input'!$F$40:$P$63,,MATCH(L$29,'Ergon Input'!$F$39:$P$39,0)),'Ergon Input'!$C$40:$C$63,$B30,'Ergon Input'!$B$40:$B$63,$B$3,'Ergon Input'!$D$40:$D$63,$B$27)) -> 25.2995304 | M30: =IF('Control and Output Summary'!$C$14<>"Ergon",SUMIFS(INDEX('Import Expenditure Forecast'!$F$8:$P$79,,MATCH(M$29,'Import Expenditure Forecast'!$F$7:$P$7,0)),'Import Expenditure Forecast'!$C$8:$C$79,$B30,'Import Expenditure Forecast'!$E$8:$E$79,$C30,'Import Expenditure Forecast'!$B$8:$B$79,$B$3,'Import Expenditure Forecast'!$D$8:$D$79,$B$27),SUMIFS(INDEX('Ergon Input'!$F$40:$P$63,,MATCH(M$29,'Ergon Input'!$F$39:$P$39,0)),'Ergon Input'!$C$40:$C$63,$B30,'Ergon Input'!$B$40:$B$63,$B$3,'Ergon Input'!$D$40:$D$63,$B$27)) -> 25.2995304 | N30: =IF('Control and Output Summary'!$C$14<>"Ergon",SUMIFS(INDEX('Import Expenditure Forecast'!$F$8:$P$79,,MATCH(N$29,'Import Expenditure Forecast'!$F$7:$P$7,0)),'Import Expenditure Forecast'!$C$8:$C$79,$B30,'Import Expenditure Forecast'!$E$8:$E$79,$C30,'Import Expenditure Forecast'!$B$8:$B$79,$B$3,'Import Expenditure Forecast'!$D$8:$D$79,$B$27),SUMIFS(INDEX('Ergon Input'!$F$40:$P$63,,MATCH(N$29,'Ergon Input'!$F$39:$P$39,0)),'Ergon Input'!$C$40:$C$63,$B30,'Ergon Input'!$B$40:$B$63,$B$3,'Ergon Input'!$D$40:$D$63,$B$27)) -> 25.2995304
B31: LV Bus | C31: ='Control and Output Summary'!$C$14 -> West | D31: =IF('Control and Output Summary'!$C$14<>"Ergon",SUMIFS(INDEX('Import Expenditure Forecast'!$F$8:$P$79,,MATCH(D$29,'Import Expenditure Forecast'!$F$7:$P$7,0)),'Import Expenditure Forecast'!$C$8:$C$79,$B31,'Import Expenditure Forecast'!$E$8:$E$79,$C31,'Import Expenditure Forecast'!$B$8:$B$79,$B$3,'Import Expenditure Forecast'!$D$8:$D$79,$B$27),SUMIFS(INDEX('Ergon Input'!$F$40:$P$63,,MATCH(D$29,'Ergon Input'!$F$39:$P$39,0)),'Ergon Input'!$C$40:$C$63,$B31,'Ergon Input'!$B$40:$B$63,$B$3,'Ergon Input'!$D$40:$D$63,$B$27)) -> 0 | E31: =IF('Control and Output Summary'!$C$14<>"Ergon",SUMIFS(INDEX('Import Expenditure Forecast'!$F$8:$P$79,,MATCH(E$29,'Import Expenditure Forecast'!$F$7:$P$7,0)),'Import Expenditure Forecast'!$C$8:$C$79,$B31,'Import Expenditure Forecast'!$E$8:$E$79,$C31,'Import Expenditure Forecast'!$B$8:$B$79,$B$3,'Import Expenditure Forecast'!$D$8:$D$79,$B$27),SUMIFS(INDEX('Ergon Input'!$F$40:$P$63,,MATCH(E$29,'Ergon Input'!$F$39:$P$39,0)),'Ergon Input'!$C$40:$C$63,$B31,'Ergon Input'!$B$40:$B$63,$B$3,'Ergon Input'!$D$40:$D$63,$B$27)) -> 0 | F31: =IF('Control and Output Summary'!$C$14<>"Ergon",SUMIFS(INDEX('Import Expenditure Forecast'!$F$8:$P$79,,MATCH(F$29,'Import Expenditure Forecast'!$F$7:$P$7,0)),'Import Expenditure Forecast'!$C$8:$C$79,$B31,'Import Expenditure Forecast'!$E$8:$E$79,$C31,'Import Expenditure Forecast'!$B$8:$B$79,$B$3,'Import Expenditure Forecast'!$D$8:$D$79,$B$27),SUMIFS(INDEX('Ergon Input'!$F$40:$P$63,,MATCH(F$29,'Ergon Input'!$F$39:$P$39,0)),'Ergon Input'!$C$40:$C$63,$B31,'Ergon Input'!$B$40:$B$63,$B$3,'Ergon Input'!$D$40:$D$63,$B$27)) -> 0 | G31: =IF('Control and Output Summary'!$C$14<>"Ergon",SUMIFS(INDEX('Import Expenditure Forecast'!$F$8:$P$79,,MATCH(G$29,'Import Expenditure Forecast'!$F$7:$P$7,0)),'Import Expenditure Forecast'!$C$8:$C$79,$B31,'Import Expenditure Forecast'!$E$8:$E$79,$C31,'Import Expenditure Forecast'!$B$8:$B$79,$B$3,'Import Expenditure Forecast'!$D$8:$D$79,$B$27),SUMIFS(INDEX('Ergon Input'!$F$40:$P$63,,MATCH(G$29,'Ergon Input'!$F$39:$P$39,0)),'Ergon Input'!$C$40:$C$63,$B31,'Ergon Input'!$B$40:$B$63,$B$3,'Ergon Input'!$D$40:$D$63,$B$27)) -> 0 | H31: =IF('Control and Output Summary'!$C$14<>"Ergon",SUMIFS(INDEX('Import Expenditure Forecast'!$F$8:$P$79,,MATCH(H$29,'Import Expenditure Forecast'!$F$7:$P$7,0)),'Import Expenditure Forecast'!$C$8:$C$79,$B31,'Import Expenditure Forecast'!$E$8:$E$79,$C31,'Import Expenditure Forecast'!$B$8:$B$79,$B$3,'Import Expenditure Forecast'!$D$8:$D$79,$B$27),SUMIFS(INDEX('Ergon Input'!$F$40:$P$63,,MATCH(H$29,'Ergon Input'!$F$39:$P$39,0)),'Ergon Input'!$C$40:$C$63,$B31,'Ergon Input'!$B$40:$B$63,$B$3,'Ergon Input'!$D$40:$D$63,$B$27)) -> 0 | I31: =IF('Control and Output Summary'!$C$14<>"Ergon",SUMIFS(INDEX('Import Expenditure Forecast'!$F$8:$P$79,,MATCH(I$29,'Import Expenditure Forecast'!$F$7:$P$7,0)),'Import Expenditure Forecast'!$C$8:$C$79,$B31,'Import Expenditure Forecast'!$E$8:$E$79,$C31,'Import Expenditure Forecast'!$B$8:$B$79,$B$3,'Import Expenditure Forecast'!$D$8:$D$79,$B$27),SUMIFS(INDEX('Ergon Input'!$F$40:$P$63,,MATCH(I$29,'Ergon Input'!$F$39:$P$39,0)),'Ergon Input'!$C$40:$C$63,$B31,'Ergon Input'!$B$40:$B$63,$B$3,'Ergon Input'!$D$40:$D$63,$B$27)) -> 0 | J31: =IF('Control and Output Summary'!$C$14<>"Ergon",SUMIFS(INDEX('Import Expenditure Forecast'!$F$8:$P$79,,MATCH(J$29,'Import Expenditure Forecast'!$F$7:$P$7,0)),'Import Expenditure Forecast'!$C$8:$C$79,$B31,'Import Expenditure Forecast'!$E$8:$E$79,$C31,'Import Expenditure Forecast'!$B$8:$B$79,$B$3,'Import Expenditure Forecast'!$D$8:$D$79,$B$27),SUMIFS(INDEX('Ergon Input'!$F$40:$P$63,,MATCH(J$29,'Ergon Input'!$F$39:$P$39,0)),'Ergon Input'!$C$40:$C$63,$B31,'Ergon Input'!$B$40:$B$63,$B$3,'Ergon Input'!$D$40:$D$63,$B$27)) -> 0 | K31: =IF('Control and Output Summary'!$C$14<>"Ergon",SUMIFS(INDEX('Import Expenditure Forecast'!$F$8:$P$79,,MATCH(K$29,'Import Expenditure Forecast'!$F$7:$P$7,0)),'Import Expenditure Forecast'!$C$8:$C$79,$B31,'Import Expenditure Forecast'!$E$8:$E$79,$C31,'Import Expenditure Forecast'!$B$8:$B$79,$B$3,'Import Expenditure Forecast'!$D$8:$D$79,$B$27),SUMIFS(INDEX('Ergon Input'!$F$40:$P$63,,MATCH(K$29,'Ergon Input'!$F$39:$P$39,0)),'Ergon Input'!$C$40:$C$63,$B31,'Ergon Input'!$B$40:$B$63,$B$3,'Ergon Input'!$D$40:$D$63,$B$27)) -> 0 | L31: =IF('Control and Output Summary'!$C$14<>"Ergon",SUMIFS(INDEX('Import Expenditure Forecast'!$F$8:$P$79,,MATCH(L$29,'Import Expenditure Forecast'!$F$7:$P$7,0)),'Import Expenditure Forecast'!$C$8:$C$79,$B31,'Import Expenditure Forecast'!$E$8:$E$79,$C31,'Import Expenditure Forecast'!$B$8:$B$79,$B$3,'Import Expenditure Forecast'!$D$8:$D$79,$B$27),SUMIFS(INDEX('Ergon Input'!$F$40:$P$63,,MATCH(L$29,'Ergon Input'!$F$39:$P$39,0)),'Ergon Input'!$C$40:$C$63,$B31,'Ergon Input'!$B$40:$B$63,$B$3,'Ergon Input'!$D$40:$D$63,$B$27)) -> 0 | M31: =IF('Control and Output Summary'!$C$14<>"Ergon",SUMIFS(INDEX('Import Expenditure Forecast'!$F$8:$P$79,,MATCH(M$29,'Import Expenditure Forecast'!$F$7:$P$7,0)),'Import Expenditure Forecast'!$C$8:$C$79,$B31,'Import Expenditure Forecast'!$E$8:$E$79,$C31,'Import Expenditure Forecast'!$B$8:$B$79,$B$3,'Import Expenditure Forecast'!$D$8:$D$79,$B$27),SUMIFS(INDEX('Ergon Input'!$F$40:$P$63,,MATCH(M$29,'Ergon Input'!$F$39:$P$39,0)),'Ergon Input'!$C$40:$C$63,$B31,'Ergon Input'!$B$40:$B$63,$B$3,'Ergon Input'!$D$40:$D$63,$B$27)) -> 0 | N31: =IF('Control and Output Summary'!$C$14<>"Ergon",SUMIFS(INDEX('Import Expenditure Forecast'!$F$8:$P$79,,MATCH(N$29,'Import Expenditure Forecast'!$F$7:$P$7,0)),'Import Expenditure Forecast'!$C$8:$C$79,$B31,'Import Expenditure Forecast'!$E$8:$E$79,$C31,'Import Expenditure Forecast'!$B$8:$B$79,$B$3,'Import Expenditure Forecast'!$D$8:$D$79,$B$27),SUMIFS(INDEX('Ergon Input'!$F$40:$P$63,,MATCH(N$29,'Ergon Input'!$F$39:$P$39,0)),'Ergon Input'!$C$40:$C$63,$B31,'Ergon Input'!$B$40:$B$63,$B$3,'Ergon Input'!$D$40:$D$63,$B$27)) -> 0
B32: HV Line | C32: ='Control and Output Summary'!$C$14 -> West | D32: =IF('Control and Output Summary'!$C$14<>"Ergon",SUMIFS(INDEX('Import Expenditure Forecast'!$F$8:$P$79,,MATCH(D$29,'Import Expenditure Forecast'!$F$7:$P$7,0)),'Import Expenditure Forecast'!$C$8:$C$79,$B32,'Import Expenditure Forecast'!$E$8:$E$79,$C32,'Import Expenditure Forecast'!$B$8:$B$79,$B$3,'Import Expenditure Forecast'!$D$8:$D$79,$B$27),SUMIFS(INDEX('Ergon Input'!$F$40:$P$63,,MATCH(D$29,'Ergon Input'!$F$39:$P$39,0)),'Ergon Input'!$C$40:$C$63,$B32,'Ergon Input'!$B$40:$B$63,$B$3,'Ergon Input'!$D$40:$D$63,$B$27)) -> 2.134021396 | E32: =IF('Control and Output Summary'!$C$14<>"Ergon",SUMIFS(INDEX('Import Expenditure Forecast'!$F$8:$P$79,,MATCH(E$29,'Import Expenditure Forecast'!$F$7:$P$7,0)),'Import Expenditure Forecast'!$C$8:$C$79,$B32,'Import Expenditure Forecast'!$E$8:$E$79,$C32,'Import Expenditure Forecast'!$B$8:$B$79,$B$3,'Import Expenditure Forecast'!$D$8:$D$79,$B$27),SUMIFS(INDEX('Ergon Input'!$F$40:$P$63,,MATCH(E$29,'Ergon Input'!$F$39:$P$39,0)),'Ergon Input'!$C$40:$C$63,$B32,'Ergon Input'!$B$40:$B$63,$B$3,'Ergon Input'!$D$40:$D$63,$B$27)) -> 2.231261947 | F32: =IF('Control and Output Summary'!$C$14<>"Ergon",SUMIFS(INDEX('Import Expenditure Forecast'!$F$8:$P$79,,MATCH(F$29,'Import Expenditure Forecast'!$F$7:$P$7,0)),'Import Expenditure Forecast'!$C$8:$C$79,$B32,'Import Expenditure Forecast'!$E$8:$E$79,$C32,'Import Expenditure Forecast'!$B$8:$B$79,$B$3,'Import Expenditure Forecast'!$D$8:$D$79,$B$27),SUMIFS(INDEX('Ergon Input'!$F$40:$P$63,,MATCH(F$29,'Ergon Input'!$F$39:$P$39,0)),'Ergon Input'!$C$40:$C$63,$B32,'Ergon Input'!$B$40:$B$63,$B$3,'Ergon Input'!$D$40:$D$63,$B$27)) -> 2.258367556 | G32: =IF('Control and Output Summary'!$C$14<>"Ergon",SUMIFS(INDEX('Import Expenditure Forecast'!$F$8:$P$79,,MATCH(G$29,'Import Expenditure Forecast'!$F$7:$P$7,0)),'Import Expenditure Forecast'!$C$8:$C$79,$B32,'Import Expenditure Forecast'!$E$8:$E$79,$C32,'Import Expenditure Forecast'!$B$8:$B$79,$B$3,'Import Expenditure Forecast'!$D$8:$D$79,$B$27),SUMIFS(INDEX('Ergon Input'!$F$40:$P$63,,MATCH(G$29,'Ergon Input'!$F$39:$P$39,0)),'Ergon Input'!$C$40:$C$63,$B32,'Ergon Input'!$B$40:$B$63,$B$3,'Ergon Input'!$D$40:$D$63,$B$27)) -> 2.330724493 | H32: =IF('Control and Output Summary'!$C$14<>"Ergon",SUMIFS(INDEX('Import Expenditure Forecast'!$F$8:$P$79,,MATCH(H$29,'Import Expenditure Forecast'!$F$7:$P$7,0)),'Import Expenditure Forecast'!$C$8:$C$79,$B32,'Import Expenditure Forecast'!$E$8:$E$79,$C32,'Import Expenditure Forecast'!$B$8:$B$79,$B$3,'Import Expenditure Forecast'!$D$8:$D$79,$B$27),SUMIFS(INDEX('Ergon Input'!$F$40:$P$63,,MATCH(H$29,'Ergon Input'!$F$39:$P$39,0)),'Ergon Input'!$C$40:$C$63,$B32,'Ergon Input'!$B$40:$B$63,$B$3,'Ergon Input'!$D$40:$D$63,$B$27)) -> 2.393575398 | I32: =IF('Control and Output Summary'!$C$14<>"Ergon",SUMIFS(INDEX('Import Expenditure Forecast'!$F$8:$P$79,,MATCH(I$29,'Import Expenditure Forecast'!$F$7:$P$7,0)),'Import Expenditure Forecast'!$C$8:$C$79,$B32,'Import Expenditure Forecast'!$E$8:$E$79,$C32,'Import Expenditure Forecast'!$B$8:$B$79,$B$3,'Import Expenditure Forecast'!$D$8:$D$79,$B$27),SUMIFS(INDEX('Ergon Input'!$F$40:$P$63,,MATCH(I$29,'Ergon Input'!$F$39:$P$39,0)),'Ergon Input'!$C$40:$C$63,$B32,'Ergon Input'!$B$40:$B$63,$B$3,'Ergon Input'!$D$40:$D$63,$B$27)) -> 2.460465985 | J32: =IF('Control and Output Summary'!$C$14<>"Ergon",SUMIFS(INDEX('Import Expenditure Forecast'!$F$8:$P$79,,MATCH(J$29,'Import Expenditure Forecast'!$F$7:$P$7,0)),'Import Expenditure Forecast'!$C$8:$C$79,$B32,'Import Expenditure Forecast'!$E$8:$E$79,$C32,'Import Expenditure Forecast'!$B$8:$B$79,$B$3,'Import Expenditure Forecast'!$D$8:$D$79,$B$27),SUMIFS(INDEX('Ergon Input'!$F$40:$P$63,,MATCH(J$29,'Ergon Input'!$F$39:$P$39,0)),'Ergon Input'!$C$40:$C$63,$B32,'Ergon Input'!$B$40:$B$63,$B$3,'Ergon Input'!$D$40:$D$63,$B$27)) -> 2.52995304 | K32: =IF('Control and Output Summary'!$C$14<>"Ergon",SUMIFS(INDEX('Import Expenditure Forecast'!$F$8:$P$79,,MATCH(K$29,'Import Expenditure Forecast'!$F$7:$P$7,0)),'Import Expenditure Forecast'!$C$8:$C$79,$B32,'Import Expenditure Forecast'!$E$8:$E$79,$C32,'Import Expenditure Forecast'!$B$8:$B$79,$B$3,'Import Expenditure Forecast'!$D$8:$D$79,$B$27),SUMIFS(INDEX('Ergon Input'!$F$40:$P$63,,MATCH(K$29,'Ergon Input'!$F$39:$P$39,0)),'Ergon Input'!$C$40:$C$63,$B32,'Ergon Input'!$B$40:$B$63,$B$3,'Ergon Input'!$D$40:$D$63,$B$27)) -> 2.52995304 | L32: =IF('Control and Output Summary'!$C$14<>"Ergon",SUMIFS(INDEX('Import Expenditure Forecast'!$F$8:$P$79,,MATCH(L$29,'Import Expenditure Forecast'!$F$7:$P$7,0)),'Import Expenditure Forecast'!$C$8:$C$79,$B32,'Import Expenditure Forecast'!$E$8:$E$79,$C32,'Import Expenditure Forecast'!$B$8:$B$79,$B$3,'Import Expenditure Forecast'!$D$8:$D$79,$B$27),SUMIFS(INDEX('Ergon Input'!$F$40:$P$63,,MATCH(L$29,'Ergon Input'!$F$39:$P$39,0)),'Ergon Input'!$C$40:$C$63,$B32,'Ergon Input'!$B$40:$B$63,$B$3,'Ergon Input'!$D$40:$D$63,$B$27)) -> 2.52995304 | M32: =IF('Control and Output Summary'!$C$14<>"Ergon",SUMIFS(INDEX('Import Expenditure Forecast'!$F$8:$P$79,,MATCH(M$29,'Import Expenditure Forecast'!$F$7:$P$7,0)),'Import Expenditure Forecast'!$C$8:$C$79,$B32,'Import Expenditure Forecast'!$E$8:$E$79,$C32,'Import Expenditure Forecast'!$B$8:$B$79,$B$3,'Import Expenditure Forecast'!$D$8:$D$79,$B$27),SUMIFS(INDEX('Ergon Input'!$F$40:$P$63,,MATCH(M$29,'Ergon Input'!$F$39:$P$39,0)),'Ergon Input'!$C$40:$C$63,$B32,'Ergon Input'!$B$40:$B$63,$B$3,'Ergon Input'!$D$40:$D$63,$B$27)) -> 2.52995304 | N32: =IF('Control and Output Summary'!$C$14<>"Ergon",SUMIFS(INDEX('Import Expenditure Forecast'!$F$8:$P$79,,MATCH(N$29,'Import Expenditure Forecast'!$F$7:$P$7,0)),'Import Expenditure Forecast'!$C$8:$C$79,$B32,'Import Expenditure Forecast'!$E$8:$E$79,$C32,'Import Expenditure Forecast'!$B$8:$B$79,$B$3,'Import Expenditure Forecast'!$D$8:$D$79,$B$27),SUMIFS(INDEX('Ergon Input'!$F$40:$P$63,,MATCH(N$29,'Ergon Input'!$F$39:$P$39,0)),'Ergon Input'!$C$40:$C$63,$B32,'Ergon Input'!$B$40:$B$63,$B$3,'Ergon Input'!$D$40:$D$63,$B$27)) -> 2.52995304
B33: HV Bus | C33: ='Control and Output Summary'!$C$14 -> West | D33: =IF('Control and Output Summary'!$C$14<>"Ergon",SUMIFS(INDEX('Import Expenditure Forecast'!$F$8:$P$79,,MATCH(D$29,'Import Expenditure Forecast'!$F$7:$P$7,0)),'Import Expenditure Forecast'!$C$8:$C$79,$B33,'Import Expenditure Forecast'!$E$8:$E$79,$C33,'Import Expenditure Forecast'!$B$8:$B$79,$B$3,'Import Expenditure Forecast'!$D$8:$D$79,$B$27),SUMIFS(INDEX('Ergon Input'!$F$40:$P$63,,MATCH(D$29,'Ergon Input'!$F$39:$P$39,0)),'Ergon Input'!$C$40:$C$63,$B33,'Ergon Input'!$B$40:$B$63,$B$3,'Ergon Input'!$D$40:$D$63,$B$27)) -> 0 | E33: =IF('Control and Output Summary'!$C$14<>"Ergon",SUMIFS(INDEX('Import Expenditure Forecast'!$F$8:$P$79,,MATCH(E$29,'Import Expenditure Forecast'!$F$7:$P$7,0)),'Import Expenditure Forecast'!$C$8:$C$79,$B33,'Import Expenditure Forecast'!$E$8:$E$79,$C33,'Import Expenditure Forecast'!$B$8:$B$79,$B$3,'Import Expenditure Forecast'!$D$8:$D$79,$B$27),SUMIFS(INDEX('Ergon Input'!$F$40:$P$63,,MATCH(E$29,'Ergon Input'!$F$39:$P$39,0)),'Ergon Input'!$C$40:$C$63,$B33,'Ergon Input'!$B$40:$B$63,$B$3,'Ergon Input'!$D$40:$D$63,$B$27)) -> 0 | F33: =IF('Control and Output Summary'!$C$14<>"Ergon",SUMIFS(INDEX('Import Expenditure Forecast'!$F$8:$P$79,,MATCH(F$29,'Import Expenditure Forecast'!$F$7:$P$7,0)),'Import Expenditure Forecast'!$C$8:$C$79,$B33,'Import Expenditure Forecast'!$E$8:$E$79,$C33,'Import Expenditure Forecast'!$B$8:$B$79,$B$3,'Import Expenditure Forecast'!$D$8:$D$79,$B$27),SUMIFS(INDEX('Ergon Input'!$F$40:$P$63,,MATCH(F$29,'Ergon Input'!$F$39:$P$39,0)),'Ergon Input'!$C$40:$C$63,$B33,'Ergon Input'!$B$40:$B$63,$B$3,'Ergon Input'!$D$40:$D$63,$B$27)) -> 0 | G33: =IF('Control and Output Summary'!$C$14<>"Ergon",SUMIFS(INDEX('Import Expenditure Forecast'!$F$8:$P$79,,MATCH(G$29,'Import Expenditure Forecast'!$F$7:$P$7,0)),'Import Expenditure Forecast'!$C$8:$C$79,$B33,'Import Expenditure Forecast'!$E$8:$E$79,$C33,'Import Expenditure Forecast'!$B$8:$B$79,$B$3,'Import Expenditure Forecast'!$D$8:$D$79,$B$27),SUMIFS(INDEX('Ergon Input'!$F$40:$P$63,,MATCH(G$29,'Ergon Input'!$F$39:$P$39,0)),'Ergon Input'!$C$40:$C$63,$B33,'Ergon Input'!$B$40:$B$63,$B$3,'Ergon Input'!$D$40:$D$63,$B$27)) -> 0 | H33: =IF('Control and Output Summary'!$C$14<>"Ergon",SUMIFS(INDEX('Import Expenditure Forecast'!$F$8:$P$79,,MATCH(H$29,'Import Expenditure Forecast'!$F$7:$P$7,0)),'Import Expenditure Forecast'!$C$8:$C$79,$B33,'Import Expenditure Forecast'!$E$8:$E$79,$C33,'Import Expenditure Forecast'!$B$8:$B$79,$B$3,'Import Expenditure Forecast'!$D$8:$D$79,$B$27),SUMIFS(INDEX('Ergon Input'!$F$40:$P$63,,MATCH(H$29,'Ergon Input'!$F$39:$P$39,0)),'Ergon Input'!$C$40:$C$63,$B33,'Ergon Input'!$B$40:$B$63,$B$3,'Ergon Input'!$D$40:$D$63,$B$27)) -> 0 | I33: =IF('Control and Output Summary'!$C$14<>"Ergon",SUMIFS(INDEX('Import Expenditure Forecast'!$F$8:$P$79,,MATCH(I$29,'Import Expenditure Forecast'!$F$7:$P$7,0)),'Import Expenditure Forecast'!$C$8:$C$79,$B33,'Import Expenditure Forecast'!$E$8:$E$79,$C33,'Import Expenditure Forecast'!$B$8:$B$79,$B$3,'Import Expenditure Forecast'!$D$8:$D$79,$B$27),SUMIFS(INDEX('Ergon Input'!$F$40:$P$63,,MATCH(I$29,'Ergon Input'!$F$39:$P$39,0)),'Ergon Input'!$C$40:$C$63,$B33,'Ergon Input'!$B$40:$B$63,$B$3,'Ergon Input'!$D$40:$D$63,$B$27)) -> 0 | J33: =IF('Control and Output Summary'!$C$14<>"Ergon",SUMIFS(INDEX('Import Expenditure Forecast'!$F$8:$P$79,,MATCH(J$29,'Import Expenditure Forecast'!$F$7:$P$7,0)),'Import Expenditure Forecast'!$C$8:$C$79,$B33,'Import Expenditure Forecast'!$E$8:$E$79,$C33,'Import Expenditure Forecast'!$B$8:$B$79,$B$3,'Import Expenditure Forecast'!$D$8:$D$79,$B$27),SUMIFS(INDEX('Ergon Input'!$F$40:$P$63,,MATCH(J$29,'Ergon Input'!$F$39:$P$39,0)),'Ergon Input'!$C$40:$C$63,$B33,'Ergon Input'!$B$40:$B$63,$B$3,'Ergon Input'!$D$40:$D$63,$B$27)) -> 0 | K33: =IF('Control and Output Summary'!$C$14<>"Ergon",SUMIFS(INDEX('Import Expenditure Forecast'!$F$8:$P$79,,MATCH(K$29,'Import Expenditure Forecast'!$F$7:$P$7,0)),'Import Expenditure Forecast'!$C$8:$C$79,$B33,'Import Expenditure Forecast'!$E$8:$E$79,$C33,'Import Expenditure Forecast'!$B$8:$B$79,$B$3,'Import Expenditure Forecast'!$D$8:$D$79,$B$27),SUMIFS(INDEX('Ergon Input'!$F$40:$P$63,,MATCH(K$29,'Ergon Input'!$F$39:$P$39,0)),'Ergon Input'!$C$40:$C$63,$B33,'Ergon Input'!$B$40:$B$63,$B$3,'Ergon Input'!$D$40:$D$63,$B$27)) -> 0 | L33: =IF('Control and Output Summary'!$C$14<>"Ergon",SUMIFS(INDEX('Import Expenditure Forecast'!$F$8:$P$79,,MATCH(L$29,'Import Expenditure Forecast'!$F$7:$P$7,0)),'Import Expenditure Forecast'!$C$8:$C$79,$B33,'Import Expenditure Forecast'!$E$8:$E$79,$C33,'Import Expenditure Forecast'!$B$8:$B$79,$B$3,'Import Expenditure Forecast'!$D$8:$D$79,$B$27),SUMIFS(INDEX('Ergon Input'!$F$40:$P$63,,MATCH(L$29,'Ergon Input'!$F$39:$P$39,0)),'Ergon Input'!$C$40:$C$63,$B33,'Ergon Input'!$B$40:$B$63,$B$3,'Ergon Input'!$D$40:$D$63,$B$27)) -> 0 | M33: =IF('Control and Output Summary'!$C$14<>"Ergon",SUMIFS(INDEX('Import Expenditure Forecast'!$F$8:$P$79,,MATCH(M$29,'Import Expenditure Forecast'!$F$7:$P$7,0)),'Import Expenditure Forecast'!$C$8:$C$79,$B33,'Import Expenditure Forecast'!$E$8:$E$79,$C33,'Import Expenditure Forecast'!$B$8:$B$79,$B$3,'Import Expenditure Forecast'!$D$8:$D$79,$B$27),SUMIFS(INDEX('Ergon Input'!$F$40:$P$63,,MATCH(M$29,'Ergon Input'!$F$39:$P$39,0)),'Ergon Input'!$C$40:$C$63,$B33,'Ergon Input'!$B$40:$B$63,$B$3,'Ergon Input'!$D$40:$D$63,$B$27)) -> 0 | N33: =IF('Control and Output Summary'!$C$14<>"Ergon",SUMIFS(INDEX('Import Expenditure Forecast'!$F$8:$P$79,,MATCH(N$29,'Import Expenditure Forecast'!$F$7:$P$7,0)),'Import Expenditure Forecast'!$C$8:$C$79,$B33,'Import Expenditure Forecast'!$E$8:$E$79,$C33,'Import Expenditure Forecast'!$B$8:$B$79,$B$3,'Import Expenditure Forecast'!$D$8:$D$79,$B$27),SUMIFS(INDEX('Ergon Input'!$F$40:$P$63,,MATCH(N$29,'Ergon Input'!$F$39:$P$39,0)),'Ergon Input'!$C$40:$C$63,$B33,'Ergon Input'!$B$40:$B$63,$B$3,'Ergon Input'!$D$40:$D$63,$B$27)) -> 0
B34: ST 33/66 kv | C34: ='Control and Output Summary'!$C$14 -> West | D34: =IF('Control and Output Summary'!$C$14<>"Ergon",SUMIFS(INDEX('Import Expenditure Forecast'!$F$8:$P$79,,MATCH(D$29,'Import Expenditure Forecast'!$F$7:$P$7,0)),'Import Expenditure Forecast'!$C$8:$C$79,$B34,'Import Expenditure Forecast'!$E$8:$E$79,$C34,'Import Expenditure Forecast'!$B$8:$B$79,$B$3,'Import Expenditure Forecast'!$D$8:$D$79,$B$27),SUMIFS(INDEX('Ergon Input'!$F$40:$P$63,,MATCH(D$29,'Ergon Input'!$F$39:$P$39,0)),'Ergon Input'!$C$40:$C$63,$B34,'Ergon Input'!$B$40:$B$63,$B$3,'Ergon Input'!$D$40:$D$63,$B$27)) -> 0 | E34: =IF('Control and Output Summary'!$C$14<>"Ergon",SUMIFS(INDEX('Import Expenditure Forecast'!$F$8:$P$79,,MATCH(E$29,'Import Expenditure Forecast'!$F$7:$P$7,0)),'Import Expenditure Forecast'!$C$8:$C$79,$B34,'Import Expenditure Forecast'!$E$8:$E$79,$C34,'Import Expenditure Forecast'!$B$8:$B$79,$B$3,'Import Expenditure Forecast'!$D$8:$D$79,$B$27),SUMIFS(INDEX('Ergon Input'!$F$40:$P$63,,MATCH(E$29,'Ergon Input'!$F$39:$P$39,0)),'Ergon Input'!$C$40:$C$63,$B34,'Ergon Input'!$B$40:$B$63,$B$3,'Ergon Input'!$D$40:$D$63,$B$27)) -> 0 | F34: =IF('Control and Output Summary'!$C$14<>"Ergon",SUMIFS(INDEX('Import Expenditure Forecast'!$F$8:$P$79,,MATCH(F$29,'Import Expenditure Forecast'!$F$7:$P$7,0)),'Import Expenditure Forecast'!$C$8:$C$79,$B34,'Import Expenditure Forecast'!$E$8:$E$79,$C34,'Import Expenditure Forecast'!$B$8:$B$79,$B$3,'Import Expenditure Forecast'!$D$8:$D$79,$B$27),SUMIFS(INDEX('Ergon Input'!$F$40:$P$63,,MATCH(F$29,'Ergon Input'!$F$39:$P$39,0)),'Ergon Input'!$C$40:$C$63,$B34,'Ergon Input'!$B$40:$B$63,$B$3,'Ergon Input'!$D$40:$D$63,$B$27)) -> 0 | G34: =IF('Control and Output Summary'!$C$14<>"Ergon",SUMIFS(INDEX('Import Expenditure Forecast'!$F$8:$P$79,,MATCH(G$29,'Import Expenditure Forecast'!$F$7:$P$7,0)),'Import Expenditure Forecast'!$C$8:$C$79,$B34,'Import Expenditure Forecast'!$E$8:$E$79,$C34,'Import Expenditure Forecast'!$B$8:$B$79,$B$3,'Import Expenditure Forecast'!$D$8:$D$79,$B$27),SUMIFS(INDEX('Ergon Input'!$F$40:$P$63,,MATCH(G$29,'Ergon Input'!$F$39:$P$39,0)),'Ergon Input'!$C$40:$C$63,$B34,'Ergon Input'!$B$40:$B$63,$B$3,'Ergon Input'!$D$40:$D$63,$B$27)) -> 0 | H34: =IF('Control and Output Summary'!$C$14<>"Ergon",SUMIFS(INDEX('Import Expenditure Forecast'!$F$8:$P$79,,MATCH(H$29,'Import Expenditure Forecast'!$F$7:$P$7,0)),'Import Expenditure Forecast'!$C$8:$C$79,$B34,'Import Expenditure Forecast'!$E$8:$E$79,$C34,'Import Expenditure Forecast'!$B$8:$B$79,$B$3,'Import Expenditure Forecast'!$D$8:$D$79,$B$27),SUMIFS(INDEX('Ergon Input'!$F$40:$P$63,,MATCH(H$29,'Ergon Input'!$F$39:$P$39,0)),'Ergon Input'!$C$40:$C$63,$B34,'Ergon Input'!$B$40:$B$63,$B$3,'Ergon Input'!$D$40:$D$63,$B$27)) -> 0 | I34: =IF('Control and Output Summary'!$C$14<>"Ergon",SUMIFS(INDEX('Import Expenditure Forecast'!$F$8:$P$79,,MATCH(I$29,'Import Expenditure Forecast'!$F$7:$P$7,0)),'Import Expenditure Forecast'!$C$8:$C$79,$B34,'Import Expenditure Forecast'!$E$8:$E$79,$C34,'Import Expenditure Forecast'!$B$8:$B$79,$B$3,'Import Expenditure Forecast'!$D$8:$D$79,$B$27),SUMIFS(INDEX('Ergon Input'!$F$40:$P$63,,MATCH(I$29,'Ergon Input'!$F$39:$P$39,0)),'Ergon Input'!$C$40:$C$63,$B34,'Ergon Input'!$B$40:$B$63,$B$3,'Ergon Input'!$D$40:$D$63,$B$27)) -> 0 | J34: =IF('Control and Output Summary'!$C$14<>"Ergon",SUMIFS(INDEX('Import Expenditure Forecast'!$F$8:$P$79,,MATCH(J$29,'Import Expenditure Forecast'!$F$7:$P$7,0)),'Import Expenditure Forecast'!$C$8:$C$79,$B34,'Import Expenditure Forecast'!$E$8:$E$79,$C34,'Import Expenditure Forecast'!$B$8:$B$79,$B$3,'Import Expenditure Forecast'!$D$8:$D$79,$B$27),SUMIFS(INDEX('Ergon Input'!$F$40:$P$63,,MATCH(J$29,'Ergon Input'!$F$39:$P$39,0)),'Ergon Input'!$C$40:$C$63,$B34,'Ergon Input'!$B$40:$B$63,$B$3,'Ergon Input'!$D$40:$D$63,$B$27)) -> 0 | K34: =IF('Control and Output Summary'!$C$14<>"Ergon",SUMIFS(INDEX('Import Expenditure Forecast'!$F$8:$P$79,,MATCH(K$29,'Import Expenditure Forecast'!$F$7:$P$7,0)),'Import Expenditure Forecast'!$C$8:$C$79,$B34,'Import Expenditure Forecast'!$E$8:$E$79,$C34,'Import Expenditure Forecast'!$B$8:$B$79,$B$3,'Import Expenditure Forecast'!$D$8:$D$79,$B$27),SUMIFS(INDEX('Ergon Input'!$F$40:$P$63,,MATCH(K$29,'Ergon Input'!$F$39:$P$39,0)),'Ergon Input'!$C$40:$C$63,$B34,'Ergon Input'!$B$40:$B$63,$B$3,'Ergon Input'!$D$40:$D$63,$B$27)) -> 0 | L34: =IF('Control and Output Summary'!$C$14<>"Ergon",SUMIFS(INDEX('Import Expenditure Forecast'!$F$8:$P$79,,MATCH(L$29,'Import Expenditure Forecast'!$F$7:$P$7,0)),'Import Expenditure Forecast'!$C$8:$C$79,$B34,'Import Expenditure Forecast'!$E$8:$E$79,$C34,'Import Expenditure Forecast'!$B$8:$B$79,$B$3,'Import Expenditure Forecast'!$D$8:$D$79,$B$27),SUMIFS(INDEX('Ergon Input'!$F$40:$P$63,,MATCH(L$29,'Ergon Input'!$F$39:$P$39,0)),'Ergon Input'!$C$40:$C$63,$B34,'Ergon Input'!$B$40:$B$63,$B$3,'Ergon Input'!$D$40:$D$63,$B$27)) -> 0 | M34: =IF('Control and Output Summary'!$C$14<>"Ergon",SUMIFS(INDEX('Import Expenditure Forecast'!$F$8:$P$79,,MATCH(M$29,'Import Expenditure Forecast'!$F$7:$P$7,0)),'Import Expenditure Forecast'!$C$8:$C$79,$B34,'Import Expenditure Forecast'!$E$8:$E$79,$C34,'Import Expenditure Forecast'!$B$8:$B$79,$B$3,'Import Expenditure Forecast'!$D$8:$D$79,$B$27),SUMIFS(INDEX('Ergon Input'!$F$40:$P$63,,MATCH(M$29,'Ergon Input'!$F$39:$P$39,0)),'Ergon Input'!$C$40:$C$63,$B34,'Ergon Input'!$B$40:$B$63,$B$3,'Ergon Input'!$D$40:$D$63,$B$27)) -> 0 | N34: =IF('Control and Output Summary'!$C$14<>"Ergon",SUMIFS(INDEX('Import Expenditure Forecast'!$F$8:$P$79,,MATCH(N$29,'Import Expenditure Forecast'!$F$7:$P$7,0)),'Import Expenditure Forecast'!$C$8:$C$79,$B34,'Import Expenditure Forecast'!$E$8:$E$79,$C34,'Import Expenditure Forecast'!$B$8:$B$79,$B$3,'Import Expenditure Forecast'!$D$8:$D$79,$B$27),SUMIFS(INDEX('Ergon Input'!$F$40:$P$63,,MATCH(N$29,'Ergon Input'!$F$39:$P$39,0)),'Ergon Input'!$C$40:$C$63,$B34,'Ergon Input'!$B$40:$B$63,$B$3,'Ergon Input'!$D$40:$D$63,$B$27)) -> 0
B35: ST 110/132 kv | C35: ='Control and Output Summary'!$C$14 -> West | D35: =IF('Control and Output Summary'!$C$14<>"Ergon",SUMIFS(INDEX('Import Expenditure Forecast'!$F$8:$P$79,,MATCH(D$29,'Import Expenditure Forecast'!$F$7:$P$7,0)),'Import Expenditure Forecast'!$C$8:$C$79,$B35,'Import Expenditure Forecast'!$E$8:$E$79,$C35,'Import Expenditure Forecast'!$B$8:$B$79,$B$3,'Import Expenditure Forecast'!$D$8:$D$79,$B$27),SUMIFS(INDEX('Ergon Input'!$F$40:$P$63,,MATCH(D$29,'Ergon Input'!$F$39:$P$39,0)),'Ergon Input'!$C$40:$C$63,$B35,'Ergon Input'!$B$40:$B$63,$B$3,'Ergon Input'!$D$40:$D$63,$B$27)) -> 0 | E35: =IF('Control and Output Summary'!$C$14<>"Ergon",SUMIFS(INDEX('Import Expenditure Forecast'!$F$8:$P$79,,MATCH(E$29,'Import Expenditure Forecast'!$F$7:$P$7,0)),'Import Expenditure Forecast'!$C$8:$C$79,$B35,'Import Expenditure Forecast'!$E$8:$E$79,$C35,'Import Expenditure Forecast'!$B$8:$B$79,$B$3,'Import Expenditure Forecast'!$D$8:$D$79,$B$27),SUMIFS(INDEX('Ergon Input'!$F$40:$P$63,,MATCH(E$29,'Ergon Input'!$F$39:$P$39,0)),'Ergon Input'!$C$40:$C$63,$B35,'Ergon Input'!$B$40:$B$63,$B$3,'Ergon Input'!$D$40:$D$63,$B$27)) -> 0 | F35: =IF('Control and Output Summary'!$C$14<>"Ergon",SUMIFS(INDEX('Import Expenditure Forecast'!$F$8:$P$79,,MATCH(F$29,'Import Expenditure Forecast'!$F$7:$P$7,0)),'Import Expenditure Forecast'!$C$8:$C$79,$B35,'Import Expenditure Forecast'!$E$8:$E$79,$C35,'Import Expenditure Forecast'!$B$8:$B$79,$B$3,'Import Expenditure Forecast'!$D$8:$D$79,$B$27),SUMIFS(INDEX('Ergon Input'!$F$40:$P$63,,MATCH(F$29,'Ergon Input'!$F$39:$P$39,0)),'Ergon Input'!$C$40:$C$63,$B35,'Ergon Input'!$B$40:$B$63,$B$3,'Ergon Input'!$D$40:$D$63,$B$27)) -> 0 | G35: =IF('Control and Output Summary'!$C$14<>"Ergon",SUMIFS(INDEX('Import Expenditure Forecast'!$F$8:$P$79,,MATCH(G$29,'Import Expenditure Forecast'!$F$7:$P$7,0)),'Import Expenditure Forecast'!$C$8:$C$79,$B35,'Import Expenditure Forecast'!$E$8:$E$79,$C35,'Import Expenditure Forecast'!$B$8:$B$79,$B$3,'Import Expenditure Forecast'!$D$8:$D$79,$B$27),SUMIFS(INDEX('Ergon Input'!$F$40:$P$63,,MATCH(G$29,'Ergon Input'!$F$39:$P$39,0)),'Ergon Input'!$C$40:$C$63,$B35,'Ergon Input'!$B$40:$B$63,$B$3,'Ergon Input'!$D$40:$D$63,$B$27)) -> 0 | H35: =IF('Control and Output Summary'!$C$14<>"Ergon",SUMIFS(INDEX('Import Expenditure Forecast'!$F$8:$P$79,,MATCH(H$29,'Import Expenditure Forecast'!$F$7:$P$7,0)),'Import Expenditure Forecast'!$C$8:$C$79,$B35,'Import Expenditure Forecast'!$E$8:$E$79,$C35,'Import Expenditure Forecast'!$B$8:$B$79,$B$3,'Import Expenditure Forecast'!$D$8:$D$79,$B$27),SUMIFS(INDEX('Ergon Input'!$F$40:$P$63,,MATCH(H$29,'Ergon Input'!$F$39:$P$39,0)),'Ergon Input'!$C$40:$C$63,$B35,'Ergon Input'!$B$40:$B$63,$B$3,'Ergon Input'!$D$40:$D$63,$B$27)) -> 0 | I35: =IF('Control and Output Summary'!$C$14<>"Ergon",SUMIFS(INDEX('Import Expenditure Forecast'!$F$8:$P$79,,MATCH(I$29,'Import Expenditure Forecast'!$F$7:$P$7,0)),'Import Expenditure Forecast'!$C$8:$C$79,$B35,'Import Expenditure Forecast'!$E$8:$E$79,$C35,'Import Expenditure Forecast'!$B$8:$B$79,$B$3,'Import Expenditure Forecast'!$D$8:$D$79,$B$27),SUMIFS(INDEX('Ergon Input'!$F$40:$P$63,,MATCH(I$29,'Ergon Input'!$F$39:$P$39,0)),'Ergon Input'!$C$40:$C$63,$B35,'Ergon Input'!$B$40:$B$63,$B$3,'Ergon Input'!$D$40:$D$63,$B$27)) -> 0 | J35: =IF('Control and Output Summary'!$C$14<>"Ergon",SUMIFS(INDEX('Import Expenditure Forecast'!$F$8:$P$79,,MATCH(J$29,'Import Expenditure Forecast'!$F$7:$P$7,0)),'Import Expenditure Forecast'!$C$8:$C$79,$B35,'Import Expenditure Forecast'!$E$8:$E$79,$C35,'Import Expenditure Forecast'!$B$8:$B$79,$B$3,'Import Expenditure Forecast'!$D$8:$D$79,$B$27),SUMIFS(INDEX('Ergon Input'!$F$40:$P$63,,MATCH(J$29,'Ergon Input'!$F$39:$P$39,0)),'Ergon Input'!$C$40:$C$63,$B35,'Ergon Input'!$B$40:$B$63,$B$3,'Ergon Input'!$D$40:$D$63,$B$27)) -> 0 | K35: =IF('Control and Output Summary'!$C$14<>"Ergon",SUMIFS(INDEX('Import Expenditure Forecast'!$F$8:$P$79,,MATCH(K$29,'Import Expenditure Forecast'!$F$7:$P$7,0)),'Import Expenditure Forecast'!$C$8:$C$79,$B35,'Import Expenditure Forecast'!$E$8:$E$79,$C35,'Import Expenditure Forecast'!$B$8:$B$79,$B$3,'Import Expenditure Forecast'!$D$8:$D$79,$B$27),SUMIFS(INDEX('Ergon Input'!$F$40:$P$63,,MATCH(K$29,'Ergon Input'!$F$39:$P$39,0)),'Ergon Input'!$C$40:$C$63,$B35,'Ergon Input'!$B$40:$B$63,$B$3,'Ergon Input'!$D$40:$D$63,$B$27)) -> 0 | L35: =IF('Control and Output Summary'!$C$14<>"Ergon",SUMIFS(INDEX('Import Expenditure Forecast'!$F$8:$P$79,,MATCH(L$29,'Import Expenditure Forecast'!$F$7:$P$7,0)),'Import Expenditure Forecast'!$C$8:$C$79,$B35,'Import Expenditure Forecast'!$E$8:$E$79,$C35,'Import Expenditure Forecast'!$B$8:$B$79,$B$3,'Import Expenditure Forecast'!$D$8:$D$79,$B$27),SUMIFS(INDEX('Ergon Input'!$F$40:$P$63,,MATCH(L$29,'Ergon Input'!$F$39:$P$39,0)),'Ergon Input'!$C$40:$C$63,$B35,'Ergon Input'!$B$40:$B$63,$B$3,'Ergon Input'!$D$40:$D$63,$B$27)) -> 0 | M35: =IF('Control and Output Summary'!$C$14<>"Ergon",SUMIFS(INDEX('Import Expenditure Forecast'!$F$8:$P$79,,MATCH(M$29,'Import Expenditure Forecast'!$F$7:$P$7,0)),'Import Expenditure Forecast'!$C$8:$C$79,$B35,'Import Expenditure Forecast'!$E$8:$E$79,$C35,'Import Expenditure Forecast'!$B$8:$B$79,$B$3,'Import Expenditure Forecast'!$D$8:$D$79,$B$27),SUMIFS(INDEX('Ergon Input'!$F$40:$P$63,,MATCH(M$29,'Ergon Input'!$F$39:$P$39,0)),'Ergon Input'!$C$40:$C$63,$B35,'Ergon Input'!$B$40:$B$63,$B$3,'Ergon Input'!$D$40:$D$63,$B$27)) -> 0 | N35: =IF('Control and Output Summary'!$C$14<>"Ergon",SUMIFS(INDEX('Import Expenditure Forecast'!$F$8:$P$79,,MATCH(N$29,'Import Expenditure Forecast'!$F$7:$P$7,0)),'Import Expenditure Forecast'!$C$8:$C$79,$B35,'Import Expenditure Forecast'!$E$8:$E$79,$C35,'Import Expenditure Forecast'!$B$8:$B$79,$B$3,'Import Expenditure Forecast'!$D$8:$D$79,$B$27),SUMIFS(INDEX('Ergon Input'!$F$40:$P$63,,MATCH(N$29,'Ergon Input'!$F$39:$P$39,0)),'Ergon Input'!$C$40:$C$63,$B35,'Ergon Input'!$B$40:$B$63,$B$3,'Ergon Input'!$D$40:$D$63,$B$27)) -> 0
B38: Total Capex ($m)
B40: Voltage Level | C40: Pricing Zone | D40: =D$18 -> 2023 | E40: 2024 | F40: 2025 | G40: 2026 | H40: 2027 | I40: 2028 | J40: 2029 | K40: 2030 | L40: 2031 | M40: 2032 | N40: 2033
B41: LV Line | C41: ='Control and Output Summary'!$C$14 -> West | D41: =D8 + 'Control and Output Summary'!$C$9 * D19 + 'Control and Output Summary'!$C$10 * D30 -> 1.067010698 | E41: =E8 + 'Control and Output Summary'!$C$9 * E19 + 'Control and Output Summary'!$C$10 * E30 -> 1.115630974 | F41: =F8 + 'Control and Output Summary'!$C$9 * F19 + 'Control and Output Summary'!$C$10 * F30 -> 1.129183778 | G41: =G8 + 'Control and Output Summary'!$C$9 * G19 + 'Control and Output Summary'!$C$10 * G30 -> 1.165362247 | H41: =H8 + 'Control and Output Summary'!$C$9 * H19 + 'Control and Output Summary'!$C$10 * H30 -> 1.196787699 | I41: =I8 + 'Control and Output Summary'!$C$9 * I19 + 'Control and Output Summary'!$C$10 * I30 -> 1.230232992 | J41: =J8 + 'Control and Output Summary'!$C$9 * J19 + 'Control and Output Summary'!$C$10 * J30 -> 1.26497652 | K41: =K8 + 'Control and Output Summary'!$C$9 * K19 + 'Control and Output Summary'!$C$10 * K30 -> 1.26497652 | L41: =L8 + 'Control and Output Summary'!$C$9 * L19 + 'Control and Output Summary'!$C$10 * L30 -> 1.26497652 | M41: =M8 + 'Control and Output Summary'!$C$9 * M19 + 'Control and Output Summary'!$C$10 * M30 -> 1.26497652 | N41: =N8 + 'Control and Output Summary'!$C$9 * N19 + 'Control and Output Summary'!$C$10 * N30 -> 1.26497652
B42: LV Bus | C42: ='Control and Output Summary'!$C$14 -> West | D42: =D9 + 'Control and Output Summary'!$C$9 * D20 + 'Control and Output Summary'!$C$10 * D31 -> 0.45849595 | E42: =E9 + 'Control and Output Summary'!$C$9 * E20 + 'Control and Output Summary'!$C$10 * E31 -> 0 | F42: =F9 + 'Control and Output Summary'!$C$9 * F20 + 'Control and Output Summary'!$C$10 * F31 -> 0 | G42: =G9 + 'Control and Output Summary'!$C$9 * G20 + 'Control and Output Summary'!$C$10 * G31 -> 0 | H42: =H9 + 'Control and Output Summary'!$C$9 * H20 + 'Control and Output Summary'!$C$10 * H31 -> 0 | I42: =I9 + 'Control and Output Summary'!$C$9 * I20 + 'Control and Output Summary'!$C$10 * I31 -> 0 | J42: =J9 + 'Control and Output Summary'!$C$9 * J20 + 'Control and Output Summary'!$C$10 * J31 -> 0 | K42: =K9 + 'Control and Output Summary'!$C$9 * K20 + 'Control and Output Summary'!$C$10 * K31 -> 0 | L42: =L9 + 'Control and Output Summary'!$C$9 * L20 + 'Control and Output Summary'!$C$10 * L31 -> 0 | M42: =M9 + 'Control and Output Summary'!$C$9 * M20 + 'Control and Output Summary'!$C$10 * M31 -> 0 | N42: =N9 + 'Control and Output Summary'!$C$9 * N20 + 'Control and Output Summary'!$C$10 * N31 -> 0
B43: HV Line | C43: ='Control and Output Summary'!$C$14 -> West | D43: =D10 + 'Control and Output Summary'!$C$9 * D21 + 'Control and Output Summary'!$C$10 * D32 -> 0.1067010698 | E43: =E10 + 'Control and Output Summary'!$C$9 * E21 + 'Control and Output Summary'!$C$10 * E32 -> 0.1115630974 | F43: =F10 + 'Control and Output Summary'!$C$9 * F21 + 'Control and Output Summary'!$C$10 * F32 -> 0.1129183778 | G43: =G10 + 'Control and Output Summary'!$C$9 * G21 + 'Control and Output Summary'!$C$10 * G32 -> 0.188311119 | H43: =H10 + 'Control and Output Summary'!$C$9 * H21 + 'Control and Output Summary'!$C$10 * H32 -> 0.1196787699 | I43: =I10 + 'Control and Output Summary'!$C$9 * I21 + 'Control and Output Summary'!$C$10 * I32 -> 0.2879542783 | J43: =J10 + 'Control and Output Summary'!$C$9 * J21 + 'Control and Output Summary'!$C$10 * J32 -> 0.4434927488 | K43: =K10 + 'Control and Output Summary'!$C$9 * K21 + 'Control and Output Summary'!$C$10 * K32 -> 0.5947898433 | L43: =L10 + 'Control and Output Summary'!$C$9 * L21 + 'Control and Output Summary'!$C$10 * L32 -> 0.4432370744 | M43: =M10 + 'Control and Output Summary'!$C$9 * M21 + 'Control and Output Summary'!$C$10 * M32 -> 0.4432370744 | N43: =N10 + 'Control and Output Summary'!$C$9 * N21 + 'Control and Output Summary'!$C$10 * N32 -> 0.4432370744
B44: HV Bus | C44: ='Control and Output Summary'!$C$14 -> West | D44: =D11 + 'Control and Output Summary'!$C$9 * D22 + 'Control and Output Summary'!$C$10 * D33 -> 0.8027118328 | E44: =E11 + 'Control and Output Summary'!$C$9 * E22 + 'Control and Output Summary'!$C$10 * E33 -> 1.128017636 | F44: =F11 + 'Control and Output Summary'!$C$9 * F22 + 'Control and Output Summary'!$C$10 * F33 -> 3.612391552 | G44: =G11 + 'Control and Output Summary'!$C$9 * G22 + 'Control and Output Summary'!$C$10 * G33 -> 5.794549378 | H44: =H11 + 'Control and Output Summary'!$C$9 * H22 + 'Control and Output Summary'!$C$10 * H33 -> 5.792992649 | I44: =I11 + 'Control and Output Summary'!$C$9 * I22 + 'Control and Output Summary'!$C$10 * I33 -> 6.264994551 | J44: =J11 + 'Control and Output Summary'!$C$9 * J22 + 'Control and Output Summary'!$C$10 * J33 -> 6.742204299 | K44: =K11 + 'Control and Output Summary'!$C$9 * K22 + 'Control and Output Summary'!$C$10 * K33 -> 7.238660423 | L44: =L11 + 'Control and Output Summary'!$C$9 * L22 + 'Control and Output Summary'!$C$10 * L33 -> 6.748619758 | M44: =M11 + 'Control and Output Summary'!$C$9 * M22 + 'Control and Output Summary'!$C$10 * M33 -> 6.748619758 | N44: =N11 + 'Control and Output Summary'!$C$9 * N22 + 'Control and Output Summary'!$C$10 * N33 -> 6.748619758
B45: ST 33/66 kv | C45: ='Control and Output Summary'!$C$14 -> West | D45: =D12 + 'Control and Output Summary'!$C$9 * D23 + 'Control and Output Summary'!$C$10 * D34 -> 0.863442396 | E45: =E12 + 'Control and Output Summary'!$C$9 * E23 + 'Control and Output Summary'!$C$10 * E34 -> 0.03085145331 | F45: =F12 + 'Control and Output Summary'!$C$9 * F23 + 'Control and Output Summary'!$C$10 * F34 -> 0 | G45: =G12 + 'Control and Output Summary'!$C$9 * G23 + 'Control and Output Summary'!$C$10 * G34 -> 0 | H45: =H12 + 'Control and Output Summary'!$C$9 * H23 + 'Control and Output Summary'!$C$10 * H34 -> 0 | I45: =I12 + 'Control and Output Summary'!$C$9 * I23 + 'Control and Output Summary'!$C$10 * I34 -> 0 | J45: =J12 + 'Control and Output Summary'!$C$9 * J23 + 'Control and Output Summary'!$C$10 * J34 -> 0 | K45: =K12 + 'Control and Output Summary'!$C$9 * K23 + 'Control and Output Summary'!$C$10 * K34 -> 0 | L45: =L12 + 'Control and Output Summary'!$C$9 * L23 + 'Control and Output Summary'!$C$10 * L34 -> 0 | M45: =M12 + 'Control and Output Summary'!$C$9 * M23 + 'Control and Output Summary'!$C$10 * M34 -> 0 | N45: =N12 + 'Control and Output Summary'!$C$9 * N23 + 'Control and Output Summary'!$C$10 * N34 -> 0
B46: ST 110/132 kv | C46: ='Control and Output Summary'!$C$14 -> West | D46: =D13 + 'Control and Output Summary'!$C$9 * D24 + 'Control and Output Summary'!$C$10 * D35 -> 0.8353258909 | E46: =E13 + 'Control and Output Summary'!$C$9 * E24 + 'Control and Output Summary'!$C$10 * E35 -> 0.003859399571 | F46: =F13 + 'Control and Output Summary'!$C$9 * F24 + 'Control and Output Summary'!$C$10 * F35 -> 0.008731879681 | G46: =G13 + 'Control and Output Summary'!$C$9 * G24 + 'Control and Output Summary'!$C$10 * G35 -> 0.2247370469 | H46: =H13 + 'Control and Output Summary'!$C$9 * H24 + 'Control and Output Summary'!$C$10 * H35 -> 1.496826489 | I46: =I13 + 'Control and Output Summary'!$C$9 * I24 + 'Control and Output Summary'!$C$10 * I35 -> 1.383261863 | J46: =J13 + 'Control and Output Summary'!$C$9 * J24 + 'Control and Output Summary'!$C$10 * J35 -> 0.532341538 | K46: =K13 + 'Control and Output Summary'!$C$9 * K24 + 'Control and Output Summary'!$C$10 * K35 -> 19.31013823 | L46: =L13 + 'Control and Output Summary'!$C$9 * L24 + 'Control and Output Summary'!$C$10 * L35 -> 7.075247212 | M46: =M13 + 'Control and Output Summary'!$C$9 * M24 + 'Control and Output Summary'!$C$10 * M35 -> 7.075247212 | N46: =N13 + 'Control and Output Summary'!$C$9 * N24 + 'Control and Output Summary'!$C$10 * N35 -> 7.075247212
B49: Annualised Capex ($m)
B51: Voltage Level | C51: Pricing Zone | D51: =D$29 -> 2023 | E51: 2024 | F51: 2025 | G51: 2026 | H51: 2027 | I51: 2028 | J51: 2029 | K51: 2030 | L51: 2031 | M51: 2032 | N51: 2033
B52: LV Line | C52: ='Control and Output Summary'!$C$14 -> West | D52: =IF('Control and Output Summary'!$C$14<>"Ergon",-PMT('Control and Output Summary'!$C$6,INDEX('Asset Specification'!$G$8:$G$43,MATCH(1,($B52 = 'Asset Specification'!$B$8:$B$43)*($C52 ='Asset Specification'!$C$8:$C$43) * ("Import" ='Asset Specification'!$D$8:$D$43 ),0)),D41),-PMT('Control and Output Summary'!$C$6,INDEX('Ergon Input'!$G$84:$G$95,MATCH(1,($B52 = 'Ergon Input'!$B$84:$B$95)* ("Import" ='Ergon Input'!$D$84:$D$95 ),0)),D41)) -> 0.04560669705 | E52: =IF('Control and Output Summary'!$C$14<>"Ergon",-PMT('Control and Output Summary'!$C$6,INDEX('Asset Specification'!$G$8:$G$43,MATCH(1,($B52 = 'Asset Specification'!$B$8:$B$43)*($C52 ='Asset Specification'!$C$8:$C$43) * ("Import" ='Asset Specification'!$D$8:$D$43 ),0)),E41),-PMT('Control and Output Summary'!$C$6,INDEX('Ergon Input'!$G$84:$G$95,MATCH(1,($B52 = 'Ergon Input'!$B$84:$B$95)* ("Import" ='Ergon Input'!$D$84:$D$95 ),0)),E41)) -> 0.04768484882 | F52: =IF('Control and Output Summary'!$C$14<>"Ergon",-PMT('Control and Output Summary'!$C$6,INDEX('Asset Specification'!$G$8:$G$43,MATCH(1,($B52 = 'Asset Specification'!$B$8:$B$43)*($C52 ='Asset Specification'!$C$8:$C$43) * ("Import" ='Asset Specification'!$D$8:$D$43 ),0)),F41),-PMT('Control and Output Summary'!$C$6,INDEX('Ergon Input'!$G$84:$G$95,MATCH(1,($B52 = 'Ergon Input'!$B$84:$B$95)* ("Import" ='Ergon Input'!$D$84:$D$95 ),0)),F41)) -> 0.04826412947 | G52: =IF('Control and Output Summary'!$C$14<>"Ergon",-PMT('Control and Output Summary'!$C$6,INDEX('Asset Specification'!$G$8:$G$43,MATCH(1,($B52 = 'Asset Specification'!$B$8:$B$43)*($C52 ='Asset Specification'!$C$8:$C$43) * ("Import" ='Asset Specification'!$D$8:$D$43 ),0)),G41),-PMT('Control and Output Summary'!$C$6,INDEX('Ergon Input'!$G$84:$G$95,MATCH(1,($B52 = 'Ergon Input'!$B$84:$B$95)* ("Import" ='Ergon Input'!$D$84:$D$95 ),0)),G41)) -> 0.0498104874 | H52: =IF('Control and Output Summary'!$C$14<>"Ergon",-PMT('Control and Output Summary'!$C$6,INDEX('Asset Specification'!$G$8:$G$43,MATCH(1,($B52 = 'Asset Specification'!$B$8:$B$43)*($C52 ='Asset Specification'!$C$8:$C$43) * ("Import" ='Asset Specification'!$D$8:$D$43 ),0)),H41),-PMT('Control and Output Summary'!$C$6,INDEX('Ergon Input'!$G$84:$G$95,MATCH(1,($B52 = 'Ergon Input'!$B$84:$B$95)* ("Import" ='Ergon Input'!$D$84:$D$95 ),0)),H41)) -> 0.05115368957 | I52: =IF('Control and Output Summary'!$C$14<>"Ergon",-PMT('Control and Output Summary'!$C$6,INDEX('Asset Specification'!$G$8:$G$43,MATCH(1,($B52 = 'Asset Specification'!$B$8:$B$43)*($C52 ='Asset Specification'!$C$8:$C$43) * ("Import" ='Asset Specification'!$D$8:$D$43 ),0)),I41),-PMT('Control and Output Summary'!$C$6,INDEX('Ergon Input'!$G$84:$G$95,MATCH(1,($B52 = 'Ergon Input'!$B$84:$B$95)* ("Import" ='Ergon Input'!$D$84:$D$95 ),0)),I41)) -> 0.05258322478 | J52: =IF('Control and Output Summary'!$C$14<>"Ergon",-PMT('Control and Output Summary'!$C$6,INDEX('Asset Specification'!$G$8:$G$43,MATCH(1,($B52 = 'Asset Specification'!$B$8:$B$43)*($C52 ='Asset Specification'!$C$8:$C$43) * ("Import" ='Asset Specification'!$D$8:$D$43 ),0)),J41),-PMT('Control and Output Summary'!$C$6,INDEX('Ergon Input'!$G$84:$G$95,MATCH(1,($B52 = 'Ergon Input'!$B$84:$B$95)* ("Import" ='Ergon Input'!$D$84:$D$95 ),0)),J41)) -> 0.05406824976 | K52: =IF('Control and Output Summary'!$C$14<>"Ergon",-PMT('Control and Output Summary'!$C$6,INDEX('Asset Specification'!$G$8:$G$43,MATCH(1,($B52 = 'Asset Specification'!$B$8:$B$43)*($C52 ='Asset Specification'!$C$8:$C$43) * ("Import" ='Asset Specification'!$D$8:$D$43 ),0)),K41),-PMT('Control and Output Summary'!$C$6,INDEX('Ergon Input'!$G$84:$G$95,MATCH(1,($B52 = 'Ergon Input'!$B$84:$B$95)* ("Import" ='Ergon Input'!$D$84:$D$95 ),0)),K41)) -> 0.05406824976 | L52: =IF('Control and Output Summary'!$C$14<>"Ergon",-PMT('Control and Output Summary'!$C$6,INDEX('Asset Specification'!$G$8:$G$43,MATCH(1,($B52 = 'Asset Specification'!$B$8:$B$43)*($C52 ='Asset Specification'!$C$8:$C$43) * ("Import" ='Asset Specification'!$D$8:$D$43 ),0)),L41),-PMT('Control and Output Summary'!$C$6,INDEX('Ergon Input'!$G$84:$G$95,MATCH(1,($B52 = 'Ergon Input'!$B$84:$B$95)* ("Import" ='Ergon Input'!$D$84:$D$95 ),0)),L41)) -> 0.05406824976 | M52: =IF('Control and Output Summary'!$C$14<>"Ergon",-PMT('Control and Output Summary'!$C$6,INDEX('Asset Specification'!$G$8:$G$43,MATCH(1,($B52 = 'Asset Specification'!$B$8:$B$43)*($C52 ='Asset Specification'!$C$8:$C$43) * ("Import" ='Asset Specification'!$D$8:$D$43 ),0)),M41),-PMT('Control and Output Summary'!$C$6,INDEX('Ergon Input'!$G$84:$G$95,MATCH(1,($B52 = 'Ergon Input'!$B$84:$B$95)* ("Import" ='Ergon Input'!$D$84:$D$95 ),0)),M41)) -> 0.05406824976 | N52: =IF('Control and Output Summary'!$C$14<>"Ergon",-PMT('Control and Output Summary'!$C$6,INDEX('Asset Specification'!$G$8:$G$43,MATCH(1,($B52 = 'Asset Specification'!$B$8:$B$43)*($C52 ='Asset Specification'!$C$8:$C$43) * ("Import" ='Asset Specification'!$D$8:$D$43 ),0)),N41),-PMT('Control and Output Summary'!$C$6,INDEX('Ergon Input'!$G$84:$G$95,MATCH(1,($B52 = 'Ergon Input'!$B$84:$B$95)* ("Import" ='Ergon Input'!$D$84:$D$95 ),0)),N41)) -> 0.05406824976
B53: LV Bus | C53: ='Control and Output Summary'!$C$14 -> West | D53: =IF('Control and Output Summary'!$C$14<>"Ergon",-PMT('Control and Output Summary'!$C$6,INDEX('Asset Specification'!$G$8:$G$43,MATCH(1,($B53 = 'Asset Specification'!$B$8:$B$43)*($C53 ='Asset Specification'!$C$8:$C$43) * ("Import" ='Asset Specification'!$D$8:$D$43 ),0)),D42),-PMT('Control and Output Summary'!$C$6,INDEX('Ergon Input'!$G$84:$G$95,MATCH(1,($B53 = 'Ergon Input'!$B$84:$B$95)* ("Import" ='Ergon Input'!$D$84:$D$95 ),0)),D42)) -> 0.01959725983 | E53: =IF('Control and Output Summary'!$C$14<>"Ergon",-PMT('Control and Output Summary'!$C$6,INDEX('Asset Specification'!$G$8:$G$43,MATCH(1,($B53 = 'Asset Specification'!$B$8:$B$43)*($C53 ='Asset Specification'!$C$8:$C$43) * ("Import" ='Asset Specification'!$D$8:$D$43 ),0)),E42),-PMT('Control and Output Summary'!$C$6,INDEX('Ergon Input'!$G$84:$G$95,MATCH(1,($B53 = 'Ergon Input'!$B$84:$B$95)* ("Import" ='Ergon Input'!$D$84:$D$95 ),0)),E42)) -> 0 | F53: =IF('Control and Output Summary'!$C$14<>"Ergon",-PMT('Control and Output Summary'!$C$6,INDEX('Asset Specification'!$G$8:$G$43,MATCH(1,($B53 = 'Asset Specification'!$B$8:$B$43)*($C53 ='Asset Specification'!$C$8:$C$43) * ("Import" ='Asset Specification'!$D$8:$D$43 ),0)),F42),-PMT('Control and Output Summary'!$C$6,INDEX('Ergon Input'!$G$84:$G$95,MATCH(1,($B53 = 'Ergon Input'!$B$84:$B$95)* ("Import" ='Ergon Input'!$D$84:$D$95 ),0)),F42)) -> 0 | G53: =IF('Control and Output Summary'!$C$14<>"Ergon",-PMT('Control and Output Summary'!$C$6,INDEX('Asset Specification'!$G$8:$G$43,MATCH(1,($B53 = 'Asset Specification'!$B$8:$B$43)*($C53 ='Asset Specification'!$C$8:$C$43) * ("Import" ='Asset Specification'!$D$8:$D$43 ),0)),G42),-PMT('Control and Output Summary'!$C$6,INDEX('Ergon Input'!$G$84:$G$95,MATCH(1,($B53 = 'Ergon Input'!$B$84:$B$95)* ("Import" ='Ergon Input'!$D$84:$D$95 ),0)),G42)) -> 0 | H53: =IF('Control and Output Summary'!$C$14<>"Ergon",-PMT('Control and Output Summary'!$C$6,INDEX('Asset Specification'!$G$8:$G$43,MATCH(1,($B53 = 'Asset Specification'!$B$8:$B$43)*($C53 ='Asset Specification'!$C$8:$C$43) * ("Import" ='Asset Specification'!$D$8:$D$43 ),0)),H42),-PMT('Control and Output Summary'!$C$6,INDEX('Ergon Input'!$G$84:$G$95,MATCH(1,($B53 = 'Ergon Input'!$B$84:$B$95)* ("Import" ='Ergon Input'!$D$84:$D$95 ),0)),H42)) -> 0 | I53: =IF('Control and Output Summary'!$C$14<>"Ergon",-PMT('Control and Output Summary'!$C$6,INDEX('Asset Specification'!$G$8:$G$43,MATCH(1,($B53 = 'Asset Specification'!$B$8:$B$43)*($C53 ='Asset Specification'!$C$8:$C$43) * ("Import" ='Asset Specification'!$D$8:$D$43 ),0)),I42),-PMT('Control and Output Summary'!$C$6,INDEX('Ergon Input'!$G$84:$G$95,MATCH(1,($B53 = 'Ergon Input'!$B$84:$B$95)* ("Import" ='Ergon Input'!$D$84:$D$95 ),0)),I42)) -> 0 | J53: =IF('Control and Output Summary'!$C$14<>"Ergon",-PMT('Control and Output Summary'!$C$6,INDEX('Asset Specification'!$G$8:$G$43,MATCH(1,($B53 = 'Asset Specification'!$B$8:$B$43)*($C53 ='Asset Specification'!$C$8:$C$43) * ("Import" ='Asset Specification'!$D$8:$D$43 ),0)),J42),-PMT('Control and Output Summary'!$C$6,INDEX('Ergon Input'!$G$84:$G$95,MATCH(1,($B53 = 'Ergon Input'!$B$84:$B$95)* ("Import" ='Ergon Input'!$D$84:$D$95 ),0)),J42)) -> 0 | K53: =IF('Control and Output Summary'!$C$14<>"Ergon",-PMT('Control and Output Summary'!$C$6,INDEX('Asset Specification'!$G$8:$G$43,MATCH(1,($B53 = 'Asset Specification'!$B$8:$B$43)*($C53 ='Asset Specification'!$C$8:$C$43) * ("Import" ='Asset Specification'!$D$8:$D$43 ),0)),K42),-PMT('Control and Output Summary'!$C$6,INDEX('Ergon Input'!$G$84:$G$95,MATCH(1,($B53 = 'Ergon Input'!$B$84:$B$95)* ("Import" ='Ergon Input'!$D$84:$D$95 ),0)),K42)) -> 0 | L53: =IF('Control and Output Summary'!$C$14<>"Ergon",-PMT('Control and Output Summary'!$C$6,INDEX('Asset Specification'!$G$8:$G$43,MATCH(1,($B53 = 'Asset Specification'!$B$8:$B$43)*($C53 ='Asset Specification'!$C$8:$C$43) * ("Import" ='Asset Specification'!$D$8:$D$43 ),0)),L42),-PMT('Control and Output Summary'!$C$6,INDEX('Ergon Input'!$G$84:$G$95,MATCH(1,($B53 = 'Ergon Input'!$B$84:$B$95)* ("Import" ='Ergon Input'!$D$84:$D$95 ),0)),L42)) -> 0 | M53: =IF('Control and Output Summary'!$C$14<>"Ergon",-PMT('Control and Output Summary'!$C$6,INDEX('Asset Specification'!$G$8:$G$43,MATCH(1,($B53 = 'Asset Specification'!$B$8:$B$43)*($C53 ='Asset Specification'!$C$8:$C$43) * ("Import" ='Asset Specification'!$D$8:$D$43 ),0)),M42),-PMT('Control and Output Summary'!$C$6,INDEX('Ergon Input'!$G$84:$G$95,MATCH(1,($B53 = 'Ergon Input'!$B$84:$B$95)* ("Import" ='Ergon Input'!$D$84:$D$95 ),0)),M42)) -> 0 | N53: =IF('Control and Output Summary'!$C$14<>"Ergon",-PMT('Control and Output Summary'!$C$6,INDEX('Asset Specification'!$G$8:$G$43,MATCH(1,($B53 = 'Asset Specification'!$B$8:$B$43)*($C53 ='Asset Specification'!$C$8:$C$43) * ("Import" ='Asset Specification'!$D$8:$D$43 ),0)),N42),-PMT('Control and Output Summary'!$C$6,INDEX('Ergon Input'!$G$84:$G$95,MATCH(1,($B53 = 'Ergon Input'!$B$84:$B$95)* ("Import" ='Ergon Input'!$D$84:$D$95 ),0)),N42)) -> 0
B54: HV Line | C54: ='Control and Output Summary'!$C$14 -> West | D54: =IF('Control and Output Summary'!$C$14<>"Ergon",-PMT('Control and Output Summary'!$C$6,INDEX('Asset Specification'!$G$8:$G$43,MATCH(1,($B54 = 'Asset Specification'!$B$8:$B$43)*($C54 ='Asset Specification'!$C$8:$C$43) * ("Import" ='Asset Specification'!$D$8:$D$43 ),0)),D43),-PMT('Control and Output Summary'!$C$6,INDEX('Ergon Input'!$G$84:$G$95,MATCH(1,($B54 = 'Ergon Input'!$B$84:$B$95)* ("Import" ='Ergon Input'!$D$84:$D$95 ),0)),D43)) -> 0.004560669705 | E54: =IF('Control and Output Summary'!$C$14<>"Ergon",-PMT('Control and Output Summary'!$C$6,INDEX('Asset Specification'!$G$8:$G$43,MATCH(1,($B54 = 'Asset Specification'!$B$8:$B$43)*($C54 ='Asset Specification'!$C$8:$C$43) * ("Import" ='Asset Specification'!$D$8:$D$43 ),0)),E43),-PMT('Control and Output Summary'!$C$6,INDEX('Ergon Input'!$G$84:$G$95,MATCH(1,($B54 = 'Ergon Input'!$B$84:$B$95)* ("Import" ='Ergon Input'!$D$84:$D$95 ),0)),E43)) -> 0.004768484882 | F54: =IF('Control and Output Summary'!$C$14<>"Ergon",-PMT('Control and Output Summary'!$C$6,INDEX('Asset Specification'!$G$8:$G$43,MATCH(1,($B54 = 'Asset Specification'!$B$8:$B$43)*($C54 ='Asset Specification'!$C$8:$C$43) * ("Import" ='Asset Specification'!$D$8:$D$43 ),0)),F43),-PMT('Control and Output Summary'!$C$6,INDEX('Ergon Input'!$G$84:$G$95,MATCH(1,($B54 = 'Ergon Input'!$B$84:$B$95)* ("Import" ='Ergon Input'!$D$84:$D$95 ),0)),F43)) -> 0.004826412947 | G54: =IF('Control and Output Summary'!$C$14<>"Ergon",-PMT('Control and Output Summary'!$C$6,INDEX('Asset Specification'!$G$8:$G$43,MATCH(1,($B54 = 'Asset Specification'!$B$8:$B$43)*($C54 ='Asset Specification'!$C$8:$C$43) * ("Import" ='Asset Specification'!$D$8:$D$43 ),0)),G43),-PMT('Control and Output Summary'!$C$6,INDEX('Ergon Input'!$G$84:$G$95,MATCH(1,($B54 = 'Ergon Input'!$B$84:$B$95)* ("Import" ='Ergon Input'!$D$84:$D$95 ),0)),G43)) -> 0.00804888664 | H54: =IF('Control and Output Summary'!$C$14<>"Ergon",-PMT('Control and Output Summary'!$C$6,INDEX('Asset Specification'!$G$8:$G$43,MATCH(1,($B54 = 'Asset Specification'!$B$8:$B$43)*($C54 ='Asset Specification'!$C$8:$C$43) * ("Import" ='Asset Specification'!$D$8:$D$43 ),0)),H43),-PMT('Control and Output Summary'!$C$6,INDEX('Ergon Input'!$G$84:$G$95,MATCH(1,($B54 = 'Ergon Input'!$B$84:$B$95)* ("Import" ='Ergon Input'!$D$84:$D$95 ),0)),H43)) -> 0.005115368957 | I54: =IF('Control and Output Summary'!$C$14<>"Ergon",-PMT('Control and Output Summary'!$C$6,INDEX('Asset Specification'!$G$8:$G$43,MATCH(1,($B54 = 'Asset Specification'!$B$8:$B$43)*($C54 ='Asset Specification'!$C$8:$C$43) * ("Import" ='Asset Specification'!$D$8:$D$43 ),0)),I43),-PMT('Control and Output Summary'!$C$6,INDEX('Ergon Input'!$G$84:$G$95,MATCH(1,($B54 = 'Ergon Input'!$B$84:$B$95)* ("Import" ='Ergon Input'!$D$84:$D$95 ),0)),I43)) -> 0.01230788366 | J54: =IF('Control and Output Summary'!$C$14<>"Ergon",-PMT('Control and Output Summary'!$C$6,INDEX('Asset Specification'!$G$8:$G$43,MATCH(1,($B54 = 'Asset Specification'!$B$8:$B$43)*($C54 ='Asset Specification'!$C$8:$C$43) * ("Import" ='Asset Specification'!$D$8:$D$43 ),0)),J43),-PMT('Control and Output Summary'!$C$6,INDEX('Ergon Input'!$G$84:$G$95,MATCH(1,($B54 = 'Ergon Input'!$B$84:$B$95)* ("Import" ='Ergon Input'!$D$84:$D$95 ),0)),J43)) -> 0.01895598561 | K54: =IF('Control and Output Summary'!$C$14<>"Ergon",-PMT('Control and Output Summary'!$C$6,INDEX('Asset Specification'!$G$8:$G$43,MATCH(1,($B54 = 'Asset Specification'!$B$8:$B$43)*($C54 ='Asset Specification'!$C$8:$C$43) * ("Import" ='Asset Specification'!$D$8:$D$43 ),0)),K43),-PMT('Control and Output Summary'!$C$6,INDEX('Ergon Input'!$G$84:$G$95,MATCH(1,($B54 = 'Ergon Input'!$B$84:$B$95)* ("Import" ='Ergon Input'!$D$84:$D$95 ),0)),K43)) -> 0.02542280057 | L54: =IF('Control and Output Summary'!$C$14<>"Ergon",-PMT('Control and Output Summary'!$C$6,INDEX('Asset Specification'!$G$8:$G$43,MATCH(1,($B54 = 'Asset Specification'!$B$8:$B$43)*($C54 ='Asset Specification'!$C$8:$C$43) * ("Import" ='Asset Specification'!$D$8:$D$43 ),0)),L43),-PMT('Control and Output Summary'!$C$6,INDEX('Ergon Input'!$G$84:$G$95,MATCH(1,($B54 = 'Ergon Input'!$B$84:$B$95)* ("Import" ='Ergon Input'!$D$84:$D$95 ),0)),L43)) -> 0.01894505745 | M54: =IF('Control and Output Summary'!$C$14<>"Ergon",-PMT('Control and Output Summary'!$C$6,INDEX('Asset Specification'!$G$8:$G$43,MATCH(1,($B54 = 'Asset Specification'!$B$8:$B$43)*($C54 ='Asset Specification'!$C$8:$C$43) * ("Import" ='Asset Specification'!$D$8:$D$43 ),0)),M43),-PMT('Control and Output Summary'!$C$6,INDEX('Ergon Input'!$G$84:$G$95,MATCH(1,($B54 = 'Ergon Input'!$B$84:$B$95)* ("Import" ='Ergon Input'!$D$84:$D$95 ),0)),M43)) -> 0.01894505745 | N54: =IF('Control and Output Summary'!$C$14<>"Ergon",-PMT('Control and Output Summary'!$C$6,INDEX('Asset Specification'!$G$8:$G$43,MATCH(1,($B54 = 'Asset Specification'!$B$8:$B$43)*($C54 ='Asset Specification'!$C$8:$C$43) * ("Import" ='Asset Specification'!$D$8:$D$43 ),0)),N43),-PMT('Control and Output Summary'!$C$6,INDEX('Ergon Input'!$G$84:$G$95,MATCH(1,($B54 = 'Ergon Input'!$B$84:$B$95)* ("Import" ='Ergon Input'!$D$84:$D$95 ),0)),N43)) -> 0.01894505745
B55: HV Bus | C55: ='Control and Output Summary'!$C$14 -> West | D55: =IF('Control and Output Summary'!$C$14<>"Ergon",-PMT('Control and Output Summary'!$C$6,INDEX('Asset Specification'!$G$8:$G$43,MATCH(1,($B55 = 'Asset Specification'!$B$8:$B$43)*($C55 ='Asset Specification'!$C$8:$C$43) * ("Import" ='Asset Specification'!$D$8:$D$43 ),0)),D44),-PMT('Control and Output Summary'!$C$6,INDEX('Ergon Input'!$G$84:$G$95,MATCH(1,($B55 = 'Ergon Input'!$B$84:$B$95)* ("Import" ='Ergon Input'!$D$84:$D$95 ),0)),D44)) -> 0.03430990471 | E55: =IF('Control and Output Summary'!$C$14<>"Ergon",-PMT('Control and Output Summary'!$C$6,INDEX('Asset Specification'!$G$8:$G$43,MATCH(1,($B55 = 'Asset Specification'!$B$8:$B$43)*($C55 ='Asset Specification'!$C$8:$C$43) * ("Import" ='Asset Specification'!$D$8:$D$43 ),0)),E44),-PMT('Control and Output Summary'!$C$6,INDEX('Ergon Input'!$G$84:$G$95,MATCH(1,($B55 = 'Ergon Input'!$B$84:$B$95)* ("Import" ='Ergon Input'!$D$84:$D$95 ),0)),E44)) -> 0.04821428566 | F55: =IF('Control and Output Summary'!$C$14<>"Ergon",-PMT('Control and Output Summary'!$C$6,INDEX('Asset Specification'!$G$8:$G$43,MATCH(1,($B55 = 'Asset Specification'!$B$8:$B$43)*($C55 ='Asset Specification'!$C$8:$C$43) * ("Import" ='Asset Specification'!$D$8:$D$43 ),0)),F44),-PMT('Control and Output Summary'!$C$6,INDEX('Ergon Input'!$G$84:$G$95,MATCH(1,($B55 = 'Ergon Input'!$B$84:$B$95)* ("Import" ='Ergon Input'!$D$84:$D$95 ),0)),F44)) -> 0.1544026198 | G55: =IF('Control and Output Summary'!$C$14<>"Ergon",-PMT('Control and Output Summary'!$C$6,INDEX('Asset Specification'!$G$8:$G$43,MATCH(1,($B55 = 'Asset Specification'!$B$8:$B$43)*($C55 ='Asset Specification'!$C$8:$C$43) * ("Import" ='Asset Specification'!$D$8:$D$43 ),0)),G44),-PMT('Control and Output Summary'!$C$6,INDEX('Ergon Input'!$G$84:$G$95,MATCH(1,($B55 = 'Ergon Input'!$B$84:$B$95)* ("Import" ='Ergon Input'!$D$84:$D$95 ),0)),G44)) -> 0.2476734849 | H55: =IF('Control and Output Summary'!$C$14<>"Ergon",-PMT('Control and Output Summary'!$C$6,INDEX('Asset Specification'!$G$8:$G$43,MATCH(1,($B55 = 'Asset Specification'!$B$8:$B$43)*($C55 ='Asset Specification'!$C$8:$C$43) * ("Import" ='Asset Specification'!$D$8:$D$43 ),0)),H44),-PMT('Control and Output Summary'!$C$6,INDEX('Ergon Input'!$G$84:$G$95,MATCH(1,($B55 = 'Ergon Input'!$B$84:$B$95)* ("Import" ='Ergon Input'!$D$84:$D$95 ),0)),H44)) -> 0.2476069464 | I55: =IF('Control and Output Summary'!$C$14<>"Ergon",-PMT('Control and Output Summary'!$C$6,INDEX('Asset Specification'!$G$8:$G$43,MATCH(1,($B55 = 'Asset Specification'!$B$8:$B$43)*($C55 ='Asset Specification'!$C$8:$C$43) * ("Import" ='Asset Specification'!$D$8:$D$43 ),0)),I44),-PMT('Control and Output Summary'!$C$6,INDEX('Ergon Input'!$G$84:$G$95,MATCH(1,($B55 = 'Ergon Input'!$B$84:$B$95)* ("Import" ='Ergon Input'!$D$84:$D$95 ),0)),I44)) -> 0.2677814843 | J55: =IF('Control and Output Summary'!$C$14<>"Ergon",-PMT('Control and Output Summary'!$C$6,INDEX('Asset Specification'!$G$8:$G$43,MATCH(1,($B55 = 'Asset Specification'!$B$8:$B$43)*($C55 ='Asset Specification'!$C$8:$C$43) * ("Import" ='Asset Specification'!$D$8:$D$43 ),0)),J44),-PMT('Control and Output Summary'!$C$6,INDEX('Ergon Input'!$G$84:$G$95,MATCH(1,($B55 = 'Ergon Input'!$B$84:$B$95)* ("Import" ='Ergon Input'!$D$84:$D$95 ),0)),J44)) -> 0.2881786185 | K55: =IF('Control and Output Summary'!$C$14<>"Ergon",-PMT('Control and Output Summary'!$C$6,INDEX('Asset Specification'!$G$8:$G$43,MATCH(1,($B55 = 'Asset Specification'!$B$8:$B$43)*($C55 ='Asset Specification'!$C$8:$C$43) * ("Import" ='Asset Specification'!$D$8:$D$43 ),0)),K44),-PMT('Control and Output Summary'!$C$6,INDEX('Ergon Input'!$G$84:$G$95,MATCH(1,($B55 = 'Ergon Input'!$B$84:$B$95)* ("Import" ='Ergon Input'!$D$84:$D$95 ),0)),K44)) -> 0.3093983908 | L55: =IF('Control and Output Summary'!$C$14<>"Ergon",-PMT('Control and Output Summary'!$C$6,INDEX('Asset Specification'!$G$8:$G$43,MATCH(1,($B55 = 'Asset Specification'!$B$8:$B$43)*($C55 ='Asset Specification'!$C$8:$C$43) * ("Import" ='Asset Specification'!$D$8:$D$43 ),0)),L44),-PMT('Control and Output Summary'!$C$6,INDEX('Ergon Input'!$G$84:$G$95,MATCH(1,($B55 = 'Ergon Input'!$B$84:$B$95)* ("Import" ='Ergon Input'!$D$84:$D$95 ),0)),L44)) -> 0.2884528312 | M55: =IF('Control and Output Summary'!$C$14<>"Ergon",-PMT('Control and Output Summary'!$C$6,INDEX('Asset Specification'!$G$8:$G$43,MATCH(1,($B55 = 'Asset Specification'!$B$8:$B$43)*($C55 ='Asset Specification'!$C$8:$C$43) * ("Import" ='Asset Specification'!$D$8:$D$43 ),0)),M44),-PMT('Control and Output Summary'!$C$6,INDEX('Ergon Input'!$G$84:$G$95,MATCH(1,($B55 = 'Ergon Input'!$B$84:$B$95)* ("Import" ='Ergon Input'!$D$84:$D$95 ),0)),M44)) -> 0.2884528312 | N55: =IF('Control and Output Summary'!$C$14<>"Ergon",-PMT('Control and Output Summary'!$C$6,INDEX('Asset Specification'!$G$8:$G$43,MATCH(1,($B55 = 'Asset Specification'!$B$8:$B$43)*($C55 ='Asset Specification'!$C$8:$C$43) * ("Import" ='Asset Specification'!$D$8:$D$43 ),0)),N44),-PMT('Control and Output Summary'!$C$6,INDEX('Ergon Input'!$G$84:$G$95,MATCH(1,($B55 = 'Ergon Input'!$B$84:$B$95)* ("Import" ='Ergon Input'!$D$84:$D$95 ),0)),N44)) -> 0.2884528312
B56: ST 33/66 kv | C56: ='Control and Output Summary'!$C$14 -> West | D56: =IF('Control and Output Summary'!$C$14<>"Ergon",-PMT('Control and Output Summary'!$C$6,INDEX('Asset Specification'!$G$8:$G$43,MATCH(1,($B56 = 'Asset Specification'!$B$8:$B$43)*($C56 ='Asset Specification'!$C$8:$C$43) * ("Import" ='Asset Specification'!$D$8:$D$43 ),0)),D45),-PMT('Control and Output Summary'!$C$6,INDEX('Ergon Input'!$G$84:$G$95,MATCH(1,($B56 = 'Ergon Input'!$B$84:$B$95)* ("Import" ='Ergon Input'!$D$84:$D$95 ),0)),D45)) -> 0.03690568037 | E56: =IF('Control and Output Summary'!$C$14<>"Ergon",-PMT('Control and Output Summary'!$C$6,INDEX('Asset Specification'!$G$8:$G$43,MATCH(1,($B56 = 'Asset Specification'!$B$8:$B$43)*($C56 ='Asset Specification'!$C$8:$C$43) * ("Import" ='Asset Specification'!$D$8:$D$43 ),0)),E45),-PMT('Control and Output Summary'!$C$6,INDEX('Ergon Input'!$G$84:$G$95,MATCH(1,($B56 = 'Ergon Input'!$B$84:$B$95)* ("Import" ='Ergon Input'!$D$84:$D$95 ),0)),E45)) -> 0.00131866802 | F56: =IF('Control and Output Summary'!$C$14<>"Ergon",-PMT('Control and Output Summary'!$C$6,INDEX('Asset Specification'!$G$8:$G$43,MATCH(1,($B56 = 'Asset Specification'!$B$8:$B$43)*($C56 ='Asset Specification'!$C$8:$C$43) * ("Import" ='Asset Specification'!$D$8:$D$43 ),0)),F45),-PMT('Control and Output Summary'!$C$6,INDEX('Ergon Input'!$G$84:$G$95,MATCH(1,($B56 = 'Ergon Input'!$B$84:$B$95)* ("Import" ='Ergon Input'!$D$84:$D$95 ),0)),F45)) -> 0 | G56: =IF('Control and Output Summary'!$C$14<>"Ergon",-PMT('Control and Output Summary'!$C$6,INDEX('Asset Specification'!$G$8:$G$43,MATCH(1,($B56 = 'Asset Specification'!$B$8:$B$43)*($C56 ='Asset Specification'!$C$8:$C$43) * ("Import" ='Asset Specification'!$D$8:$D$43 ),0)),G45),-PMT('Control and Output Summary'!$C$6,INDEX('Ergon Input'!$G$84:$G$95,MATCH(1,($B56 = 'Ergon Input'!$B$84:$B$95)* ("Import" ='Ergon Input'!$D$84:$D$95 ),0)),G45)) -> 0 | H56: =IF('Control and Output Summary'!$C$14<>"Ergon",-PMT('Control and Output Summary'!$C$6,INDEX('Asset Specification'!$G$8:$G$43,MATCH(1,($B56 = 'Asset Specification'!$B$8:$B$43)*($C56 ='Asset Specification'!$C$8:$C$43) * ("Import" ='Asset Specification'!$D$8:$D$43 ),0)),H45),-PMT('Control and Output Summary'!$C$6,INDEX('Ergon Input'!$G$84:$G$95,MATCH(1,($B56 = 'Ergon Input'!$B$84:$B$95)* ("Import" ='Ergon Input'!$D$84:$D$95 ),0)),H45)) -> 0 | I56: =IF('Control and Output Summary'!$C$14<>"Ergon",-PMT('Control and Output Summary'!$C$6,INDEX('Asset Specification'!$G$8:$G$43,MATCH(1,($B56 = 'Asset Specification'!$B$8:$B$43)*($C56 ='Asset Specification'!$C$8:$C$43) * ("Import" ='Asset Specification'!$D$8:$D$43 ),0)),I45),-PMT('Control and Output Summary'!$C$6,INDEX('Ergon Input'!$G$84:$G$95,MATCH(1,($B56 = 'Ergon Input'!$B$84:$B$95)* ("Import" ='Ergon Input'!$D$84:$D$95 ),0)),I45)) -> 0 | J56: =IF('Control and Output Summary'!$C$14<>"Ergon",-PMT('Control and Output Summary'!$C$6,INDEX('Asset Specification'!$G$8:$G$43,MATCH(1,($B56 = 'Asset Specification'!$B$8:$B$43)*($C56 ='Asset Specification'!$C$8:$C$43) * ("Import" ='Asset Specification'!$D$8:$D$43 ),0)),J45),-PMT('Control and Output Summary'!$C$6,INDEX('Ergon Input'!$G$84:$G$95,MATCH(1,($B56 = 'Ergon Input'!$B$84:$B$95)* ("Import" ='Ergon Input'!$D$84:$D$95 ),0)),J45)) -> 0 | K56: =IF('Control and Output Summary'!$C$14<>"Ergon",-PMT('Control and Output Summary'!$C$6,INDEX('Asset Specification'!$G$8:$G$43,MATCH(1,($B56 = 'Asset Specification'!$B$8:$B$43)*($C56 ='Asset Specification'!$C$8:$C$43) * ("Import" ='Asset Specification'!$D$8:$D$43 ),0)),K45),-PMT('Control and Output Summary'!$C$6,INDEX('Ergon Input'!$G$84:$G$95,MATCH(1,($B56 = 'Ergon Input'!$B$84:$B$95)* ("Import" ='Ergon Input'!$D$84:$D$95 ),0)),K45)) -> 0 | L56: =IF('Control and Output Summary'!$C$14<>"Ergon",-PMT('Control and Output Summary'!$C$6,INDEX('Asset Specification'!$G$8:$G$43,MATCH(1,($B56 = 'Asset Specification'!$B$8:$B$43)*($C56 ='Asset Specification'!$C$8:$C$43) * ("Import" ='Asset Specification'!$D$8:$D$43 ),0)),L45),-PMT('Control and Output Summary'!$C$6,INDEX('Ergon Input'!$G$84:$G$95,MATCH(1,($B56 = 'Ergon Input'!$B$84:$B$95)* ("Import" ='Ergon Input'!$D$84:$D$95 ),0)),L45)) -> 0 | M56: =IF('Control and Output Summary'!$C$14<>"Ergon",-PMT('Control and Output Summary'!$C$6,INDEX('Asset Specification'!$G$8:$G$43,MATCH(1,($B56 = 'Asset Specification'!$B$8:$B$43)*($C56 ='Asset Specification'!$C$8:$C$43) * ("Import" ='Asset Specification'!$D$8:$D$43 ),0)),M45),-PMT('Control and Output Summary'!$C$6,INDEX('Ergon Input'!$G$84:$G$95,MATCH(1,($B56 = 'Ergon Input'!$B$84:$B$95)* ("Import" ='Ergon Input'!$D$84:$D$95 ),0)),M45)) -> 0 | N56: =IF('Control and Output Summary'!$C$14<>"Ergon",-PMT('Control and Output Summary'!$C$6,INDEX('Asset Specification'!$G$8:$G$43,MATCH(1,($B56 = 'Asset Specification'!$B$8:$B$43)*($C56 ='Asset Specification'!$C$8:$C$43) * ("Import" ='Asset Specification'!$D$8:$D$43 ),0)),N45),-PMT('Control and Output Summary'!$C$6,INDEX('Ergon Input'!$G$84:$G$95,MATCH(1,($B56 = 'Ergon Input'!$B$84:$B$95)* ("Import" ='Ergon Input'!$D$84:$D$95 ),0)),N45)) -> 0
B57: ST 110/132 kv | C57: ='Control and Output Summary'!$C$14 -> West | D57: =IF('Control and Output Summary'!$C$14<>"Ergon",-PMT('Control and Output Summary'!$C$6,INDEX('Asset Specification'!$G$8:$G$43,MATCH(1,($B57 = 'Asset Specification'!$B$8:$B$43)*($C57 ='Asset Specification'!$C$8:$C$43) * ("Import" ='Asset Specification'!$D$8:$D$43 ),0)),D46),-PMT('Control and Output Summary'!$C$6,INDEX('Ergon Input'!$G$84:$G$95,MATCH(1,($B57 = 'Ergon Input'!$B$84:$B$95)* ("Import" ='Ergon Input'!$D$84:$D$95 ),0)),D46)) -> 0.03570391085 | E57: =IF('Control and Output Summary'!$C$14<>"Ergon",-PMT('Control and Output Summary'!$C$6,INDEX('Asset Specification'!$G$8:$G$43,MATCH(1,($B57 = 'Asset Specification'!$B$8:$B$43)*($C57 ='Asset Specification'!$C$8:$C$43) * ("Import" ='Asset Specification'!$D$8:$D$43 ),0)),E46),-PMT('Control and Output Summary'!$C$6,INDEX('Ergon Input'!$G$84:$G$95,MATCH(1,($B57 = 'Ergon Input'!$B$84:$B$95)* ("Import" ='Ergon Input'!$D$84:$D$95 ),0)),E46)) -> 0.0001649603582 | F57: =IF('Control and Output Summary'!$C$14<>"Ergon",-PMT('Control and Output Summary'!$C$6,INDEX('Asset Specification'!$G$8:$G$43,MATCH(1,($B57 = 'Asset Specification'!$B$8:$B$43)*($C57 ='Asset Specification'!$C$8:$C$43) * ("Import" ='Asset Specification'!$D$8:$D$43 ),0)),F46),-PMT('Control and Output Summary'!$C$6,INDEX('Ergon Input'!$G$84:$G$95,MATCH(1,($B57 = 'Ergon Input'!$B$84:$B$95)* ("Import" ='Ergon Input'!$D$84:$D$95 ),0)),F46)) -> 0.0003732223041 | G57: =IF('Control and Output Summary'!$C$14<>"Ergon",-PMT('Control and Output Summary'!$C$6,INDEX('Asset Specification'!$G$8:$G$43,MATCH(1,($B57 = 'Asset Specification'!$B$8:$B$43)*($C57 ='Asset Specification'!$C$8:$C$43) * ("Import" ='Asset Specification'!$D$8:$D$43 ),0)),G46),-PMT('Control and Output Summary'!$C$6,INDEX('Ergon Input'!$G$84:$G$95,MATCH(1,($B57 = 'Ergon Input'!$B$84:$B$95)* ("Import" ='Ergon Input'!$D$84:$D$95 ),0)),G46)) -> 0.009605821601 | H57: =IF('Control and Output Summary'!$C$14<>"Ergon",-PMT('Control and Output Summary'!$C$6,INDEX('Asset Specification'!$G$8:$G$43,MATCH(1,($B57 = 'Asset Specification'!$B$8:$B$43)*($C57 ='Asset Specification'!$C$8:$C$43) * ("Import" ='Asset Specification'!$D$8:$D$43 ),0)),H46),-PMT('Control and Output Summary'!$C$6,INDEX('Ergon Input'!$G$84:$G$95,MATCH(1,($B57 = 'Ergon Input'!$B$84:$B$95)* ("Import" ='Ergon Input'!$D$84:$D$95 ),0)),H46)) -> 0.06397809539 | I57: =IF('Control and Output Summary'!$C$14<>"Ergon",-PMT('Control and Output Summary'!$C$6,INDEX('Asset Specification'!$G$8:$G$43,MATCH(1,($B57 = 'Asset Specification'!$B$8:$B$43)*($C57 ='Asset Specification'!$C$8:$C$43) * ("Import" ='Asset Specification'!$D$8:$D$43 ),0)),I46),-PMT('Control and Output Summary'!$C$6,INDEX('Ergon Input'!$G$84:$G$95,MATCH(1,($B57 = 'Ergon Input'!$B$84:$B$95)* ("Import" ='Ergon Input'!$D$84:$D$95 ),0)),I46)) -> 0.05912406017 | J57: =IF('Control and Output Summary'!$C$14<>"Ergon",-PMT('Control and Output Summary'!$C$6,INDEX('Asset Specification'!$G$8:$G$43,MATCH(1,($B57 = 'Asset Specification'!$B$8:$B$43)*($C57 ='Asset Specification'!$C$8:$C$43) * ("Import" ='Asset Specification'!$D$8:$D$43 ),0)),J46),-PMT('Control and Output Summary'!$C$6,INDEX('Ergon Input'!$G$84:$G$95,MATCH(1,($B57 = 'Ergon Input'!$B$84:$B$95)* ("Import" ='Ergon Input'!$D$84:$D$95 ),0)),J46)) -> 0.02275360434 | K57: =IF('Control and Output Summary'!$C$14<>"Ergon",-PMT('Control and Output Summary'!$C$6,INDEX('Asset Specification'!$G$8:$G$43,MATCH(1,($B57 = 'Asset Specification'!$B$8:$B$43)*($C57 ='Asset Specification'!$C$8:$C$43) * ("Import" ='Asset Specification'!$D$8:$D$43 ),0)),K46),-PMT('Control and Output Summary'!$C$6,INDEX('Ergon Input'!$G$84:$G$95,MATCH(1,($B57 = 'Ergon Input'!$B$84:$B$95)* ("Import" ='Ergon Input'!$D$84:$D$95 ),0)),K46)) -> 0.8253634438 | L57: =IF('Control and Output Summary'!$C$14<>"Ergon",-PMT('Control and Output Summary'!$C$6,INDEX('Asset Specification'!$G$8:$G$43,MATCH(1,($B57 = 'Asset Specification'!$B$8:$B$43)*($C57 ='Asset Specification'!$C$8:$C$43) * ("Import" ='Asset Specification'!$D$8:$D$43 ),0)),L46),-PMT('Control and Output Summary'!$C$6,INDEX('Ergon Input'!$G$84:$G$95,MATCH(1,($B57 = 'Ergon Input'!$B$84:$B$95)* ("Import" ='Ergon Input'!$D$84:$D$95 ),0)),L46)) -> 0.3024137028 | M57: =IF('Control and Output Summary'!$C$14<>"Ergon",-PMT('Control and Output Summary'!$C$6,INDEX('Asset Specification'!$G$8:$G$43,MATCH(1,($B57 = 'Asset Specification'!$B$8:$B$43)*($C57 ='Asset Specification'!$C$8:$C$43) * ("Import" ='Asset Specification'!$D$8:$D$43 ),0)),M46),-PMT('Control and Output Summary'!$C$6,INDEX('Ergon Input'!$G$84:$G$95,MATCH(1,($B57 = 'Ergon Input'!$B$84:$B$95)* ("Import" ='Ergon Input'!$D$84:$D$95 ),0)),M46)) -> 0.3024137028 | N57: =IF('Control and Output Summary'!$C$14<>"Ergon",-PMT('Control and Output Summary'!$C$6,INDEX('Asset Specification'!$G$8:$G$43,MATCH(1,($B57 = 'Asset Specification'!$B$8:$B$43)*($C57 ='Asset Specification'!$C$8:$C$43) * ("Import" ='Asset Specification'!$D$8:$D$43 ),0)),N46),-PMT('Control and Output Summary'!$C$6,INDEX('Ergon Input'!$G$84:$G$95,MATCH(1,($B57 = 'Ergon Input'!$B$84:$B$95)* ("Import" ='Ergon Input'!$D$84:$D$95 ),0)),N46)) -> 0.3024137028
B60: Cumulative Annualised Capex ($m)
B62: Voltage Level | C62: Pricing Zone | D62: =D$51 -> 2023 | E62: 2024 | F62: 2025 | G62: 2026 | H62: 2027 | I62: 2028 | J62: 2029 | K62: 2030 | L62: 2031 | M62: 2032 | N62: 2033
B63: LV Line | C63: ='Control and Output Summary'!$C$14 -> West | D63: =SUM($D52:D52) -> 0.04560669705 | E63: =SUM($D52:E52) -> 0.09329154587 | F63: =SUM($D52:F52) -> 0.1415556753 | G63: =SUM($D52:G52) -> 0.1913661627 | H63: =SUM($D52:H52) -> 0.2425198523 | I63: =SUM($D52:I52) -> 0.2951030771 | J63: =SUM($D52:J52) -> 0.3491713269 | K63: =SUM($D52:K52) -> 0.4032395766 | L63: =SUM($D52:L52) -> 0.4573078264 | M63: =SUM($D52:M52) -> 0.5113760761 | N63: =SUM($D52:N52) -> 0.5654443259
B64: LV Bus | C64: ='Control and Output Summary'!$C$14 -> West | D64: =SUM($D53:D53) -> 0.01959725983 | E64: =SUM($D53:E53) -> 0.01959725983 | F64: =SUM($D53:F53) -> 0.01959725983 | G64: =SUM($D53:G53) -> 0.01959725983 | H64: =SUM($D53:H53) -> 0.01959725983 | I64: =SUM($D53:I53) -> 0.01959725983 | J64: =SUM($D53:J53) -> 0.01959725983 | K64: =SUM($D53:K53) -> 0.01959725983 | L64: =SUM($D53:L53) -> 0.01959725983 | M64: =SUM($D53:M53) -> 0.01959725983 | N64: =SUM($D53:N53) -> 0.01959725983
B65: HV Line | C65: ='Control and Output Summary'!$C$14 -> West | D65: =SUM($D54:D54) -> 0.004560669705 | E65: =SUM($D54:E54) -> 0.009329154587 | F65: =SUM($D54:F54) -> 0.01415556753 | G65: =SUM($D54:G54) -> 0.02220445417 | H65: =SUM($D54:H54) -> 0.02731982313 | I65: =SUM($D54:I54) -> 0.03962770679 | J65: =SUM($D54:J54) -> 0.0585836924 | K65: =SUM($D54:K54) -> 0.08400649297 | L65: =SUM($D54:L54) -> 0.1029515504 | M65: =SUM($D54:M54) -> 0.1218966079 | N65: =SUM($D54:N54) -> 0.1408416653
B66: HV Bus | C66: ='Control and Output Summary'!$C$14 -> West | D66: =SUM($D55:D55) -> 0.03430990471 | E66: =SUM($D55:E55) -> 0.08252419037 | F66: =SUM($D55:F55) -> 0.2369268101 | G66: =SUM($D55:G55) -> 0.484600295 | H66: =SUM($D55:H55) -> 0.7322072415 | I66: =SUM($D55:I55) -> 0.9999887257 | J66: =SUM($D55:J55) -> 1.288167344 | K66: =SUM($D55:K55) -> 1.597565735 | L66: =SUM($D55:L55) -> 1.886018566 | M66: =SUM($D55:M55) -> 2.174471397 | N66: =SUM($D55:N55) -> 2.462924229
B67: ST 33/66 kv | C67: ='Control and Output Summary'!$C$14 -> West | D67: =SUM($D56:D56) -> 0.03690568037 | E67: =SUM($D56:E56) -> 0.03822434839 | F67: =SUM($D56:F56) -> 0.03822434839 | G67: =SUM($D56:G56) -> 0.03822434839 | H67: =SUM($D56:H56) -> 0.03822434839 | I67: =SUM($D56:I56) -> 0.03822434839 | J67: =SUM($D56:J56) -> 0.03822434839 | K67: =SUM($D56:K56) -> 0.03822434839 | L67: =SUM($D56:L56) -> 0.03822434839 | M67: =SUM($D56:M56) -> 0.03822434839 | N67: =SUM($D56:N56) -> 0.03822434839
B68: ST 110/132 kv | C68: ='Control and Output Summary'!$C$14 -> West | D68: =SUM($D57:D57) -> 0.03570391085 | E68: =SUM($D57:E57) -> 0.03586887121 | F68: =SUM($D57:F57) -> 0.03624209351 | G68: =SUM($D57:G57) -> 0.04584791511 | H68: =SUM($D57:H57) -> 0.1098260105 | I68: =SUM($D57:I57) -> 0.1689500707 | J68: =SUM($D57:J57) -> 0.191703675 | K68: =SUM($D57:K57) -> 1.017067119 | L68: =SUM($D57:L57) -> 1.319480822 | M68: =SUM($D57:M57) -> 1.621894524 | N68: =SUM($D57:N57) -> 1.924308227
B71: Opex ($m)
B73: Voltage Level | C73: Pricing Zone | D73: =D$62 -> 2023 | E73: 2024 | F73: 2025 | G73: 2026 | H73: 2027 | I73: 2028 | J73: 2029 | K73: 2030 | L73: 2031 | M73: 2032 | N73: 2033
B74: LV Line | C74: ='Control and Output Summary'!$C$14 -> West | D74: ='Control and Output Summary'!$C$8 * (D41) -> 0.0102433027 | E74: ='Control and Output Summary'!$C$8 * (E41) -> 0.01071005735 | F74: ='Control and Output Summary'!$C$8 * (F41) -> 0.01084016427 | G74: ='Control and Output Summary'!$C$8 * (G41) -> 0.01118747757 | H74: ='Control and Output Summary'!$C$8 * (H41) -> 0.01148916191 | I74: ='Control and Output Summary'!$C$8 * (I41) -> 0.01181023673 | J74: ='Control and Output Summary'!$C$8 * (J41) -> 0.01214377459 | K74: ='Control and Output Summary'!$C$8 * (K41) -> 0.01214377459 | L74: ='Control and Output Summary'!$C$8 * (L41) -> 0.01214377459 | M74: ='Control and Output Summary'!$C$8 * (M41) -> 0.01214377459 | N74: ='Control and Output Summary'!$C$8 * (N41) -> 0.01214377459
B75: LV Bus | C75: ='Control and Output Summary'!$C$14 -> West | D75: ='Control and Output Summary'!$C$8 * (D42) -> 0.00440156112 | E75: ='Control and Output Summary'!$C$8 * (E42) -> 0 | F75: ='Control and Output Summary'!$C$8 * (F42) -> 0 | G75: ='Control and Output Summary'!$C$8 * (G42) -> 0 | H75: ='Control and Output Summary'!$C$8 * (H42) -> 0 | I75: ='Control and Output Summary'!$C$8 * (I42) -> 0 | J75: ='Control and Output Summary'!$C$8 * (J42) -> 0 | K75: ='Control and Output Summary'!$C$8 * (K42) -> 0 | L75: ='Control and Output Summary'!$C$8 * (L42) -> 0 | M75: ='Control and Output Summary'!$C$8 * (M42) -> 0 | N75: ='Control and Output Summary'!$C$8 * (N42) -> 0
B76: HV Line | C76: ='Control and Output Summary'!$C$14 -> West | D76: ='Control and Output Summary'!$C$8 * (D43) -> 0.00102433027 | E76: ='Control and Output Summary'!$C$8 * (E43) -> 0.001071005735 | F76: ='Control and Output Summary'!$C$8 * (F43) -> 0.001084016427 | G76: ='Control and Output Summary'!$C$8 * (G43) -> 0.001807786742 | H76: ='Control and Output Summary'!$C$8 * (H43) -> 0.001148916191 | I76: ='Control and Output Summary'!$C$8 * (I43) -> 0.002764361072 | J76: ='Control and Output Summary'!$C$8 * (J43) -> 0.004257530388 | K76: ='Control and Output Summary'!$C$8 * (K43) -> 0.005709982495 | L76: ='Control and Output Summary'!$C$8 * (L43) -> 0.004255075914 | M76: ='Control and Output Summary'!$C$8 * (M43) -> 0.004255075914 | N76: ='Control and Output Summary'!$C$8 * (N43) -> 0.004255075914
B77: HV Bus | C77: ='Control and Output Summary'!$C$14 -> West | D77: ='Control and Output Summary'!$C$8 * (D44) -> 0.007706033595 | E77: ='Control and Output Summary'!$C$8 * (E44) -> 0.01082896931 | F77: ='Control and Output Summary'!$C$8 * (F44) -> 0.0346789589 | G77: ='Control and Output Summary'!$C$8 * (G44) -> 0.05562767403 | H77: ='Control and Output Summary'!$C$8 * (H44) -> 0.05561272943 | I77: ='Control and Output Summary'!$C$8 * (I44) -> 0.06014394769 | J77: ='Control and Output Summary'!$C$8 * (J44) -> 0.06472516127 | K77: ='Control and Output Summary'!$C$8 * (K44) -> 0.06949114006 | L77: ='Control and Output Summary'!$C$8 * (L44) -> 0.06478674967 | M77: ='Control and Output Summary'!$C$8 * (M44) -> 0.06478674967 | N77: ='Control and Output Summary'!$C$8 * (N44) -> 0.06478674967
B78: ST 33/66 kv | C78: ='Control and Output Summary'!$C$14 -> West | D78: ='Control and Output Summary'!$C$8 * (D45) -> 0.008289047002 | E78: ='Control and Output Summary'!$C$8 * (E45) -> 0.0002961739517 | F78: ='Control and Output Summary'!$C$8 * (F45) -> 0 | G78: ='Control and Output Summary'!$C$8 * (G45) -> 0 | H78: ='Control and Output Summary'!$C$8 * (H45) -> 0 | I78: ='Control and Output Summary'!$C$8 * (I45) -> 0 | J78: ='Control and Output Summary'!$C$8 * (J45) -> 0 | K78: ='Control and Output Summary'!$C$8 * (K45) -> 0 | L78: ='Control and Output Summary'!$C$8 * (L45) -> 0 | M78: ='Control and Output Summary'!$C$8 * (M45) -> 0 | N78: ='Control and Output Summary'!$C$8 * (N45) -> 0
B79: ST 110/132 kv | C79: ='Control and Output Summary'!$C$14 -> West | D79: ='Control and Output Summary'!$C$8 * (D46) -> 0.008019128552 | E79: ='Control and Output Summary'!$C$8 * (E46) -> 3.705023588e-05 | F79: ='Control and Output Summary'!$C$8 * (F46) -> 8.382604494e-05 | G79: ='Control and Output Summary'!$C$8 * (G46) -> 0.00215747565 | H79: ='Control and Output Summary'!$C$8 * (H46) -> 0.0143695343 | I79: ='Control and Output Summary'!$C$8 * (I46) -> 0.01327931388 | J79: ='Control and Output Summary'!$C$8 * (J46) -> 0.005110478765 | K79: ='Control and Output Summary'!$C$8 * (K46) -> 0.1853773271 | L79: ='Control and Output Summary'!$C$8 * (L46) -> 0.06792237323 | M79: ='Control and Output Summary'!$C$8 * (M46) -> 0.06792237323 | N79: ='Control and Output Summary'!$C$8 * (N46) -> 0.06792237323
B82: Total Annual Cost ($m)
B84: Voltage Level | C84: Pricing Zone | D84: =D$73 -> 2023 | E84: 2024 | F84: 2025 | G84: 2026 | H84: 2027 | I84: 2028 | J84: 2029 | K84: 2030 | L84: 2031 | M84: 2032 | N84: 2033
B85: LV Line | C85: ='Control and Output Summary'!$C$14 -> West | D85: =D63 + D74 -> 0.05584999975 | E85: 0.1040016032 | F85: 0.1523958396 | G85: 0.2025536403 | H85: 0.2540090142 | I85: 0.3069133138 | J85: 0.3613151014 | K85: 0.4153833512 | L85: 0.469451601 | M85: 0.5235198507 | N85: 0.5775881005
B86: LV Bus | C86: ='Control and Output Summary'!$C$14 -> West | D86: =D64 + D75 -> 0.02399882095 | E86: 0.01959725983 | F86: 0.01959725983 | G86: 0.01959725983 | H86: 0.01959725983 | I86: 0.01959725983 | J86: 0.01959725983 | K86: 0.01959725983 | L86: 0.01959725983 | M86: 0.01959725983 | N86: 0.01959725983
B87: HV Line | C87: ='Control and Output Summary'!$C$14 -> West | D87: =D65 + D76 -> 0.005584999975 | E87: 0.01040016032 | F87: 0.01523958396 | G87: 0.02401224092 | H87: 0.02846873932 | I87: 0.04239206786 | J87: 0.06284122279 | K87: 0.08971647547 | L87: 0.1072066263 | M87: 0.1261516838 | N87: 0.1450967412
B88: HV Bus | C88: ='Control and Output Summary'!$C$14 -> West | D88: =D66 + D77 -> 0.0420159383 | E88: 0.09335315968 | F88: 0.271605769 | G88: 0.5402279691 | H88: 0.7878199709 | I88: 1.060132673 | J88: 1.352892506 | K88: 1.667056875 | L88: 1.950805316 | M88: 2.239258147 | N88: 2.527710978
B89: ST 33/66 kv | C89: ='Control and Output Summary'!$C$14 -> West | D89: =D67 + D78 -> 0.04519472737 | E89: 0.03852052234 | F89: 0.03822434839 | G89: 0.03822434839 | H89: 0.03822434839 | I89: 0.03822434839 | J89: 0.03822434839 | K89: 0.03822434839 | L89: 0.03822434839 | M89: 0.03822434839 | N89: 0.03822434839
B90: ST 110/132 kv | C90: ='Control and Output Summary'!$C$14 -> West | D90: =D68 + D79 -> 0.0437230394 | E90: 0.03590592144 | F90: 0.03632591956 | G90: 0.04800539076 | H90: 0.1241955448 | I90: 0.1822293846 | J90: 0.1968141538 | K90: 1.202444446 | L90: 1.387403195 | M90: 1.689816898 | N90: 1.9922306
B93: Declining
B96: Replacement
B98: Voltage Level | C98: Pricing Zone | D98: =D$18 -> 2023 | E98: 2024 | F98: 2025 | G98: 2026 | H98: 2027 | I98: 2028 | J98: 2029 | K98: 2030 | L98: 2031 | M98: 2032 | N98: 2033
B99: LV Line | C99: ='Control and Output Summary'!$C$14 -> West | D99: =IF('Control and Output Summary'!$C$14<>"Ergon",SUMIFS(INDEX('Import Expenditure Forecast'!$F$8:$P$79,,MATCH(D$98,'Import Expenditure Forecast'!$F$7:$P$7,0)),'Import Expenditure Forecast'!$C$8:$C$79,$B99,'Import Expenditure Forecast'!$E$8:$E$79,$C99,'Import Expenditure Forecast'!$B$8:$B$79,$B$93,'Import Expenditure Forecast'!$D$8:$D$79,$B$96),SUMIFS(INDEX('Ergon Input'!$F$40:$P$63,,MATCH(D$98,'Ergon Input'!$F$39:$P$39,0)),'Ergon Input'!$C$40:$C$63,$B99,'Ergon Input'!$B$40:$B$63,$B$93,'Ergon Input'!$D$40:$D$63,$B$96)) -> 0 | E99: =IF('Control and Output Summary'!$C$14<>"Ergon",SUMIFS(INDEX('Import Expenditure Forecast'!$F$8:$P$79,,MATCH(E$98,'Import Expenditure Forecast'!$F$7:$P$7,0)),'Import Expenditure Forecast'!$C$8:$C$79,$B99,'Import Expenditure Forecast'!$E$8:$E$79,$C99,'Import Expenditure Forecast'!$B$8:$B$79,$B$93,'Import Expenditure Forecast'!$D$8:$D$79,$B$96),SUMIFS(INDEX('Ergon Input'!$F$40:$P$63,,MATCH(E$98,'Ergon Input'!$F$39:$P$39,0)),'Ergon Input'!$C$40:$C$63,$B99,'Ergon Input'!$B$40:$B$63,$B$93,'Ergon Input'!$D$40:$D$63,$B$96)) -> 0 | F99: =IF('Control and Output Summary'!$C$14<>"Ergon",SUMIFS(INDEX('Import Expenditure Forecast'!$F$8:$P$79,,MATCH(F$98,'Import Expenditure Forecast'!$F$7:$P$7,0)),'Import Expenditure Forecast'!$C$8:$C$79,$B99,'Import Expenditure Forecast'!$E$8:$E$79,$C99,'Import Expenditure Forecast'!$B$8:$B$79,$B$93,'Import Expenditure Forecast'!$D$8:$D$79,$B$96),SUMIFS(INDEX('Ergon Input'!$F$40:$P$63,,MATCH(F$98,'Ergon Input'!$F$39:$P$39,0)),'Ergon Input'!$C$40:$C$63,$B99,'Ergon Input'!$B$40:$B$63,$B$93,'Ergon Input'!$D$40:$D$63,$B$96)) -> 0 | G99: =IF('Control and Output Summary'!$C$14<>"Ergon",SUMIFS(INDEX('Import Expenditure Forecast'!$F$8:$P$79,,MATCH(G$98,'Import Expenditure Forecast'!$F$7:$P$7,0)),'Import Expenditure Forecast'!$C$8:$C$79,$B99,'Import Expenditure Forecast'!$E$8:$E$79,$C99,'Import Expenditure Forecast'!$B$8:$B$79,$B$93,'Import Expenditure Forecast'!$D$8:$D$79,$B$96),SUMIFS(INDEX('Ergon Input'!$F$40:$P$63,,MATCH(G$98,'Ergon Input'!$F$39:$P$39,0)),'Ergon Input'!$C$40:$C$63,$B99,'Ergon Input'!$B$40:$B$63,$B$93,'Ergon Input'!$D$40:$D$63,$B$96)) -> 0 | H99: =IF('Control and Output Summary'!$C$14<>"Ergon",SUMIFS(INDEX('Import Expenditure Forecast'!$F$8:$P$79,,MATCH(H$98,'Import Expenditure Forecast'!$F$7:$P$7,0)),'Import Expenditure Forecast'!$C$8:$C$79,$B99,'Import Expenditure Forecast'!$E$8:$E$79,$C99,'Import Expenditure Forecast'!$B$8:$B$79,$B$93,'Import Expenditure Forecast'!$D$8:$D$79,$B$96),SUMIFS(INDEX('Ergon Input'!$F$40:$P$63,,MATCH(H$98,'Ergon Input'!$F$39:$P$39,0)),'Ergon Input'!$C$40:$C$63,$B99,'Ergon Input'!$B$40:$B$63,$B$93,'Ergon Input'!$D$40:$D$63,$B$96)) -> 0 | I99: =IF('Control and Output Summary'!$C$14<>"Ergon",SUMIFS(INDEX('Import Expenditure Forecast'!$F$8:$P$79,,MATCH(I$98,'Import Expenditure Forecast'!$F$7:$P$7,0)),'Import Expenditure Forecast'!$C$8:$C$79,$B99,'Import Expenditure Forecast'!$E$8:$E$79,$C99,'Import Expenditure Forecast'!$B$8:$B$79,$B$93,'Import Expenditure Forecast'!$D$8:$D$79,$B$96),SUMIFS(INDEX('Ergon Input'!$F$40:$P$63,,MATCH(I$98,'Ergon Input'!$F$39:$P$39,0)),'Ergon Input'!$C$40:$C$63,$B99,'Ergon Input'!$B$40:$B$63,$B$93,'Ergon Input'!$D$40:$D$63,$B$96)) -> 0 | J99: =IF('Control and Output Summary'!$C$14<>"Ergon",SUMIFS(INDEX('Import Expenditure Forecast'!$F$8:$P$79,,MATCH(J$98,'Import Expenditure Forecast'!$F$7:$P$7,0)),'Import Expenditure Forecast'!$C$8:$C$79,$B99,'Import Expenditure Forecast'!$E$8:$E$79,$C99,'Import Expenditure Forecast'!$B$8:$B$79,$B$93,'Import Expenditure Forecast'!$D$8:$D$79,$B$96),SUMIFS(INDEX('Ergon Input'!$F$40:$P$63,,MATCH(J$98,'Ergon Input'!$F$39:$P$39,0)),'Ergon Input'!$C$40:$C$63,$B99,'Ergon Input'!$B$40:$B$63,$B$93,'Ergon Input'!$D$40:$D$63,$B$96)) -> 0 | K99: =IF('Control and Output Summary'!$C$14<>"Ergon",SUMIFS(INDEX('Import Expenditure Forecast'!$F$8:$P$79,,MATCH(K$98,'Import Expenditure Forecast'!$F$7:$P$7,0)),'Import Expenditure Forecast'!$C$8:$C$79,$B99,'Import Expenditure Forecast'!$E$8:$E$79,$C99,'Import Expenditure Forecast'!$B$8:$B$79,$B$93,'Import Expenditure Forecast'!$D$8:$D$79,$B$96),SUMIFS(INDEX('Ergon Input'!$F$40:$P$63,,MATCH(K$98,'Ergon Input'!$F$39:$P$39,0)),'Ergon Input'!$C$40:$C$63,$B99,'Ergon Input'!$B$40:$B$63,$B$93,'Ergon Input'!$D$40:$D$63,$B$96)) -> 0 | L99: =IF('Control and Output Summary'!$C$14<>"Ergon",SUMIFS(INDEX('Import Expenditure Forecast'!$F$8:$P$79,,MATCH(L$98,'Import Expenditure Forecast'!$F$7:$P$7,0)),'Import Expenditure Forecast'!$C$8:$C$79,$B99,'Import Expenditure Forecast'!$E$8:$E$79,$C99,'Import Expenditure Forecast'!$B$8:$B$79,$B$93,'Import Expenditure Forecast'!$D$8:$D$79,$B$96),SUMIFS(INDEX('Ergon Input'!$F$40:$P$63,,MATCH(L$98,'Ergon Input'!$F$39:$P$39,0)),'Ergon Input'!$C$40:$C$63,$B99,'Ergon Input'!$B$40:$B$63,$B$93,'Ergon Input'!$D$40:$D$63,$B$96)) -> 0 | M99: =IF('Control and Output Summary'!$C$14<>"Ergon",SUMIFS(INDEX('Import Expenditure Forecast'!$F$8:$P$79,,MATCH(M$98,'Import Expenditure Forecast'!$F$7:$P$7,0)),'Import Expenditure Forecast'!$C$8:$C$79,$B99,'Import Expenditure Forecast'!$E$8:$E$79,$C99,'Import Expenditure Forecast'!$B$8:$B$79,$B$93,'Import Expenditure Forecast'!$D$8:$D$79,$B$96),SUMIFS(INDEX('Ergon Input'!$F$40:$P$63,,MATCH(M$98,'Ergon Input'!$F$39:$P$39,0)),'Ergon Input'!$C$40:$C$63,$B99,'Ergon Input'!$B$40:$B$63,$B$93,'Ergon Input'!$D$40:$D$63,$B$96)) -> 0 | N99: =IF('Control and Output Summary'!$C$14<>"Ergon",SUMIFS(INDEX('Import Expenditure Forecast'!$F$8:$P$79,,MATCH(N$98,'Import Expenditure Forecast'!$F$7:$P$7,0)),'Import Expenditure Forecast'!$C$8:$C$79,$B99,'Import Expenditure Forecast'!$E$8:$E$79,$C99,'Import Expenditure Forecast'!$B$8:$B$79,$B$93,'Import Expenditure Forecast'!$D$8:$D$79,$B$96),SUMIFS(INDEX('Ergon Input'!$F$40:$P$63,,MATCH(N$98,'Ergon Input'!$F$39:$P$39,0)),'Ergon Input'!$C$40:$C$63,$B99,'Ergon Input'!$B$40:$B$63,$B$93,'Ergon Input'!$D$40:$D$63,$B$96)) -> 0
B100: LV Bus | C100: ='Control and Output Summary'!$C$14 -> West | D100: =IF('Control and Output Summary'!$C$14<>"Ergon",SUMIFS(INDEX('Import Expenditure Forecast'!$F$8:$P$79,,MATCH(D$98,'Import Expenditure Forecast'!$F$7:$P$7,0)),'Import Expenditure Forecast'!$C$8:$C$79,$B100,'Import Expenditure Forecast'!$E$8:$E$79,$C100,'Import Expenditure Forecast'!$B$8:$B$79,$B$93,'Import Expenditure Forecast'!$D$8:$D$79,$B$96),SUMIFS(INDEX('Ergon Input'!$F$40:$P$63,,MATCH(D$98,'Ergon Input'!$F$39:$P$39,0)),'Ergon Input'!$C$40:$C$63,$B100,'Ergon Input'!$B$40:$B$63,$B$93,'Ergon Input'!$D$40:$D$63,$B$96)) -> 0 | E100: =IF('Control and Output Summary'!$C$14<>"Ergon",SUMIFS(INDEX('Import Expenditure Forecast'!$F$8:$P$79,,MATCH(E$98,'Import Expenditure Forecast'!$F$7:$P$7,0)),'Import Expenditure Forecast'!$C$8:$C$79,$B100,'Import Expenditure Forecast'!$E$8:$E$79,$C100,'Import Expenditure Forecast'!$B$8:$B$79,$B$93,'Import Expenditure Forecast'!$D$8:$D$79,$B$96),SUMIFS(INDEX('Ergon Input'!$F$40:$P$63,,MATCH(E$98,'Ergon Input'!$F$39:$P$39,0)),'Ergon Input'!$C$40:$C$63,$B100,'Ergon Input'!$B$40:$B$63,$B$93,'Ergon Input'!$D$40:$D$63,$B$96)) -> 0 | F100: =IF('Control and Output Summary'!$C$14<>"Ergon",SUMIFS(INDEX('Import Expenditure Forecast'!$F$8:$P$79,,MATCH(F$98,'Import Expenditure Forecast'!$F$7:$P$7,0)),'Import Expenditure Forecast'!$C$8:$C$79,$B100,'Import Expenditure Forecast'!$E$8:$E$79,$C100,'Import Expenditure Forecast'!$B$8:$B$79,$B$93,'Import Expenditure Forecast'!$D$8:$D$79,$B$96),SUMIFS(INDEX('Ergon Input'!$F$40:$P$63,,MATCH(F$98,'Ergon Input'!$F$39:$P$39,0)),'Ergon Input'!$C$40:$C$63,$B100,'Ergon Input'!$B$40:$B$63,$B$93,'Ergon Input'!$D$40:$D$63,$B$96)) -> 0 | G100: =IF('Control and Output Summary'!$C$14<>"Ergon",SUMIFS(INDEX('Import Expenditure Forecast'!$F$8:$P$79,,MATCH(G$98,'Import Expenditure Forecast'!$F$7:$P$7,0)),'Import Expenditure Forecast'!$C$8:$C$79,$B100,'Import Expenditure Forecast'!$E$8:$E$79,$C100,'Import Expenditure Forecast'!$B$8:$B$79,$B$93,'Import Expenditure Forecast'!$D$8:$D$79,$B$96),SUMIFS(INDEX('Ergon Input'!$F$40:$P$63,,MATCH(G$98,'Ergon Input'!$F$39:$P$39,0)),'Ergon Input'!$C$40:$C$63,$B100,'Ergon Input'!$B$40:$B$63,$B$93,'Ergon Input'!$D$40:$D$63,$B$96)) -> 0 | H100: =IF('Control and Output Summary'!$C$14<>"Ergon",SUMIFS(INDEX('Import Expenditure Forecast'!$F$8:$P$79,,MATCH(H$98,'Import Expenditure Forecast'!$F$7:$P$7,0)),'Import Expenditure Forecast'!$C$8:$C$79,$B100,'Import Expenditure Forecast'!$E$8:$E$79,$C100,'Import Expenditure Forecast'!$B$8:$B$79,$B$93,'Import Expenditure Forecast'!$D$8:$D$79,$B$96),SUMIFS(INDEX('Ergon Input'!$F$40:$P$63,,MATCH(H$98,'Ergon Input'!$F$39:$P$39,0)),'Ergon Input'!$C$40:$C$63,$B100,'Ergon Input'!$B$40:$B$63,$B$93,'Ergon Input'!$D$40:$D$63,$B$96)) -> 0 | I100: =IF('Control and Output Summary'!$C$14<>"Ergon",SUMIFS(INDEX('Import Expenditure Forecast'!$F$8:$P$79,,MATCH(I$98,'Import Expenditure Forecast'!$F$7:$P$7,0)),'Import Expenditure Forecast'!$C$8:$C$79,$B100,'Import Expenditure Forecast'!$E$8:$E$79,$C100,'Import Expenditure Forecast'!$B$8:$B$79,$B$93,'Import Expenditure Forecast'!$D$8:$D$79,$B$96),SUMIFS(INDEX('Ergon Input'!$F$40:$P$63,,MATCH(I$98,'Ergon Input'!$F$39:$P$39,0)),'Ergon Input'!$C$40:$C$63,$B100,'Ergon Input'!$B$40:$B$63,$B$93,'Ergon Input'!$D$40:$D$63,$B$96)) -> 0 | J100: =IF('Control and Output Summary'!$C$14<>"Ergon",SUMIFS(INDEX('Import Expenditure Forecast'!$F$8:$P$79,,MATCH(J$98,'Import Expenditure Forecast'!$F$7:$P$7,0)),'Import Expenditure Forecast'!$C$8:$C$79,$B100,'Import Expenditure Forecast'!$E$8:$E$79,$C100,'Import Expenditure Forecast'!$B$8:$B$79,$B$93,'Import Expenditure Forecast'!$D$8:$D$79,$B$96),SUMIFS(INDEX('Ergon Input'!$F$40:$P$63,,MATCH(J$98,'Ergon Input'!$F$39:$P$39,0)),'Ergon Input'!$C$40:$C$63,$B100,'Ergon Input'!$B$40:$B$63,$B$93,'Ergon Input'!$D$40:$D$63,$B$96)) -> 0 | K100: =IF('Control and Output Summary'!$C$14<>"Ergon",SUMIFS(INDEX('Import Expenditure Forecast'!$F$8:$P$79,,MATCH(K$98,'Import Expenditure Forecast'!$F$7:$P$7,0)),'Import Expenditure Forecast'!$C$8:$C$79,$B100,'Import Expenditure Forecast'!$E$8:$E$79,$C100,'Import Expenditure Forecast'!$B$8:$B$79,$B$93,'Import Expenditure Forecast'!$D$8:$D$79,$B$96),SUMIFS(INDEX('Ergon Input'!$F$40:$P$63,,MATCH(K$98,'Ergon Input'!$F$39:$P$39,0)),'Ergon Input'!$C$40:$C$63,$B100,'Ergon Input'!$B$40:$B$63,$B$93,'Ergon Input'!$D$40:$D$63,$B$96)) -> 0 | L100: =IF('Control and Output Summary'!$C$14<>"Ergon",SUMIFS(INDEX('Import Expenditure Forecast'!$F$8:$P$79,,MATCH(L$98,'Import Expenditure Forecast'!$F$7:$P$7,0)),'Import Expenditure Forecast'!$C$8:$C$79,$B100,'Import Expenditure Forecast'!$E$8:$E$79,$C100,'Import Expenditure Forecast'!$B$8:$B$79,$B$93,'Import Expenditure Forecast'!$D$8:$D$79,$B$96),SUMIFS(INDEX('Ergon Input'!$F$40:$P$63,,MATCH(L$98,'Ergon Input'!$F$39:$P$39,0)),'Ergon Input'!$C$40:$C$63,$B100,'Ergon Input'!$B$40:$B$63,$B$93,'Ergon Input'!$D$40:$D$63,$B$96)) -> 0 | M100: =IF('Control and Output Summary'!$C$14<>"Ergon",SUMIFS(INDEX('Import Expenditure Forecast'!$F$8:$P$79,,MATCH(M$98,'Import Expenditure Forecast'!$F$7:$P$7,0)),'Import Expenditure Forecast'!$C$8:$C$79,$B100,'Import Expenditure Forecast'!$E$8:$E$79,$C100,'Import Expenditure Forecast'!$B$8:$B$79,$B$93,'Import Expenditure Forecast'!$D$8:$D$79,$B$96),SUMIFS(INDEX('Ergon Input'!$F$40:$P$63,,MATCH(M$98,'Ergon Input'!$F$39:$P$39,0)),'Ergon Input'!$C$40:$C$63,$B100,'Ergon Input'!$B$40:$B$63,$B$93,'Ergon Input'!$D$40:$D$63,$B$96)) -> 0 | N100: =IF('Control and Output Summary'!$C$14<>"Ergon",SUMIFS(INDEX('Import Expenditure Forecast'!$F$8:$P$79,,MATCH(N$98,'Import Expenditure Forecast'!$F$7:$P$7,0)),'Import Expenditure Forecast'!$C$8:$C$79,$B100,'Import Expenditure Forecast'!$E$8:$E$79,$C100,'Import Expenditure Forecast'!$B$8:$B$79,$B$93,'Import Expenditure Forecast'!$D$8:$D$79,$B$96),SUMIFS(INDEX('Ergon Input'!$F$40:$P$63,,MATCH(N$98,'Ergon Input'!$F$39:$P$39,0)),'Ergon Input'!$C$40:$C$63,$B100,'Ergon Input'!$B$40:$B$63,$B$93,'Ergon Input'!$D$40:$D$63,$B$96)) -> 0
B101: HV Line | C101: ='Control and Output Summary'!$C$14 -> West | D101: =IF('Control and Output Summary'!$C$14<>"Ergon",SUMIFS(INDEX('Import Expenditure Forecast'!$F$8:$P$79,,MATCH(D$98,'Import Expenditure Forecast'!$F$7:$P$7,0)),'Import Expenditure Forecast'!$C$8:$C$79,$B101,'Import Expenditure Forecast'!$E$8:$E$79,$C101,'Import Expenditure Forecast'!$B$8:$B$79,$B$93,'Import Expenditure Forecast'!$D$8:$D$79,$B$96),SUMIFS(INDEX('Ergon Input'!$F$40:$P$63,,MATCH(D$98,'Ergon Input'!$F$39:$P$39,0)),'Ergon Input'!$C$40:$C$63,$B101,'Ergon Input'!$B$40:$B$63,$B$93,'Ergon Input'!$D$40:$D$63,$B$96)) -> 0 | E101: =IF('Control and Output Summary'!$C$14<>"Ergon",SUMIFS(INDEX('Import Expenditure Forecast'!$F$8:$P$79,,MATCH(E$98,'Import Expenditure Forecast'!$F$7:$P$7,0)),'Import Expenditure Forecast'!$C$8:$C$79,$B101,'Import Expenditure Forecast'!$E$8:$E$79,$C101,'Import Expenditure Forecast'!$B$8:$B$79,$B$93,'Import Expenditure Forecast'!$D$8:$D$79,$B$96),SUMIFS(INDEX('Ergon Input'!$F$40:$P$63,,MATCH(E$98,'Ergon Input'!$F$39:$P$39,0)),'Ergon Input'!$C$40:$C$63,$B101,'Ergon Input'!$B$40:$B$63,$B$93,'Ergon Input'!$D$40:$D$63,$B$96)) -> 0 | F101: =IF('Control and Output Summary'!$C$14<>"Ergon",SUMIFS(INDEX('Import Expenditure Forecast'!$F$8:$P$79,,MATCH(F$98,'Import Expenditure Forecast'!$F$7:$P$7,0)),'Import Expenditure Forecast'!$C$8:$C$79,$B101,'Import Expenditure Forecast'!$E$8:$E$79,$C101,'Import Expenditure Forecast'!$B$8:$B$79,$B$93,'Import Expenditure Forecast'!$D$8:$D$79,$B$96),SUMIFS(INDEX('Ergon Input'!$F$40:$P$63,,MATCH(F$98,'Ergon Input'!$F$39:$P$39,0)),'Ergon Input'!$C$40:$C$63,$B101,'Ergon Input'!$B$40:$B$63,$B$93,'Ergon Input'!$D$40:$D$63,$B$96)) -> 0 | G101: =IF('Control and Output Summary'!$C$14<>"Ergon",SUMIFS(INDEX('Import Expenditure Forecast'!$F$8:$P$79,,MATCH(G$98,'Import Expenditure Forecast'!$F$7:$P$7,0)),'Import Expenditure Forecast'!$C$8:$C$79,$B101,'Import Expenditure Forecast'!$E$8:$E$79,$C101,'Import Expenditure Forecast'!$B$8:$B$79,$B$93,'Import Expenditure Forecast'!$D$8:$D$79,$B$96),SUMIFS(INDEX('Ergon Input'!$F$40:$P$63,,MATCH(G$98,'Ergon Input'!$F$39:$P$39,0)),'Ergon Input'!$C$40:$C$63,$B101,'Ergon Input'!$B$40:$B$63,$B$93,'Ergon Input'!$D$40:$D$63,$B$96)) -> 0 | H101: =IF('Control and Output Summary'!$C$14<>"Ergon",SUMIFS(INDEX('Import Expenditure Forecast'!$F$8:$P$79,,MATCH(H$98,'Import Expenditure Forecast'!$F$7:$P$7,0)),'Import Expenditure Forecast'!$C$8:$C$79,$B101,'Import Expenditure Forecast'!$E$8:$E$79,$C101,'Import Expenditure Forecast'!$B$8:$B$79,$B$93,'Import Expenditure Forecast'!$D$8:$D$79,$B$96),SUMIFS(INDEX('Ergon Input'!$F$40:$P$63,,MATCH(H$98,'Ergon Input'!$F$39:$P$39,0)),'Ergon Input'!$C$40:$C$63,$B101,'Ergon Input'!$B$40:$B$63,$B$93,'Ergon Input'!$D$40:$D$63,$B$96)) -> 0 | I101: =IF('Control and Output Summary'!$C$14<>"Ergon",SUMIFS(INDEX('Import Expenditure Forecast'!$F$8:$P$79,,MATCH(I$98,'Import Expenditure Forecast'!$F$7:$P$7,0)),'Import Expenditure Forecast'!$C$8:$C$79,$B101,'Import Expenditure Forecast'!$E$8:$E$79,$C101,'Import Expenditure Forecast'!$B$8:$B$79,$B$93,'Import Expenditure Forecast'!$D$8:$D$79,$B$96),SUMIFS(INDEX('Ergon Input'!$F$40:$P$63,,MATCH(I$98,'Ergon Input'!$F$39:$P$39,0)),'Ergon Input'!$C$40:$C$63,$B101,'Ergon Input'!$B$40:$B$63,$B$93,'Ergon Input'!$D$40:$D$63,$B$96)) -> 0 | J101: =IF('Control and Output Summary'!$C$14<>"Ergon",SUMIFS(INDEX('Import Expenditure Forecast'!$F$8:$P$79,,MATCH(J$98,'Import Expenditure Forecast'!$F$7:$P$7,0)),'Import Expenditure Forecast'!$C$8:$C$79,$B101,'Import Expenditure Forecast'!$E$8:$E$79,$C101,'Import Expenditure Forecast'!$B$8:$B$79,$B$93,'Import Expenditure Forecast'!$D$8:$D$79,$B$96),SUMIFS(INDEX('Ergon Input'!$F$40:$P$63,,MATCH(J$98,'Ergon Input'!$F$39:$P$39,0)),'Ergon Input'!$C$40:$C$63,$B101,'Ergon Input'!$B$40:$B$63,$B$93,'Ergon Input'!$D$40:$D$63,$B$96)) -> 0 | K101: =IF('Control and Output Summary'!$C$14<>"Ergon",SUMIFS(INDEX('Import Expenditure Forecast'!$F$8:$P$79,,MATCH(K$98,'Import Expenditure Forecast'!$F$7:$P$7,0)),'Import Expenditure Forecast'!$C$8:$C$79,$B101,'Import Expenditure Forecast'!$E$8:$E$79,$C101,'Import Expenditure Forecast'!$B$8:$B$79,$B$93,'Import Expenditure Forecast'!$D$8:$D$79,$B$96),SUMIFS(INDEX('Ergon Input'!$F$40:$P$63,,MATCH(K$98,'Ergon Input'!$F$39:$P$39,0)),'Ergon Input'!$C$40:$C$63,$B101,'Ergon Input'!$B$40:$B$63,$B$93,'Ergon Input'!$D$40:$D$63,$B$96)) -> 0 | L101: =IF('Control and Output Summary'!$C$14<>"Ergon",SUMIFS(INDEX('Import Expenditure Forecast'!$F$8:$P$79,,MATCH(L$98,'Import Expenditure Forecast'!$F$7:$P$7,0)),'Import Expenditure Forecast'!$C$8:$C$79,$B101,'Import Expenditure Forecast'!$E$8:$E$79,$C101,'Import Expenditure Forecast'!$B$8:$B$79,$B$93,'Import Expenditure Forecast'!$D$8:$D$79,$B$96),SUMIFS(INDEX('Ergon Input'!$F$40:$P$63,,MATCH(L$98,'Ergon Input'!$F$39:$P$39,0)),'Ergon Input'!$C$40:$C$63,$B101,'Ergon Input'!$B$40:$B$63,$B$93,'Ergon Input'!$D$40:$D$63,$B$96)) -> 0 | M101: =IF('Control and Output Summary'!$C$14<>"Ergon",SUMIFS(INDEX('Import Expenditure Forecast'!$F$8:$P$79,,MATCH(M$98,'Import Expenditure Forecast'!$F$7:$P$7,0)),'Import Expenditure Forecast'!$C$8:$C$79,$B101,'Import Expenditure Forecast'!$E$8:$E$79,$C101,'Import Expenditure Forecast'!$B$8:$B$79,$B$93,'Import Expenditure Forecast'!$D$8:$D$79,$B$96),SUMIFS(INDEX('Ergon Input'!$F$40:$P$63,,MATCH(M$98,'Ergon Input'!$F$39:$P$39,0)),'Ergon Input'!$C$40:$C$63,$B101,'Ergon Input'!$B$40:$B$63,$B$93,'Ergon Input'!$D$40:$D$63,$B$96)) -> 0 | N101: =IF('Control and Output Summary'!$C$14<>"Ergon",SUMIFS(INDEX('Import Expenditure Forecast'!$F$8:$P$79,,MATCH(N$98,'Import Expenditure Forecast'!$F$7:$P$7,0)),'Import Expenditure Forecast'!$C$8:$C$79,$B101,'Import Expenditure Forecast'!$E$8:$E$79,$C101,'Import Expenditure Forecast'!$B$8:$B$79,$B$93,'Import Expenditure Forecast'!$D$8:$D$79,$B$96),SUMIFS(INDEX('Ergon Input'!$F$40:$P$63,,MATCH(N$98,'Ergon Input'!$F$39:$P$39,0)),'Ergon Input'!$C$40:$C$63,$B101,'Ergon Input'!$B$40:$B$63,$B$93,'Ergon Input'!$D$40:$D$63,$B$96)) -> 0
B102: HV Bus | C102: ='Control and Output Summary'!$C$14 -> West | D102: =IF('Control and Output Summary'!$C$14<>"Ergon",SUMIFS(INDEX('Import Expenditure Forecast'!$F$8:$P$79,,MATCH(D$98,'Import Expenditure Forecast'!$F$7:$P$7,0)),'Import Expenditure Forecast'!$C$8:$C$79,$B102,'Import Expenditure Forecast'!$E$8:$E$79,$C102,'Import Expenditure Forecast'!$B$8:$B$79,$B$93,'Import Expenditure Forecast'!$D$8:$D$79,$B$96),SUMIFS(INDEX('Ergon Input'!$F$40:$P$63,,MATCH(D$98,'Ergon Input'!$F$39:$P$39,0)),'Ergon Input'!$C$40:$C$63,$B102,'Ergon Input'!$B$40:$B$63,$B$93,'Ergon Input'!$D$40:$D$63,$B$96)) -> 0 | E102: =IF('Control and Output Summary'!$C$14<>"Ergon",SUMIFS(INDEX('Import Expenditure Forecast'!$F$8:$P$79,,MATCH(E$98,'Import Expenditure Forecast'!$F$7:$P$7,0)),'Import Expenditure Forecast'!$C$8:$C$79,$B102,'Import Expenditure Forecast'!$E$8:$E$79,$C102,'Import Expenditure Forecast'!$B$8:$B$79,$B$93,'Import Expenditure Forecast'!$D$8:$D$79,$B$96),SUMIFS(INDEX('Ergon Input'!$F$40:$P$63,,MATCH(E$98,'Ergon Input'!$F$39:$P$39,0)),'Ergon Input'!$C$40:$C$63,$B102,'Ergon Input'!$B$40:$B$63,$B$93,'Ergon Input'!$D$40:$D$63,$B$96)) -> 0 | F102: =IF('Control and Output Summary'!$C$14<>"Ergon",SUMIFS(INDEX('Import Expenditure Forecast'!$F$8:$P$79,,MATCH(F$98,'Import Expenditure Forecast'!$F$7:$P$7,0)),'Import Expenditure Forecast'!$C$8:$C$79,$B102,'Import Expenditure Forecast'!$E$8:$E$79,$C102,'Import Expenditure Forecast'!$B$8:$B$79,$B$93,'Import Expenditure Forecast'!$D$8:$D$79,$B$96),SUMIFS(INDEX('Ergon Input'!$F$40:$P$63,,MATCH(F$98,'Ergon Input'!$F$39:$P$39,0)),'Ergon Input'!$C$40:$C$63,$B102,'Ergon Input'!$B$40:$B$63,$B$93,'Ergon Input'!$D$40:$D$63,$B$96)) -> 0 | G102: =IF('Control and Output Summary'!$C$14<>"Ergon",SUMIFS(INDEX('Import Expenditure Forecast'!$F$8:$P$79,,MATCH(G$98,'Import Expenditure Forecast'!$F$7:$P$7,0)),'Import Expenditure Forecast'!$C$8:$C$79,$B102,'Import Expenditure Forecast'!$E$8:$E$79,$C102,'Import Expenditure Forecast'!$B$8:$B$79,$B$93,'Import Expenditure Forecast'!$D$8:$D$79,$B$96),SUMIFS(INDEX('Ergon Input'!$F$40:$P$63,,MATCH(G$98,'Ergon Input'!$F$39:$P$39,0)),'Ergon Input'!$C$40:$C$63,$B102,'Ergon Input'!$B$40:$B$63,$B$93,'Ergon Input'!$D$40:$D$63,$B$96)) -> 0 | H102: =IF('Control and Output Summary'!$C$14<>"Ergon",SUMIFS(INDEX('Import Expenditure Forecast'!$F$8:$P$79,,MATCH(H$98,'Import Expenditure Forecast'!$F$7:$P$7,0)),'Import Expenditure Forecast'!$C$8:$C$79,$B102,'Import Expenditure Forecast'!$E$8:$E$79,$C102,'Import Expenditure Forecast'!$B$8:$B$79,$B$93,'Import Expenditure Forecast'!$D$8:$D$79,$B$96),SUMIFS(INDEX('Ergon Input'!$F$40:$P$63,,MATCH(H$98,'Ergon Input'!$F$39:$P$39,0)),'Ergon Input'!$C$40:$C$63,$B102,'Ergon Input'!$B$40:$B$63,$B$93,'Ergon Input'!$D$40:$D$63,$B$96)) -> 0 | I102: =IF('Control and Output Summary'!$C$14<>"Ergon",SUMIFS(INDEX('Import Expenditure Forecast'!$F$8:$P$79,,MATCH(I$98,'Import Expenditure Forecast'!$F$7:$P$7,0)),'Import Expenditure Forecast'!$C$8:$C$79,$B102,'Import Expenditure Forecast'!$E$8:$E$79,$C102,'Import Expenditure Forecast'!$B$8:$B$79,$B$93,'Import Expenditure Forecast'!$D$8:$D$79,$B$96),SUMIFS(INDEX('Ergon Input'!$F$40:$P$63,,MATCH(I$98,'Ergon Input'!$F$39:$P$39,0)),'Ergon Input'!$C$40:$C$63,$B102,'Ergon Input'!$B$40:$B$63,$B$93,'Ergon Input'!$D$40:$D$63,$B$96)) -> 0 | J102: =IF('Control and Output Summary'!$C$14<>"Ergon",SUMIFS(INDEX('Import Expenditure Forecast'!$F$8:$P$79,,MATCH(J$98,'Import Expenditure Forecast'!$F$7:$P$7,0)),'Import Expenditure Forecast'!$C$8:$C$79,$B102,'Import Expenditure Forecast'!$E$8:$E$79,$C102,'Import Expenditure Forecast'!$B$8:$B$79,$B$93,'Import Expenditure Forecast'!$D$8:$D$79,$B$96),SUMIFS(INDEX('Ergon Input'!$F$40:$P$63,,MATCH(J$98,'Ergon Input'!$F$39:$P$39,0)),'Ergon Input'!$C$40:$C$63,$B102,'Ergon Input'!$B$40:$B$63,$B$93,'Ergon Input'!$D$40:$D$63,$B$96)) -> 0 | K102: =IF('Control and Output Summary'!$C$14<>"Ergon",SUMIFS(INDEX('Import Expenditure Forecast'!$F$8:$P$79,,MATCH(K$98,'Import Expenditure Forecast'!$F$7:$P$7,0)),'Import Expenditure Forecast'!$C$8:$C$79,$B102,'Import Expenditure Forecast'!$E$8:$E$79,$C102,'Import Expenditure Forecast'!$B$8:$B$79,$B$93,'Import Expenditure Forecast'!$D$8:$D$79,$B$96),SUMIFS(INDEX('Ergon Input'!$F$40:$P$63,,MATCH(K$98,'Ergon Input'!$F$39:$P$39,0)),'Ergon Input'!$C$40:$C$63,$B102,'Ergon Input'!$B$40:$B$63,$B$93,'Ergon Input'!$D$40:$D$63,$B$96)) -> 0 | L102: =IF('Control and Output Summary'!$C$14<>"Ergon",SUMIFS(INDEX('Import Expenditure Forecast'!$F$8:$P$79,,MATCH(L$98,'Import Expenditure Forecast'!$F$7:$P$7,0)),'Import Expenditure Forecast'!$C$8:$C$79,$B102,'Import Expenditure Forecast'!$E$8:$E$79,$C102,'Import Expenditure Forecast'!$B$8:$B$79,$B$93,'Import Expenditure Forecast'!$D$8:$D$79,$B$96),SUMIFS(INDEX('Ergon Input'!$F$40:$P$63,,MATCH(L$98,'Ergon Input'!$F$39:$P$39,0)),'Ergon Input'!$C$40:$C$63,$B102,'Ergon Input'!$B$40:$B$63,$B$93,'Ergon Input'!$D$40:$D$63,$B$96)) -> 0 | M102: =IF('Control and Output Summary'!$C$14<>"Ergon",SUMIFS(INDEX('Import Expenditure Forecast'!$F$8:$P$79,,MATCH(M$98,'Import Expenditure Forecast'!$F$7:$P$7,0)),'Import Expenditure Forecast'!$C$8:$C$79,$B102,'Import Expenditure Forecast'!$E$8:$E$79,$C102,'Import Expenditure Forecast'!$B$8:$B$79,$B$93,'Import Expenditure Forecast'!$D$8:$D$79,$B$96),SUMIFS(INDEX('Ergon Input'!$F$40:$P$63,,MATCH(M$98,'Ergon Input'!$F$39:$P$39,0)),'Ergon Input'!$C$40:$C$63,$B102,'Ergon Input'!$B$40:$B$63,$B$93,'Ergon Input'!$D$40:$D$63,$B$96)) -> 0 | N102: =IF('Control and Output Summary'!$C$14<>"Ergon",SUMIFS(INDEX('Import Expenditure Forecast'!$F$8:$P$79,,MATCH(N$98,'Import Expenditure Forecast'!$F$7:$P$7,0)),'Import Expenditure Forecast'!$C$8:$C$79,$B102,'Import Expenditure Forecast'!$E$8:$E$79,$C102,'Import Expenditure Forecast'!$B$8:$B$79,$B$93,'Import Expenditure Forecast'!$D$8:$D$79,$B$96),SUMIFS(INDEX('Ergon Input'!$F$40:$P$63,,MATCH(N$98,'Ergon Input'!$F$39:$P$39,0)),'Ergon Input'!$C$40:$C$63,$B102,'Ergon Input'!$B$40:$B$63,$B$93,'Ergon Input'!$D$40:$D$63,$B$96)) -> 0
B103: ST 33/66 kv | C103: ='Control and Output Summary'!$C$14 -> West | D103: =IF('Control and Output Summary'!$C$14<>"Ergon",SUMIFS(INDEX('Import Expenditure Forecast'!$F$8:$P$79,,MATCH(D$98,'Import Expenditure Forecast'!$F$7:$P$7,0)),'Import Expenditure Forecast'!$C$8:$C$79,$B103,'Import Expenditure Forecast'!$E$8:$E$79,$C103,'Import Expenditure Forecast'!$B$8:$B$79,$B$93,'Import Expenditure Forecast'!$D$8:$D$79,$B$96),SUMIFS(INDEX('Ergon Input'!$F$40:$P$63,,MATCH(D$98,'Ergon Input'!$F$39:$P$39,0)),'Ergon Input'!$C$40:$C$63,$B103,'Ergon Input'!$B$40:$B$63,$B$93,'Ergon Input'!$D$40:$D$63,$B$96)) -> 0 | E103: =IF('Control and Output Summary'!$C$14<>"Ergon",SUMIFS(INDEX('Import Expenditure Forecast'!$F$8:$P$79,,MATCH(E$98,'Import Expenditure Forecast'!$F$7:$P$7,0)),'Import Expenditure Forecast'!$C$8:$C$79,$B103,'Import Expenditure Forecast'!$E$8:$E$79,$C103,'Import Expenditure Forecast'!$B$8:$B$79,$B$93,'Import Expenditure Forecast'!$D$8:$D$79,$B$96),SUMIFS(INDEX('Ergon Input'!$F$40:$P$63,,MATCH(E$98,'Ergon Input'!$F$39:$P$39,0)),'Ergon Input'!$C$40:$C$63,$B103,'Ergon Input'!$B$40:$B$63,$B$93,'Ergon Input'!$D$40:$D$63,$B$96)) -> 0 | F103: =IF('Control and Output Summary'!$C$14<>"Ergon",SUMIFS(INDEX('Import Expenditure Forecast'!$F$8:$P$79,,MATCH(F$98,'Import Expenditure Forecast'!$F$7:$P$7,0)),'Import Expenditure Forecast'!$C$8:$C$79,$B103,'Import Expenditure Forecast'!$E$8:$E$79,$C103,'Import Expenditure Forecast'!$B$8:$B$79,$B$93,'Import Expenditure Forecast'!$D$8:$D$79,$B$96),SUMIFS(INDEX('Ergon Input'!$F$40:$P$63,,MATCH(F$98,'Ergon Input'!$F$39:$P$39,0)),'Ergon Input'!$C$40:$C$63,$B103,'Ergon Input'!$B$40:$B$63,$B$93,'Ergon Input'!$D$40:$D$63,$B$96)) -> 0 | G103: =IF('Control and Output Summary'!$C$14<>"Ergon",SUMIFS(INDEX('Import Expenditure Forecast'!$F$8:$P$79,,MATCH(G$98,'Import Expenditure Forecast'!$F$7:$P$7,0)),'Import Expenditure Forecast'!$C$8:$C$79,$B103,'Import Expenditure Forecast'!$E$8:$E$79,$C103,'Import Expenditure Forecast'!$B$8:$B$79,$B$93,'Import Expenditure Forecast'!$D$8:$D$79,$B$96),SUMIFS(INDEX('Ergon Input'!$F$40:$P$63,,MATCH(G$98,'Ergon Input'!$F$39:$P$39,0)),'Ergon Input'!$C$40:$C$63,$B103,'Ergon Input'!$B$40:$B$63,$B$93,'Ergon Input'!$D$40:$D$63,$B$96)) -> 0 | H103: =IF('Control and Output Summary'!$C$14<>"Ergon",SUMIFS(INDEX('Import Expenditure Forecast'!$F$8:$P$79,,MATCH(H$98,'Import Expenditure Forecast'!$F$7:$P$7,0)),'Import Expenditure Forecast'!$C$8:$C$79,$B103,'Import Expenditure Forecast'!$E$8:$E$79,$C103,'Import Expenditure Forecast'!$B$8:$B$79,$B$93,'Import Expenditure Forecast'!$D$8:$D$79,$B$96),SUMIFS(INDEX('Ergon Input'!$F$40:$P$63,,MATCH(H$98,'Ergon Input'!$F$39:$P$39,0)),'Ergon Input'!$C$40:$C$63,$B103,'Ergon Input'!$B$40:$B$63,$B$93,'Ergon Input'!$D$40:$D$63,$B$96)) -> 0 | I103: =IF('Control and Output Summary'!$C$14<>"Ergon",SUMIFS(INDEX('Import Expenditure Forecast'!$F$8:$P$79,,MATCH(I$98,'Import Expenditure Forecast'!$F$7:$P$7,0)),'Import Expenditure Forecast'!$C$8:$C$79,$B103,'Import Expenditure Forecast'!$E$8:$E$79,$C103,'Import Expenditure Forecast'!$B$8:$B$79,$B$93,'Import Expenditure Forecast'!$D$8:$D$79,$B$96),SUMIFS(INDEX('Ergon Input'!$F$40:$P$63,,MATCH(I$98,'Ergon Input'!$F$39:$P$39,0)),'Ergon Input'!$C$40:$C$63,$B103,'Ergon Input'!$B$40:$B$63,$B$93,'Ergon Input'!$D$40:$D$63,$B$96)) -> 0 | J103: =IF('Control and Output Summary'!$C$14<>"Ergon",SUMIFS(INDEX('Import Expenditure Forecast'!$F$8:$P$79,,MATCH(J$98,'Import Expenditure Forecast'!$F$7:$P$7,0)),'Import Expenditure Forecast'!$C$8:$C$79,$B103,'Import Expenditure Forecast'!$E$8:$E$79,$C103,'Import Expenditure Forecast'!$B$8:$B$79,$B$93,'Import Expenditure Forecast'!$D$8:$D$79,$B$96),SUMIFS(INDEX('Ergon Input'!$F$40:$P$63,,MATCH(J$98,'Ergon Input'!$F$39:$P$39,0)),'Ergon Input'!$C$40:$C$63,$B103,'Ergon Input'!$B$40:$B$63,$B$93,'Ergon Input'!$D$40:$D$63,$B$96)) -> 0 | K103: =IF('Control and Output Summary'!$C$14<>"Ergon",SUMIFS(INDEX('Import Expenditure Forecast'!$F$8:$P$79,,MATCH(K$98,'Import Expenditure Forecast'!$F$7:$P$7,0)),'Import Expenditure Forecast'!$C$8:$C$79,$B103,'Import Expenditure Forecast'!$E$8:$E$79,$C103,'Import Expenditure Forecast'!$B$8:$B$79,$B$93,'Import Expenditure Forecast'!$D$8:$D$79,$B$96),SUMIFS(INDEX('Ergon Input'!$F$40:$P$63,,MATCH(K$98,'Ergon Input'!$F$39:$P$39,0)),'Ergon Input'!$C$40:$C$63,$B103,'Ergon Input'!$B$40:$B$63,$B$93,'Ergon Input'!$D$40:$D$63,$B$96)) -> 0 | L103: =IF('Control and Output Summary'!$C$14<>"Ergon",SUMIFS(INDEX('Import Expenditure Forecast'!$F$8:$P$79,,MATCH(L$98,'Import Expenditure Forecast'!$F$7:$P$7,0)),'Import Expenditure Forecast'!$C$8:$C$79,$B103,'Import Expenditure Forecast'!$E$8:$E$79,$C103,'Import Expenditure Forecast'!$B$8:$B$79,$B$93,'Import Expenditure Forecast'!$D$8:$D$79,$B$96),SUMIFS(INDEX('Ergon Input'!$F$40:$P$63,,MATCH(L$98,'Ergon Input'!$F$39:$P$39,0)),'Ergon Input'!$C$40:$C$63,$B103,'Ergon Input'!$B$40:$B$63,$B$93,'Ergon Input'!$D$40:$D$63,$B$96)) -> 0 | M103: =IF('Control and Output Summary'!$C$14<>"Ergon",SUMIFS(INDEX('Import Expenditure Forecast'!$F$8:$P$79,,MATCH(M$98,'Import Expenditure Forecast'!$F$7:$P$7,0)),'Import Expenditure Forecast'!$C$8:$C$79,$B103,'Import Expenditure Forecast'!$E$8:$E$79,$C103,'Import Expenditure Forecast'!$B$8:$B$79,$B$93,'Import Expenditure Forecast'!$D$8:$D$79,$B$96),SUMIFS(INDEX('Ergon Input'!$F$40:$P$63,,MATCH(M$98,'Ergon Input'!$F$39:$P$39,0)),'Ergon Input'!$C$40:$C$63,$B103,'Ergon Input'!$B$40:$B$63,$B$93,'Ergon Input'!$D$40:$D$63,$B$96)) -> 0 | N103: =IF('Control and Output Summary'!$C$14<>"Ergon",SUMIFS(INDEX('Import Expenditure Forecast'!$F$8:$P$79,,MATCH(N$98,'Import Expenditure Forecast'!$F$7:$P$7,0)),'Import Expenditure Forecast'!$C$8:$C$79,$B103,'Import Expenditure Forecast'!$E$8:$E$79,$C103,'Import Expenditure Forecast'!$B$8:$B$79,$B$93,'Import Expenditure Forecast'!$D$8:$D$79,$B$96),SUMIFS(INDEX('Ergon Input'!$F$40:$P$63,,MATCH(N$98,'Ergon Input'!$F$39:$P$39,0)),'Ergon Input'!$C$40:$C$63,$B103,'Ergon Input'!$B$40:$B$63,$B$93,'Ergon Input'!$D$40:$D$63,$B$96)) -> 0
B104: ST 110/132 kv | C104: ='Control and Output Summary'!$C$14 -> West | D104: =IF('Control and Output Summary'!$C$14<>"Ergon",SUMIFS(INDEX('Import Expenditure Forecast'!$F$8:$P$79,,MATCH(D$98,'Import Expenditure Forecast'!$F$7:$P$7,0)),'Import Expenditure Forecast'!$C$8:$C$79,$B104,'Import Expenditure Forecast'!$E$8:$E$79,$C104,'Import Expenditure Forecast'!$B$8:$B$79,$B$93,'Import Expenditure Forecast'!$D$8:$D$79,$B$96),SUMIFS(INDEX('Ergon Input'!$F$40:$P$63,,MATCH(D$98,'Ergon Input'!$F$39:$P$39,0)),'Ergon Input'!$C$40:$C$63,$B104,'Ergon Input'!$B$40:$B$63,$B$93,'Ergon Input'!$D$40:$D$63,$B$96)) -> 0 | E104: =IF('Control and Output Summary'!$C$14<>"Ergon",SUMIFS(INDEX('Import Expenditure Forecast'!$F$8:$P$79,,MATCH(E$98,'Import Expenditure Forecast'!$F$7:$P$7,0)),'Import Expenditure Forecast'!$C$8:$C$79,$B104,'Import Expenditure Forecast'!$E$8:$E$79,$C104,'Import Expenditure Forecast'!$B$8:$B$79,$B$93,'Import Expenditure Forecast'!$D$8:$D$79,$B$96),SUMIFS(INDEX('Ergon Input'!$F$40:$P$63,,MATCH(E$98,'Ergon Input'!$F$39:$P$39,0)),'Ergon Input'!$C$40:$C$63,$B104,'Ergon Input'!$B$40:$B$63,$B$93,'Ergon Input'!$D$40:$D$63,$B$96)) -> 0 | F104: =IF('Control and Output Summary'!$C$14<>"Ergon",SUMIFS(INDEX('Import Expenditure Forecast'!$F$8:$P$79,,MATCH(F$98,'Import Expenditure Forecast'!$F$7:$P$7,0)),'Import Expenditure Forecast'!$C$8:$C$79,$B104,'Import Expenditure Forecast'!$E$8:$E$79,$C104,'Import Expenditure Forecast'!$B$8:$B$79,$B$93,'Import Expenditure Forecast'!$D$8:$D$79,$B$96),SUMIFS(INDEX('Ergon Input'!$F$40:$P$63,,MATCH(F$98,'Ergon Input'!$F$39:$P$39,0)),'Ergon Input'!$C$40:$C$63,$B104,'Ergon Input'!$B$40:$B$63,$B$93,'Ergon Input'!$D$40:$D$63,$B$96)) -> 0 | G104: =IF('Control and Output Summary'!$C$14<>"Ergon",SUMIFS(INDEX('Import Expenditure Forecast'!$F$8:$P$79,,MATCH(G$98,'Import Expenditure Forecast'!$F$7:$P$7,0)),'Import Expenditure Forecast'!$C$8:$C$79,$B104,'Import Expenditure Forecast'!$E$8:$E$79,$C104,'Import Expenditure Forecast'!$B$8:$B$79,$B$93,'Import Expenditure Forecast'!$D$8:$D$79,$B$96),SUMIFS(INDEX('Ergon Input'!$F$40:$P$63,,MATCH(G$98,'Ergon Input'!$F$39:$P$39,0)),'Ergon Input'!$C$40:$C$63,$B104,'Ergon Input'!$B$40:$B$63,$B$93,'Ergon Input'!$D$40:$D$63,$B$96)) -> 0 | H104: =IF('Control and Output Summary'!$C$14<>"Ergon",SUMIFS(INDEX('Import Expenditure Forecast'!$F$8:$P$79,,MATCH(H$98,'Import Expenditure Forecast'!$F$7:$P$7,0)),'Import Expenditure Forecast'!$C$8:$C$79,$B104,'Import Expenditure Forecast'!$E$8:$E$79,$C104,'Import Expenditure Forecast'!$B$8:$B$79,$B$93,'Import Expenditure Forecast'!$D$8:$D$79,$B$96),SUMIFS(INDEX('Ergon Input'!$F$40:$P$63,,MATCH(H$98,'Ergon Input'!$F$39:$P$39,0)),'Ergon Input'!$C$40:$C$63,$B104,'Ergon Input'!$B$40:$B$63,$B$93,'Ergon Input'!$D$40:$D$63,$B$96)) -> 0 | I104: =IF('Control and Output Summary'!$C$14<>"Ergon",SUMIFS(INDEX('Import Expenditure Forecast'!$F$8:$P$79,,MATCH(I$98,'Import Expenditure Forecast'!$F$7:$P$7,0)),'Import Expenditure Forecast'!$C$8:$C$79,$B104,'Import Expenditure Forecast'!$E$8:$E$79,$C104,'Import Expenditure Forecast'!$B$8:$B$79,$B$93,'Import Expenditure Forecast'!$D$8:$D$79,$B$96),SUMIFS(INDEX('Ergon Input'!$F$40:$P$63,,MATCH(I$98,'Ergon Input'!$F$39:$P$39,0)),'Ergon Input'!$C$40:$C$63,$B104,'Ergon Input'!$B$40:$B$63,$B$93,'Ergon Input'!$D$40:$D$63,$B$96)) -> 0 | J104: =IF('Control and Output Summary'!$C$14<>"Ergon",SUMIFS(INDEX('Import Expenditure Forecast'!$F$8:$P$79,,MATCH(J$98,'Import Expenditure Forecast'!$F$7:$P$7,0)),'Import Expenditure Forecast'!$C$8:$C$79,$B104,'Import Expenditure Forecast'!$E$8:$E$79,$C104,'Import Expenditure Forecast'!$B$8:$B$79,$B$93,'Import Expenditure Forecast'!$D$8:$D$79,$B$96),SUMIFS(INDEX('Ergon Input'!$F$40:$P$63,,MATCH(J$98,'Ergon Input'!$F$39:$P$39,0)),'Ergon Input'!$C$40:$C$63,$B104,'Ergon Input'!$B$40:$B$63,$B$93,'Ergon Input'!$D$40:$D$63,$B$96)) -> 0 | K104: =IF('Control and Output Summary'!$C$14<>"Ergon",SUMIFS(INDEX('Import Expenditure Forecast'!$F$8:$P$79,,MATCH(K$98,'Import Expenditure Forecast'!$F$7:$P$7,0)),'Import Expenditure Forecast'!$C$8:$C$79,$B104,'Import Expenditure Forecast'!$E$8:$E$79,$C104,'Import Expenditure Forecast'!$B$8:$B$79,$B$93,'Import Expenditure Forecast'!$D$8:$D$79,$B$96),SUMIFS(INDEX('Ergon Input'!$F$40:$P$63,,MATCH(K$98,'Ergon Input'!$F$39:$P$39,0)),'Ergon Input'!$C$40:$C$63,$B104,'Ergon Input'!$B$40:$B$63,$B$93,'Ergon Input'!$D$40:$D$63,$B$96)) -> 0 | L104: =IF('Control and Output Summary'!$C$14<>"Ergon",SUMIFS(INDEX('Import Expenditure Forecast'!$F$8:$P$79,,MATCH(L$98,'Import Expenditure Forecast'!$F$7:$P$7,0)),'Import Expenditure Forecast'!$C$8:$C$79,$B104,'Import Expenditure Forecast'!$E$8:$E$79,$C104,'Import Expenditure Forecast'!$B$8:$B$79,$B$93,'Import Expenditure Forecast'!$D$8:$D$79,$B$96),SUMIFS(INDEX('Ergon Input'!$F$40:$P$63,,MATCH(L$98,'Ergon Input'!$F$39:$P$39,0)),'Ergon Input'!$C$40:$C$63,$B104,'Ergon Input'!$B$40:$B$63,$B$93,'Ergon Input'!$D$40:$D$63,$B$96)) -> 0 | M104: =IF('Control and Output Summary'!$C$14<>"Ergon",SUMIFS(INDEX('Import Expenditure Forecast'!$F$8:$P$79,,MATCH(M$98,'Import Expenditure Forecast'!$F$7:$P$7,0)),'Import Expenditure Forecast'!$C$8:$C$79,$B104,'Import Expenditure Forecast'!$E$8:$E$79,$C104,'Import Expenditure Forecast'!$B$8:$B$79,$B$93,'Import Expenditure Forecast'!$D$8:$D$79,$B$96),SUMIFS(INDEX('Ergon Input'!$F$40:$P$63,,MATCH(M$98,'Ergon Input'!$F$39:$P$39,0)),'Ergon Input'!$C$40:$C$63,$B104,'Ergon Input'!$B$40:$B$63,$B$93,'Ergon Input'!$D$40:$D$63,$B$96)) -> 0 | N104: =IF('Control and Output Summary'!$C$14<>"Ergon",SUMIFS(INDEX('Import Expenditure Forecast'!$F$8:$P$79,,MATCH(N$98,'Import Expenditure Forecast'!$F$7:$P$7,0)),'Import Expenditure Forecast'!$C$8:$C$79,$B104,'Import Expenditure Forecast'!$E$8:$E$79,$C104,'Import Expenditure Forecast'!$B$8:$B$79,$B$93,'Import Expenditure Forecast'!$D$8:$D$79,$B$96),SUMIFS(INDEX('Ergon Input'!$F$40:$P$63,,MATCH(N$98,'Ergon Input'!$F$39:$P$39,0)),'Ergon Input'!$C$40:$C$63,$B104,'Ergon Input'!$B$40:$B$63,$B$93,'Ergon Input'!$D$40:$D$63,$B$96)) -> 0
B107: Total Capex ($m)
B109: Voltage Level | C109: Pricing Zone | D109: =D$18 -> 2023 | E109: 2024 | F109: 2025 | G109: 2026 | H109: 2027 | I109: 2028 | J109: 2029 | K109: 2030 | L109: 2031 | M109: 2032 | N109: 2033
B110: LV Line | C110: ='Control and Output Summary'!$C$14 -> West | D110: =D99 -> 0 | E110: 0 | F110: 0 | G110: 0 | H110: 0 | I110: 0 | J110: 0 | K110: 0 | L110: 0 | M110: 0 | N110: 0
B111: LV Bus | C111: ='Control and Output Summary'!$C$14 -> West | D111: =D100 -> 0 | E111: 0 | F111: 0 | G111: 0 | H111: 0 | I111: 0 | J111: 0 | K111: 0 | L111: 0 | M111: 0 | N111: 0
B112: HV Line | C112: ='Control and Output Summary'!$C$14 -> West | D112: =D101 -> 0 | E112: 0 | F112: 0 | G112: 0 | H112: 0 | I112: 0 | J112: 0 | K112: 0 | L112: 0 | M112: 0 | N112: 0
B113: HV Bus | C113: ='Control and Output Summary'!$C$14 -> West | D113: =D102 -> 0 | E113: 0 | F113: 0 | G113: 0 | H113: 0 | I113: 0 | J113: 0 | K113: 0 | L113: 0 | M113: 0 | N113: 0
B114: ST 33/66 kv | C114: ='Control and Output Summary'!$C$14 -> West | D114: =D103 -> 0 | E114: 0 | F114: 0 | G114: 0 | H114: 0 | I114: 0 | J114: 0 | K114: 0 | L114: 0 | M114: 0 | N114: 0
B115: ST 110/132 kv | C115: ='Control and Output Summary'!$C$14 -> West | D115: =D104 -> 0 | E115: 0 | F115: 0 | G115: 0 | H115: 0 | I115: 0 | J115: 0 | K115: 0 | L115: 0 | M115: 0 | N115: 0
B118: Annualised Capex ($m)
B120: Voltage Level | C120: Pricing Zone | D120: =D$29 -> 2023 | E120: 2024 | F120: 2025 | G120: 2026 | H120: 2027 | I120: 2028 | J120: 2029 | K120: 2030 | L120: 2031 | M120: 2032 | N120: 2033
B121: LV Line | C121: ='Control and Output Summary'!$C$14 -> West | D121: =IF('Control and Output Summary'!$C$14<>"Ergon",-PMT('Control and Output Summary'!$C$6,INDEX('Asset Specification'!$G$8:$G$43,MATCH(1,($B121= 'Asset Specification'!$B$8:$B$43)*($C121 ='Asset Specification'!$C$8:$C$43) * ("Import" = 'Asset Specification'!$D$8:$D$43),0)),D110),-PMT('Control and Output Summary'!$C$6,INDEX('Ergon Input'!$G$84:$G$95,MATCH(1,($B121= 'Ergon Input'!$B$84:$B$95) * ("Import" = 'Ergon Input'!$D$84:$D$95),0)),D110)) -> 0 | E121: =IF('Control and Output Summary'!$C$14<>"Ergon",-PMT('Control and Output Summary'!$C$6,INDEX('Asset Specification'!$G$8:$G$43,MATCH(1,($B121= 'Asset Specification'!$B$8:$B$43)*($C121 ='Asset Specification'!$C$8:$C$43) * ("Import" = 'Asset Specification'!$D$8:$D$43),0)),E110),-PMT('Control and Output Summary'!$C$6,INDEX('Ergon Input'!$G$84:$G$95,MATCH(1,($B121= 'Ergon Input'!$B$84:$B$95) * ("Import" = 'Ergon Input'!$D$84:$D$95),0)),E110)) -> 0 | F121: =IF('Control and Output Summary'!$C$14<>"Ergon",-PMT('Control and Output Summary'!$C$6,INDEX('Asset Specification'!$G$8:$G$43,MATCH(1,($B121= 'Asset Specification'!$B$8:$B$43)*($C121 ='Asset Specification'!$C$8:$C$43) * ("Import" = 'Asset Specification'!$D$8:$D$43),0)),F110),-PMT('Control and Output Summary'!$C$6,INDEX('Ergon Input'!$G$84:$G$95,MATCH(1,($B121= 'Ergon Input'!$B$84:$B$95) * ("Import" = 'Ergon Input'!$D$84:$D$95),0)),F110)) -> 0 | G121: =IF('Control and Output Summary'!$C$14<>"Ergon",-PMT('Control and Output Summary'!$C$6,INDEX('Asset Specification'!$G$8:$G$43,MATCH(1,($B121= 'Asset Specification'!$B$8:$B$43)*($C121 ='Asset Specification'!$C$8:$C$43) * ("Import" = 'Asset Specification'!$D$8:$D$43),0)),G110),-PMT('Control and Output Summary'!$C$6,INDEX('Ergon Input'!$G$84:$G$95,MATCH(1,($B121= 'Ergon Input'!$B$84:$B$95) * ("Import" = 'Ergon Input'!$D$84:$D$95),0)),G110)) -> 0 | H121: =IF('Control and Output Summary'!$C$14<>"Ergon",-PMT('Control and Output Summary'!$C$6,INDEX('Asset Specification'!$G$8:$G$43,MATCH(1,($B121= 'Asset Specification'!$B$8:$B$43)*($C121 ='Asset Specification'!$C$8:$C$43) * ("Import" = 'Asset Specification'!$D$8:$D$43),0)),H110),-PMT('Control and Output Summary'!$C$6,INDEX('Ergon Input'!$G$84:$G$95,MATCH(1,($B121= 'Ergon Input'!$B$84:$B$95) * ("Import" = 'Ergon Input'!$D$84:$D$95),0)),H110)) -> 0 | I121: =IF('Control and Output Summary'!$C$14<>"Ergon",-PMT('Control and Output Summary'!$C$6,INDEX('Asset Specification'!$G$8:$G$43,MATCH(1,($B121= 'Asset Specification'!$B$8:$B$43)*($C121 ='Asset Specification'!$C$8:$C$43) * ("Import" = 'Asset Specification'!$D$8:$D$43),0)),I110),-PMT('Control and Output Summary'!$C$6,INDEX('Ergon Input'!$G$84:$G$95,MATCH(1,($B121= 'Ergon Input'!$B$84:$B$95) * ("Import" = 'Ergon Input'!$D$84:$D$95),0)),I110)) -> 0 | J121: =IF('Control and Output Summary'!$C$14<>"Ergon",-PMT('Control and Output Summary'!$C$6,INDEX('Asset Specification'!$G$8:$G$43,MATCH(1,($B121= 'Asset Specification'!$B$8:$B$43)*($C121 ='Asset Specification'!$C$8:$C$43) * ("Import" = 'Asset Specification'!$D$8:$D$43),0)),J110),-PMT('Control and Output Summary'!$C$6,INDEX('Ergon Input'!$G$84:$G$95,MATCH(1,($B121= 'Ergon Input'!$B$84:$B$95) * ("Import" = 'Ergon Input'!$D$84:$D$95),0)),J110)) -> 0 | K121: =IF('Control and Output Summary'!$C$14<>"Ergon",-PMT('Control and Output Summary'!$C$6,INDEX('Asset Specification'!$G$8:$G$43,MATCH(1,($B121= 'Asset Specification'!$B$8:$B$43)*($C121 ='Asset Specification'!$C$8:$C$43) * ("Import" = 'Asset Specification'!$D$8:$D$43),0)),K110),-PMT('Control and Output Summary'!$C$6,INDEX('Ergon Input'!$G$84:$G$95,MATCH(1,($B121= 'Ergon Input'!$B$84:$B$95) * ("Import" = 'Ergon Input'!$D$84:$D$95),0)),K110)) -> 0 | L121: =IF('Control and Output Summary'!$C$14<>"Ergon",-PMT('Control and Output Summary'!$C$6,INDEX('Asset Specification'!$G$8:$G$43,MATCH(1,($B121= 'Asset Specification'!$B$8:$B$43)*($C121 ='Asset Specification'!$C$8:$C$43) * ("Import" = 'Asset Specification'!$D$8:$D$43),0)),L110),-PMT('Control and Output Summary'!$C$6,INDEX('Ergon Input'!$G$84:$G$95,MATCH(1,($B121= 'Ergon Input'!$B$84:$B$95) * ("Import" = 'Ergon Input'!$D$84:$D$95),0)),L110)) -> 0 | M121: =IF('Control and Output Summary'!$C$14<>"Ergon",-PMT('Control and Output Summary'!$C$6,INDEX('Asset Specification'!$G$8:$G$43,MATCH(1,($B121= 'Asset Specification'!$B$8:$B$43)*($C121 ='Asset Specification'!$C$8:$C$43) * ("Import" = 'Asset Specification'!$D$8:$D$43),0)),M110),-PMT('Control and Output Summary'!$C$6,INDEX('Ergon Input'!$G$84:$G$95,MATCH(1,($B121= 'Ergon Input'!$B$84:$B$95) * ("Import" = 'Ergon Input'!$D$84:$D$95),0)),M110)) -> 0 | N121: =IF('Control and Output Summary'!$C$14<>"Ergon",-PMT('Control and Output Summary'!$C$6,INDEX('Asset Specification'!$G$8:$G$43,MATCH(1,($B121= 'Asset Specification'!$B$8:$B$43)*($C121 ='Asset Specification'!$C$8:$C$43) * ("Import" = 'Asset Specification'!$D$8:$D$43),0)),N110),-PMT('Control and Output Summary'!$C$6,INDEX('Ergon Input'!$G$84:$G$95,MATCH(1,($B121= 'Ergon Input'!$B$84:$B$95) * ("Import" = 'Ergon Input'!$D$84:$D$95),0)),N110)) -> 0
B122: LV Bus | C122: ='Control and Output Summary'!$C$14 -> West | D122: =IF('Control and Output Summary'!$C$14<>"Ergon",-PMT('Control and Output Summary'!$C$6,INDEX('Asset Specification'!$G$8:$G$43,MATCH(1,($B122= 'Asset Specification'!$B$8:$B$43)*($C122 ='Asset Specification'!$C$8:$C$43) * ("Import" = 'Asset Specification'!$D$8:$D$43),0)),D111),-PMT('Control and Output Summary'!$C$6,INDEX('Ergon Input'!$G$84:$G$95,MATCH(1,($B122= 'Ergon Input'!$B$84:$B$95) * ("Import" = 'Ergon Input'!$D$84:$D$95),0)),D111)) -> 0 | E122: =IF('Control and Output Summary'!$C$14<>"Ergon",-PMT('Control and Output Summary'!$C$6,INDEX('Asset Specification'!$G$8:$G$43,MATCH(1,($B122= 'Asset Specification'!$B$8:$B$43)*($C122 ='Asset Specification'!$C$8:$C$43) * ("Import" = 'Asset Specification'!$D$8:$D$43),0)),E111),-PMT('Control and Output Summary'!$C$6,INDEX('Ergon Input'!$G$84:$G$95,MATCH(1,($B122= 'Ergon Input'!$B$84:$B$95) * ("Import" = 'Ergon Input'!$D$84:$D$95),0)),E111)) -> 0 | F122: =IF('Control and Output Summary'!$C$14<>"Ergon",-PMT('Control and Output Summary'!$C$6,INDEX('Asset Specification'!$G$8:$G$43,MATCH(1,($B122= 'Asset Specification'!$B$8:$B$43)*($C122 ='Asset Specification'!$C$8:$C$43) * ("Import" = 'Asset Specification'!$D$8:$D$43),0)),F111),-PMT('Control and Output Summary'!$C$6,INDEX('Ergon Input'!$G$84:$G$95,MATCH(1,($B122= 'Ergon Input'!$B$84:$B$95) * ("Import" = 'Ergon Input'!$D$84:$D$95),0)),F111)) -> 0 | G122: =IF('Control and Output Summary'!$C$14<>"Ergon",-PMT('Control and Output Summary'!$C$6,INDEX('Asset Specification'!$G$8:$G$43,MATCH(1,($B122= 'Asset Specification'!$B$8:$B$43)*($C122 ='Asset Specification'!$C$8:$C$43) * ("Import" = 'Asset Specification'!$D$8:$D$43),0)),G111),-PMT('Control and Output Summary'!$C$6,INDEX('Ergon Input'!$G$84:$G$95,MATCH(1,($B122= 'Ergon Input'!$B$84:$B$95) * ("Import" = 'Ergon Input'!$D$84:$D$95),0)),G111)) -> 0 | H122: =IF('Control and Output Summary'!$C$14<>"Ergon",-PMT('Control and Output Summary'!$C$6,INDEX('Asset Specification'!$G$8:$G$43,MATCH(1,($B122= 'Asset Specification'!$B$8:$B$43)*($C122 ='Asset Specification'!$C$8:$C$43) * ("Import" = 'Asset Specification'!$D$8:$D$43),0)),H111),-PMT('Control and Output Summary'!$C$6,INDEX('Ergon Input'!$G$84:$G$95,MATCH(1,($B122= 'Ergon Input'!$B$84:$B$95) * ("Import" = 'Ergon Input'!$D$84:$D$95),0)),H111)) -> 0 | I122: =IF('Control and Output Summary'!$C$14<>"Ergon",-PMT('Control and Output Summary'!$C$6,INDEX('Asset Specification'!$G$8:$G$43,MATCH(1,($B122= 'Asset Specification'!$B$8:$B$43)*($C122 ='Asset Specification'!$C$8:$C$43) * ("Import" = 'Asset Specification'!$D$8:$D$43),0)),I111),-PMT('Control and Output Summary'!$C$6,INDEX('Ergon Input'!$G$84:$G$95,MATCH(1,($B122= 'Ergon Input'!$B$84:$B$95) * ("Import" = 'Ergon Input'!$D$84:$D$95),0)),I111)) -> 0 | J122: =IF('Control and Output Summary'!$C$14<>"Ergon",-PMT('Control and Output Summary'!$C$6,INDEX('Asset Specification'!$G$8:$G$43,MATCH(1,($B122= 'Asset Specification'!$B$8:$B$43)*($C122 ='Asset Specification'!$C$8:$C$43) * ("Import" = 'Asset Specification'!$D$8:$D$43),0)),J111),-PMT('Control and Output Summary'!$C$6,INDEX('Ergon Input'!$G$84:$G$95,MATCH(1,($B122= 'Ergon Input'!$B$84:$B$95) * ("Import" = 'Ergon Input'!$D$84:$D$95),0)),J111)) -> 0 | K122: =IF('Control and Output Summary'!$C$14<>"Ergon",-PMT('Control and Output Summary'!$C$6,INDEX('Asset Specification'!$G$8:$G$43,MATCH(1,($B122= 'Asset Specification'!$B$8:$B$43)*($C122 ='Asset Specification'!$C$8:$C$43) * ("Import" = 'Asset Specification'!$D$8:$D$43),0)),K111),-PMT('Control and Output Summary'!$C$6,INDEX('Ergon Input'!$G$84:$G$95,MATCH(1,($B122= 'Ergon Input'!$B$84:$B$95) * ("Import" = 'Ergon Input'!$D$84:$D$95),0)),K111)) -> 0 | L122: =IF('Control and Output Summary'!$C$14<>"Ergon",-PMT('Control and Output Summary'!$C$6,INDEX('Asset Specification'!$G$8:$G$43,MATCH(1,($B122= 'Asset Specification'!$B$8:$B$43)*($C122 ='Asset Specification'!$C$8:$C$43) * ("Import" = 'Asset Specification'!$D$8:$D$43),0)),L111),-PMT('Control and Output Summary'!$C$6,INDEX('Ergon Input'!$G$84:$G$95,MATCH(1,($B122= 'Ergon Input'!$B$84:$B$95) * ("Import" = 'Ergon Input'!$D$84:$D$95),0)),L111)) -> 0 | M122: =IF('Control and Output Summary'!$C$14<>"Ergon",-PMT('Control and Output Summary'!$C$6,INDEX('Asset Specification'!$G$8:$G$43,MATCH(1,($B122= 'Asset Specification'!$B$8:$B$43)*($C122 ='Asset Specification'!$C$8:$C$43) * ("Import" = 'Asset Specification'!$D$8:$D$43),0)),M111),-PMT('Control and Output Summary'!$C$6,INDEX('Ergon Input'!$G$84:$G$95,MATCH(1,($B122= 'Ergon Input'!$B$84:$B$95) * ("Import" = 'Ergon Input'!$D$84:$D$95),0)),M111)) -> 0 | N122: =IF('Control and Output Summary'!$C$14<>"Ergon",-PMT('Control and Output Summary'!$C$6,INDEX('Asset Specification'!$G$8:$G$43,MATCH(1,($B122= 'Asset Specification'!$B$8:$B$43)*($C122 ='Asset Specification'!$C$8:$C$43) * ("Import" = 'Asset Specification'!$D$8:$D$43),0)),N111),-PMT('Control and Output Summary'!$C$6,INDEX('Ergon Input'!$G$84:$G$95,MATCH(1,($B122= 'Ergon Input'!$B$84:$B$95) * ("Import" = 'Ergon Input'!$D$84:$D$95),0)),N111)) -> 0
B123: HV Line | C123: ='Control and Output Summary'!$C$14 -> West | D123: =IF('Control and Output Summary'!$C$14<>"Ergon",-PMT('Control and Output Summary'!$C$6,INDEX('Asset Specification'!$G$8:$G$43,MATCH(1,($B123= 'Asset Specification'!$B$8:$B$43)*($C123 ='Asset Specification'!$C$8:$C$43) * ("Import" = 'Asset Specification'!$D$8:$D$43),0)),D112),-PMT('Control and Output Summary'!$C$6,INDEX('Ergon Input'!$G$84:$G$95,MATCH(1,($B123= 'Ergon Input'!$B$84:$B$95) * ("Import" = 'Ergon Input'!$D$84:$D$95),0)),D112)) -> 0 | E123: =IF('Control and Output Summary'!$C$14<>"Ergon",-PMT('Control and Output Summary'!$C$6,INDEX('Asset Specification'!$G$8:$G$43,MATCH(1,($B123= 'Asset Specification'!$B$8:$B$43)*($C123 ='Asset Specification'!$C$8:$C$43) * ("Import" = 'Asset Specification'!$D$8:$D$43),0)),E112),-PMT('Control and Output Summary'!$C$6,INDEX('Ergon Input'!$G$84:$G$95,MATCH(1,($B123= 'Ergon Input'!$B$84:$B$95) * ("Import" = 'Ergon Input'!$D$84:$D$95),0)),E112)) -> 0 | F123: =IF('Control and Output Summary'!$C$14<>"Ergon",-PMT('Control and Output Summary'!$C$6,INDEX('Asset Specification'!$G$8:$G$43,MATCH(1,($B123= 'Asset Specification'!$B$8:$B$43)*($C123 ='Asset Specification'!$C$8:$C$43) * ("Import" = 'Asset Specification'!$D$8:$D$43),0)),F112),-PMT('Control and Output Summary'!$C$6,INDEX('Ergon Input'!$G$84:$G$95,MATCH(1,($B123= 'Ergon Input'!$B$84:$B$95) * ("Import" = 'Ergon Input'!$D$84:$D$95),0)),F112)) -> 0 | G123: =IF('Control and Output Summary'!$C$14<>"Ergon",-PMT('Control and Output Summary'!$C$6,INDEX('Asset Specification'!$G$8:$G$43,MATCH(1,($B123= 'Asset Specification'!$B$8:$B$43)*($C123 ='Asset Specification'!$C$8:$C$43) * ("Import" = 'Asset Specification'!$D$8:$D$43),0)),G112),-PMT('Control and Output Summary'!$C$6,INDEX('Ergon Input'!$G$84:$G$95,MATCH(1,($B123= 'Ergon Input'!$B$84:$B$95) * ("Import" = 'Ergon Input'!$D$84:$D$95),0)),G112)) -> 0 | H123: =IF('Control and Output Summary'!$C$14<>"Ergon",-PMT('Control and Output Summary'!$C$6,INDEX('Asset Specification'!$G$8:$G$43,MATCH(1,($B123= 'Asset Specification'!$B$8:$B$43)*($C123 ='Asset Specification'!$C$8:$C$43) * ("Import" = 'Asset Specification'!$D$8:$D$43),0)),H112),-PMT('Control and Output Summary'!$C$6,INDEX('Ergon Input'!$G$84:$G$95,MATCH(1,($B123= 'Ergon Input'!$B$84:$B$95) * ("Import" = 'Ergon Input'!$D$84:$D$95),0)),H112)) -> 0 | I123: =IF('Control and Output Summary'!$C$14<>"Ergon",-PMT('Control and Output Summary'!$C$6,INDEX('Asset Specification'!$G$8:$G$43,MATCH(1,($B123= 'Asset Specification'!$B$8:$B$43)*($C123 ='Asset Specification'!$C$8:$C$43) * ("Import" = 'Asset Specification'!$D$8:$D$43),0)),I112),-PMT('Control and Output Summary'!$C$6,INDEX('Ergon Input'!$G$84:$G$95,MATCH(1,($B123= 'Ergon Input'!$B$84:$B$95) * ("Import" = 'Ergon Input'!$D$84:$D$95),0)),I112)) -> 0 | J123: =IF('Control and Output Summary'!$C$14<>"Ergon",-PMT('Control and Output Summary'!$C$6,INDEX('Asset Specification'!$G$8:$G$43,MATCH(1,($B123= 'Asset Specification'!$B$8:$B$43)*($C123 ='Asset Specification'!$C$8:$C$43) * ("Import" = 'Asset Specification'!$D$8:$D$43),0)),J112),-PMT('Control and Output Summary'!$C$6,INDEX('Ergon Input'!$G$84:$G$95,MATCH(1,($B123= 'Ergon Input'!$B$84:$B$95) * ("Import" = 'Ergon Input'!$D$84:$D$95),0)),J112)) -> 0 | K123: =IF('Control and Output Summary'!$C$14<>"Ergon",-PMT('Control and Output Summary'!$C$6,INDEX('Asset Specification'!$G$8:$G$43,MATCH(1,($B123= 'Asset Specification'!$B$8:$B$43)*($C123 ='Asset Specification'!$C$8:$C$43) * ("Import" = 'Asset Specification'!$D$8:$D$43),0)),K112),-PMT('Control and Output Summary'!$C$6,INDEX('Ergon Input'!$G$84:$G$95,MATCH(1,($B123= 'Ergon Input'!$B$84:$B$95) * ("Import" = 'Ergon Input'!$D$84:$D$95),0)),K112)) -> 0 | L123: =IF('Control and Output Summary'!$C$14<>"Ergon",-PMT('Control and Output Summary'!$C$6,INDEX('Asset Specification'!$G$8:$G$43,MATCH(1,($B123= 'Asset Specification'!$B$8:$B$43)*($C123 ='Asset Specification'!$C$8:$C$43) * ("Import" = 'Asset Specification'!$D$8:$D$43),0)),L112),-PMT('Control and Output Summary'!$C$6,INDEX('Ergon Input'!$G$84:$G$95,MATCH(1,($B123= 'Ergon Input'!$B$84:$B$95) * ("Import" = 'Ergon Input'!$D$84:$D$95),0)),L112)) -> 0 | M123: =IF('Control and Output Summary'!$C$14<>"Ergon",-PMT('Control and Output Summary'!$C$6,INDEX('Asset Specification'!$G$8:$G$43,MATCH(1,($B123= 'Asset Specification'!$B$8:$B$43)*($C123 ='Asset Specification'!$C$8:$C$43) * ("Import" = 'Asset Specification'!$D$8:$D$43),0)),M112),-PMT('Control and Output Summary'!$C$6,INDEX('Ergon Input'!$G$84:$G$95,MATCH(1,($B123= 'Ergon Input'!$B$84:$B$95) * ("Import" = 'Ergon Input'!$D$84:$D$95),0)),M112)) -> 0 | N123: =IF('Control and Output Summary'!$C$14<>"Ergon",-PMT('Control and Output Summary'!$C$6,INDEX('Asset Specification'!$G$8:$G$43,MATCH(1,($B123= 'Asset Specification'!$B$8:$B$43)*($C123 ='Asset Specification'!$C$8:$C$43) * ("Import" = 'Asset Specification'!$D$8:$D$43),0)),N112),-PMT('Control and Output Summary'!$C$6,INDEX('Ergon Input'!$G$84:$G$95,MATCH(1,($B123= 'Ergon Input'!$B$84:$B$95) * ("Import" = 'Ergon Input'!$D$84:$D$95),0)),N112)) -> 0
B124: HV Bus | C124: ='Control and Output Summary'!$C$14 -> West | D124: =IF('Control and Output Summary'!$C$14<>"Ergon",-PMT('Control and Output Summary'!$C$6,INDEX('Asset Specification'!$G$8:$G$43,MATCH(1,($B124= 'Asset Specification'!$B$8:$B$43)*($C124 ='Asset Specification'!$C$8:$C$43) * ("Import" = 'Asset Specification'!$D$8:$D$43),0)),D113),-PMT('Control and Output Summary'!$C$6,INDEX('Ergon Input'!$G$84:$G$95,MATCH(1,($B124= 'Ergon Input'!$B$84:$B$95) * ("Import" = 'Ergon Input'!$D$84:$D$95),0)),D113)) -> 0 | E124: =IF('Control and Output Summary'!$C$14<>"Ergon",-PMT('Control and Output Summary'!$C$6,INDEX('Asset Specification'!$G$8:$G$43,MATCH(1,($B124= 'Asset Specification'!$B$8:$B$43)*($C124 ='Asset Specification'!$C$8:$C$43) * ("Import" = 'Asset Specification'!$D$8:$D$43),0)),E113),-PMT('Control and Output Summary'!$C$6,INDEX('Ergon Input'!$G$84:$G$95,MATCH(1,($B124= 'Ergon Input'!$B$84:$B$95) * ("Import" = 'Ergon Input'!$D$84:$D$95),0)),E113)) -> 0 | F124: =IF('Control and Output Summary'!$C$14<>"Ergon",-PMT('Control and Output Summary'!$C$6,INDEX('Asset Specification'!$G$8:$G$43,MATCH(1,($B124= 'Asset Specification'!$B$8:$B$43)*($C124 ='Asset Specification'!$C$8:$C$43) * ("Import" = 'Asset Specification'!$D$8:$D$43),0)),F113),-PMT('Control and Output Summary'!$C$6,INDEX('Ergon Input'!$G$84:$G$95,MATCH(1,($B124= 'Ergon Input'!$B$84:$B$95) * ("Import" = 'Ergon Input'!$D$84:$D$95),0)),F113)) -> 0 | G124: =IF('Control and Output Summary'!$C$14<>"Ergon",-PMT('Control and Output Summary'!$C$6,INDEX('Asset Specification'!$G$8:$G$43,MATCH(1,($B124= 'Asset Specification'!$B$8:$B$43)*($C124 ='Asset Specification'!$C$8:$C$43) * ("Import" = 'Asset Specification'!$D$8:$D$43),0)),G113),-PMT('Control and Output Summary'!$C$6,INDEX('Ergon Input'!$G$84:$G$95,MATCH(1,($B124= 'Ergon Input'!$B$84:$B$95) * ("Import" = 'Ergon Input'!$D$84:$D$95),0)),G113)) -> 0 | H124: =IF('Control and Output Summary'!$C$14<>"Ergon",-PMT('Control and Output Summary'!$C$6,INDEX('Asset Specification'!$G$8:$G$43,MATCH(1,($B124= 'Asset Specification'!$B$8:$B$43)*($C124 ='Asset Specification'!$C$8:$C$43) * ("Import" = 'Asset Specification'!$D$8:$D$43),0)),H113),-PMT('Control and Output Summary'!$C$6,INDEX('Ergon Input'!$G$84:$G$95,MATCH(1,($B124= 'Ergon Input'!$B$84:$B$95) * ("Import" = 'Ergon Input'!$D$84:$D$95),0)),H113)) -> 0 | I124: =IF('Control and Output Summary'!$C$14<>"Ergon",-PMT('Control and Output Summary'!$C$6,INDEX('Asset Specification'!$G$8:$G$43,MATCH(1,($B124= 'Asset Specification'!$B$8:$B$43)*($C124 ='Asset Specification'!$C$8:$C$43) * ("Import" = 'Asset Specification'!$D$8:$D$43),0)),I113),-PMT('Control and Output Summary'!$C$6,INDEX('Ergon Input'!$G$84:$G$95,MATCH(1,($B124= 'Ergon Input'!$B$84:$B$95) * ("Import" = 'Ergon Input'!$D$84:$D$95),0)),I113)) -> 0 | J124: =IF('Control and Output Summary'!$C$14<>"Ergon",-PMT('Control and Output Summary'!$C$6,INDEX('Asset Specification'!$G$8:$G$43,MATCH(1,($B124= 'Asset Specification'!$B$8:$B$43)*($C124 ='Asset Specification'!$C$8:$C$43) * ("Import" = 'Asset Specification'!$D$8:$D$43),0)),J113),-PMT('Control and Output Summary'!$C$6,INDEX('Ergon Input'!$G$84:$G$95,MATCH(1,($B124= 'Ergon Input'!$B$84:$B$95) * ("Import" = 'Ergon Input'!$D$84:$D$95),0)),J113)) -> 0 | K124: =IF('Control and Output Summary'!$C$14<>"Ergon",-PMT('Control and Output Summary'!$C$6,INDEX('Asset Specification'!$G$8:$G$43,MATCH(1,($B124= 'Asset Specification'!$B$8:$B$43)*($C124 ='Asset Specification'!$C$8:$C$43) * ("Import" = 'Asset Specification'!$D$8:$D$43),0)),K113),-PMT('Control and Output Summary'!$C$6,INDEX('Ergon Input'!$G$84:$G$95,MATCH(1,($B124= 'Ergon Input'!$B$84:$B$95) * ("Import" = 'Ergon Input'!$D$84:$D$95),0)),K113)) -> 0 | L124: =IF('Control and Output Summary'!$C$14<>"Ergon",-PMT('Control and Output Summary'!$C$6,INDEX('Asset Specification'!$G$8:$G$43,MATCH(1,($B124= 'Asset Specification'!$B$8:$B$43)*($C124 ='Asset Specification'!$C$8:$C$43) * ("Import" = 'Asset Specification'!$D$8:$D$43),0)),L113),-PMT('Control and Output Summary'!$C$6,INDEX('Ergon Input'!$G$84:$G$95,MATCH(1,($B124= 'Ergon Input'!$B$84:$B$95) * ("Import" = 'Ergon Input'!$D$84:$D$95),0)),L113)) -> 0 | M124: =IF('Control and Output Summary'!$C$14<>"Ergon",-PMT('Control and Output Summary'!$C$6,INDEX('Asset Specification'!$G$8:$G$43,MATCH(1,($B124= 'Asset Specification'!$B$8:$B$43)*($C124 ='Asset Specification'!$C$8:$C$43) * ("Import" = 'Asset Specification'!$D$8:$D$43),0)),M113),-PMT('Control and Output Summary'!$C$6,INDEX('Ergon Input'!$G$84:$G$95,MATCH(1,($B124= 'Ergon Input'!$B$84:$B$95) * ("Import" = 'Ergon Input'!$D$84:$D$95),0)),M113)) -> 0 | N124: =IF('Control and Output Summary'!$C$14<>"Ergon",-PMT('Control and Output Summary'!$C$6,INDEX('Asset Specification'!$G$8:$G$43,MATCH(1,($B124= 'Asset Specification'!$B$8:$B$43)*($C124 ='Asset Specification'!$C$8:$C$43) * ("Import" = 'Asset Specification'!$D$8:$D$43),0)),N113),-PMT('Control and Output Summary'!$C$6,INDEX('Ergon Input'!$G$84:$G$95,MATCH(1,($B124= 'Ergon Input'!$B$84:$B$95) * ("Import" = 'Ergon Input'!$D$84:$D$95),0)),N113)) -> 0
B125: ST 33/66 kv | C125: ='Control and Output Summary'!$C$14 -> West | D125: =IF('Control and Output Summary'!$C$14<>"Ergon",-PMT('Control and Output Summary'!$C$6,INDEX('Asset Specification'!$G$8:$G$43,MATCH(1,($B125= 'Asset Specification'!$B$8:$B$43)*($C125 ='Asset Specification'!$C$8:$C$43) * ("Import" = 'Asset Specification'!$D$8:$D$43),0)),D114),-PMT('Control and Output Summary'!$C$6,INDEX('Ergon Input'!$G$84:$G$95,MATCH(1,($B125= 'Ergon Input'!$B$84:$B$95) * ("Import" = 'Ergon Input'!$D$84:$D$95),0)),D114)) -> 0 | E125: =IF('Control and Output Summary'!$C$14<>"Ergon",-PMT('Control and Output Summary'!$C$6,INDEX('Asset Specification'!$G$8:$G$43,MATCH(1,($B125= 'Asset Specification'!$B$8:$B$43)*($C125 ='Asset Specification'!$C$8:$C$43) * ("Import" = 'Asset Specification'!$D$8:$D$43),0)),E114),-PMT('Control and Output Summary'!$C$6,INDEX('Ergon Input'!$G$84:$G$95,MATCH(1,($B125= 'Ergon Input'!$B$84:$B$95) * ("Import" = 'Ergon Input'!$D$84:$D$95),0)),E114)) -> 0 | F125: =IF('Control and Output Summary'!$C$14<>"Ergon",-PMT('Control and Output Summary'!$C$6,INDEX('Asset Specification'!$G$8:$G$43,MATCH(1,($B125= 'Asset Specification'!$B$8:$B$43)*($C125 ='Asset Specification'!$C$8:$C$43) * ("Import" = 'Asset Specification'!$D$8:$D$43),0)),F114),-PMT('Control and Output Summary'!$C$6,INDEX('Ergon Input'!$G$84:$G$95,MATCH(1,($B125= 'Ergon Input'!$B$84:$B$95) * ("Import" = 'Ergon Input'!$D$84:$D$95),0)),F114)) -> 0 | G125: =IF('Control and Output Summary'!$C$14<>"Ergon",-PMT('Control and Output Summary'!$C$6,INDEX('Asset Specification'!$G$8:$G$43,MATCH(1,($B125= 'Asset Specification'!$B$8:$B$43)*($C125 ='Asset Specification'!$C$8:$C$43) * ("Import" = 'Asset Specification'!$D$8:$D$43),0)),G114),-PMT('Control and Output Summary'!$C$6,INDEX('Ergon Input'!$G$84:$G$95,MATCH(1,($B125= 'Ergon Input'!$B$84:$B$95) * ("Import" = 'Ergon Input'!$D$84:$D$95),0)),G114)) -> 0 | H125: =IF('Control and Output Summary'!$C$14<>"Ergon",-PMT('Control and Output Summary'!$C$6,INDEX('Asset Specification'!$G$8:$G$43,MATCH(1,($B125= 'Asset Specification'!$B$8:$B$43)*($C125 ='Asset Specification'!$C$8:$C$43) * ("Import" = 'Asset Specification'!$D$8:$D$43),0)),H114),-PMT('Control and Output Summary'!$C$6,INDEX('Ergon Input'!$G$84:$G$95,MATCH(1,($B125= 'Ergon Input'!$B$84:$B$95) * ("Import" = 'Ergon Input'!$D$84:$D$95),0)),H114)) -> 0 | I125: =IF('Control and Output Summary'!$C$14<>"Ergon",-PMT('Control and Output Summary'!$C$6,INDEX('Asset Specification'!$G$8:$G$43,MATCH(1,($B125= 'Asset Specification'!$B$8:$B$43)*($C125 ='Asset Specification'!$C$8:$C$43) * ("Import" = 'Asset Specification'!$D$8:$D$43),0)),I114),-PMT('Control and Output Summary'!$C$6,INDEX('Ergon Input'!$G$84:$G$95,MATCH(1,($B125= 'Ergon Input'!$B$84:$B$95) * ("Import" = 'Ergon Input'!$D$84:$D$95),0)),I114)) -> 0 | J125: =IF('Control and Output Summary'!$C$14<>"Ergon",-PMT('Control and Output Summary'!$C$6,INDEX('Asset Specification'!$G$8:$G$43,MATCH(1,($B125= 'Asset Specification'!$B$8:$B$43)*($C125 ='Asset Specification'!$C$8:$C$43) * ("Import" = 'Asset Specification'!$D$8:$D$43),0)),J114),-PMT('Control and Output Summary'!$C$6,INDEX('Ergon Input'!$G$84:$G$95,MATCH(1,($B125= 'Ergon Input'!$B$84:$B$95) * ("Import" = 'Ergon Input'!$D$84:$D$95),0)),J114)) -> 0 | K125: =IF('Control and Output Summary'!$C$14<>"Ergon",-PMT('Control and Output Summary'!$C$6,INDEX('Asset Specification'!$G$8:$G$43,MATCH(1,($B125= 'Asset Specification'!$B$8:$B$43)*($C125 ='Asset Specification'!$C$8:$C$43) * ("Import" = 'Asset Specification'!$D$8:$D$43),0)),K114),-PMT('Control and Output Summary'!$C$6,INDEX('Ergon Input'!$G$84:$G$95,MATCH(1,($B125= 'Ergon Input'!$B$84:$B$95) * ("Import" = 'Ergon Input'!$D$84:$D$95),0)),K114)) -> 0 | L125: =IF('Control and Output Summary'!$C$14<>"Ergon",-PMT('Control and Output Summary'!$C$6,INDEX('Asset Specification'!$G$8:$G$43,MATCH(1,($B125= 'Asset Specification'!$B$8:$B$43)*($C125 ='Asset Specification'!$C$8:$C$43) * ("Import" = 'Asset Specification'!$D$8:$D$43),0)),L114),-PMT('Control and Output Summary'!$C$6,INDEX('Ergon Input'!$G$84:$G$95,MATCH(1,($B125= 'Ergon Input'!$B$84:$B$95) * ("Import" = 'Ergon Input'!$D$84:$D$95),0)),L114)) -> 0 | M125: =IF('Control and Output Summary'!$C$14<>"Ergon",-PMT('Control and Output Summary'!$C$6,INDEX('Asset Specification'!$G$8:$G$43,MATCH(1,($B125= 'Asset Specification'!$B$8:$B$43)*($C125 ='Asset Specification'!$C$8:$C$43) * ("Import" = 'Asset Specification'!$D$8:$D$43),0)),M114),-PMT('Control and Output Summary'!$C$6,INDEX('Ergon Input'!$G$84:$G$95,MATCH(1,($B125= 'Ergon Input'!$B$84:$B$95) * ("Import" = 'Ergon Input'!$D$84:$D$95),0)),M114)) -> 0 | N125: =IF('Control and Output Summary'!$C$14<>"Ergon",-PMT('Control and Output Summary'!$C$6,INDEX('Asset Specification'!$G$8:$G$43,MATCH(1,($B125= 'Asset Specification'!$B$8:$B$43)*($C125 ='Asset Specification'!$C$8:$C$43) * ("Import" = 'Asset Specification'!$D$8:$D$43),0)),N114),-PMT('Control and Output Summary'!$C$6,INDEX('Ergon Input'!$G$84:$G$95,MATCH(1,($B125= 'Ergon Input'!$B$84:$B$95) * ("Import" = 'Ergon Input'!$D$84:$D$95),0)),N114)) -> 0
